Workbook

Sheet Riskk
A1: linda | B1: UPSW | H1: =COUNT(H3:H20) -> 0 | I1: FALSE | O1: =K1-L1-M1 -> 0 | X1: TBKey | Y1: =C1&D1 ->  | BX1: MstHstKey | BY1: =G1&BG1 ->  | BZ1: =G1&IF(C1="DEV",MID(H1,FIND("*",H1,1)+1,3),0) -> 0 | CM1: TranKey | CN1: =H1&BX1 -> 0MstHstKey | DM1: ReceivableKey | DN1: =IF(LEFT(E1,1)="C",0,M1&B1) -> UPSW
B2: Userid | H2: Main/sub | I2: Caption | J2: On Action | K2: NewGroup
A3: 3 | B3: UserLevel
A4: 2006-05-09T11:19:39 | B4: LoginTime
B5: LogoutTime
B6: User
I23: TBMstByCashFlagKey | J23: =MID(A23,3,2) ->  | K23: =IF(C23=5,OFFSET(aaAAAFundSdf!#REF!,MATCH(J23,aaAAAFundSdf!C:C,0)-1,0)&D23,0) -> 0
I26: Report Formula | J26: =((SUMIF(#REF!,$A26&J$1,#REF!)+SUMIF(#REF!,$A26&J$2,#REF!)+SUMIF(aaCshSecurityPdf!$K:$K,$A26&J$2,aaCshSecurityPdf!$H:$H)+SUMIF(CounterParty!$DN:$DN,$A26&J$1,CounterParty!$A:$A))/$B26)*100 -> 
C32: =ReportIn!F24 -> 1127 | D32: =ReportIn!AI24 -> (1127) - TEOH HAN CHONG | E32: =ReportIn!H24 -> 255000 | F32: =ReportIn!AD24 -> 19.07 | G32: =ReportIn!BB24 -> -255000 | H32: =ReportIn!I24 -> 0 | I32: =ReportIn!G24 -> 0.0273 | J32: =ReportIn!AB24:AB24 -> 1 | K32: =ReportIn!AZ24 -> Short Term Money Market Deposit | L32: =ReportIn!AL24 -> DEUTSCHE BANK (MALAYSIA) BERHAD | M32: =ReportIn!N24 -> 41877 | N32: =ReportIn!Q24 -> 41878 | O32: =ROUND(H32*J32*I32/VLOOKUP(ReportIn!C24,aaCshSecurityPdf!A:E,5,0),2) ->  | P32: =ReportIn!T24 -> DB-MYR-0022905000 | Q32: =ReportIn!AR24 -> DBNOMINEE | R32: =ReportIn!AC24 -> 
A36: No | B36: Fund Code | C36: Currency | D36: Additional Cash | E36: Capital In/Out | F36: Actual Bank Balance | G36: GL Bank Balance | H36: Effective Bank Balance | I36: Today In Flow | J36: Today Out Flow | K36: Cash Available | L36: Proposed Placement | M36: Proposed Payment/Rollover | N36: Note | O36: Balance After Placement | P36: Balance after placement
A38: No | B38: Master ID | C38: Fund Code | D38: Currency | E38: Principle | F38: Profit | G38: Total | H38: Cash Available | I38: Rate (%) | J38: Tenor (Day) | K38: Placement Date | L38: Maturity Date | M38: Placement Type | N38: Financial Institution | O38: Bank Account | P38: Placement Entity
B40: Fund Code | C40: Proposed Placement | D40: Rate (%) | E40: Tenor | F40: Placement Date | G40: Maturity Date | H40: Financial Institution | I40: Placement Type | J40: Amount (RM) | K40: FI Dealer | L40: Source Bank Account No | M40: Currency | N40: Roll Over Flag
B41: PA-FI | C41: 0 | D41: 0 | E41: 0 | F41: 2018-04-04 | G41: =F41+E41 -> 2018-04-04 | I41: RCB | J41: =C41 -> 0 | L41: ="DF" -> DF | M41: ="MYR" -> MYR | N41: 0
B43: A | D43: 0 | E43: 0 | F43: =BizDate -> 2019-06-27 | G43: =F43+E43 -> 2019-06-27 | I43: RCB | J43: 0 | L43: ="DF" -> DF | M43: ="MYR" -> MYR | N43: 0 | O43: 0 | P43: 0 | Q43: 1
K46: =ROUNDDOWN(J46,-3) -> 0

Sheet Login
H2: Box 389, Lot 7.16, Wisma Central, Jln Ampang, 50450 Kuala Lumpur
B3: Sdn Bhd (CN 388306K)
B9: Radar Cash Upload
J18: `

Sheet aaAAAFundSdf (hidden)
A1: qFundCode | B1: FundDesc | C1: FundPrefix
A2: AG-ALK | B2: AL-KABIR BIN MOHD ALI | C2: AGALK
A3: AG-BAY | B3: BAY BEE CHOO | C3: AGBAY
A4: AG-BCK | B4: BOEY CHEE KEONG | C4: AGBCK
A5: AG-CEH | B5: CHUA ENG HUI | C5: AGCEH
A6: AG-CHAR | B6: CHARMAINE LAI SHU MING | C6: AGCHAR
A7: AG-CHM | B7: CHEN HOCK MEET | C7: AGCHM
A8: AG-CHS | B8: CHONG HIN SANG | C8: AGCHS
A9: AG-CKC | B9: CHOO KWEE CHIN | C9: AGCKC
A10: AG-CL | B10: CATHERINE LAM | C10: AGCL
A11: AG-CLM | B11: CHUNG LIH MIAN & YONG HAI YEN | C11: AGCLM
A12: AG-CML | B12: CHONG MIONG LING | C12: AGCML
A13: AG-CSK | B13: CHUNG SU KIUN | C13: AGCSK
A14: AG-CSM | B14: CHENG SOOK MING | C14: AGCSM
A15: AG-CSY | B15: CHIN SIN YEAN | C15: AGCSY
A16: AG-FHH | B16: FOH HONG HIN | C16: AGFHH
A17: AG-FLL | B17: FOONG LI LIN | C17: AGFLL
A18: AG-GERA | B18: GERARD MARIE DE SOUZA | C18: AGGERA
A19: AG-HCW | B19: HOR CHAN WYE | C19: AGHCW
A20: AG-HMF | B20: HONG MENG FONG | C20: AGHMF
A21: AG-HPL | B21: HUANG PEI LIN @ NG PEI LIN & PATTY HUANG @ PATTY NG | C21: AGHPL
A22: AG-JABA | B22: JABARAJ VINCENT A/L DEVARAKAM | C22: AGJABA
A23: AG-JIS | B23: JISING @ JOHNNY BIN GUANSING | C23: AGJIS
A24: AG-JMIL | B24: JAMIL HAJAR BIN ABDUL MUTTALIB | C24: AGJMIL
A25: AG-JOH | B25: JOANNES@JOHN STANESLOUS | C25: AGJOH
A26: AG-JOS | B26: BOY@JOHNNY SETANIS & JOANNES@ JOHN STANESLOUS | C26: AGJOS
A27: AG-KAMA | B27: KAMARUZAMAN BIN SAPARI | C27: AGKAMA
A28: AG-KJK | B28: VICTOR KONG JOON KHIONG | C28: AGKJK
A29: AG-KPB | B29: KOPERASI PEKERJA BOMBA DAN PENYELAMAT MALAYSIA BERHAD | C29: AGKPB
A30: AG-KYV | B30: KOH YEE VON | C30: AGKYV
A31: AG-LCT | B31: LOH CHING TYAN | C31: AGLCT
A32: AG-LGL | B32: LIM GOID LIAN | C32: AGLGL
A33: AG-LHK | B33: LING HWA KUONG | C33: AGLHK
A34: AG-LHL | B34: LIEW HWA LI | C34: AGLHL
A35: AG-LHY | B35: LOI HENG YUE | C35: AGLHY
A36: AG-LIZA | B36: NORLIZA BINTI SUKRAN | C36: AGLIZA
A37: AG-LKH | B37: LIEW KOK HON | C37: AGLKH
A38: AG-LKS | B38: LIM KIM SAN | C38: AGLKS
A39: AG-LMS | B39: LOW MENG SWEE | C39: AGLMS
A40: AG-LSW | B40: LEONG SUN WEI & CHIN SIN KEN | C40: AGLSW
A41: AG-LYK | B41: LAU YEU KHING | C41: AGLYK
A42: AG-MST | B42: MUK SAI TAT | C42: AGMST
A43: AG-MYO | B43: MAH YUET OI | C43: AGMYO
A44: AG-NCH | B44: NG CHENG HIONG | C44: AGNCH
A45: AG-NIK | B45: NIK MOHAMAD PENA BIN NIK MUSTAPHA | C45: AGNIK
A46: AG-NMF | B46: NGOH MEE FONG | C46: AGNMF
A47: AG-NSJ | B47: NG SOON JING | C47: AGNSJ
A48: AG-NSS | B48: CATHERINE NGOH SWEE SIAH | C48: AGNSS
A49: AG-NTE | B49: NG TONG ENG NEE LIM SIEW ENG | C49: AGNTE
A50: AG-NWS | B50: NG WEE SHEE | C50: AGNWS
A51: AG-OAT | B51: OH AIK TEONG MICHAEL | C51: AGOAT
A52: AG-OHT | B52: ONG HAY THONG | C52: AGOHT
A53: AG-RAZ | B53: RAZMAN BIN MOHAMED | C53: AGRAZ
A54: AG-RIHN | B54: MOHAMED RAIHAN ABU BAKAR | C54: AGRIHN
A55: AG-SALL | B55: MOHAMED SALLEH BIN AHMAD | C55: AGSALL
A56: AG-SBL | B56: SOO BEE LENG | C56: AGSBL
A57: AG-SBY | B57: SOO BEE YUAN | C57: AGSBY
A58: AG-SCP | B58: SIA CHIU PING | C58: AGSCP
A59: AG-SCS | B59: SIOW CHOCK SHUME | C59: AGSCS
A60: AG-SHT | B60: TAN SEENG HONG | C60: AGSHT
A61: AG-SKS | B61: SUA KIM SENG | C61: AGSKS
A62: AG-SLS | B62: SOO LIAN SING | C62: AGSLS
A63: AG-SMC | B63: CHAI SAM MIN | C63: AGSMC
A64: AG-SSW | B64: SIOW SUN WOON | C64: AGSSW
A65: AG-SSY | B65: SOO SOOK YEE | C65: AGSSY
A66: AG-SWL | B66: LEE SOO WEN & KAM KIAN CHUAN @ KAM KIAN CHUANG | C66: AGSWL
A67: AG-TCK | B67: TANG CHEE KEONG | C67: AGTCK
A68: AG-TGN | B68: TAN GEOT NGE | C68: AGTGN
A69: AG-THT | B69: TEE HEE TIAN | C69: AGTHT
A70: AG-TJK | B70: TAN JIN KIAT | C70: AGTJK
A71: AG-TJK1 | B71: TAN JIN KIAT | C71: AGTJK1
A72: AG-TKY | B72: TEO KION YEU | C72: AGTKY
A73: AG-TMC | B73: TAN MEW CHING | C73: AGTMC
A74: AG-TPE | B74: TAN POO EM | C74: AGTPE
A75: AG-TSF | B75: TAN SIOK FUI | C75: AGTSF
A76: AG-TSH | B76: TEO SIEW HONG | C76: AGTSH
A77: AG-TSI | B77: TING SII ING | C77: AGTSI
A78: AG-TSP | B78: TAN SAY PENG | C78: AGTSP
A79: AG-TYM | B79: TAN YUEN MUN | C79: AGTYM
A80: AG-WAN | B80: W MOHD SHARIF BIN WAN MUDA | C80: AGWAN
A81: AG-WAS | B81: WAN SHUKRY BIN WAN KARMA | C81: AGWAS
A82: AG-WAT | B82: WONG AH TU @ ANNA | C82: AGWAT
A83: AG-WSF | B83: WONG SUE FONG | C83: AGWSF
A84: AG-YCM | B84: YAP CHEW MEI | C84: AGYCM
A85: AG-YPM | B85: YAP PECK MOI | C85: AGYPM
A86: AG-YSK1 | B86: YOOI SING KEEN | C86: AGYSK1
A87: AG-YSP | B87: YEAT SIAW PING | C87: AGYSP
A88: AG-YTC | B88: YEO TECK CHIN | C88: AGYTC
A89: AKC2 | B89: Ang Kim Chan @ Ang Kim Chian (AKC2) | C89: AKC2
A90: AKS | B90: Ang Kok Seong (AKS) | C90: AKS
A91: ALT | B91: Ken Fund 1 | C91: ALT
A92: AT | B92: Tan Kuay Fong (TAAM) | C92: AT
A93: AZI | B93: MOHD AZAMI BIN IDRIS | C93: AZI
A94: BS | B94: Ken Fund 2 | C94: BS
A95: BTASS | B95: Annie Shim Siong June Trust Fund (BTASS) | C95: BTASS
A96: BTCTW | B96: Chay Tai Wah @ Chay Tai Cheong Trust Fund (BT-CTW) | C96: BTCTW
A97: BTDJS | B97: Daljit Singh A/L Sajhan Singh And Selwinder Kaur A | C97: BTDJS
A98: BTGLS | B98: Golden Lamp Scholarship Fund (BTGLS) | C98: BTGLS
A99: BTHAH | B99: Heng Aik Hsing Trust Fund (BT-HAH) | C99: BTHAH
A100: BTKSH | B100: Khoo Chew Huat Trust Fund (BT-KSH) | C100: BTKSH
A101: BTLAI | B101: Lai Ah Moey Trust Fund (BT-LAI) | C101: BTLAI
A102: BTLSL | B102: Lee Seok Leng Trust Fund (BT-LSL) | C102: BTLSL
A103: BTOKS | B103: Oh Kim Sun Trust Fund (BT-OKS) | C103: BTOKS
A104: BTSLH | B104: Soo Lin Hoe Trust Fund (BT-SLH) | C104: BTSLH
A105: BTSS | B105: S.Susaimary A/P Sinnasamy Trust Fund (BT-SS) | C105: BTSS
A106: BTTAY | B106: Tay Soon Hong Trust Fund (BT-TAY) | C106: BTTAY
A107: BTTBS | B107: Tan Boon Siew Trust Fund (BTTBS) | C107: BTTBS
A108: BTTMJ | B108: Tan Moi Joo(BT-TMJ) | C108: BTTMJ
A109: BTTSC | B109: Tan Soon Chin Trust Fund (BT-TSC) | C109: BTTSC
A110: BTWT | B110: Chan Wah Tai Trust Fund (BTWT) | C110: BTWT
A111: BTYCK | B111: Yap Ching Kiat Trust Fund (BT-YCK) | C111: BTYCK
A112: CALV | B112: CALVIN LAU CHUEN YIEN | C112: CALV
A113: CARE | B113: Care Industrial Products Sdn Bhd (CARE) | C113: CARE
A114: CCL | B114: CHENG CHING LEANG | C114: CCL
A115: CFK | B115: N/A | C115: NA
A116: CIS | B116: Cement Industries (Sabah) Sdn Bhd (CIS) | C116: CIS
A117: CKH | B117: Chan Keong Hon (CKH) | C117: CKH
A118: CKL | B118: Chee Kin Loon (CKL) | C118: CKL
A119: CLA1 | B119: Commerce Life Assurance Bhd (CLA1) | C119: CLA1
A120: CLK | B120: N/A | C120: NIL
A121: CLL | B121: CHAN LAI LING | C121: CLL
A122: CMC | B122: Chung Man Chong (CMC) | C122: CMC
A123: CMC2 | B123: Chung Man Chong (CMC2) | C123: CMC2
A124: CPK | B124: CHAN POH KIM | C124: CPK
A125: CSJ | B125: CHIA SENG JOO | C125: CSJ
A126: CWK | B126: CHAN WAH KIANG | C126: CWK
A127: CWK2 | B127: CHAN WAH KIANG(CWK2) | C127: CWK2
A128: CWL | B128: CHEONG WEN LEE | C128: CWL
A129: CYT | B129: CHAN YIN THO | C129: CYT
A130: CYY | B130: CHOON YOKE YING | C130: CYY
A131: DH | B131: David Leslie Alexander Hunter (DH) | C131: DH
A132: DTKF | B132: Datin Tan Kuay Fong | C132: DTKF
A133: DTTK | B133: TIAH THEE KIAN | C133: DTTK
A134: DUMMY | B134: DUMMY | C134: DUMMY
A135: DUMMY1 | B135: DUMMY1 | C135: DUMMY1
A136: ED | B136: Lean Mun Huat (ED) | C136: ED
A137: EL | B137: Lee Yin (EL) | C137: EL
A138: EYC1 | B138: Ken Fund 9 | C138: EYC1
A139: FTEC | B139: Filtration Technology (M) Sdn. Bhd. (FTEC) | C139: FTEC
A140: FUNDA3 | B140: UNIVERSAL TRUSTEE(M) BHD A/C OF TUNKU MOHD NAZIM | C140: FUNDA3
A141: GBH | B141: GOH BOON HEONG & NG WHAI TECK | C141: GBH
A142: GNS | B142: GARETH NG SHIH KENE | C142: GNS
A143: GPH | B143: GOH PEI HOON | C143: GPH
A144: GSK | B144: GOH SEOW KHONG | C144: GSK
A145: HAF | B145: Hafez Bin Mohamed (HAF) | C145: HAF
A146: HARRI | B146: HARRISONS HOLDINGS (M) BERHAD | C146: HARRI
A147: HAS | B147: ZETTI HANA | C147: HAS
A148: HCC | B148: Ho Chao Chuan (HCC) | C148: HCC
A149: HHN | B149: HENG HOI NONG | C149: HHN
A150: HUANG | B150: Huang Jui-Mei (HUANG) | C150: HUANG
A151: HYH | B151: HO YAW HUEI | C151: HYH
A152: JC | B152: Chan Sau Meng (JC) | C152: JC
A153: KHANG | B153: Ken Fund 7 | C153: KHANG
A154: KHC | B154: CHONG KWAN HOONG & SIA SOON AUN | C154: KHC
A155: KKK | B155: Kang Kian Kiat (KKK) | C155: KKK
A156: KSA | B156: Ang Kok Seong (KSA) | C156: KSA
A157: KUDA | B157: KUDA SEJATI | C157: KUDA
A158: LAM | B158: Ang Kwee Lam (LAM) | C158: LAM
A159: LAU | B159: LAU KIN WAI | C159: LAU
A160: LC | B160: Ken Fund 6 | C160: LC
A161: LCY | B161: JULIAN LAU CHI YII | C161: LCY
A162: LFS | B162: Lee Foo Sang (LFS) | C162: LFS
A163: LGY | B163: LIM GUAK YONG | C163: LGY
A164: LHB | B164: LIM HAN BOON | C164: LHB
A165: LHC | B165: LIEW HIN CHOY | C165: LHC
A166: LHL | B166: Liong Hooi Len @ Leong Hooi Len (LHL) | C166: LHL
A167: LKW | B167: LAI KWOK WAI | C167: LKW
A168: LKYH | B168: LIM KEE YEONG HOLDINGS SDN BHD | C168: LKYH
A169: LLB2 | B169: Low Lay Beng | C169: LLB2
A170: LMH | B170: LEAN MUN HUAT (LMH) | C170: LMH
A171: LMM | B171: LEE MEI MING | C171: LMM
A172: LMT2 | B172: Yeow Lee Fong (YLF1) | C172: LMT2
A173: LOB | B173: London Biscuits Berhad (LOB) | C173: LOB
A174: LP | B174: Lawrence Pereira (LP) | C174: LP
A175: LSH | B175: LIM SOON HOCK | C175: LSH
A176: LSK | B176: LIEW SIN KONG | C176: LSK
A177: LWC | B177: LEOW WEI CHIN | C177: LWC
A178: LWF | B178: Lim Wei Fook (LWF) | C178: LWF
A179: LWL | B179: LOO WAI LEONG | C179: LWL
A180: LWW | B180: LEE WANG WANG | C180: LWW
A181: MACEY1 | B181: Syarikat Macey Berhad (MACEY) | C181: MACEY1
A182: MAPTB | B182: UTMB For Malaysian Association For The Prevention of Tuberculosis | C182: MAPTB
A183: MARI | B183: Marina Kamaliah Binti Anuar (MARI) | C183: MARI
A184: MATT | B184: MATTHEW TEE KAI WOON | C184: MATT
A185: MC | B185: Chia Yuet Yoong (MC) | C185: MC
A186: MCC | B186: CHUNG MAN CHONG | C186: MCC
A187: MF | B187: Mohamad Faiz Bin Abdul Hamid (MF) | C187: MF
A188: MFM | B188: MAK FONG MEE | C188: MFM
A189: NBT2 | B189: Ling Kok Ing (NBT2) | C189: NBT2
A190: NCM | B190: N/A | C190: N/A
A191: ND | B191: Muniandy A/L Nalaiah (ND) | C191: ND
A192: NOM1 | B192: Mr. Jimmy Bin Duis | C192: NOM1
A193: ON | B193: Allan Ong Khay Soon (O&N A/C 311) | C193: ON
A194: OWH | B194: ONG WENG HOONG | C194: OWH
A195: PHILIP | B195: PHILIP | C195: PHILIP
A196: PRSB | B196: Perkasa Realty Sdn Bhd (PERKASA) | C196: PRSB
A197: PY | B197: Lau Phaih Yean (PY) | C197: PY
A198: RB | B198: Mrs Douglas Lee Nee Ruby Ong Chian Kim (RB) | C198: RB
A199: RM-ATPY | B199: ALWIN THIAN PHAIK YEONG | C199: RMATPY
A200: RM-CAC | B200: CHEAH AH CHOO@CHEAH SEOW CHOO | C200: RMCAC
... 381 more rows

Sheet aaCshSecurityPdf (hidden)
A1: qCshLink | B1: qCPCode | C1: qCshType | D1: ForeignBnk | E1: Basis | F1: WithHoldingTax
A2: FDC*MYR*ABNA | B2: ABN-AMRO | C2: FDC | D2: 0 | E2: 365 | F2: 0
A3: FDC*MYR*ALL | B3: ALLIANCEBANK | C3: FDC | D3: 0 | E3: 365 | F3: 0
A4: FDC*MYR*AMB | B4: AMBANK | C4: FDC | D4: 0 | E4: 365 | F4: 0
A5: FDC*MYR*AMFB | B5: AMFB | C5: FDC | D5: 0 | E5: 365 | F5: 0
A6: FDC*MYR*AMMB | B6: AMMB | C6: FDC | D6: 0 | E6: 365 | F6: 0
A7: FDC*MYR*AMRC | B7: BOA | C7: FDC | D7: 0 | E7: 365 | F7: 0
A8: FDC*MYR*ASDB | B8: ASDB | C8: FDC | D8: 0 | E8: 365 | F8: 0
A9: FDC*MYR*BCBB | B9: BCBB | C9: FDC | D9: 0 | E9: 365 | F9: 0
A10: FDC*MYR*CHASE | B10: CHASE | C10: FDC | D10: 0 | E10: 365 | F10: 0
A11: FDC*MYR*CIMB | B11: CIMB | C11: FDC | D11: 0 | E11: 365 | F11: 0
A12: FDC*MYR*CITI | B12: CITIBANK | C12: FDC | D12: 0 | E12: 365 | F12: 0
A13: FDC*MYR*DEUT | B13: DEUTSCHE | C13: FDC | D13: 0 | E13: 365 | F13: 0
A14: FDC*MYR*EON | B14: EONBANK | C14: FDC | D14: 0 | E14: 365 | F14: 0
A15: FDC*MYR*HK | B15: HSBCBANK | C15: FDC | D15: 0 | E15: 365 | F15: 0
A16: FDC*MYR*HL | B16: HLB | C16: FDC | D16: 0 | E16: 365 | F16: 0
A17: FDC*MYR*HLIB | B17: HLIB | C17: FDC | D17: 0 | E17: 365 | F17: 0
A18: FDC*MYR*ISLA | B18: ISLAM | C18: FDC | D18: 0 | E18: 365 | F18: 0
A19: FDC*MYR*KIBB | B19: KENANGA BANK | C19: FDC | D19: 0 | E19: 365 | F19: 0
A20: FDC*MYR*MBB | B20: MAYBANK | C20: FDC | D20: 0 | E20: 365 | F20: 0
A21: FDC*MYR*MIDF | B21: MIDF | C21: FDC | D21: 0 | E21: 365 | F21: 0
A22: FDC*MYR*NS | B22: SCOTIA | C22: FDC | D22: 0 | E22: 365 | F22: 0
A23: FDC*MYR*OCBC | B23: OCBC BANK | C23: FDC | D23: 0 | E23: 365 | F23: 0
A24: FDC*MYR*PBB | B24: PBB | C24: FDC | D24: 0 | E24: 365 | F24: 0
A25: FDC*MYR*PBBF | B25: PUBLIC FIN | C25: FDC | D25: 0 | E25: 365 | F25: 0
A26: FDC*MYR*RHB | B26: RHB BANK | C26: FDC | D26: 0 | E26: 365 | F26: 0
A27: FDC*MYR*RHBS | B27: RHB SAKURA | C27: FDC | D27: 0 | E27: 365 | F27: 0
A28: FDC*MYR*SBB | B28: SOUTHERN BANK | C28: FDC | D28: 0 | E28: 365 | F28: 0
A29: FDC*MYR*SCB | B29: SCB | C29: FDC | D29: 0 | E29: 365 | F29: 0
A30: FDC*MYR*TOKYO | B30: TOKYO | C30: FDC | D30: 0 | E30: 365 | F30: 0
A31: FDC*MYR*UOB | B31: UOB | C31: FDC | D31: 0 | E31: 365 | F31: 0
A32: FDI*MYR*ABNA | B32: ABN-AMRO | C32: FDI | D32: 0 | E32: 365 | F32: 0
A33: FDI*MYR*AIBB | B33: Alliance Islamic | C33: FDI | D33: 0 | E33: 365 | F33: 0
A34: FDI*MYR*AMB | B34: AMBANK | C34: FDI | D34: 0 | E34: 365 | F34: 0
A35: FDI*MYR*AMFB | B35: AMFB | C35: FDI | D35: 0 | E35: 365 | F35: 0
A36: FDI*MYR*AMIB | B36: AM ISLAMIC BANK | C36: FDI | D36: 0 | E36: 365 | F36: 0
A37: FDI*MYR*AMMB | B37: AMMB | C37: FDI | D37: 0 | E37: 365 | F37: 0
A38: FDI*MYR*AMRC | B38: BOA | C38: FDI | D38: 0 | E38: 365 | F38: 0
A39: FDI*MYR*BCBB | B39: BCBB | C39: FDI | D39: 0 | E39: 365 | F39: 0
A40: FDI*MYR*BML | B40: MUAMALAT | C40: FDI | D40: 0 | E40: 365 | F40: 0
A41: FDI*MYR*CHASE | B41: CHASE | C41: FDI | D41: 0 | E41: 365 | F41: 0
A42: FDI*MYR*CIMB | B42: CIMB | C42: FDI | D42: 0 | E42: 365 | F42: 0
A43: FDI*MYR*CIMBIS | B43: CIMBIS | C43: FDI | D43: 0 | E43: 365 | F43: 0
A44: FDI*MYR*CITI | B44: CITIBANK | C44: FDI | D44: 0 | E44: 365 | F44: 0
A45: FDI*MYR*DEUT | B45: DEUTSCHE | C45: FDI | D45: 0 | E45: 365 | F45: 0
A46: FDI*MYR*EON | B46: EONBANK | C46: FDI | D46: 0 | E46: 365 | F46: 0
A47: FDI*MYR*HK | B47: HSBCBANK | C47: FDI | D47: 0 | E47: 365 | F47: 0
A48: FDI*MYR*HL | B48: HLB | C48: FDI | D48: 0 | E48: 365 | F48: 0
A49: FDI*MYR*HLIB | B49: HLIB | C49: FDI | D49: 0 | E49: 365 | F49: 0
A50: FDI*MYR*ISLA | B50: ISLAM | C50: FDI | D50: 0 | E50: 365 | F50: 0
A51: FDI*MYR*KAF | B51: KAF | C51: FDI | D51: 0 | E51: 365 | F51: 0
A52: FDI*MYR*KFH | B52: KFH | C52: FDI | D52: 0 | E52: 365 | F52: 0
A53: FDI*MYR*KIBB | B53: KENANGA BANK | C53: FDI | D53: 0 | E53: 365 | F53: 0
A54: FDI*MYR*KSPI | B54: KENANGA INVEST SPI | C54: FDI | D54: 0 | E54: 365 | F54: 0
A55: FDI*MYR*MBB | B55: MAYBANK | C55: FDI | D55: 0 | E55: 365 | F55: 0
A56: FDI*MYR*MBBISL | B56: MAYBANK ISL | C56: FDI | D56: 0 | E56: 365 | F56: 0
A57: FDI*MYR*MIDF | B57: MIDF | C57: FDI | D57: 0 | E57: 365 | F57: 0
A58: FDI*MYR*MIDF S | B58: MIDF SPI | C58: FDI | D58: 0 | E58: 365 | F58: 0
A59: FDI*MYR*NS | B59: SCOTIA | C59: FDI | D59: 0 | E59: 365 | F59: 0
A60: FDI*MYR*OCBC | B60: OCBC BANK | C60: FDI | D60: 0 | E60: 365 | F60: 0
A61: FDI*MYR*PBB | B61: PBB | C61: FDI | D61: 0 | E61: 365 | F61: 0
A62: FDI*MYR*PBBF | B62: PUBLIC FIN | C62: FDI | D62: 0 | E62: 365 | F62: 0
A63: FDI*MYR*PBBISL | B63: PBB ISLAMIC | C63: FDI | D63: 0 | E63: 365 | F63: 0
A64: FDI*MYR*RHB | B64: RHB BANK | C64: FDI | D64: 0 | E64: 365 | F64: 0
A65: FDI*MYR*RHBISL | B65: RHBISL | C65: FDI | D65: 0 | E65: 365 | F65: 0
A66: FDI*MYR*RHBS | B66: RHB SAKURA | C66: FDI | D66: 0 | E66: 365 | F66: 0
A67: FDI*MYR*SBB | B67: SOUTHERN BANK | C67: FDI | D67: 0 | E67: 365 | F67: 0
A68: FDI*MYR*SCB | B68: SCB | C68: FDI | D68: 0 | E68: 365 | F68: 0
A69: FDI*MYR*TOKYO | B69: TOKYO | C69: FDI | D69: 0 | E69: 365 | F69: 0
A70: FDI*MYR*UOB | B70: UOB | C70: FDI | D70: 0 | E70: 365 | F70: 0
A71: N/A | B71: N/A | C71: RPI | D71: 0 | E71: 365 | F71: 0
A72: RPC*MYR*ABNA | B72: ABN-AMRO | C72: RPC | D72: 0 | E72: 365 | F72: 0
A73: RPC*MYR*AIBB | B73: Alliance Islamic | C73: RPC | D73: 0 | E73: 365 | F73: 0
A74: RPC*MYR*ALL | B74: ALLIANCEBANK | C74: RPC | D74: 1 | E74: 365 | F74: 0
A75: RPC*MYR*AMB | B75: AMBANK | C75: RPC | D75: 0 | E75: 365 | F75: 0
A76: RPC*MYR*AMFB | B76: AMFB | C76: RPC | D76: 0 | E76: 365 | F76: 0
A77: RPC*MYR*AMMB | B77: AMMB | C77: RPC | D77: 0 | E77: 365 | F77: 0
A78: RPC*MYR*AMRC | B78: BOA | C78: RPC | D78: 0 | E78: 365 | F78: 0
A79: RPC*MYR*ASDB | B79: ASDB | C79: RPC | D79: 0 | E79: 365 | F79: 0
A80: RPC*MYR*BCBB | B80: BCBB | C80: RPC | D80: 0 | E80: 365 | F80: 0
A81: RPC*MYR*CHASE | B81: CHASE | C81: RPC | D81: 0 | E81: 365 | F81: 0
A82: RPC*MYR*CIMB | B82: CIMB | C82: RPC | D82: 0 | E82: 365 | F82: 0
A83: RPC*MYR*CITI | B83: CITIBANK | C83: RPC | D83: 0 | E83: 365 | F83: 0
A84: RPC*MYR*DEUT | B84: DEUTSCHE | C84: RPC | D84: 0 | E84: 365 | F84: 0
A85: RPC*MYR*EON | B85: EONBANK | C85: RPC | D85: 0 | E85: 365 | F85: 0
A86: RPC*MYR*HK | B86: HSBCBANK | C86: RPC | D86: 0 | E86: 365 | F86: 0
A87: RPC*MYR*HL | B87: HLB | C87: RPC | D87: 0 | E87: 365 | F87: 0
A88: RPC*MYR*HLIB | B88: HLIB | C88: RPC | D88: 1 | E88: 365 | F88: 0
A89: RPC*MYR*ISLA | B89: ISLAM | C89: RPC | D89: 0 | E89: 365 | F89: 0
A90: RPC*MYR*KAF | B90: KAF | C90: RPC | D90: 0 | E90: 365 | F90: 0
A91: RPC*MYR*KIBB | B91: KENANGA BANK | C91: RPC | D91: 0 | E91: 365 | F91: 0
A92: RPC*MYR*MBB | B92: MAYBANK | C92: RPC | D92: 0 | E92: 365 | F92: 0
A93: RPC*MYR*MIDF | B93: MIDF | C93: RPC | D93: 0 | E93: 365 | F93: 0
A94: RPC*MYR*NS | B94: SCOTIA | C94: RPC | D94: 0 | E94: 365 | F94: 0
A95: RPC*MYR*OCBC | B95: OCBC BANK | C95: RPC | D95: 0 | E95: 365 | F95: 0
A96: RPC*MYR*PBB | B96: PBB | C96: RPC | D96: 0 | E96: 365 | F96: 0
A97: RPC*MYR*PBBF | B97: PUBLIC FIN | C97: RPC | D97: 0 | E97: 365 | F97: 0
A98: RPC*MYR*PBBISL | B98: PBB ISLAMIC | C98: RPC | D98: 0 | E98: 365 | F98: 0
A99: RPC*MYR*RHB | B99: RHB BANK | C99: RPC | D99: 0 | E99: 365 | F99: 0
A100: RPC*MYR*RHBS | B100: RHB SAKURA | C100: RPC | D100: 0 | E100: 365 | F100: 0
A101: RPC*MYR*SBB | B101: SOUTHERN BANK | C101: RPC | D101: 0 | E101: 365 | F101: 0
A102: RPC*MYR*SCB | B102: SCB | C102: RPC | D102: 0 | E102: 365 | F102: 0
A103: RPC*MYR*TOKYO | B103: TOKYO | C103: RPC | D103: 0 | E103: 365 | F103: 0
A104: RPC*MYR*UOB | B104: UOB | C104: RPC | D104: 0 | E104: 365 | F104: 0
A105: RPI*MYR*ABNA | B105: ABN-AMRO | C105: RPI | D105: 0 | E105: 365 | F105: 0
A106: RPI*MYR*AIBB | B106: Alliance Islamic | C106: RPI | D106: 0 | E106: 365 | F106: 0
A107: RPI*MYR*ALL | B107: ALLIANCEBANK | C107: RPI | D107: 1 | E107: 365 | F107: 0
A108: RPI*MYR*AMB | B108: AMBANK | C108: RPI | D108: 0 | E108: 365 | F108: 0
A109: RPI*MYR*AMFB | B109: AMFB | C109: RPI | D109: 0 | E109: 365 | F109: 0
A110: RPI*MYR*AMIB | B110: AM ISLAMIC BANK | C110: RPI | D110: 0 | E110: 365 | F110: 0
A111: RPI*MYR*AMMB | B111: AMMB | C111: RPI | D111: 0 | E111: 365 | F111: 0
A112: RPI*MYR*AMRC | B112: BOA | C112: RPI | D112: 0 | E112: 365 | F112: 0
A113: RPI*MYR*ASDB | B113: ASDB | C113: RPI | D113: 0 | E113: 365 | F113: 0
A114: RPI*MYR*BCBB | B114: BCBB | C114: RPI | D114: 0 | E114: 365 | F114: 0
A115: RPI*MYR*BML | B115: MUAMALAT | C115: RPI | D115: 0 | E115: 365 | F115: 0
A116: RPI*MYR*BNKISL | B116: BNKISL | C116: RPI | D116: 0 | E116: 365 | F116: 0
A117: RPI*MYR*CHASE | B117: CHASE | C117: RPI | D117: 0 | E117: 365 | F117: 0
A118: RPI*MYR*CIMB | B118: CIMB | C118: RPI | D118: 0 | E118: 365 | F118: 0
A119: RPI*MYR*CIMBIS | B119: CIMBIS | C119: RPI | D119: 0 | E119: 365 | F119: 0
A120: RPI*MYR*CITI | B120: CITIBANK | C120: RPI | D120: 0 | E120: 365 | F120: 0
A121: RPI*MYR*DEUT | B121: DEUTSCHE | C121: RPI | D121: 0 | E121: 365 | F121: 0
A122: RPI*MYR*EON | B122: EONBANK | C122: RPI | D122: 0 | E122: 365 | F122: 0
A123: RPI*MYR*EONCAP | B123: EONCAP ISLAMIC | C123: RPI | D123: 1 | E123: 360 | F123: 0
A124: RPI*MYR*EONISL | B124: EON ISLAMIC BANK | C124: RPI | D124: 0 | E124: 365 | F124: 0
A125: RPI*MYR*HK | B125: HSBCBANK | C125: RPI | D125: 0 | E125: 365 | F125: 0
A126: RPI*MYR*HL | B126: HLB | C126: RPI | D126: 0 | E126: 365 | F126: 0
A127: RPI*MYR*HLIB | B127: HLIB | C127: RPI | D127: 0 | E127: 365 | F127: 0
A128: RPI*MYR*ISLA | B128: ISLAM | C128: RPI | D128: 0 | E128: 365 | F128: 0
A129: RPI*MYR*KAF | B129: KAF | C129: RPI | D129: 0 | E129: 365 | F129: 0
A130: RPI*MYR*KAFIS | B130: KAF (ISLAMIC) | C130: RPI | D130: 0 | E130: 365 | F130: 0
A131: RPI*MYR*KFH | B131: KFH | C131: RPI | D131: 0 | E131: 365 | F131: 0
A132: RPI*MYR*KIBB | B132: KENANGA BANK | C132: RPI | D132: 0 | E132: 365 | F132: 0
A133: RPI*MYR*KSPI | B133: KENANGA INVEST SPI | C133: RPI | D133: 0 | E133: 365 | F133: 0
A134: RPI*MYR*MBB | B134: MAYBANK | C134: RPI | D134: 0 | E134: 365 | F134: 0
A135: RPI*MYR*MBBISL | B135: MAYBANK ISL | C135: RPI | D135: 0 | E135: 365 | F135: 0
A136: RPI*MYR*MIDF | B136: MIDF | C136: RPI | D136: 0 | E136: 365 | F136: 0
A137: RPI*MYR*MIDF S | B137: MIDF SPI | C137: RPI | D137: 0 | E137: 365 | F137: 0
A138: RPI*MYR*NS | B138: SCOTIA | C138: RPI | D138: 0 | E138: 365 | F138: 0
A139: RPI*MYR*OCBC | B139: OCBC BANK | C139: RPI | D139: 0 | E139: 365 | F139: 0
A140: RPI*MYR*PBB | B140: PBB | C140: RPI | D140: 0 | E140: 365 | F140: 0
A141: RPI*MYR*PBBF | B141: PUBLIC FIN | C141: RPI | D141: 0 | E141: 365 | F141: 0
A142: RPI*MYR*PBBISL | B142: PBB ISLAMIC | C142: RPI | D142: 0 | E142: 365 | F142: 0
A143: RPI*MYR*RHB | B143: RHB BANK | C143: RPI | D143: 0 | E143: 365 | F143: 0
A144: RPI*MYR*RHBS | B144: RHB SAKURA | C144: RPI | D144: 0 | E144: 365 | F144: 0
A145: RPI*MYR*SBB | B145: SOUTHERN BANK | C145: RPI | D145: 0 | E145: 365 | F145: 0
A146: RPI*MYR*SCB | B146: SCB | C146: RPI | D146: 0 | E146: 365 | F146: 0
A147: RPI*MYR*TOKYO | B147: TOKYO | C147: RPI | D147: 0 | E147: 365 | F147: 0
A148: RPI*MYR*UOB | B148: UOB | C148: RPI | D148: 0 | E148: 365 | F148: 0
A149: RST*MYR*HL | B149: HLB | C149: RST | D149: 0 | E149: 365 | F149: 0
A150: RST*MYR*HLIB | B150: HLIB | C150: RST | D150: 1 | E150: 365 | F150: 0

Sheet CounterParty (hidden)
A1: qCPCode | B1: qCshCPType | C1: CshCP | D1: qIssuerCode | E1: Rating | F1: BNMAcc | G1: KeyInDate | H1: KeyInBy
A2: ABN-AMRO | B2: 2 | C2: ABNA | D2: ABNAMRO | E2: 1 | F2: DF | G2: 2006-09-04T17:16:17 | H2: cash
A3: Alliance Bank(IS) | B3: 2 | C3: N/A | D3: N/A | E3: 1 | F3: N/A | G3: 2016-08-17T17:03:50 | H3: yinlai
A4: Alliance Islamic | B4: 2 | C4: AIBB | D4: AIBB | E4: 1 | F4: DF | G4: 2018-10-31T15:59:55 | H4: jaya
A5: ALLIANCEBANK | B5: 2 | C5: ALL | D5: ALLIANCEBK | E5: 1 | F5: DF | G5: 2018-02-09T12:01:22 | H5: jaya
A6: AM ISLAMIC BANK | B6: 2 | C6: AMIB | D6: AMISLAMIC | E6: 1 | F6: DF | G6: 2017-12-13T11:48:25 | H6: jaya
A7: AMBANK | B7: 2 | C7: AMB | D7: AMFIN | E7: 1 | F7: DF | G7: 2006-01-01T15:26:52 | H7: Riskk.Com
A8: AMB-ZNID | B8: 3 | C8: N/A | D8: N/A | E8: 1 | F8: N/A | G8: 2012-04-10T17:14:17 | H8: jessica
A9: AMFB | B9: 2 | C9: AMFB | D9: AMFB | E9: 1 | F9: DF | G9: 2006-01-01T15:26:52 | H9: Riskk.Com
A10: AMMB | B10: 3 | C10: AMMB | D10: AMMB | E10: 1 | F10: DF | G10: 2006-01-01T15:26:52 | H10: Riskk.Com
A11: ASDB | B11: 3 | C11: ASDB | D11: ASDB | E11: 1 | F11: DF | G11: 2007-01-12T17:21:51 | H11: cash
A12: BANKISL | B12: 3 | C12: BNKISL | D12: BANKISL | E12: 1 | F12: N/A | G12: 2015-03-03T15:02:07 | H12: mazuin
A13: BCBB | B13: 2 | C13: BCBB | D13: BCBB | E13: 1 | F13: DF | G13: 2006-01-01T15:26:52 | H13: Riskk.Com
A14: BNKISL | B14: 2 | C14: BNKISL | D14: BANKISL | E14: 1 | F14: N/A | G14: 2015-03-05T16:16:37 | H14: hanina
A15: BOA | B15: 2 | C15: AMRC | D15: N/A | E15: 1 | F15: DF | G15: 2006-01-01T15:26:52 | H15: Riskk.Com
A16: CHASE | B16: 2 | C16: CHASE | D16: N/A | E16: 1 | F16: DF | G16: 2006-01-01T15:26:52 | H16: Riskk.Com
A17: CIMB | B17: 2 | C17: CIMB | D17: CIMB | E17: 1 | F17: DF | G17: 2018-04-09T14:20:36 | H17: jaya
A18: CIMBIS | B18: 2 | C18: CIMBIS | D18: CIMB | E18: 1 | F18: DF | G18: 2017-12-13T11:39:15 | H18: jaya
A19: CIMB-ZNID | B19: 3 | C19: N/A | D19: CIMB | E19: 1 | F19: N/A | G19: 2012-04-10T16:29:36 | H19: jessica
A20: CITIBANK | B20: 1 | C20: CITI | D20: CITI | E20: 1 | F20: DF | G20: 2010-04-15T09:29:00 | H20: pleng
A21: CITIBANK (OPUS) | B21: 1 | C21: CITI(O | D21: CITI | E21: 1 | F21: DF | G21: 2010-04-15T09:33:40 | H21: pleng
A22: DEUTSCHE | B22: 2 | C22: DEUT | D22: DEUTSCHE | E22: 1 | F22: DF | G22: 2006-01-01T15:26:52 | H22: Riskk.Com
A23: DIV REINVESTMENT | B23: 3 | C23: 0 | D23: AAC TECHNOLOGIES | E23: 1 | F23: 0 | G23: 2017-07-07T11:58:57 | H23: jaya
A24: DUMMY | B24: 3 | C24: - | D24: AFFNACF | E24: 1 | F24: - | G24: 2013-02-07T14:20:00 | H24: jaya
A25: EONBANK | B25: 2 | C25: EON | D25: HLBANK | E25: 1 | F25: DF | G25: 2006-01-01T15:26:52 | H25: Riskk.Com
A26: EONCAP ISLAMIC | B26: 1 | C26: EONCAP | D26: HLBANK | E26: 1 | F26: DF | G26: 2011-03-18T14:00:20 | H26: pleng
A27: HLB | B27: 2 | C27: HL | D27: HLBANK | E27: 1 | F27: DF | G27: 2018-04-10T10:24:40 | H27: jaya
A28: HLB-ZNID | B28: 3 | C28: N/A | D28: HLBANK | E28: 1 | F28: N/A | G28: 2012-04-10T16:44:59 | H28: jessica
A29: HLIB | B29: 2 | C29: HLIB | D29: HLBANK | E29: 1 | F29: DF | G29: 2012-03-30T16:59:14 | H29: mazuin
A30: HSBCBANK | B30: 2 | C30: HK | D30: HSBC | E30: 1 | F30: DF | G30: 2012-01-04T10:33:59 | H30: jessica
A31: ISLAM | B31: 2 | C31: ISLA | D31: ISLAM | E31: 1 | F31: DF | G31: 2006-01-01T15:26:52 | H31: Riskk.Com
A32: KAF | B32: 3 | C32: KAF | D32: KAFDH | E32: 1 | F32: DF | G32: 2006-01-01T15:26:52 | H32: Riskk.Com
A33: KAF (ISLAMIC) | B33: 1 | C33: KAFIS | D33: KAFDH | E33: 1 | F33: DF | G33: 2011-04-25T15:55:54 | H33: pleng
A34: KENANGA | B34: 3 | C34: 0 | D34: KENANGA | E34: 1 | F34: 0 | G34: 2017-06-05T12:01:25 | H34: jaya
A35: KENANGA BANK | B35: 2 | C35: KIBB | D35: KENANGA BANK | E35: 1 | F35: DF | G35: 2019-03-28T17:34:48 | H35: yinlai
A36: KENANGA INVEST SPI | B36: 2 | C36: KSPI | D36: KENANGA INVST SPI | E36: 1 | F36: DF | G36: 2019-03-28T17:37:41 | H36: yinlai
A37: KFH | B37: 2 | C37: KFH | D37: KFH | E37: 1 | F37: 1554020450 | G37: 2016-11-21T09:48:44 | H37: yinlai
A38: LOAN REDEMPTION | B38: 3 | C38: N/A | D38: N/A | E38: 1 | F38: N/A | G38: 2014-07-18T11:44:59 | H38: ken
A39: MAYBANK | B39: 2 | C39: MBB | D39: MAYBANK | E39: 1 | F39: DF | G39: 2018-01-08T10:50:42 | H39: jaya
A40: MAYBANK ISL | B40: 2 | C40: MBBISL | D40: MAYBANK | E40: 1 | F40: DF | G40: 2018-10-31T16:00:26 | H40: jaya
A41: MBB-BOND | B41: 3 | C41: N/A | D41: MAYBANK | E41: 1 | F41: N/A | G41: 2013-01-31T15:05:43 | H41: mazuin
A42: MBB-ZNID | B42: 3 | C42: N/A | D42: MAYBANK | E42: 1 | F42: N/A | G42: 2013-01-31T14:56:58 | H42: mazuin
A43: MIDF | B43: 2 | C43: MIDF | D43: MIDF | E43: 1 | F43: DF | G43: 2017-12-13T11:51:01 | H43: jaya
A44: MIDF SPI | B44: 2 | C44: MIDF S | D44: MIDF | E44: 1 | F44: DF | G44: 2017-12-13T11:51:30 | H44: jaya
A45: MITSUBISHI | B45: 2 | C45: NA | D45: N/A | E45: 1 | F45: N/A | G45: 2018-01-16T09:46:48 | H45: jaya
A46: MUAMALAT | B46: 2 | C46: BML | D46: BML | E46: 1 | F46: DF | G46: 2018-01-08T10:59:51 | H46: jaya
A47: OCBC BANK | B47: 2 | C47: OCBC | D47: OCBC | E47: 1 | F47: DF | G47: 2006-01-01T15:26:52 | H47: Riskk.Com
A48: PBB | B48: 2 | C48: PBB | D48: PBBANK | E48: 1 | F48: DF | G48: 2012-04-25T11:16:54 | H48: jessica
A49: PBB ISLAMIC | B49: 2 | C49: PBBISL | D49: PBBANK | E49: 1 | F49: DF | G49: 2018-04-10T08:52:37 | H49: jaya
A50: PBB-ZNID | B50: 3 | C50: N/A | D50: PBBANK | E50: 1 | F50: N/A | G50: 2012-04-10T16:48:53 | H50: jessica
A51: PRIVATE PALCEMENT | B51: 3 | C51: 1 | D51: 1 UTOPIA BHD | E51: 1 | F51: 0 | G51: 2017-07-07T11:57:41 | H51: jaya
A52: PRIVATE PLACEMENT | B52: 3 | C52: 0 | D52: 1 UTOPIA BHD | E52: 1 | F52: 0 | G52: 2017-10-23T16:32:38 | H52: jaya
A53: PUBLIC FIN | B53: 2 | C53: PBBF | D53: PBBANK | E53: 1 | F53: DF | G53: 2006-01-01T15:26:52 | H53: Riskk.Com
A54: RHB BANK | B54: 2 | C54: RHB | D54: RHB | E54: 1 | F54: DF | G54: 2017-12-13T11:18:39 | H54: jaya
A55: RHB SAKURA | B55: 2 | C55: RHBS | D55: N/A | E55: 1 | F55: DF | G55: 2006-01-01T15:26:52 | H55: Riskk.Com
A56: RHBISL | B56: 2 | C56: RHBISL | D56: RHB GROUP | E56: 1 | F56: DF | G56: 2017-12-13T11:39:44 | H56: jaya
A57: SCB | B57: 2 | C57: SCB | D57: SCB | E57: 1 | F57: DF | G57: 2006-01-01T15:26:52 | H57: Riskk.Com
A58: SCOTIA | B58: 2 | C58: NS | D58: SCOTIA | E58: 1 | F58: DF | G58: 2006-01-01T15:26:52 | H58: Riskk.Com
A59: SHARE MERGING | B59: 3 | C59: X | D59: N/A | E59: 1 | F59: N/A | G59: 2014-04-21T11:02:31 | H59: ken
A60: SOUTHERN BANK | B60: 2 | C60: SBB | D60: SBANK | E60: 1 | F60: DF | G60: 2006-01-01T15:26:52 | H60: Riskk.Com
A61: TAIM | B61: 3 | C61: N/A | D61: N/A | E61: 1 | F61: N/A | G61: 2013-06-14T12:58:37 | H61: ken
A62: TOKYO | B62: 2 | C62: TOKYO | D62: TOKYO | E62: 1 | F62: DF | G62: 2012-07-30T10:32:28 | H62: ken
A63: UOB | B63: 2 | C63: UOB | D63: UOB | E63: 1 | F63: DF | G63: 2018-04-09T16:29:01 | H63: jaya

Sheet ReportIn (hidden)
A1: qCshTrnID | B1: SettleGroup | C1: qStockCode | D1: qTrnCode | E1: qTranMethod | F1: qFundCode | G1: Rate | H1: MaturityPrinciple | I1: FaceValue | J1: Cost | K1: SettCurrency | L1: LiquidityProceed | M1: Proceed | N1: TradeDate | O1: ValueDate | P1: PayDate | Q1: MaturityDate | R1: qCshType | S1: qCPCode | T1: SourceBankAccNo | U1: ExchgRateSF | V1: CustodianCode | W1: CustodianFee | X1: Uploaded | Y1: ErrDesc | Z1: qOrderBreachID | AA1: RolloverFlag | AB1: Tenor | AC1: FIDealer | AD1: InterestRM | AE1: DealerKeyInDate | AF1: DealerKeyInBy | AG1: KeyInDate | AH1: KeyInBy | AI1: FundName | AJ1: PrintPageFlag | AK1: CPAccNo | AL1: CPName | AM1: CPContactPerson | AN1: CPAddress | AO1: CPPostCode | AP1: CPStateName | AQ1: CPCityName | AR1: TrusteeCode | AS1: TrusteeName | AT1: TrusteeContactCP | AU1: TrusteeAddress | AV1: TrusteePostCode | AW1: TrusteeCityName | AX1: TrusteeStateName | AY1: SourceBankCode | AZ1: CshTypeDesc | BA1: PlaceFlag | BB1: Adjustment
A2: CSH*140804967 | C2: RDC*MYR*PBB | D2: RP | E2: 1 | F2: 1073 | G2: 0.0325 | H2: 847000 | I2: 0 | J2: 0 | K2: MYR | L2: 0 | M2: 0 | N2: 41877 | O2: 41877 | P2: 41877 | Q2: 41878 | R2: RDC | S2: B:PBB | T2: DB-MYR-0022376000 | U2: 1 | V2: 0 | W2: 0 | X2: F | Z2: N/A | AA2: 2 | AB2: 1 | AD2: 75.42 | AE2: 41877.45642 | AF2: ASTCLK | AG2: 41877.45642 | AH2: ASTCLK | AI2: (1073) - YAYASAN SABAH | AJ2: 0 | AK2: DF | AL2: PUBLIC BANK BERHAD | AM2: GRACE SEW | AN2: DEUTSCHE BANK (MALAYSIA) BERHAD | AO2: 50250 | AP2: Kuala Lumpur. | AQ2: Kuala Lumpur | AR2: DBNOMINEETSB | AS2: DB (MALAYSIA) NOMINEE (TEMPATAN) SENDIRIAN BERHAD | AT2: Client Services team | AU2: DEUTSCHE BANK (MALAYSIA) BERHAD | AV2: 50250 | AW2: Kuala Lumpur | AX2: Kuala Lumpur. | AY2: B:DEUTSCHE | AZ2: Short Term Money Market Deposit | BA2: 2 | BB2: -847000
A3: CSH*140805138 | C3: RDC*MYR*PBB | D3: RP | E3: 1 | F3: 1073 | G3: 0.0325 | H3: 0 | I3: 850000 | J3: 850000 | K3: MYR | L3: -850000 | M3: -850000 | N3: 41877 | O3: 41877 | P3: 41877 | Q3: 41878 | R3: RDC | S3: B:PBB | T3: DB-MYR-0022376000 | U3: 1 | V3: 0 | W3: 0 | X3: F | Z3: N/A | AA3: 2 | AB3: 1 | AC3: Kelvin | AD3: 0 | AE3: 41877.48135 | AF3: ASTCLK | AG3: 41877.48135 | AH3: ASTCLK | AI3: (1073) - YAYASAN SABAH | AJ3: 0 | AK3: DF | AL3: PUBLIC BANK BERHAD | AM3: GRACE SEW | AN3: DEUTSCHE BANK (MALAYSIA) BERHAD | AO3: 50250 | AP3: Kuala Lumpur. | AQ3: Kuala Lumpur | AR3: DBNOMINEETSB | AS3: DB (MALAYSIA) NOMINEE (TEMPATAN) SENDIRIAN BERHAD | AT3: Client Services team | AU3: DEUTSCHE BANK (MALAYSIA) BERHAD | AV3: 50250 | AW3: Kuala Lumpur | AX3: Kuala Lumpur. | AY3: B:DEUTSCHE | AZ3: Short Term Money Market Deposit | BA3: 2 | BB3: 850000
A4: CSH*140804968 | C4: RDC*MYR*PBB | D4: RP | E4: 1 | F4: 1081 | G4: 0.0325 | H4: 672000 | I4: 0 | J4: 0 | K4: MYR | L4: 0 | M4: 0 | N4: 41877 | O4: 41877 | P4: 41877 | Q4: 41878 | R4: RDC | S4: B:PBB | T4: DB-MYR-0022624000 | U4: 1 | V4: 0 | W4: 0 | X4: F | Z4: N/A | AA4: 2 | AB4: 1 | AD4: 59.84 | AE4: 41877.45643 | AF4: ASTCLK | AG4: 41877.45643 | AH4: ASTCLK | AI4: (1081) - JOHN EDWIN DIXON | AJ4: 0 | AK4: DF | AL4: PUBLIC BANK BERHAD | AM4: GRACE SEW | AN4: DEUTSCHE BANK (MALAYSIA) BERHAD | AO4: 50250 | AP4: Kuala Lumpur. | AQ4: Kuala Lumpur | AR4: DBNOMINEEASB | AS4: DB (MALAYSIA) NOMINEE (ASING) SENDIRIAN BERHAD | AT4: Client Services team | AU4: DEUTSCHE BANK (MALAYSIA) BERHAD | AV4: 50250 | AW4: Kuala Lumpur | AX4: Kuala Lumpur. | AY4: B:DEUTSCHE | AZ4: Short Term Money Market Deposit | BA4: 2 | BB4: -672000
A5: CSH*140805139 | C5: RDC*MYR*PBB | D5: RP | E5: 1 | F5: 1081 | G5: 0.0325 | H5: 0 | I5: 675000 | J5: 675000 | K5: MYR | L5: -675000 | M5: -675000 | N5: 41877 | O5: 41877 | P5: 41877 | Q5: 41878 | R5: RDC | S5: B:PBB | T5: DB-MYR-0022624000 | U5: 1 | V5: 0 | W5: 0 | X5: F | Z5: N/A | AA5: 2 | AB5: 1 | AC5: Kelvin | AD5: 0 | AE5: 41877.48136 | AF5: ASTCLK | AG5: 41877.48136 | AH5: ASTCLK | AI5: (1081) - JOHN EDWIN DIXON | AJ5: 0 | AK5: DF | AL5: PUBLIC BANK BERHAD | AM5: GRACE SEW | AN5: DEUTSCHE BANK (MALAYSIA) BERHAD | AO5: 50250 | AP5: Kuala Lumpur. | AQ5: Kuala Lumpur | AR5: DBNOMINEEASB | AS5: DB (MALAYSIA) NOMINEE (ASING) SENDIRIAN BERHAD | AT5: Client Services team | AU5: DEUTSCHE BANK (MALAYSIA) BERHAD | AV5: 50250 | AW5: Kuala Lumpur | AX5: Kuala Lumpur. | AY5: B:DEUTSCHE | AZ5: Short Term Money Market Deposit | BA5: 2 | BB5: 675000
A6: CSH*140804969 | C6: RDC*MYR*PBB | D6: RP | E6: 1 | F6: 1084 | G6: 0.0325 | H6: 4861000 | I6: 0 | J6: 0 | K6: MYR | L6: 0 | M6: 0 | N6: 41877 | O6: 41877 | P6: 41877 | Q6: 41878 | R6: RDC | S6: B:PBB | T6: DB-MYR-0022392000 | U6: 1 | V6: 0 | W6: 0 | X6: F | Z6: N/A | AA6: 2 | AB6: 1 | AD6: 432.83 | AE6: 41877.45643 | AF6: ASTCLK | AG6: 41877.45643 | AH6: ASTCLK | AI6: (1084) - Y. USAHAWAN BUMIPUTRA | AJ6: 0 | AK6: DF | AL6: PUBLIC BANK BERHAD | AM6: GRACE SEW | AN6: DEUTSCHE BANK (MALAYSIA) BERHAD | AO6: 50250 | AP6: Kuala Lumpur. | AQ6: Kuala Lumpur | AR6: DBNOMINEETSB | AS6: DB (MALAYSIA) NOMINEE (TEMPATAN) SENDIRIAN BERHAD | AT6: Client Services team | AU6: DEUTSCHE BANK (MALAYSIA) BERHAD | AV6: 50250 | AW6: Kuala Lumpur | AX6: Kuala Lumpur. | AY6: B:DEUTSCHE | AZ6: Short Term Money Market Deposit | BA6: 2 | BB6: -4861000
A7: CSH*140805140 | C7: RDC*MYR*PBB | D7: RP | E7: 1 | F7: 1084 | G7: 0.0325 | H7: 0 | I7: 4878000 | J7: 4878000 | K7: MYR | L7: -4878000 | M7: -4878000 | N7: 41877 | O7: 41877 | P7: 41877 | Q7: 41878 | R7: RDC | S7: B:PBB | T7: DB-MYR-0022392000 | U7: 1 | V7: 0 | W7: 0 | X7: F | Z7: N/A | AA7: 2 | AB7: 1 | AC7: Kelvin | AD7: 0 | AE7: 41877.48136 | AF7: ASTCLK | AG7: 41877.48136 | AH7: ASTCLK | AI7: (1084) - Y. USAHAWAN BUMIPUTRA | AJ7: 0 | AK7: DF | AL7: PUBLIC BANK BERHAD | AM7: GRACE SEW | AN7: DEUTSCHE BANK (MALAYSIA) BERHAD | AO7: 50250 | AP7: Kuala Lumpur. | AQ7: Kuala Lumpur | AR7: DBNOMINEETSB | AS7: DB (MALAYSIA) NOMINEE (TEMPATAN) SENDIRIAN BERHAD | AT7: Client Services team | AU7: DEUTSCHE BANK (MALAYSIA) BERHAD | AV7: 50250 | AW7: Kuala Lumpur | AX7: Kuala Lumpur. | AY7: B:DEUTSCHE | AZ7: Short Term Money Market Deposit | BA7: 2 | BB7: 4878000
A8: CSH*140804970 | C8: RDC*MYR*PBB | D8: RP | E8: 1 | F8: 1085 | G8: 0.0325 | H8: 7138000 | I8: 0 | J8: 0 | K8: MYR | L8: 0 | M8: 0 | N8: 41877 | O8: 41877 | P8: 41877 | Q8: 41878 | R8: RDC | S8: B:PBB | T8: DB-MYR-0022426000 | U8: 1 | V8: 0 | W8: 0 | X8: F | Z8: N/A | AA8: 2 | AB8: 1 | AD8: 635.58 | AE8: 41877.45643 | AF8: ASTCLK | AG8: 41877.45643 | AH8: ASTCLK | AI8: (1085) - PRG PERTUKARAN FELLOWSHIP PM M'SIA | AJ8: 0 | AK8: DF | AL8: PUBLIC BANK BERHAD | AM8: GRACE SEW | AN8: DEUTSCHE BANK (MALAYSIA) BERHAD | AO8: 50250 | AP8: Kuala Lumpur. | AQ8: Kuala Lumpur | AR8: DBNOMINEETSB | AS8: DB (MALAYSIA) NOMINEE (TEMPATAN) SENDIRIAN BERHAD | AT8: Client Services team | AU8: DEUTSCHE BANK (MALAYSIA) BERHAD | AV8: 50250 | AW8: Kuala Lumpur | AX8: Kuala Lumpur. | AY8: B:DEUTSCHE | AZ8: Short Term Money Market Deposit | BA8: 2 | BB8: -7138000
A9: CSH*140805141 | C9: RDC*MYR*PBB | D9: RP | E9: 1 | F9: 1085 | G9: 0.0325 | H9: 0 | I9: 7161000 | J9: 7161000 | K9: MYR | L9: -7161000 | M9: -7161000 | N9: 41877 | O9: 41877 | P9: 41877 | Q9: 41878 | R9: RDC | S9: B:PBB | T9: DB-MYR-0022426000 | U9: 1 | V9: 0 | W9: 0 | X9: F | Z9: N/A | AA9: 2 | AB9: 1 | AC9: Kelvin | AD9: 0 | AE9: 41877.48136 | AF9: ASTCLK | AG9: 41877.48136 | AH9: ASTCLK | AI9: (1085) - PRG PERTUKARAN FELLOWSHIP PM M'SIA | AJ9: 0 | AK9: DF | AL9: PUBLIC BANK BERHAD | AM9: GRACE SEW | AN9: DEUTSCHE BANK (MALAYSIA) BERHAD | AO9: 50250 | AP9: Kuala Lumpur. | AQ9: Kuala Lumpur | AR9: DBNOMINEETSB | AS9: DB (MALAYSIA) NOMINEE (TEMPATAN) SENDIRIAN BERHAD | AT9: Client Services team | AU9: DEUTSCHE BANK (MALAYSIA) BERHAD | AV9: 50250 | AW9: Kuala Lumpur | AX9: Kuala Lumpur. | AY9: B:DEUTSCHE | AZ9: Short Term Money Market Deposit | BA9: 2 | BB9: 7161000
A10: CSH*140804971 | C10: RDC*MYR*PBB | D10: RP | E10: 1 | F10: 1089 | G10: 0.0325 | H10: 3551000 | I10: 0 | J10: 0 | K10: MYR | L10: 0 | M10: 0 | N10: 41877 | O10: 41877 | P10: 41877 | Q10: 41878 | R10: RDC | S10: B:PBB | T10: DB-MYR-0022459000 | U10: 1 | V10: 0 | W10: 0 | X10: F | Z10: N/A | AA10: 2 | AB10: 1 | AD10: 316.18 | AE10: 41877.45643 | AF10: ASTCLK | AG10: 41877.45643 | AH10: ASTCLK | AI10: (1089) - GIBRALTAR BSN LIFE BERHAD (LIFE-PAR) | AJ10: 2 | AK10: DF | AL10: PUBLIC BANK BERHAD | AM10: GRACE SEW | AN10: DEUTSCHE BANK (MALAYSIA) BERHAD | AO10: 50250 | AP10: Kuala Lumpur. | AQ10: Kuala Lumpur | AR10: DBNOMINEETSB | AS10: DB (MALAYSIA) NOMINEE (TEMPATAN) SENDIRIAN BERHAD | AT10: Client Services team | AU10: DEUTSCHE BANK (MALAYSIA) BERHAD | AV10: 50250 | AW10: Kuala Lumpur | AX10: Kuala Lumpur. | AY10: B:DEUTSCHE | AZ10: Short Term Money Market Deposit | BA10: 2 | BB10: -3551000
A11: CSH*140805142 | C11: RDC*MYR*PBB | D11: RP | E11: 1 | F11: 1089 | G11: 0.0325 | H11: 0 | I11: 3563000 | J11: 3563000 | K11: MYR | L11: -3563000 | M11: -3563000 | N11: 41877 | O11: 41877 | P11: 41877 | Q11: 41878 | R11: RDC | S11: B:PBB | T11: DB-MYR-0022459000 | U11: 1 | V11: 0 | W11: 0 | X11: F | Z11: N/A | AA11: 2 | AB11: 1 | AC11: Kelvin | AD11: 0 | AE11: 41877.48136 | AF11: ASTCLK | AG11: 41877.48136 | AH11: ASTCLK | AI11: (1089) - GIBRALTAR BSN LIFE BERHAD (LIFE-PAR) | AJ11: 2 | AK11: DF | AL11: PUBLIC BANK BERHAD | AM11: GRACE SEW | AN11: DEUTSCHE BANK (MALAYSIA) BERHAD | AO11: 50250 | AP11: Kuala Lumpur. | AQ11: Kuala Lumpur | AR11: DBNOMINEETSB | AS11: DB (MALAYSIA) NOMINEE (TEMPATAN) SENDIRIAN BERHAD | AT11: Client Services team | AU11: DEUTSCHE BANK (MALAYSIA) BERHAD | AV11: 50250 | AW11: Kuala Lumpur | AX11: Kuala Lumpur. | AY11: B:DEUTSCHE | AZ11: Short Term Money Market Deposit | BA11: 2 | BB11: 3563000
A12: CSH*140804972 | C12: RDC*MYR*PBB | D12: RP | E12: 1 | F12: 1090 | G12: 0.0325 | H12: 14441000 | I12: 0 | J12: 0 | K12: MYR | L12: 0 | M12: 0 | N12: 41877 | O12: 41877 | P12: 41877 | Q12: 41878 | R12: RDC | S12: B:PBB | T12: DB-MYR-0022475000 | U12: 1 | V12: 0 | W12: 0 | X12: F | Z12: N/A | AA12: 2 | AB12: 1 | AD12: 1285.84 | AE12: 41877.45644 | AF12: ASTCLK | AG12: 41877.45644 | AH12: ASTCLK | AI12: (1090)-GIBRALTAR BSN LIFE BERHAD (LIFE - NON PAR) | AJ12: 2 | AK12: DF | AL12: PUBLIC BANK BERHAD | AM12: GRACE SEW | AN12: DEUTSCHE BANK (MALAYSIA) BERHAD | AO12: 50250 | AP12: Kuala Lumpur. | AQ12: Kuala Lumpur | AR12: DBNOMINEETSB | AS12: DB (MALAYSIA) NOMINEE (TEMPATAN) SENDIRIAN BERHAD | AT12: Client Services team | AU12: DEUTSCHE BANK (MALAYSIA) BERHAD | AV12: 50250 | AW12: Kuala Lumpur | AX12: Kuala Lumpur. | AY12: B:DEUTSCHE | AZ12: Short Term Money Market Deposit | BA12: 2 | BB12: -14441000
A13: CSH*140805143 | C13: RDC*MYR*PBB | D13: RP | E13: 1 | F13: 1090 | G13: 0.0325 | H13: 0 | I13: 14456000 | J13: 14456000 | K13: MYR | L13: -14456000 | M13: -14456000 | N13: 41877 | O13: 41877 | P13: 41877 | Q13: 41878 | R13: RDC | S13: B:PBB | T13: DB-MYR-0022475000 | U13: 1 | V13: 0 | W13: 0 | X13: F | Z13: N/A | AA13: 2 | AB13: 1 | AC13: Kelvin | AD13: 0 | AE13: 41877.48136 | AF13: ASTCLK | AG13: 41877.48136 | AH13: ASTCLK | AI13: (1090)-GIBRALTAR BSN LIFE BERHAD (LIFE - NON PAR) | AJ13: 2 | AK13: DF | AL13: PUBLIC BANK BERHAD | AM13: GRACE SEW | AN13: DEUTSCHE BANK (MALAYSIA) BERHAD | AO13: 50250 | AP13: Kuala Lumpur. | AQ13: Kuala Lumpur | AR13: DBNOMINEETSB | AS13: DB (MALAYSIA) NOMINEE (TEMPATAN) SENDIRIAN BERHAD | AT13: Client Services team | AU13: DEUTSCHE BANK (MALAYSIA) BERHAD | AV13: 50250 | AW13: Kuala Lumpur | AX13: Kuala Lumpur. | AY13: B:DEUTSCHE | AZ13: Short Term Money Market Deposit | BA13: 2 | BB13: 14456000
A14: CSH*140804973 | C14: RDC*MYR*PBB | D14: RP | E14: 1 | F14: 1093a | G14: 0.0325 | H14: 4451000 | I14: 0 | J14: 0 | K14: MYR | L14: 0 | M14: 0 | N14: 41877 | O14: 41877 | P14: 41877 | Q14: 41878 | R14: RDC | S14: B:PBB | T14: DB-MYR-0022483000 | U14: 1 | V14: 0 | W14: 0 | X14: F | Z14: N/A | AA14: 2 | AB14: 1 | AD14: 396.32 | AE14: 41877.45644 | AF14: ASTCLK | AG14: 41877.45644 | AH14: ASTCLK | AI14: (1093a)-GIBRALTAR BSN LIFE BERHAD(LIFEFUND-PARPIF) | AJ14: 2 | AK14: DF | AL14: PUBLIC BANK BERHAD | AM14: GRACE SEW | AN14: DEUTSCHE BANK (MALAYSIA) BERHAD | AO14: 50250 | AP14: Kuala Lumpur. | AQ14: Kuala Lumpur | AR14: DBNOMINEETSB | AS14: DB (MALAYSIA) NOMINEE (TEMPATAN) SENDIRIAN BERHAD | AT14: Client Services team | AU14: DEUTSCHE BANK (MALAYSIA) BERHAD | AV14: 50250 | AW14: Kuala Lumpur | AX14: Kuala Lumpur. | AY14: B:DEUTSCHE | AZ14: Short Term Money Market Deposit | BA14: 2 | BB14: -4451000
A15: CSH*140805144 | C15: RDC*MYR*PBB | D15: RP | E15: 1 | F15: 1093a | G15: 0.0325 | H15: 0 | I15: 4467000 | J15: 4467000 | K15: MYR | L15: -4467000 | M15: -4467000 | N15: 41877 | O15: 41877 | P15: 41877 | Q15: 41878 | R15: RDC | S15: B:PBB | T15: DB-MYR-0022483000 | U15: 1 | V15: 0 | W15: 0 | X15: F | Z15: N/A | AA15: 2 | AB15: 1 | AC15: Kelvin | AD15: 0 | AE15: 41877.48137 | AF15: ASTCLK | AG15: 41877.48137 | AH15: ASTCLK | AI15: (1093a)-GIBRALTAR BSN LIFE BERHAD(LIFEFUND-PARPIF) | AJ15: 2 | AK15: DF | AL15: PUBLIC BANK BERHAD | AM15: GRACE SEW | AN15: DEUTSCHE BANK (MALAYSIA) BERHAD | AO15: 50250 | AP15: Kuala Lumpur. | AQ15: Kuala Lumpur | AR15: DBNOMINEETSB | AS15: DB (MALAYSIA) NOMINEE (TEMPATAN) SENDIRIAN BERHAD | AT15: Client Services team | AU15: DEUTSCHE BANK (MALAYSIA) BERHAD | AV15: 50250 | AW15: Kuala Lumpur | AX15: Kuala Lumpur. | AY15: B:DEUTSCHE | AZ15: Short Term Money Market Deposit | BA15: 2 | BB15: 4467000
A16: CSH*140804974 | C16: RDC*MYR*PBB | D16: RP | E16: 1 | F16: 1095 | G16: 0.0325 | H16: 835000 | I16: 0 | J16: 0 | K16: MYR | L16: 0 | M16: 0 | N16: 41877 | O16: 41877 | P16: 41877 | Q16: 41878 | R16: RDC | S16: B:PBB | T16: DB-MYR-0022293000 | U16: 1 | V16: 0 | W16: 0 | X16: F | Z16: N/A | AA16: 2 | AB16: 1 | AD16: 74.35 | AE16: 41877.45644 | AF16: ASTCLK | AG16: 41877.45644 | AH16: ASTCLK | AI16: TAN SRI (DR) LIM GOH TONG ENDOWMENT FUND-UPM | AJ16: 0 | AK16: DF | AL16: PUBLIC BANK BERHAD | AM16: GRACE SEW | AN16: DEUTSCHE BANK (MALAYSIA) BERHAD | AO16: 50250 | AP16: Kuala Lumpur. | AQ16: Kuala Lumpur | AR16: DBNOMINEETSB | AS16: DB (MALAYSIA) NOMINEE (TEMPATAN) SENDIRIAN BERHAD | AT16: Client Services team | AU16: DEUTSCHE BANK (MALAYSIA) BERHAD | AV16: 50250 | AW16: Kuala Lumpur | AX16: Kuala Lumpur. | AY16: B:DEUTSCHE | AZ16: Short Term Money Market Deposit | BA16: 2 | BB16: -835000
A17: CSH*140805145 | C17: RDC*MYR*PBB | D17: RP | E17: 1 | F17: 1095 | G17: 0.0325 | H17: 0 | I17: 830000 | J17: 830000 | K17: MYR | L17: -830000 | M17: -830000 | N17: 41877 | O17: 41877 | P17: 41877 | Q17: 41878 | R17: RDC | S17: B:PBB | T17: DB-MYR-0022293000 | U17: 1 | V17: 0 | W17: 0 | X17: F | Z17: N/A | AA17: 2 | AB17: 1 | AC17: Kelvin | AD17: 0 | AE17: 41877.48137 | AF17: ASTCLK | AG17: 41877.48137 | AH17: ASTCLK | AI17: TAN SRI (DR) LIM GOH TONG ENDOWMENT FUND-UPM | AJ17: 0 | AK17: DF | AL17: PUBLIC BANK BERHAD | AM17: GRACE SEW | AN17: DEUTSCHE BANK (MALAYSIA) BERHAD | AO17: 50250 | AP17: Kuala Lumpur. | AQ17: Kuala Lumpur | AR17: DBNOMINEETSB | AS17: DB (MALAYSIA) NOMINEE (TEMPATAN) SENDIRIAN BERHAD | AT17: Client Services team | AU17: DEUTSCHE BANK (MALAYSIA) BERHAD | AV17: 50250 | AW17: Kuala Lumpur | AX17: Kuala Lumpur. | AY17: B:DEUTSCHE | AZ17: Short Term Money Market Deposit | BA17: 2 | BB17: 830000
A18: CSH*140804975 | C18: RDC*MYR*PBB | D18: RP | E18: 1 | F18: 1096 | G18: 0.0325 | H18: 651000 | I18: 0 | J18: 0 | K18: MYR | L18: 0 | M18: 0 | N18: 41877 | O18: 41877 | P18: 41877 | Q18: 41878 | R18: RDC | S18: B:PBB | T18: DB-MYR-0022285000 | U18: 1 | V18: 0 | W18: 0 | X18: F | Z18: N/A | AA18: 2 | AB18: 1 | AD18: 57.97 | AE18: 41877.45644 | AF18: ASTCLK | AG18: 41877.45644 | AH18: ASTCLK | AI18: TAN SRI (DR) LIM GOH TONG ENDOWMENT FUND-UM | AJ18: 0 | AK18: DF | AL18: PUBLIC BANK BERHAD | AM18: GRACE SEW | AN18: DEUTSCHE BANK (MALAYSIA) BERHAD | AO18: 50250 | AP18: Kuala Lumpur. | AQ18: Kuala Lumpur | AR18: DBNOMINEETSB | AS18: DB (MALAYSIA) NOMINEE (TEMPATAN) SENDIRIAN BERHAD | AT18: Client Services team | AU18: DEUTSCHE BANK (MALAYSIA) BERHAD | AV18: 50250 | AW18: Kuala Lumpur | AX18: Kuala Lumpur. | AY18: B:DEUTSCHE | AZ18: Short Term Money Market Deposit | BA18: 2 | BB18: -651000
A19: CSH*140805146 | C19: RDC*MYR*PBB | D19: RP | E19: 1 | F19: 1096 | G19: 0.0325 | H19: 0 | I19: 651000 | J19: 651000 | K19: MYR | L19: -651000 | M19: -651000 | N19: 41877 | O19: 41877 | P19: 41877 | Q19: 41878 | R19: RDC | S19: B:PBB | T19: DB-MYR-0022285000 | U19: 1 | V19: 0 | W19: 0 | X19: F | Z19: N/A | AA19: 2 | AB19: 1 | AC19: Kelvin | AD19: 0 | AE19: 41877.48137 | AF19: ASTCLK | AG19: 41877.48137 | AH19: ASTCLK | AI19: TAN SRI (DR) LIM GOH TONG ENDOWMENT FUND-UM | AJ19: 0 | AK19: DF | AL19: PUBLIC BANK BERHAD | AM19: GRACE SEW | AN19: DEUTSCHE BANK (MALAYSIA) BERHAD | AO19: 50250 | AP19: Kuala Lumpur. | AQ19: Kuala Lumpur | AR19: DBNOMINEETSB | AS19: DB (MALAYSIA) NOMINEE (TEMPATAN) SENDIRIAN BERHAD | AT19: Client Services team | AU19: DEUTSCHE BANK (MALAYSIA) BERHAD | AV19: 50250 | AW19: Kuala Lumpur | AX19: Kuala Lumpur. | AY19: B:DEUTSCHE | AZ19: Short Term Money Market Deposit | BA19: 2 | BB19: 651000
A20: CSH*140804976 | C20: RDC*MYR*PBB | D20: RP | E20: 1 | F20: 1102 | G20: 0.0325 | H20: 711000 | I20: 0 | J20: 0 | K20: MYR | L20: 0 | M20: 0 | N20: 41877 | O20: 41877 | P20: 41877 | Q20: 41878 | R20: RDC | S20: B:PBB | T20: DB-MYR-0022491000 | U20: 1 | V20: 0 | W20: 0 | X20: F | Z20: N/A | AA20: 2 | AB20: 1 | AD20: 63.31 | AE20: 41877.45645 | AF20: ASTCLK | AG20: 41877.45645 | AH20: ASTCLK | AI20: (1102) - HLA (LIFE - ANNUITY) | AJ20: 1 | AK20: DF | AL20: PUBLIC BANK BERHAD | AM20: GRACE SEW | AN20: DEUTSCHE BANK (MALAYSIA) BERHAD | AO20: 50250 | AP20: Kuala Lumpur. | AQ20: Kuala Lumpur | AR20: DBNOMINEETSB | AS20: DB (MALAYSIA) NOMINEE (TEMPATAN) SENDIRIAN BERHAD | AT20: Client Services team | AU20: DEUTSCHE BANK (MALAYSIA) BERHAD | AV20: 50250 | AW20: Kuala Lumpur | AX20: Kuala Lumpur. | AY20: B:DEUTSCHE | AZ20: Short Term Money Market Deposit | BA20: 2 | BB20: -711000
A21: CSH*140805147 | C21: RDC*MYR*PBB | D21: RP | E21: 1 | F21: 1102 | G21: 0.0325 | H21: 0 | I21: 711000 | J21: 711000 | K21: MYR | L21: -711000 | M21: -711000 | N21: 41877 | O21: 41877 | P21: 41877 | Q21: 41878 | R21: RDC | S21: B:PBB | T21: DB-MYR-0022491000 | U21: 1 | V21: 0 | W21: 0 | X21: F | Z21: N/A | AA21: 2 | AB21: 1 | AC21: Kelvin | AD21: 0 | AE21: 41877.48137 | AF21: ASTCLK | AG21: 41877.48137 | AH21: ASTCLK | AI21: (1102) - HLA (LIFE - ANNUITY) | AJ21: 1 | AK21: DF | AL21: PUBLIC BANK BERHAD | AM21: GRACE SEW | AN21: DEUTSCHE BANK (MALAYSIA) BERHAD | AO21: 50250 | AP21: Kuala Lumpur. | AQ21: Kuala Lumpur | AR21: DBNOMINEETSB | AS21: DB (MALAYSIA) NOMINEE (TEMPATAN) SENDIRIAN BERHAD | AT21: Client Services team | AU21: DEUTSCHE BANK (MALAYSIA) BERHAD | AV21: 50250 | AW21: Kuala Lumpur | AX21: Kuala Lumpur. | AY21: B:DEUTSCHE | AZ21: Short Term Money Market Deposit | BA21: 2 | BB21: 711000
A22: CSH*140804977 | C22: RDC*MYR*DEUT | D22: RP | E22: 1 | F22: 1119 | G22: 0.0273 | H22: 500000 | I22: 0 | J22: 0 | K22: MYR | L22: 0 | M22: 0 | N22: 41877 | O22: 41877 | P22: 41877 | Q22: 41878 | R22: RDC | S22: B:DEUTSCHE | T22: DB-MYR-0022772000 | U22: 1 | V22: 0 | W22: 0 | X22: F | Z22: N/A | AA22: 2 | AB22: 1 | AD22: 37.4 | AE22: 41877.45645 | AF22: ASTCLK | AG22: 41877.45645 | AH22: ASTCLK | AI22: (1119) - ZAKI BIN AZMI | AJ22: 1 | AK22: DF | AL22: DEUTSCHE BANK (MALAYSIA) BERHAD | AM22: Ahmad Shafril Halim | AN22: DEUTSCHE BANK (MALAYSIA) BERHAD, LEVEL 20, MENARA IMC, NO.8, JALAN SULTAN ISMAIL | AO22: 50250 | AP22: Kuala Lumpur. | AQ22: Kuala Lumpur | AR22: DBNOMINEE | AS22: DEUTSCHE BANK (MALAYSIA) NOMINEE | AT22: KAMALA | AU22: DEUTSCHE BANK (MALAYSIA) BERHAD, LEVEL 20, MENARA IMC, NO.8, JALAN SULTAN ISMAIL | AV22: 50250 | AW22: Kuala Lumpur | AX22: Kuala Lumpur. | AY22: B:DEUTSCHE | AZ22: Short Term Money Market Deposit | BA22: 2 | BB22: -500000
A23: CSH*140805148 | C23: RDC*MYR*DEUT | D23: RP | E23: 1 | F23: 1119 | G23: 0.0273 | H23: 0 | I23: 500000 | J23: 500000 | K23: MYR | L23: -500000 | M23: -500000 | N23: 41877 | O23: 41877 | P23: 41877 | Q23: 41878 | R23: RDC | S23: B:DEUTSCHE | T23: DB-MYR-0022772000 | U23: 1 | V23: 0 | W23: 0 | X23: F | Z23: N/A | AA23: 2 | AB23: 1 | AC23: John | AD23: 0 | AE23: 41877.48138 | AF23: ASTCLK | AG23: 41877.48138 | AH23: ASTCLK | AI23: (1119) - ZAKI BIN AZMI | AJ23: 1 | AK23: DF | AL23: DEUTSCHE BANK (MALAYSIA) BERHAD | AM23: Ahmad Shafril Halim | AN23: DEUTSCHE BANK (MALAYSIA) BERHAD, LEVEL 20, MENARA IMC, NO.8, JALAN SULTAN ISMAIL | AO23: 50250 | AP23: Kuala Lumpur. | AQ23: Kuala Lumpur | AR23: DBNOMINEE | AS23: DEUTSCHE BANK (MALAYSIA) NOMINEE | AT23: KAMALA | AU23: DEUTSCHE BANK (MALAYSIA) BERHAD, LEVEL 20, MENARA IMC, NO.8, JALAN SULTAN ISMAIL | AV23: 50250 | AW23: Kuala Lumpur | AX23: Kuala Lumpur. | AY23: B:DEUTSCHE | AZ23: Short Term Money Market Deposit | BA23: 2 | BB23: 500000
A24: CSH*140804978 | C24: RDC*MYR*DEUT | D24: RP | E24: 1 | F24: 1127 | G24: 0.0273 | H24: 255000 | I24: 0 | J24: 0 | K24: MYR | L24: 0 | M24: 0 | N24: 41877 | O24: 41877 | P24: 41877 | Q24: 41878 | R24: RDC | S24: B:DEUTSCHE | T24: DB-MYR-0022905000 | U24: 1 | V24: 0 | W24: 0 | X24: F | Z24: N/A | AA24: 2 | AB24: 1 | AD24: 19.07 | AE24: 41877.45645 | AF24: ASTCLK | AG24: 41877.45645 | AH24: ASTCLK | AI24: (1127) - TEOH HAN CHONG | AJ24: 1 | AK24: DF | AL24: DEUTSCHE BANK (MALAYSIA) BERHAD | AM24: Ahmad Shafril Halim | AN24: DEUTSCHE BANK (MALAYSIA) BERHAD, LEVEL 20, MENARA IMC, NO.8, JALAN SULTAN ISMAIL | AO24: 50250 | AP24: Kuala Lumpur. | AQ24: Kuala Lumpur | AR24: DBNOMINEE | AS24: DEUTSCHE BANK (MALAYSIA) NOMINEE | AT24: KAMALA | AU24: DEUTSCHE BANK (MALAYSIA) BERHAD, LEVEL 20, MENARA IMC, NO.8, JALAN SULTAN ISMAIL | AV24: 50250 | AW24: Kuala Lumpur | AX24: Kuala Lumpur. | AY24: B:DEUTSCHE | AZ24: Short Term Money Market Deposit | BA24: 2 | BB24: -255000
A25: CSH*140805149 | C25: RDC*MYR*DEUT | D25: RP | E25: 1 | F25: 1127 | G25: 0.0273 | H25: 0 | I25: 255000 | J25: 255000 | K25: MYR | L25: -255000 | M25: -255000 | N25: 41877 | O25: 41877 | P25: 41877 | Q25: 41878 | R25: RDC | S25: B:DEUTSCHE | T25: DB-MYR-0022905000 | U25: 1 | V25: 0 | W25: 0 | X25: F | Z25: N/A | AA25: 2 | AB25: 1 | AC25: John | AD25: 0 | AE25: 41877.48138 | AF25: ASTCLK | AG25: 41877.48138 | AH25: ASTCLK | AI25: (1127) - TEOH HAN CHONG | AJ25: 1 | AK25: DF | AL25: DEUTSCHE BANK (MALAYSIA) BERHAD | AM25: Ahmad Shafril Halim | AN25: DEUTSCHE BANK (MALAYSIA) BERHAD, LEVEL 20, MENARA IMC, NO.8, JALAN SULTAN ISMAIL | AO25: 50250 | AP25: Kuala Lumpur. | AQ25: Kuala Lumpur | AR25: DBNOMINEE | AS25: DEUTSCHE BANK (MALAYSIA) NOMINEE | AT25: KAMALA | AU25: DEUTSCHE BANK (MALAYSIA) BERHAD, LEVEL 20, MENARA IMC, NO.8, JALAN SULTAN ISMAIL | AV25: 50250 | AW25: Kuala Lumpur | AX25: Kuala Lumpur. | AY25: B:DEUTSCHE | AZ25: Short Term Money Market Deposit | BA25: 2 | BB25: 255000
A26: CSH*140804979 | C26: RDC*MYR*PBB | D26: RP | E26: 1 | F26: 1368 | G26: 0.0325 | H26: 1489000 | I26: 0 | J26: 0 | K26: MYR | L26: 0 | M26: 0 | N26: 41877 | O26: 41877 | P26: 41877 | Q26: 41878 | R26: RDC | S26: B:PBB | T26: DB-MYR-0022319000 | U26: 1 | V26: 0 | W26: 0 | X26: F | Z26: N/A | AA26: 2 | AB26: 1 | AD26: 132.58 | AE26: 41877.45645 | AF26: ASTCLK | AG26: 41877.45645 | AH26: ASTCLK | AI26: (1368) - UNIVERSITI MALAYA | AJ26: 1 | AK26: DF | AL26: PUBLIC BANK BERHAD | AM26: GRACE SEW | AN26: DEUTSCHE BANK (MALAYSIA) BERHAD | AO26: 50250 | AP26: Kuala Lumpur. | AQ26: Kuala Lumpur | AR26: DBNOMINEETSB | AS26: DB (MALAYSIA) NOMINEE (TEMPATAN) SENDIRIAN BERHAD | AT26: Client Services team | AU26: DEUTSCHE BANK (MALAYSIA) BERHAD | AV26: 50250 | AW26: Kuala Lumpur | AX26: Kuala Lumpur. | AY26: B:DEUTSCHE | AZ26: Short Term Money Market Deposit | BA26: 2 | BB26: -1489000
A27: CSH*140805150 | C27: RDC*MYR*PBB | D27: RP | E27: 1 | F27: 1368 | G27: 0.0325 | H27: 0 | I27: 1488000 | J27: 1488000 | K27: MYR | L27: -1488000 | M27: -1488000 | N27: 41877 | O27: 41877 | P27: 41877 | Q27: 41878 | R27: RDC | S27: B:PBB | T27: DB-MYR-0022319000 | U27: 1 | V27: 0 | W27: 0 | X27: F | Z27: N/A | AA27: 2 | AB27: 1 | AC27: Kelvin | AD27: 0 | AE27: 41877.48138 | AF27: ASTCLK | AG27: 41877.48138 | AH27: ASTCLK | AI27: (1368) - UNIVERSITI MALAYA | AJ27: 1 | AK27: DF | AL27: PUBLIC BANK BERHAD | AM27: GRACE SEW | AN27: DEUTSCHE BANK (MALAYSIA) BERHAD | AO27: 50250 | AP27: Kuala Lumpur. | AQ27: Kuala Lumpur | AR27: DBNOMINEETSB | AS27: DB (MALAYSIA) NOMINEE (TEMPATAN) SENDIRIAN BERHAD | AT27: Client Services team | AU27: DEUTSCHE BANK (MALAYSIA) BERHAD | AV27: 50250 | AW27: Kuala Lumpur | AX27: Kuala Lumpur. | AY27: B:DEUTSCHE | AZ27: Short Term Money Market Deposit | BA27: 2 | BB27: 1488000
A28: CSH*140804980 | C28: RDC*MYR*PBB | D28: RP | E28: 1 | F28: 2035 | G28: 0.0325 | H28: 3361000 | I28: 0 | J28: 0 | K28: MYR | L28: 0 | M28: 0 | N28: 41877 | O28: 41877 | P28: 41877 | Q28: 41878 | R28: RDC | S28: B:PBB | T28: DB-MYR-0022525000 | U28: 1 | V28: 0 | W28: 0 | X28: F | Z28: N/A | AA28: 2 | AB28: 1 | AD28: 299.27 | AE28: 41877.45645 | AF28: ASTCLK | AG28: 41877.45645 | AH28: ASTCLK | AI28: (2035) - HLA (LIFE-PAR) | AJ28: 1 | AK28: DF | AL28: PUBLIC BANK BERHAD | AM28: GRACE SEW | AN28: DEUTSCHE BANK (MALAYSIA) BERHAD | AO28: 50250 | AP28: Kuala Lumpur. | AQ28: Kuala Lumpur | AR28: DBNOMINEETSB | AS28: DB (MALAYSIA) NOMINEE (TEMPATAN) SENDIRIAN BERHAD | AT28: Client Services team | AU28: DEUTSCHE BANK (MALAYSIA) BERHAD | AV28: 50250 | AW28: Kuala Lumpur | AX28: Kuala Lumpur. | AY28: B:DEUTSCHE | AZ28: Short Term Money Market Deposit | BA28: 2 | BB28: -3361000
A29: CSH*140805151 | C29: RDC*MYR*PBB | D29: RP | E29: 1 | F29: 2035 | G29: 0.0325 | H29: 0 | I29: 3361000 | J29: 3361000 | K29: MYR | L29: -3361000 | M29: -3361000 | N29: 41877 | O29: 41877 | P29: 41877 | Q29: 41878 | R29: RDC | S29: B:PBB | T29: DB-MYR-0022525000 | U29: 1 | V29: 0 | W29: 0 | X29: F | Z29: N/A | AA29: 2 | AB29: 1 | AC29: Kelvin | AD29: 0 | AE29: 41877.48138 | AF29: ASTCLK | AG29: 41877.48138 | AH29: ASTCLK | AI29: (2035) - HLA (LIFE-PAR) | AJ29: 1 | AK29: DF | AL29: PUBLIC BANK BERHAD | AM29: GRACE SEW | AN29: DEUTSCHE BANK (MALAYSIA) BERHAD | AO29: 50250 | AP29: Kuala Lumpur. | AQ29: Kuala Lumpur | AR29: DBNOMINEETSB | AS29: DB (MALAYSIA) NOMINEE (TEMPATAN) SENDIRIAN BERHAD | AT29: Client Services team | AU29: DEUTSCHE BANK (MALAYSIA) BERHAD | AV29: 50250 | AW29: Kuala Lumpur | AX29: Kuala Lumpur. | AY29: B:DEUTSCHE | AZ29: Short Term Money Market Deposit | BA29: 2 | BB29: 3361000
A30: CSH*140804981 | C30: RDC*MYR*PBB | D30: RP | E30: 1 | F30: 2036 | G30: 0.0325 | H30: 1812000 | I30: 0 | J30: 0 | K30: MYR | L30: 0 | M30: 0 | N30: 41877 | O30: 41877 | P30: 41877 | Q30: 41878 | R30: RDC | S30: B:PBB | T30: DB-MYR-0022533000 | U30: 1 | V30: 0 | W30: 0 | X30: F | Z30: N/A | AA30: 2 | AB30: 1 | AD30: 161.34 | AE30: 41877.45646 | AF30: ASTCLK | AG30: 41877.45646 | AH30: ASTCLK | AI30: (2036) - HLA (S/HDR FUND) | AJ30: 1 | AK30: DF | AL30: PUBLIC BANK BERHAD | AM30: GRACE SEW | AN30: DEUTSCHE BANK (MALAYSIA) BERHAD | AO30: 50250 | AP30: Kuala Lumpur. | AQ30: Kuala Lumpur | AR30: DBNOMINEETSB | AS30: DB (MALAYSIA) NOMINEE (TEMPATAN) SENDIRIAN BERHAD | AT30: Client Services team | AU30: DEUTSCHE BANK (MALAYSIA) BERHAD | AV30: 50250 | AW30: Kuala Lumpur | AX30: Kuala Lumpur. | AY30: B:DEUTSCHE | AZ30: Short Term Money Market Deposit | BA30: 2 | BB30: -1812000
A31: CSH*140805152 | C31: RDC*MYR*PBB | D31: RP | E31: 1 | F31: 2036 | G31: 0.0325 | H31: 0 | I31: 1813000 | J31: 1813000 | K31: MYR | L31: -1813000 | M31: -1813000 | N31: 41877 | O31: 41877 | P31: 41877 | Q31: 41878 | R31: RDC | S31: B:PBB | T31: DB-MYR-0022533000 | U31: 1 | V31: 0 | W31: 0 | X31: F | Z31: N/A | AA31: 2 | AB31: 1 | AC31: Kelvin | AD31: 0 | AE31: 41877.48139 | AF31: ASTCLK | AG31: 41877.48139 | AH31: ASTCLK | AI31: (2036) - HLA (S/HDR FUND) | AJ31: 1 | AK31: DF | AL31: PUBLIC BANK BERHAD | AM31: GRACE SEW | AN31: DEUTSCHE BANK (MALAYSIA) BERHAD | AO31: 50250 | AP31: Kuala Lumpur. | AQ31: Kuala Lumpur | AR31: DBNOMINEETSB | AS31: DB (MALAYSIA) NOMINEE (TEMPATAN) SENDIRIAN BERHAD | AT31: Client Services team | AU31: DEUTSCHE BANK (MALAYSIA) BERHAD | AV31: 50250 | AW31: Kuala Lumpur | AX31: Kuala Lumpur. | AY31: B:DEUTSCHE | AZ31: Short Term Money Market Deposit | BA31: 2 | BB31: 1813000
A32: CSH*140804982 | C32: RDC*MYR*PBB | D32: RP | E32: 1 | F32: 2052 | G32: 0.0325 | H32: 3251000 | I32: 0 | J32: 0 | K32: MYR | L32: 0 | M32: 0 | N32: 41877 | O32: 41877 | P32: 41877 | Q32: 41878 | R32: RDC | S32: B:PBB | T32: DB-MYR-0022541000 | U32: 1 | V32: 0 | W32: 0 | X32: F | Z32: N/A | AA32: 2 | AB32: 1 | AD32: 289.47 | AE32: 41877.45646 | AF32: ASTCLK | AG32: 41877.45646 | AH32: ASTCLK | AI32: (2052) - P.BEKALAN AIR P. PINANG | AJ32: 0 | AK32: DF | AL32: PUBLIC BANK BERHAD | AM32: GRACE SEW | AN32: DEUTSCHE BANK (MALAYSIA) BERHAD | AO32: 50250 | AP32: Kuala Lumpur. | AQ32: Kuala Lumpur | AR32: DBNOMINEETSB | AS32: DB (MALAYSIA) NOMINEE (TEMPATAN) SENDIRIAN BERHAD | AT32: Client Services team | AU32: DEUTSCHE BANK (MALAYSIA) BERHAD | AV32: 50250 | AW32: Kuala Lumpur | AX32: Kuala Lumpur. | AY32: B:DEUTSCHE | AZ32: Short Term Money Market Deposit | BA32: 2 | BB32: -3251000
A33: CSH*140805153 | C33: RDC*MYR*PBB | D33: RP | E33: 1 | F33: 2052 | G33: 0.0325 | H33: 0 | I33: 3251000 | J33: 3251000 | K33: MYR | L33: -3251000 | M33: -3251000 | N33: 41877 | O33: 41877 | P33: 41877 | Q33: 41878 | R33: RDC | S33: B:PBB | T33: DB-MYR-0022541000 | U33: 1 | V33: 0 | W33: 0 | X33: F | Z33: N/A | AA33: 2 | AB33: 1 | AC33: Kelvin | AD33: 0 | AE33: 41877.48139 | AF33: ASTCLK | AG33: 41877.48139 | AH33: ASTCLK | AI33: (2052) - P.BEKALAN AIR P. PINANG | AJ33: 0 | AK33: DF | AL33: PUBLIC BANK BERHAD | AM33: GRACE SEW | AN33: DEUTSCHE BANK (MALAYSIA) BERHAD | AO33: 50250 | AP33: Kuala Lumpur. | AQ33: Kuala Lumpur | AR33: DBNOMINEETSB | AS33: DB (MALAYSIA) NOMINEE (TEMPATAN) SENDIRIAN BERHAD | AT33: Client Services team | AU33: DEUTSCHE BANK (MALAYSIA) BERHAD | AV33: 50250 | AW33: Kuala Lumpur | AX33: Kuala Lumpur. | AY33: B:DEUTSCHE | AZ33: Short Term Money Market Deposit | BA33: 2 | BB33: 3251000
A34: CSH*140804983 | C34: RDC*MYR*PBB | D34: RP | E34: 1 | F34: 3015 | G34: 0.0325 | H34: 598000 | I34: 0 | J34: 0 | K34: MYR | L34: 0 | M34: 0 | N34: 41877 | O34: 41877 | P34: 41877 | Q34: 41878 | R34: RDC | S34: B:PBB | T34: DB-MYR-0022590000 | U34: 1 | V34: 0 | W34: 0 | X34: F | Z34: N/A | AA34: 2 | AB34: 1 | AD34: 53.25 | AE34: 41877.45646 | AF34: ASTCLK | AG34: 41877.45646 | AH34: ASTCLK | AI34: (3015) - ELECTROSCON COLETRA | AJ34: 0 | AK34: DF | AL34: PUBLIC BANK BERHAD | AM34: GRACE SEW | AN34: DEUTSCHE BANK (MALAYSIA) BERHAD | AO34: 50250 | AP34: Kuala Lumpur. | AQ34: Kuala Lumpur | AR34: DBNOMINEETSB | AS34: DB (MALAYSIA) NOMINEE (TEMPATAN) SENDIRIAN BERHAD | AT34: Client Services team | AU34: DEUTSCHE BANK (MALAYSIA) BERHAD | AV34: 50250 | AW34: Kuala Lumpur | AX34: Kuala Lumpur. | AY34: B:DEUTSCHE | AZ34: Short Term Money Market Deposit | BA34: 2 | BB34: -598000
A35: CSH*140805154 | C35: RDC*MYR*PBB | D35: RP | E35: 1 | F35: 3015 | G35: 0.0325 | H35: 0 | I35: 600000 | J35: 600000 | K35: MYR | L35: -600000 | M35: -600000 | N35: 41877 | O35: 41877 | P35: 41877 | Q35: 41878 | R35: RDC | S35: B:PBB | T35: DB-MYR-0022590000 | U35: 1 | V35: 0 | W35: 0 | X35: F | Z35: N/A | AA35: 2 | AB35: 1 | AC35: Kelvin | AD35: 0 | AE35: 41877.48139 | AF35: ASTCLK | AG35: 41877.48139 | AH35: ASTCLK | AI35: (3015) - ELECTROSCON COLETRA | AJ35: 0 | AK35: DF | AL35: PUBLIC BANK BERHAD | AM35: GRACE SEW | AN35: DEUTSCHE BANK (MALAYSIA) BERHAD | AO35: 50250 | AP35: Kuala Lumpur. | AQ35: Kuala Lumpur | AR35: DBNOMINEETSB | AS35: DB (MALAYSIA) NOMINEE (TEMPATAN) SENDIRIAN BERHAD | AT35: Client Services team | AU35: DEUTSCHE BANK (MALAYSIA) BERHAD | AV35: 50250 | AW35: Kuala Lumpur | AX35: Kuala Lumpur. | AY35: B:DEUTSCHE | AZ35: Short Term Money Market Deposit | BA35: 2 | BB35: 600000
A36: CSH*140804984 | C36: RDC*MYR*PBB | D36: RP | E36: 1 | F36: 3064 | G36: 0.0325 | H36: 395000 | I36: 0 | J36: 0 | K36: MYR | L36: 0 | M36: 0 | N36: 41877 | O36: 41877 | P36: 41877 | Q36: 41878 | R36: RDC | S36: B:PBB | T36: DB-MYR-0022608000 | U36: 1 | V36: 0 | W36: 0 | X36: F | Z36: N/A | AA36: 2 | AB36: 1 | AD36: 35.17 | AE36: 41877.45646 | AF36: ASTCLK | AG36: 41877.45646 | AH36: ASTCLK | AI36: (3064) - BIB INSURANCE BROKERS | AJ36: 0 | AK36: DF | AL36: PUBLIC BANK BERHAD | AM36: GRACE SEW | AN36: DEUTSCHE BANK (MALAYSIA) BERHAD | AO36: 50250 | AP36: Kuala Lumpur. | AQ36: Kuala Lumpur | AR36: DBNOMINEETSB | AS36: DB (MALAYSIA) NOMINEE (TEMPATAN) SENDIRIAN BERHAD | AT36: Client Services team | AU36: DEUTSCHE BANK (MALAYSIA) BERHAD | AV36: 50250 | AW36: Kuala Lumpur | AX36: Kuala Lumpur. | AY36: B:DEUTSCHE | AZ36: Short Term Money Market Deposit | BA36: 2 | BB36: -395000
A37: CSH*140805155 | C37: RDC*MYR*PBB | D37: RP | E37: 1 | F37: 3064 | G37: 0.0325 | H37: 0 | I37: 395000 | J37: 395000 | K37: MYR | L37: -395000 | M37: -395000 | N37: 41877 | O37: 41877 | P37: 41877 | Q37: 41878 | R37: RDC | S37: B:PBB | T37: DB-MYR-0022608000 | U37: 1 | V37: 0 | W37: 0 | X37: F | Z37: N/A | AA37: 2 | AB37: 1 | AC37: Kelvin | AD37: 0 | AE37: 41877.48139 | AF37: ASTCLK | AG37: 41877.48139 | AH37: ASTCLK | AI37: (3064) - BIB INSURANCE BROKERS | AJ37: 0 | AK37: DF | AL37: PUBLIC BANK BERHAD | AM37: GRACE SEW | AN37: DEUTSCHE BANK (MALAYSIA) BERHAD | AO37: 50250 | AP37: Kuala Lumpur. | AQ37: Kuala Lumpur | AR37: DBNOMINEETSB | AS37: DB (MALAYSIA) NOMINEE (TEMPATAN) SENDIRIAN BERHAD | AT37: Client Services team | AU37: DEUTSCHE BANK (MALAYSIA) BERHAD | AV37: 50250 | AW37: Kuala Lumpur | AX37: Kuala Lumpur. | AY37: B:DEUTSCHE | AZ37: Short Term Money Market Deposit | BA37: 2 | BB37: 395000
A38: CSH*140804985 | C38: RDC*MYR*PBB | D38: RP | E38: 1 | F38: 3069 | G38: 0.0325 | H38: 141000 | I38: 0 | J38: 0 | K38: MYR | L38: 0 | M38: 0 | N38: 41877 | O38: 41877 | P38: 41877 | Q38: 41878 | R38: RDC | S38: B:PBB | T38: DB-MYR-0022368000 | U38: 1 | V38: 0 | W38: 0 | X38: F | Z38: N/A | AA38: 2 | AB38: 1 | AD38: 12.55 | AE38: 41877.45647 | AF38: ASTCLK | AG38: 41877.45647 | AH38: ASTCLK | AI38: (3069) - RITZ CREST SDN BHD | AJ38: 1 | AK38: DF | AL38: PUBLIC BANK BERHAD | AM38: GRACE SEW | AN38: DEUTSCHE BANK (MALAYSIA) BERHAD | AO38: 50250 | AP38: Kuala Lumpur. | AQ38: Kuala Lumpur | AR38: DBNOMINEETSB | AS38: DB (MALAYSIA) NOMINEE (TEMPATAN) SENDIRIAN BERHAD | AT38: Client Services team | AU38: DEUTSCHE BANK (MALAYSIA) BERHAD | AV38: 50250 | AW38: Kuala Lumpur | AX38: Kuala Lumpur. | AY38: B:DEUTSCHE | AZ38: Short Term Money Market Deposit | BA38: 2 | BB38: -141000
A39: CSH*140805156 | C39: RDC*MYR*PBB | D39: RP | E39: 1 | F39: 3069 | G39: 0.0325 | H39: 0 | I39: 141000 | J39: 141000 | K39: MYR | L39: -141000 | M39: -141000 | N39: 41877 | O39: 41877 | P39: 41877 | Q39: 41878 | R39: RDC | S39: B:PBB | T39: DB-MYR-0022368000 | U39: 1 | V39: 0 | W39: 0 | X39: F | Z39: N/A | AA39: 2 | AB39: 1 | AC39: Kelvin | AD39: 0 | AE39: 41877.48139 | AF39: ASTCLK | AG39: 41877.48139 | AH39: ASTCLK | AI39: (3069) - RITZ CREST SDN BHD | AJ39: 1 | AK39: DF | AL39: PUBLIC BANK BERHAD | AM39: GRACE SEW | AN39: DEUTSCHE BANK (MALAYSIA) BERHAD | AO39: 50250 | AP39: Kuala Lumpur. | AQ39: Kuala Lumpur | AR39: DBNOMINEETSB | AS39: DB (MALAYSIA) NOMINEE (TEMPATAN) SENDIRIAN BERHAD | AT39: Client Services team | AU39: DEUTSCHE BANK (MALAYSIA) BERHAD | AV39: 50250 | AW39: Kuala Lumpur | AX39: Kuala Lumpur. | AY39: B:DEUTSCHE | AZ39: Short Term Money Market Deposit | BA39: 2 | BB39: 141000
A40: CSH*140804986 | C40: RDC*MYR*PBB | D40: RP | E40: 1 | F40: 5045 | G40: 0.0325 | H40: 643000 | I40: 0 | J40: 0 | K40: MYR | L40: 0 | M40: 0 | N40: 41877 | O40: 41877 | P40: 41877 | Q40: 41878 | R40: RDC | S40: B:PBB | T40: DB-MYR-0024497000 | U40: 1 | V40: 0 | W40: 0 | X40: F | Z40: N/A | AA40: 2 | AB40: 1 | AD40: 57.25 | AE40: 41877.45647 | AF40: ASTCLK | AG40: 41877.45647 | AH40: ASTCLK | AI40: (5045) - YAYASAN SABAH | AJ40: 0 | AK40: DF | AL40: PUBLIC BANK BERHAD | AM40: GRACE SEW | AN40: DEUTSCHE BANK (MALAYSIA) BERHAD | AO40: 50250 | AP40: Kuala Lumpur. | AQ40: Kuala Lumpur | AR40: DBNOMINEETSB | AS40: DB (MALAYSIA) NOMINEE (TEMPATAN) SENDIRIAN BERHAD | AT40: Client Services team | AU40: DEUTSCHE BANK (MALAYSIA) BERHAD | AV40: 50250 | AW40: Kuala Lumpur | AX40: Kuala Lumpur. | AY40: B:DEUTSCHE | AZ40: Short Term Money Market Deposit | BA40: 2 | BB40: -643000
A41: CSH*140805157 | C41: RDC*MYR*PBB | D41: RP | E41: 1 | F41: 5045 | G41: 0.0325 | H41: 0 | I41: 645000 | J41: 645000 | K41: MYR | L41: -645000 | M41: -645000 | N41: 41877 | O41: 41877 | P41: 41877 | Q41: 41878 | R41: RDC | S41: B:PBB | T41: DB-MYR-0024497000 | U41: 1 | V41: 0 | W41: 0 | X41: F | Z41: N/A | AA41: 2 | AB41: 1 | AC41: Kelvin | AD41: 0 | AE41: 41877.4814 | AF41: ASTCLK | AG41: 41877.4814 | AH41: ASTCLK | AI41: (5045) - YAYASAN SABAH | AJ41: 0 | AK41: DF | AL41: PUBLIC BANK BERHAD | AM41: GRACE SEW | AN41: DEUTSCHE BANK (MALAYSIA) BERHAD | AO41: 50250 | AP41: Kuala Lumpur. | AQ41: Kuala Lumpur | AR41: DBNOMINEETSB | AS41: DB (MALAYSIA) NOMINEE (TEMPATAN) SENDIRIAN BERHAD | AT41: Client Services team | AU41: DEUTSCHE BANK (MALAYSIA) BERHAD | AV41: 50250 | AW41: Kuala Lumpur | AX41: Kuala Lumpur. | AY41: B:DEUTSCHE | AZ41: Short Term Money Market Deposit | BA41: 2 | BB41: 645000
A42: CSH*140804987 | C42: RDC*MYR*PBB | D42: RP | E42: 1 | F42: 5049 | G42: 0.0325 | H42: 237000 | I42: 0 | J42: 0 | K42: MYR | L42: 0 | M42: 0 | N42: 41877 | O42: 41877 | P42: 41877 | Q42: 41878 | R42: RDC | S42: B:PBB | T42: DB-MYR-0022616000 | U42: 1 | V42: 0 | W42: 0 | X42: F | Z42: N/A | AA42: 2 | AB42: 1 | AD42: 21.1 | AE42: 41877.45647 | AF42: ASTCLK | AG42: 41877.45647 | AH42: ASTCLK | AI42: (5049) - JOHN K.M. CHACKO | AJ42: 0 | AK42: DF | AL42: PUBLIC BANK BERHAD | AM42: GRACE SEW | AN42: DEUTSCHE BANK (MALAYSIA) BERHAD | AO42: 50250 | AP42: Kuala Lumpur. | AQ42: Kuala Lumpur | AR42: DBNOMINEETSB | AS42: DB (MALAYSIA) NOMINEE (TEMPATAN) SENDIRIAN BERHAD | AT42: Client Services team | AU42: DEUTSCHE BANK (MALAYSIA) BERHAD | AV42: 50250 | AW42: Kuala Lumpur | AX42: Kuala Lumpur. | AY42: B:DEUTSCHE | AZ42: Short Term Money Market Deposit | BA42: 2 | BB42: -237000
A43: CSH*140805158 | C43: RDC*MYR*PBB | D43: RP | E43: 1 | F43: 5049 | G43: 0.0325 | H43: 0 | I43: 240000 | J43: 240000 | K43: MYR | L43: -240000 | M43: -240000 | N43: 41877 | O43: 41877 | P43: 41877 | Q43: 41878 | R43: RDC | S43: B:PBB | T43: DB-MYR-0022616000 | U43: 1 | V43: 0 | W43: 0 | X43: F | Z43: N/A | AA43: 2 | AB43: 1 | AC43: Kelvin | AD43: 0 | AE43: 41877.4814 | AF43: ASTCLK | AG43: 41877.4814 | AH43: ASTCLK | AI43: (5049) - JOHN K.M. CHACKO | AJ43: 0 | AK43: DF | AL43: PUBLIC BANK BERHAD | AM43: GRACE SEW | AN43: DEUTSCHE BANK (MALAYSIA) BERHAD | AO43: 50250 | AP43: Kuala Lumpur. | AQ43: Kuala Lumpur | AR43: DBNOMINEETSB | AS43: DB (MALAYSIA) NOMINEE (TEMPATAN) SENDIRIAN BERHAD | AT43: Client Services team | AU43: DEUTSCHE BANK (MALAYSIA) BERHAD | AV43: 50250 | AW43: Kuala Lumpur | AX43: Kuala Lumpur. | AY43: B:DEUTSCHE | AZ43: Short Term Money Market Deposit | BA43: 2 | BB43: 240000
A44: CSH*140804988 | C44: RDC*MYR*CIMB | D44: RP | E44: 1 | F44: HLGAPDF | G44: 0.0325 | H44: 793000 | I44: 0 | J44: 0 | K44: MYR | L44: 0 | M44: 0 | N44: 41877 | O44: 41877 | P44: 41877 | Q44: 41878 | R44: RDC | S44: B:CIMB | T44: MAIN-MYR-00100720613 | U44: 1 | V44: 0 | W44: 0 | X44: F | Z44: N/A | AA44: 2 | AB44: 1 | AD44: 70.61 | AE44: 41877.45647 | AF44: ASTCLK | AG44: 41877.45647 | AH44: ASTCLK | AI44: L8- HONG LEONG ASIA-PACIFIC DIVIDEND FUND | AJ44: 9 | AK44: DF | AL44: CIMB BANK | AM44: N/A | AN44: Level 20 Menara IMC,No.8 Jalan Sultan Ismail | AO44: 50250 | AP44: Kuala Lumpur. | AQ44: Kuala Lumpur | AR44: DTMB | AS44: DEUTSCHE TRUSTEE MALAYSIA BERHAD | AT44: Ms. Soon Lai Ching | AU44: Level 20 Menara IMC,No.8 Jalan Sultan Ismail | AV44: 50250 | AW44: Kuala Lumpur | AX44: Kuala Lumpur. | AY44: B:HLB | AZ44: Short Term Money Market Deposit | BA44: 3 | BB44: -793000
A45: CSH*140805159 | C45: RDC*MYR*CIMB | D45: RP | E45: 1 | F45: HLGAPDF | G45: 0.0325 | H45: 0 | I45: 841000 | J45: 841000 | K45: MYR | L45: -841000 | M45: -841000 | N45: 41877 | O45: 41877 | P45: 41877 | Q45: 41878 | R45: RDC | S45: B:CIMB | T45: MAIN-MYR-00100720613 | U45: 1 | V45: 0 | W45: 0 | X45: F | Z45: N/A | AA45: 2 | AB45: 1 | AC45: Viknes | AD45: 0 | AE45: 41877.4814 | AF45: ASTCLK | AG45: 41877.4814 | AH45: ASTCLK | AI45: L8- HONG LEONG ASIA-PACIFIC DIVIDEND FUND | AJ45: 9 | AK45: DF | AL45: CIMB BANK | AM45: N/A | AN45: Level 20 Menara IMC,No.8 Jalan Sultan Ismail | AO45: 50250 | AP45: Kuala Lumpur. | AQ45: Kuala Lumpur | AR45: DTMB | AS45: DEUTSCHE TRUSTEE MALAYSIA BERHAD | AT45: Ms. Soon Lai Ching | AU45: Level 20 Menara IMC,No.8 Jalan Sultan Ismail | AV45: 50250 | AW45: Kuala Lumpur | AX45: Kuala Lumpur. | AY45: B:HLB | AZ45: Short Term Money Market Deposit | BA45: 3 | BB45: 841000
A46: CSH*140805023 | C46: RDC*MYR*PBB | D46: RP | E46: 1 | F46: HLGAPIF | G46: 0.0325 | H46: 1267000 | I46: 0 | J46: 0 | K46: MYR | L46: 0 | M46: 0 | N46: 41877 | O46: 41877 | P46: 41877 | Q46: 41878 | R46: RDC | S46: B:PBB | T46: MAIN-MYR-00100719129 | U46: 1 | V46: 0 | W46: 0 | X46: F | Z46: N/A | AA46: 2 | AB46: 1 | AD46: 112.82 | AE46: 41877.45758 | AF46: ASTCLK | AG46: 41877.45758 | AH46: ASTCLK | AI46: G4- HONG LEONG ASIA-PACIFIC INFRASTRUCTURE FUND | AJ46: 6 | AK46: DF | AL46: PUBLIC BANK BERHAD | AM46: GRACE SEW | AN46: Level 20 Menara IMC,No.8 Jalan Sultan Ismail | AO46: 50250 | AP46: Kuala Lumpur. | AQ46: Kuala Lumpur | AR46: DTMB | AS46: DEUTSCHE TRUSTEE MALAYSIA BERHAD | AT46: Ms. Soon Lai Ching | AU46: Level 20 Menara IMC,No.8 Jalan Sultan Ismail | AV46: 50250 | AW46: Kuala Lumpur | AX46: Kuala Lumpur. | AY46: B:HLB | AZ46: Short Term Money Market Deposit | BA46: 3 | BB46: -1267000
A47: CSH*140805160 | C47: RDC*MYR*PBB | D47: RP | E47: 1 | F47: HLGAPIF | G47: 0.0325 | H47: 0 | I47: 1705000 | J47: 1705000 | K47: MYR | L47: -1705000 | M47: -1705000 | N47: 41877 | O47: 41877 | P47: 41877 | Q47: 41878 | R47: RDC | S47: B:PBB | T47: MAIN-MYR-00100719129 | U47: 1 | V47: 0 | W47: 0 | X47: F | Z47: N/A | AA47: 2 | AB47: 1 | AC47: Kelvin | AD47: 0 | AE47: 41877.4814 | AF47: ASTCLK | AG47: 41877.4814 | AH47: ASTCLK | AI47: G4- HONG LEONG ASIA-PACIFIC INFRASTRUCTURE FUND | AJ47: 6 | AK47: DF | AL47: PUBLIC BANK BERHAD | AM47: GRACE SEW | AN47: Level 20 Menara IMC,No.8 Jalan Sultan Ismail | AO47: 50250 | AP47: Kuala Lumpur. | AQ47: Kuala Lumpur | AR47: DTMB | AS47: DEUTSCHE TRUSTEE MALAYSIA BERHAD | AT47: Ms. Soon Lai Ching | AU47: Level 20 Menara IMC,No.8 Jalan Sultan Ismail | AV47: 50250 | AW47: Kuala Lumpur | AX47: Kuala Lumpur. | AY47: B:HLB | AZ47: Short Term Money Market Deposit | BA47: 3 | BB47: 1705000
A48: CSH*140804989 | C48: RDC*MYR*PBB | D48: RP | E48: 1 | F48: HLGAPPIPF | G48: 0.0325 | H48: 1000000 | I48: 0 | J48: 0 | K48: MYR | L48: 0 | M48: 0 | N48: 41877 | O48: 41877 | P48: 41877 | Q48: 41878 | R48: RDC | S48: B:PBB | T48: 001-00-359242 | U48: 1 | V48: 0 | W48: 0 | X48: F | Z48: N/A | AA48: 2 | AB48: 1 | AD48: 89.04 | AE48: 41877.45647 | AF48: ASTCLK | AG48: 41877.45647 | AH48: ASTCLK | AI48: G5- HONG LEONG ASIA-PACIFIC INCOME PLUS | AJ48: 7 | AK48: DF | AL48: PUBLIC BANK BERHAD | AM48: GRACE SEW | AN48: 17th Floor Menara CIMB,Jalan Stesen Sentral 2,Kuala Lumpur Sentral, | AO48: 50470 | AP48: Kuala Lumpur. | AQ48: Kuala Lumpur | AR48: BHLBT | AS48: CIMB COMMERCE TRUSTEE BHD | AT48: Ms. Jeslin Ng | AU48: 17th Floor Menara CIMB,Jalan Stesen Sentral 2,Kuala Lumpur Sentral, | AV48: 50470 | AW48: Kuala Lumpur | AX48: Kuala Lumpur. | AY48: B:HLB | AZ48: Short Term Money Market Deposit | BA48: 3 | BB48: -1000000
A49: CSH*140804990 | C49: RDC*MYR*RHB | D49: RP | E49: 1 | F49: HLGAPPIPF | G49: 0.032 | H49: 731000 | I49: 0 | J49: 0 | K49: MYR | L49: 0 | M49: 0 | N49: 41877 | O49: 41877 | P49: 41877 | Q49: 41878 | R49: RDC | S49: B:RHB | T49: 001-00-359242 | U49: 1 | V49: 0 | W49: 0 | X49: F | Z49: N/A | AA49: 2 | AB49: 1 | AD49: 64.09 | AE49: 41877.45648 | AF49: ASTCLK | AG49: 41877.45648 | AH49: ASTCLK | AI49: G5- HONG LEONG ASIA-PACIFIC INCOME PLUS | AJ49: 7 | AK49: DF | AL49: RHB BANK | AM49: N/A | AN49: 17th Floor Menara CIMB,Jalan Stesen Sentral 2,Kuala Lumpur Sentral, | AO49: 50470 | AP49: Kuala Lumpur. | AQ49: Kuala Lumpur | AR49: BHLBT | AS49: CIMB COMMERCE TRUSTEE BHD | AT49: Ms. Jeslin Ng | AU49: 17th Floor Menara CIMB,Jalan Stesen Sentral 2,Kuala Lumpur Sentral, | AV49: 50470 | AW49: Kuala Lumpur | AX49: Kuala Lumpur. | AY49: B:HLB | AZ49: Short Term Money Market Deposit | BA49: 3 | BB49: -731000
A50: CSH*140805161 | C50: RDC*MYR*PBB | D50: RP | E50: 1 | F50: HLGAPPIPF | G50: 0.0325 | H50: 0 | I50: 1000000 | J50: 1000000 | K50: MYR | L50: -1000000 | M50: -1000000 | N50: 41877 | O50: 41877 | P50: 41877 | Q50: 41878 | R50: RDC | S50: B:PBB | T50: 001-00-359242 | U50: 1 | V50: 0 | W50: 0 | X50: F | Z50: N/A | AA50: 2 | AB50: 1 | AC50: Kelvin | AD50: 0 | AE50: 41877.48141 | AF50: ASTCLK | AG50: 41877.48141 | AH50: ASTCLK | AI50: G5- HONG LEONG ASIA-PACIFIC INCOME PLUS | AJ50: 7 | AK50: DF | AL50: PUBLIC BANK BERHAD | AM50: GRACE SEW | AN50: 17th Floor Menara CIMB,Jalan Stesen Sentral 2,Kuala Lumpur Sentral, | AO50: 50470 | AP50: Kuala Lumpur. | AQ50: Kuala Lumpur | AR50: BHLBT | AS50: CIMB COMMERCE TRUSTEE BHD | AT50: Ms. Jeslin Ng | AU50: 17th Floor Menara CIMB,Jalan Stesen Sentral 2,Kuala Lumpur Sentral, | AV50: 50470 | AW50: Kuala Lumpur | AX50: Kuala Lumpur. | AY50: B:HLB | AZ50: Short Term Money Market Deposit | BA50: 3 | BB50: 1000000
A51: CSH*140805162 | C51: RDC*MYR*RHB | D51: RP | E51: 1 | F51: HLGAPPIPF | G51: 0.032 | H51: 0 | I51: 731000 | J51: 731000 | K51: MYR | L51: -731000 | M51: -731000 | N51: 41877 | O51: 41877 | P51: 41877 | Q51: 41878 | R51: RDC | S51: B:RHB | T51: 001-00-359242 | U51: 1 | V51: 0 | W51: 0 | X51: F | Z51: N/A | AA51: 2 | AB51: 1 | AC51: Farida | AD51: 0 | AE51: 41877.48141 | AF51: ASTCLK | AG51: 41877.48141 | AH51: ASTCLK | AI51: G5- HONG LEONG ASIA-PACIFIC INCOME PLUS | AJ51: 7 | AK51: DF | AL51: RHB BANK | AM51: N/A | AN51: 17th Floor Menara CIMB,Jalan Stesen Sentral 2,Kuala Lumpur Sentral, | AO51: 50470 | AP51: Kuala Lumpur. | AQ51: Kuala Lumpur | AR51: BHLBT | AS51: CIMB COMMERCE TRUSTEE BHD | AT51: Ms. Jeslin Ng | AU51: 17th Floor Menara CIMB,Jalan Stesen Sentral 2,Kuala Lumpur Sentral, | AV51: 50470 | AW51: Kuala Lumpur | AX51: Kuala Lumpur. | AY51: B:HLB | AZ51: Short Term Money Market Deposit | BA51: 3 | BB51: 731000
A52: CSH*140804991 | C52: RDC*MYR*CIMB | D52: RP | E52: 1 | F52: HLGBF | G52: 0.0325 | H52: 3000000 | I52: 0 | J52: 0 | K52: MYR | L52: 0 | M52: 0 | N52: 41877 | O52: 41877 | P52: 41877 | Q52: 41878 | R52: RDC | S52: B:CIMB | T52: MAIN-MYR-00100736717 | U52: 1 | V52: 0 | W52: 0 | X52: F | Z52: N/A | AA52: 2 | AB52: 1 | AD52: 267.12 | AE52: 41877.45648 | AF52: ASTCLK | AG52: 41877.45648 | AH52: ASTCLK | AI52: L2- HONG LEONG BALANCED | AJ52: 5 | AK52: DF | AL52: CIMB BANK | AM52: N/A | AN52: Level 20 Menara IMC,No.8 Jalan Sultan Ismail | AO52: 50250 | AP52: Kuala Lumpur. | AQ52: Kuala Lumpur | AR52: DTMB | AS52: DEUTSCHE TRUSTEE MALAYSIA BERHAD | AT52: Ms. Soon Lai Ching | AU52: Level 20 Menara IMC,No.8 Jalan Sultan Ismail | AV52: 50250 | AW52: Kuala Lumpur | AX52: Kuala Lumpur. | AY52: B:HLB | AZ52: Short Term Money Market Deposit | BA52: 3 | BB52: -3000000
A53: CSH*140804992 | C53: RDC*MYR*PBB | D53: RP | E53: 1 | F53: HLGBF | G53: 0.0325 | H53: 2759000 | I53: 0 | J53: 0 | K53: MYR | L53: 0 | M53: 0 | N53: 41877 | O53: 41877 | P53: 41877 | Q53: 41878 | R53: RDC | S53: B:PBB | T53: MAIN-MYR-00100736717 | U53: 1 | V53: 0 | W53: 0 | X53: F | Z53: N/A | AA53: 2 | AB53: 1 | AD53: 245.66 | AE53: 41877.45648 | AF53: ASTCLK | AG53: 41877.45648 | AH53: ASTCLK | AI53: L2- HONG LEONG BALANCED | AJ53: 5 | AK53: DF | AL53: PUBLIC BANK BERHAD | AM53: GRACE SEW | AN53: Level 20 Menara IMC,No.8 Jalan Sultan Ismail | AO53: 50250 | AP53: Kuala Lumpur. | AQ53: Kuala Lumpur | AR53: DTMB | AS53: DEUTSCHE TRUSTEE MALAYSIA BERHAD | AT53: Ms. Soon Lai Ching | AU53: Level 20 Menara IMC,No.8 Jalan Sultan Ismail | AV53: 50250 | AW53: Kuala Lumpur | AX53: Kuala Lumpur. | AY53: B:HLB | AZ53: Short Term Money Market Deposit | BA53: 3 | BB53: -2759000
A54: CSH*140805163 | C54: RDC*MYR*PBB | D54: RP | E54: 1 | F54: HLGBF | G54: 0.0325 | H54: 0 | I54: 2759000 | J54: 2759000 | K54: MYR | L54: -2759000 | M54: -2759000 | N54: 41877 | O54: 41877 | P54: 41877 | Q54: 41878 | R54: RDC | S54: B:PBB | T54: MAIN-MYR-00100736717 | U54: 1 | V54: 0 | W54: 0 | X54: F | Z54: N/A | AA54: 2 | AB54: 1 | AC54: Kelvin | AD54: 0 | AE54: 41877.48141 | AF54: ASTCLK | AG54: 41877.48141 | AH54: ASTCLK | AI54: L2- HONG LEONG BALANCED | AJ54: 5 | AK54: DF | AL54: PUBLIC BANK BERHAD | AM54: GRACE SEW | AN54: Level 20 Menara IMC,No.8 Jalan Sultan Ismail | AO54: 50250 | AP54: Kuala Lumpur. | AQ54: Kuala Lumpur | AR54: DTMB | AS54: DEUTSCHE TRUSTEE MALAYSIA BERHAD | AT54: Ms. Soon Lai Ching | AU54: Level 20 Menara IMC,No.8 Jalan Sultan Ismail | AV54: 50250 | AW54: Kuala Lumpur | AX54: Kuala Lumpur. | AY54: B:HLB | AZ54: Short Term Money Market Deposit | BA54: 3 | BB54: 2759000
A55: CSH*140805164 | C55: RDC*MYR*CIMB | D55: RP | E55: 1 | F55: HLGBF | G55: 0.0325 | H55: 0 | I55: 3000000 | J55: 3000000 | K55: MYR | L55: -3000000 | M55: -3000000 | N55: 41877 | O55: 41877 | P55: 41877 | Q55: 41878 | R55: RDC | S55: B:CIMB | T55: MAIN-MYR-00100736717 | U55: 1 | V55: 0 | W55: 0 | X55: F | Z55: N/A | AA55: 2 | AB55: 1 | AC55: Viknes | AD55: 0 | AE55: 41877.48141 | AF55: ASTCLK | AG55: 41877.48141 | AH55: ASTCLK | AI55: L2- HONG LEONG BALANCED | AJ55: 5 | AK55: DF | AL55: CIMB BANK | AM55: N/A | AN55: Level 20 Menara IMC,No.8 Jalan Sultan Ismail | AO55: 50250 | AP55: Kuala Lumpur. | AQ55: Kuala Lumpur | AR55: DTMB | AS55: DEUTSCHE TRUSTEE MALAYSIA BERHAD | AT55: Ms. Soon Lai Ching | AU55: Level 20 Menara IMC,No.8 Jalan Sultan Ismail | AV55: 50250 | AW55: Kuala Lumpur | AX55: Kuala Lumpur. | AY55: B:HLB | AZ55: Short Term Money Market Deposit | BA55: 3 | BB55: 3000000
A56: CSH*140804993 | C56: RDC*MYR*CIMB | D56: RP | E56: 1 | F56: HLGCPSF | G56: 0.0325 | H56: 5346000 | I56: 0 | J56: 0 | K56: MYR | L56: 0 | M56: 0 | N56: 41877 | O56: 41877 | P56: 41877 | Q56: 41878 | R56: RDC | S56: B:CIMB | T56: MAIN-MYR-00100736700 | U56: 1 | V56: 0 | W56: 0 | X56: F | Z56: N/A | AA56: 2 | AB56: 1 | AD56: 476.01 | AE56: 41877.45648 | AF56: ASTCLK | AG56: 41877.45648 | AH56: ASTCLK | AI56: H4- HONG LEONG CONSUMER PRODUCTS SECTOR FUND | AJ56: 1 | AK56: DF | AL56: CIMB BANK | AM56: N/A | AN56: Level 20 Menara IMC,No.8 Jalan Sultan Ismail | AO56: 50250 | AP56: Kuala Lumpur. | AQ56: Kuala Lumpur | AR56: DTMB | AS56: DEUTSCHE TRUSTEE MALAYSIA BERHAD | AT56: Ms. Soon Lai Ching | AU56: Level 20 Menara IMC,No.8 Jalan Sultan Ismail | AV56: 50250 | AW56: Kuala Lumpur | AX56: Kuala Lumpur. | AY56: B:HLB | AZ56: Short Term Money Market Deposit | BA56: 3 | BB56: -5346000
A57: CSH*140804994 | C57: RDC*MYR*PBB | D57: RP | E57: 1 | F57: HLGCPSF | G57: 0.0325 | H57: 5200000 | I57: 0 | J57: 0 | K57: MYR | L57: 0 | M57: 0 | N57: 41877 | O57: 41877 | P57: 41877 | Q57: 41878 | R57: RDC | S57: B:PBB | T57: MAIN-MYR-00100736700 | U57: 1 | V57: 0 | W57: 0 | X57: F | Z57: N/A | AA57: 2 | AB57: 1 | AD57: 463.01 | AE57: 41877.45649 | AF57: ASTCLK | AG57: 41877.45649 | AH57: ASTCLK | AI57: H4- HONG LEONG CONSUMER PRODUCTS SECTOR FUND | AJ57: 1 | AK57: DF | AL57: PUBLIC BANK BERHAD | AM57: GRACE SEW | AN57: Level 20 Menara IMC,No.8 Jalan Sultan Ismail | AO57: 50250 | AP57: Kuala Lumpur. | AQ57: Kuala Lumpur | AR57: DTMB | AS57: DEUTSCHE TRUSTEE MALAYSIA BERHAD | AT57: Ms. Soon Lai Ching | AU57: Level 20 Menara IMC,No.8 Jalan Sultan Ismail | AV57: 50250 | AW57: Kuala Lumpur | AX57: Kuala Lumpur. | AY57: B:HLB | AZ57: Short Term Money Market Deposit | BA57: 3 | BB57: -5200000
A58: CSH*140805165 | C58: RDC*MYR*PBB | D58: RP | E58: 1 | F58: HLGCPSF | G58: 0.0325 | H58: 0 | I58: 5200000 | J58: 5200000 | K58: MYR | L58: -5200000 | M58: -5200000 | N58: 41877 | O58: 41877 | P58: 41877 | Q58: 41878 | R58: RDC | S58: B:PBB | T58: MAIN-MYR-00100736700 | U58: 1 | V58: 0 | W58: 0 | X58: F | Z58: N/A | AA58: 2 | AB58: 1 | AC58: Kelvin | AD58: 0 | AE58: 41877.48142 | AF58: ASTCLK | AG58: 41877.48142 | AH58: ASTCLK | AI58: H4- HONG LEONG CONSUMER PRODUCTS SECTOR FUND | AJ58: 1 | AK58: DF | AL58: PUBLIC BANK BERHAD | AM58: GRACE SEW | AN58: Level 20 Menara IMC,No.8 Jalan Sultan Ismail | AO58: 50250 | AP58: Kuala Lumpur. | AQ58: Kuala Lumpur | AR58: DTMB | AS58: DEUTSCHE TRUSTEE MALAYSIA BERHAD | AT58: Ms. Soon Lai Ching | AU58: Level 20 Menara IMC,No.8 Jalan Sultan Ismail | AV58: 50250 | AW58: Kuala Lumpur | AX58: Kuala Lumpur. | AY58: B:HLB | AZ58: Short Term Money Market Deposit | BA58: 3 | BB58: 5200000
A59: CSH*140805166 | C59: RDC*MYR*CIMB | D59: RP | E59: 1 | F59: HLGCPSF | G59: 0.0325 | H59: 0 | I59: 5317000 | J59: 5317000 | K59: MYR | L59: -5317000 | M59: -5317000 | N59: 41877 | O59: 41877 | P59: 41877 | Q59: 41878 | R59: RDC | S59: B:CIMB | T59: MAIN-MYR-00100736700 | U59: 1 | V59: 0 | W59: 0 | X59: F | Z59: N/A | AA59: 2 | AB59: 1 | AC59: Viknes | AD59: 0 | AE59: 41877.48142 | AF59: ASTCLK | AG59: 41877.48142 | AH59: ASTCLK | AI59: H4- HONG LEONG CONSUMER PRODUCTS SECTOR FUND | AJ59: 1 | AK59: DF | AL59: CIMB BANK | AM59: N/A | AN59: Level 20 Menara IMC,No.8 Jalan Sultan Ismail | AO59: 50250 | AP59: Kuala Lumpur. | AQ59: Kuala Lumpur | AR59: DTMB | AS59: DEUTSCHE TRUSTEE MALAYSIA BERHAD | AT59: Ms. Soon Lai Ching | AU59: Level 20 Menara IMC,No.8 Jalan Sultan Ismail | AV59: 50250 | AW59: Kuala Lumpur | AX59: Kuala Lumpur. | AY59: B:HLB | AZ59: Short Term Money Market Deposit | BA59: 3 | BB59: 5317000
A60: CSH*140804995 | C60: RDC*MYR*CIMB | D60: RP | E60: 1 | F60: HLGDF | G60: 0.0325 | H60: 2801000 | I60: 0 | J60: 0 | K60: MYR | L60: 0 | M60: 0 | N60: 41877 | O60: 41877 | P60: 41877 | Q60: 41878 | R60: RDC | S60: B:CIMB | T60: MAIN-MYR-00100719088 | U60: 1 | V60: 0 | W60: 0 | X60: F | Z60: N/A | AA60: 2 | AB60: 1 | AD60: 249.4 | AE60: 41877.45649 | AF60: ASTCLK | AG60: 41877.45649 | AH60: ASTCLK | AI60: L5- HONG LEONG DIVIDEND | AJ60: 8 | AK60: DF | AL60: CIMB BANK | AM60: N/A | AN60: Level 20 Menara IMC,No.8 Jalan Sultan Ismail | AO60: 50250 | AP60: Kuala Lumpur. | AQ60: Kuala Lumpur | AR60: DTMB | AS60: DEUTSCHE TRUSTEE MALAYSIA BERHAD | AT60: Ms. Soon Lai Ching | AU60: Level 20 Menara IMC,No.8 Jalan Sultan Ismail | AV60: 50250 | AW60: Kuala Lumpur | AX60: Kuala Lumpur. | AY60: B:HLB | AZ60: Short Term Money Market Deposit | BA60: 3 | BB60: -2801000
A61: CSH*140804996 | C61: RDC*MYR*PBB | D61: RP | E61: 1 | F61: HLGDF | G61: 0.0325 | H61: 1700000 | I61: 0 | J61: 0 | K61: MYR | L61: 0 | M61: 0 | N61: 41877 | O61: 41877 | P61: 41877 | Q61: 41878 | R61: RDC | S61: B:PBB | T61: MAIN-MYR-00100719088 | U61: 1 | V61: 0 | W61: 0 | X61: F | Z61: N/A | AA61: 2 | AB61: 1 | AD61: 151.37 | AE61: 41877.45649 | AF61: ASTCLK | AG61: 41877.45649 | AH61: ASTCLK | AI61: L5- HONG LEONG DIVIDEND | AJ61: 8 | AK61: DF | AL61: PUBLIC BANK BERHAD | AM61: GRACE SEW | AN61: Level 20 Menara IMC,No.8 Jalan Sultan Ismail | AO61: 50250 | AP61: Kuala Lumpur. | AQ61: Kuala Lumpur | AR61: DTMB | AS61: DEUTSCHE TRUSTEE MALAYSIA BERHAD | AT61: Ms. Soon Lai Ching | AU61: Level 20 Menara IMC,No.8 Jalan Sultan Ismail | AV61: 50250 | AW61: Kuala Lumpur | AX61: Kuala Lumpur. | AY61: B:HLB | AZ61: Short Term Money Market Deposit | BA61: 3 | BB61: -1700000
A62: CSH*140805167 | C62: RDC*MYR*PBB | D62: RP | E62: 1 | F62: HLGDF | G62: 0.0325 | H62: 0 | I62: 1700000 | J62: 1700000 | K62: MYR | L62: -1700000 | M62: -1700000 | N62: 41877 | O62: 41877 | P62: 41877 | Q62: 41878 | R62: RDC | S62: B:PBB | T62: MAIN-MYR-00100719088 | U62: 1 | V62: 0 | W62: 0 | X62: F | Z62: N/A | AA62: 2 | AB62: 1 | AC62: Kelvin | AD62: 0 | AE62: 41877.48142 | AF62: ASTCLK | AG62: 41877.48142 | AH62: ASTCLK | AI62: L5- HONG LEONG DIVIDEND | AJ62: 8 | AK62: DF | AL62: PUBLIC BANK BERHAD | AM62: GRACE SEW | AN62: Level 20 Menara IMC,No.8 Jalan Sultan Ismail | AO62: 50250 | AP62: Kuala Lumpur. | AQ62: Kuala Lumpur | AR62: DTMB | AS62: DEUTSCHE TRUSTEE MALAYSIA BERHAD | AT62: Ms. Soon Lai Ching | AU62: Level 20 Menara IMC,No.8 Jalan Sultan Ismail | AV62: 50250 | AW62: Kuala Lumpur | AX62: Kuala Lumpur. | AY62: B:HLB | AZ62: Short Term Money Market Deposit | BA62: 3 | BB62: 1700000
A63: CSH*140805168 | C63: RDC*MYR*CIMB | D63: RP | E63: 1 | F63: HLGDF | G63: 0.0325 | H63: 0 | I63: 2801000 | J63: 2801000 | K63: MYR | L63: -2801000 | M63: -2801000 | N63: 41877 | O63: 41877 | P63: 41877 | Q63: 41878 | R63: RDC | S63: B:CIMB | T63: MAIN-MYR-00100719088 | U63: 1 | V63: 0 | W63: 0 | X63: F | Z63: N/A | AA63: 2 | AB63: 1 | AC63: Viknes | AD63: 0 | AE63: 41877.48142 | AF63: ASTCLK | AG63: 41877.48142 | AH63: ASTCLK | AI63: L5- HONG LEONG DIVIDEND | AJ63: 8 | AK63: DF | AL63: CIMB BANK | AM63: N/A | AN63: Level 20 Menara IMC,No.8 Jalan Sultan Ismail | AO63: 50250 | AP63: Kuala Lumpur. | AQ63: Kuala Lumpur | AR63: DTMB | AS63: DEUTSCHE TRUSTEE MALAYSIA BERHAD | AT63: Ms. Soon Lai Ching | AU63: Level 20 Menara IMC,No.8 Jalan Sultan Ismail | AV63: 50250 | AW63: Kuala Lumpur | AX63: Kuala Lumpur. | AY63: B:HLB | AZ63: Short Term Money Market Deposit | BA63: 3 | BB63: 2801000
A64: CSH*140804997 | C64: RDI*MYR*PBBI | D64: RP | E64: 1 | F64: HLGDM | G64: 0.032 | H64: 1300000 | I64: 0 | J64: 0 | K64: MYR | L64: 0 | M64: 0 | N64: 41877 | O64: 41877 | P64: 41877 | Q64: 41878 | R64: RDI | S64: B:PBBI | T64: MAIN-MYR-00101503293 | U64: 1 | V64: 0 | W64: 0 | X64: F | Z64: N/A | AA64: 2 | AB64: 1 | AD64: 113.97 | AE64: 41877.45649 | AF64: ASTCLK | AG64: 41877.45649 | AH64: ASTCLK | AI64: H9- HONG LEONG DANA MAKMUR | AJ64: 8 | AK64: DF | AL64: PUBLIC ISLAMIC BANK BERHAD | AM64: N/A | AN64: Level 20 Menara IMC,No.8 Jalan Sultan Ismail | AO64: 50250 | AP64: Kuala Lumpur. | AQ64: Kuala Lumpur | AR64: DTMB | AS64: DEUTSCHE TRUSTEE MALAYSIA BERHAD | AT64: Ms. Soon Lai Ching | AU64: Level 20 Menara IMC,No.8 Jalan Sultan Ismail | AV64: 50250 | AW64: Kuala Lumpur | AX64: Kuala Lumpur. | AY64: B:HLIB | AZ64: Short Term Money Market Deposit - Islamic | BA64: 3 | BB64: -1300000
A65: CSH*140804998 | C65: RDI*MYR*RHBI | D65: RP | E65: 1 | F65: HLGDM | G65: 0.032 | H65: 1181000 | I65: 0 | J65: 0 | K65: MYR | L65: 0 | M65: 0 | N65: 41877 | O65: 41877 | P65: 41877 | Q65: 41878 | R65: RDI | S65: B:RHBI | T65: MAIN-MYR-00101503293 | U65: 1 | V65: 0 | W65: 0 | X65: F | Z65: N/A | AA65: 2 | AB65: 1 | AD65: 103.54 | AE65: 41877.4565 | AF65: ASTCLK | AG65: 41877.45649 | AH65: ASTCLK | AI65: H9- HONG LEONG DANA MAKMUR | AJ65: 8 | AK65: DF | AL65: RHB ISLAMIC BANK BERHAD | AM65: N/A | AN65: Level 20 Menara IMC,No.8 Jalan Sultan Ismail | AO65: 50250 | AP65: Kuala Lumpur. | AQ65: Kuala Lumpur | AR65: DTMB | AS65: DEUTSCHE TRUSTEE MALAYSIA BERHAD | AT65: Ms. Soon Lai Ching | AU65: Level 20 Menara IMC,No.8 Jalan Sultan Ismail | AV65: 50250 | AW65: Kuala Lumpur | AX65: Kuala Lumpur. | AY65: B:HLIB | AZ65: Short Term Money Market Deposit - Islamic | BA65: 3 | BB65: -1181000
A66: CSH*140805169 | C66: RDI*MYR*PBBI | D66: RP | E66: 1 | F66: HLGDM | G66: 0.032 | H66: 0 | I66: 1300000 | J66: 1300000 | K66: MYR | L66: -1300000 | M66: -1300000 | N66: 41877 | O66: 41877 | P66: 41877 | Q66: 41878 | R66: RDI | S66: B:PBBI | T66: MAIN-MYR-00101503293 | U66: 1 | V66: 0 | W66: 0 | X66: F | Z66: N/A | AA66: 2 | AB66: 1 | AC66: Hisham | AD66: 0 | AE66: 41877.48142 | AF66: ASTCLK | AG66: 41877.48142 | AH66: ASTCLK | AI66: H9- HONG LEONG DANA MAKMUR | AJ66: 8 | AK66: DF | AL66: PUBLIC ISLAMIC BANK BERHAD | AM66: N/A | AN66: Level 20 Menara IMC,No.8 Jalan Sultan Ismail | AO66: 50250 | AP66: Kuala Lumpur. | AQ66: Kuala Lumpur | AR66: DTMB | AS66: DEUTSCHE TRUSTEE MALAYSIA BERHAD | AT66: Ms. Soon Lai Ching | AU66: Level 20 Menara IMC,No.8 Jalan Sultan Ismail | AV66: 50250 | AW66: Kuala Lumpur | AX66: Kuala Lumpur. | AY66: B:HLIB | AZ66: Short Term Money Market Deposit - Islamic | BA66: 3 | BB66: 1300000
A67: CSH*140805170 | C67: RDI*MYR*RHBI | D67: RP | E67: 1 | F67: HLGDM | G67: 0.032 | H67: 0 | I67: 1126000 | J67: 1126000 | K67: MYR | L67: -1126000 | M67: -1126000 | N67: 41877 | O67: 41877 | P67: 41877 | Q67: 41878 | R67: RDI | S67: B:RHBI | T67: MAIN-MYR-00101503293 | U67: 1 | V67: 0 | W67: 0 | X67: F | Z67: N/A | AA67: 2 | AB67: 1 | AC67: Shima | AD67: 0 | AE67: 41877.48143 | AF67: ASTCLK | AG67: 41877.48143 | AH67: ASTCLK | AI67: H9- HONG LEONG DANA MAKMUR | AJ67: 8 | AK67: DF | AL67: RHB ISLAMIC BANK BERHAD | AM67: N/A | AN67: Level 20 Menara IMC,No.8 Jalan Sultan Ismail | AO67: 50250 | AP67: Kuala Lumpur. | AQ67: Kuala Lumpur | AR67: DTMB | AS67: DEUTSCHE TRUSTEE MALAYSIA BERHAD | AT67: Ms. Soon Lai Ching | AU67: Level 20 Menara IMC,No.8 Jalan Sultan Ismail | AV67: 50250 | AW67: Kuala Lumpur | AX67: Kuala Lumpur. | AY67: B:HLIB | AZ67: Short Term Money Market Deposit - Islamic | BA67: 3 | BB67: 1126000
A68: CSH*140804999 | C68: RDC*MYR*HLINVS | D68: RP | E68: 1 | F68: HLGGBF | G68: 0.0325 | H68: 800000 | I68: 0 | J68: 0 | K68: MYR | L68: 0 | M68: 0 | N68: 41877 | O68: 41877 | P68: 41877 | Q68: 41878 | R68: RDC | S68: B:HLINVSTB | T68: 001-00-328936 | U68: 1 | V68: 0 | W68: 0 | X68: F | Z68: N/A | AA68: 2 | AB68: 1 | AD68: 71.23 | AE68: 41877.4565 | AF68: ASTCLK | AG68: 41877.4565 | AH68: ASTCLK | AI68: U3- HONG LEONG GLOBAL BOND FUND | AJ68: 7 | AK68: DF | AL68: HONG LEONG INVESTMENT BANK | AM68: N/A | AN68: 17th Floor Menara CIMB,Jalan Stesen Sentral 2,Kuala Lumpur Sentral, | AO68: 50470 | AP68: Kuala Lumpur. | AQ68: Kuala Lumpur | AR68: BHLBT | AS68: CIMB COMMERCE TRUSTEE BHD | AT68: Ms. Jeslin Ng | AU68: 17th Floor Menara CIMB,Jalan Stesen Sentral 2,Kuala Lumpur Sentral, | AV68: 50470 | AW68: Kuala Lumpur | AX68: Kuala Lumpur. | AY68: B:HLB | AZ68: Short Term Money Market Deposit | BA68: 3 | BB68: -800000
A69: CSH*140805000 | C69: RDC*MYR*PBB | D69: RP | E69: 1 | F69: HLGGBF | G69: 0.0325 | H69: 900000 | I69: 0 | J69: 0 | K69: MYR | L69: 0 | M69: 0 | N69: 41877 | O69: 41877 | P69: 41877 | Q69: 41878 | R69: RDC | S69: B:PBB | T69: 001-00-328936 | U69: 1 | V69: 0 | W69: 0 | X69: F | Z69: N/A | AA69: 2 | AB69: 1 | AD69: 80.14 | AE69: 41877.4565 | AF69: ASTCLK | AG69: 41877.4565 | AH69: ASTCLK | AI69: U3- HONG LEONG GLOBAL BOND FUND | AJ69: 7 | AK69: DF | AL69: PUBLIC BANK BERHAD | AM69: GRACE SEW | AN69: 17th Floor Menara CIMB,Jalan Stesen Sentral 2,Kuala Lumpur Sentral, | AO69: 50470 | AP69: Kuala Lumpur. | AQ69: Kuala Lumpur | AR69: BHLBT | AS69: CIMB COMMERCE TRUSTEE BHD | AT69: Ms. Jeslin Ng | AU69: 17th Floor Menara CIMB,Jalan Stesen Sentral 2,Kuala Lumpur Sentral, | AV69: 50470 | AW69: Kuala Lumpur | AX69: Kuala Lumpur. | AY69: B:HLB | AZ69: Short Term Money Market Deposit | BA69: 3 | BB69: -900000
A70: CSH*140805171 | C70: RDC*MYR*PBB | D70: RP | E70: 1 | F70: HLGGBF | G70: 0.0325 | H70: 0 | I70: 900000 | J70: 900000 | K70: MYR | L70: -900000 | M70: -900000 | N70: 41877 | O70: 41877 | P70: 41877 | Q70: 41878 | R70: RDC | S70: B:PBB | T70: 001-00-328936 | U70: 1 | V70: 0 | W70: 0 | X70: F | Z70: N/A | AA70: 2 | AB70: 1 | AC70: Kelvin | AD70: 0 | AE70: 41877.48143 | AF70: ASTCLK | AG70: 41877.48143 | AH70: ASTCLK | AI70: U3- HONG LEONG GLOBAL BOND FUND | AJ70: 7 | AK70: DF | AL70: PUBLIC BANK BERHAD | AM70: GRACE SEW | AN70: 17th Floor Menara CIMB,Jalan Stesen Sentral 2,Kuala Lumpur Sentral, | AO70: 50470 | AP70: Kuala Lumpur. | AQ70: Kuala Lumpur | AR70: BHLBT | AS70: CIMB COMMERCE TRUSTEE BHD | AT70: Ms. Jeslin Ng | AU70: 17th Floor Menara CIMB,Jalan Stesen Sentral 2,Kuala Lumpur Sentral, | AV70: 50470 | AW70: Kuala Lumpur | AX70: Kuala Lumpur. | AY70: B:HLB | AZ70: Short Term Money Market Deposit | BA70: 3 | BB70: 900000
A71: CSH*140805172 | C71: RDC*MYR*HLINVS | D71: RP | E71: 1 | F71: HLGGBF | G71: 0.0325 | H71: 0 | I71: 751000 | J71: 751000 | K71: MYR | L71: -751000 | M71: -751000 | N71: 41877 | O71: 41877 | P71: 41877 | Q71: 41878 | R71: RDC | S71: B:HLINVSTB | T71: 001-00-328936 | U71: 1 | V71: 0 | W71: 0 | X71: F | Z71: N/A | AA71: 2 | AB71: 1 | AC71: Sophia | AD71: 0 | AE71: 41877.48143 | AF71: ASTCLK | AG71: 41877.48143 | AH71: ASTCLK | AI71: U3- HONG LEONG GLOBAL BOND FUND | AJ71: 7 | AK71: DF | AL71: HONG LEONG INVESTMENT BANK | AM71: N/A | AN71: 17th Floor Menara CIMB,Jalan Stesen Sentral 2,Kuala Lumpur Sentral, | AO71: 50470 | AP71: Kuala Lumpur. | AQ71: Kuala Lumpur | AR71: BHLBT | AS71: CIMB COMMERCE TRUSTEE BHD | AT71: Ms. Jeslin Ng | AU71: 17th Floor Menara CIMB,Jalan Stesen Sentral 2,Kuala Lumpur Sentral, | AV71: 50470 | AW71: Kuala Lumpur | AX71: Kuala Lumpur. | AY71: B:HLB | AZ71: Short Term Money Market Deposit | BA71: 3 | BB71: 751000
A72: CSH*140805001 | C72: RDC*MYR*CIMB | D72: RP | E72: 1 | F72: HLGGF | G72: 0.0325 | H72: 5000000 | I72: 0 | J72: 0 | K72: MYR | L72: 0 | M72: 0 | N72: 41877 | O72: 41877 | P72: 41877 | Q72: 41878 | R72: RDC | S72: B:CIMB | T72: MAIN-MYR-00100719002 | U72: 1 | V72: 0 | W72: 0 | X72: F | Z72: N/A | AA72: 2 | AB72: 1 | AD72: 445.21 | AE72: 41877.4565 | AF72: ASTCLK | AG72: 41877.4565 | AH72: ASTCLK | AI72: H1- HONG LEONG GROWTH FUND | AJ72: 3 | AK72: DF | AL72: CIMB BANK | AM72: N/A | AN72: Level 20 Menara IMC,No.8 Jalan Sultan Ismail | AO72: 50250 | AP72: Kuala Lumpur. | AQ72: Kuala Lumpur | AR72: DTMB | AS72: DEUTSCHE TRUSTEE MALAYSIA BERHAD | AT72: Ms. Soon Lai Ching | AU72: Level 20 Menara IMC,No.8 Jalan Sultan Ismail | AV72: 50250 | AW72: Kuala Lumpur | AX72: Kuala Lumpur. | AY72: B:HLB | AZ72: Short Term Money Market Deposit | BA72: 3 | BB72: -5000000
A73: CSH*140805002 | C73: RDC*MYR*RHB | D73: RP | E73: 1 | F73: HLGGF | G73: 0.032 | H73: 6520000 | I73: 0 | J73: 0 | K73: MYR | L73: 0 | M73: 0 | N73: 41877 | O73: 41877 | P73: 41877 | Q73: 41878 | R73: RDC | S73: B:RHB | T73: MAIN-MYR-00100719002 | U73: 1 | V73: 0 | W73: 0 | X73: F | Z73: N/A | AA73: 2 | AB73: 1 | AD73: 571.62 | AE73: 41877.4565 | AF73: ASTCLK | AG73: 41877.4565 | AH73: ASTCLK | AI73: H1- HONG LEONG GROWTH FUND | AJ73: 3 | AK73: DF | AL73: RHB BANK | AM73: N/A | AN73: Level 20 Menara IMC,No.8 Jalan Sultan Ismail | AO73: 50250 | AP73: Kuala Lumpur. | AQ73: Kuala Lumpur | AR73: DTMB | AS73: DEUTSCHE TRUSTEE MALAYSIA BERHAD | AT73: Ms. Soon Lai Ching | AU73: Level 20 Menara IMC,No.8 Jalan Sultan Ismail | AV73: 50250 | AW73: Kuala Lumpur | AX73: Kuala Lumpur. | AY73: B:HLB | AZ73: Short Term Money Market Deposit | BA73: 3 | BB73: -6520000
A74: CSH*140805173 | C74: RDC*MYR*CIMB | D74: RP | E74: 1 | F74: HLGGF | G74: 0.0325 | H74: 0 | I74: 5000000 | J74: 5000000 | K74: MYR | L74: -5000000 | M74: -5000000 | N74: 41877 | O74: 41877 | P74: 41877 | Q74: 41878 | R74: RDC | S74: B:CIMB | T74: MAIN-MYR-00100719002 | U74: 1 | V74: 0 | W74: 0 | X74: F | Z74: N/A | AA74: 2 | AB74: 1 | AC74: Viknes | AD74: 0 | AE74: 41877.48143 | AF74: ASTCLK | AG74: 41877.48143 | AH74: ASTCLK | AI74: H1- HONG LEONG GROWTH FUND | AJ74: 3 | AK74: DF | AL74: CIMB BANK | AM74: N/A | AN74: Level 20 Menara IMC,No.8 Jalan Sultan Ismail | AO74: 50250 | AP74: Kuala Lumpur. | AQ74: Kuala Lumpur | AR74: DTMB | AS74: DEUTSCHE TRUSTEE MALAYSIA BERHAD | AT74: Ms. Soon Lai Ching | AU74: Level 20 Menara IMC,No.8 Jalan Sultan Ismail | AV74: 50250 | AW74: Kuala Lumpur | AX74: Kuala Lumpur. | AY74: B:HLB | AZ74: Short Term Money Market Deposit | BA74: 3 | BB74: 5000000
A75: CSH*140805174 | C75: RDC*MYR*RHB | D75: RP | E75: 1 | F75: HLGGF | G75: 0.032 | H75: 0 | I75: 5678000 | J75: 5678000 | K75: MYR | L75: -5678000 | M75: -5678000 | N75: 41877 | O75: 41877 | P75: 41877 | Q75: 41878 | R75: RDC | S75: B:RHB | T75: MAIN-MYR-00100719002 | U75: 1 | V75: 0 | W75: 0 | X75: F | Z75: N/A | AA75: 2 | AB75: 1 | AC75: Farida | AD75: 0 | AE75: 41877.48144 | AF75: ASTCLK | AG75: 41877.48144 | AH75: ASTCLK | AI75: H1- HONG LEONG GROWTH FUND | AJ75: 3 | AK75: DF | AL75: RHB BANK | AM75: N/A | AN75: Level 20 Menara IMC,No.8 Jalan Sultan Ismail | AO75: 50250 | AP75: Kuala Lumpur. | AQ75: Kuala Lumpur | AR75: DTMB | AS75: DEUTSCHE TRUSTEE MALAYSIA BERHAD | AT75: Ms. Soon Lai Ching | AU75: Level 20 Menara IMC,No.8 Jalan Sultan Ismail | AV75: 50250 | AW75: Kuala Lumpur | AX75: Kuala Lumpur. | AY75: B:HLB | AZ75: Short Term Money Market Deposit | BA75: 3 | BB75: 5678000
A76: CSH*140805003 | C76: RDC*MYR*PBB | D76: RP | E76: 1 | F76: HLGGVF | G76: 0.0325 | H76: 973000 | I76: 0 | J76: 0 | K76: MYR | L76: 0 | M76: 0 | N76: 41877 | O76: 41877 | P76: 41877 | Q76: 41878 | R76: RDC | S76: B:PBB | T76: 001-003-20910 | U76: 1 | V76: 0 | W76: 0 | X76: F | Z76: N/A | AA76: 2 | AB76: 1 | AD76: 86.64 | AE76: 41877.45651 | AF76: ASTCLK | AG76: 41877.45651 | AH76: ASTCLK | AI76: G7-HONG LEONG GLOBAL VALUE FUND | AJ76: 7 | AK76: DF | AL76: PUBLIC BANK BERHAD | AM76: GRACE SEW | AN76: 17th Floor Menara CIMB,Jalan Stesen Sentral 2,Kuala Lumpur Sentral, | AO76: 50470 | AP76: Kuala Lumpur. | AQ76: Kuala Lumpur | AR76: BHLBT | AS76: CIMB COMMERCE TRUSTEE BHD | AT76: Ms. Jeslin Ng | AU76: 17th Floor Menara CIMB,Jalan Stesen Sentral 2,Kuala Lumpur Sentral, | AV76: 50470 | AW76: Kuala Lumpur | AX76: Kuala Lumpur. | AY76: B:HLB | AZ76: Short Term Money Market Deposit | BA76: 3 | BB76: -973000
A77: CSH*140805175 | C77: RDC*MYR*PBB | D77: RP | E77: 1 | F77: HLGGVF | G77: 0.0325 | H77: 0 | I77: 968000 | J77: 968000 | K77: MYR | L77: -968000 | M77: -968000 | N77: 41877 | O77: 41877 | P77: 41877 | Q77: 41878 | R77: RDC | S77: B:PBB | T77: 001-003-20910 | U77: 1 | V77: 0 | W77: 0 | X77: F | Z77: N/A | AA77: 2 | AB77: 1 | AC77: Kelvin | AD77: 0 | AE77: 41877.48144 | AF77: ASTCLK | AG77: 41877.48144 | AH77: ASTCLK | AI77: G7-HONG LEONG GLOBAL VALUE FUND | AJ77: 7 | AK77: DF | AL77: PUBLIC BANK BERHAD | AM77: GRACE SEW | AN77: 17th Floor Menara CIMB,Jalan Stesen Sentral 2,Kuala Lumpur Sentral, | AO77: 50470 | AP77: Kuala Lumpur. | AQ77: Kuala Lumpur | AR77: BHLBT | AS77: CIMB COMMERCE TRUSTEE BHD | AT77: Ms. Jeslin Ng | AU77: 17th Floor Menara CIMB,Jalan Stesen Sentral 2,Kuala Lumpur Sentral, | AV77: 50470 | AW77: Kuala Lumpur | AX77: Kuala Lumpur. | AY77: B:HLB | AZ77: Short Term Money Market Deposit | BA77: 3 | BB77: 968000
A78: CSH*140805004 | C78: RDC*MYR*CIMB | D78: RP | E78: 1 | F78: HLGIBF | G78: 0.0325 | H78: 4950000 | I78: 0 | J78: 0 | K78: MYR | L78: 0 | M78: 0 | N78: 41877 | O78: 41877 | P78: 41877 | Q78: 41878 | R78: RDC | S78: B:CIMB | T78: MIAN-MYR-00100720637 | U78: 1 | V78: 0 | W78: 0 | X78: F | Z78: N/A | AA78: 2 | AB78: 1 | AD78: 440.75 | AE78: 41877.45651 | AF78: ASTCLK | AG78: 41877.45651 | AH78: ASTCLK | AI78: L7- HONG LEONG INSTITUTIONAL BOND | AJ78: 9 | AK78: DF | AL78: CIMB BANK | AM78: N/A | AN78: Level 20 Menara IMC,No.8 Jalan Sultan Ismail | AO78: 50250 | AP78: Kuala Lumpur. | AQ78: Kuala Lumpur | AR78: DTMB | AS78: DEUTSCHE TRUSTEE MALAYSIA BERHAD | AT78: Ms. Soon Lai Ching | AU78: Level 20 Menara IMC,No.8 Jalan Sultan Ismail | AV78: 50250 | AW78: Kuala Lumpur | AX78: Kuala Lumpur. | AY78: B:HLB | AZ78: Short Term Money Market Deposit | BA78: 3 | BB78: -4950000
A79: CSH*140805005 | C79: RDC*MYR*HLINVS | D79: RP | E79: 1 | F79: HLGIBF | G79: 0.0325 | H79: 10000000 | I79: 0 | J79: 0 | K79: MYR | L79: 0 | M79: 0 | N79: 41877 | O79: 41877 | P79: 41877 | Q79: 41878 | R79: RDC | S79: B:HLINVSTB | T79: MIAN-MYR-00100720637 | U79: 1 | V79: 0 | W79: 0 | X79: F | Z79: N/A | AA79: 2 | AB79: 1 | AD79: 890.41 | AE79: 41877.45651 | AF79: ASTCLK | AG79: 41877.45651 | AH79: ASTCLK | AI79: L7- HONG LEONG INSTITUTIONAL BOND | AJ79: 9 | AK79: DF | AL79: HONG LEONG INVESTMENT BANK | AM79: N/A | AN79: Level 20 Menara IMC,No.8 Jalan Sultan Ismail | AO79: 50250 | AP79: Kuala Lumpur. | AQ79: Kuala Lumpur | AR79: DTMB | AS79: DEUTSCHE TRUSTEE MALAYSIA BERHAD | AT79: Ms. Soon Lai Ching | AU79: Level 20 Menara IMC,No.8 Jalan Sultan Ismail | AV79: 50250 | AW79: Kuala Lumpur | AX79: Kuala Lumpur. | AY79: B:HLB | AZ79: Short Term Money Market Deposit | BA79: 3 | BB79: -10000000
A80: CSH*140805176 | C80: RDC*MYR*CIMB | D80: RP | E80: 1 | F80: HLGIBF | G80: 0.0325 | H80: 0 | I80: 4951000 | J80: 4951000 | K80: MYR | L80: -4951000 | M80: -4951000 | N80: 41877 | O80: 41877 | P80: 41877 | Q80: 41878 | R80: RDC | S80: B:CIMB | T80: MIAN-MYR-00100720637 | U80: 1 | V80: 0 | W80: 0 | X80: F | Z80: N/A | AA80: 2 | AB80: 1 | AC80: Viknes | AD80: 0 | AE80: 41877.48144 | AF80: ASTCLK | AG80: 41877.48144 | AH80: ASTCLK | AI80: L7- HONG LEONG INSTITUTIONAL BOND | AJ80: 9 | AK80: DF | AL80: CIMB BANK | AM80: N/A | AN80: Level 20 Menara IMC,No.8 Jalan Sultan Ismail | AO80: 50250 | AP80: Kuala Lumpur. | AQ80: Kuala Lumpur | AR80: DTMB | AS80: DEUTSCHE TRUSTEE MALAYSIA BERHAD | AT80: Ms. Soon Lai Ching | AU80: Level 20 Menara IMC,No.8 Jalan Sultan Ismail | AV80: 50250 | AW80: Kuala Lumpur | AX80: Kuala Lumpur. | AY80: B:HLB | AZ80: Short Term Money Market Deposit | BA80: 3 | BB80: 4951000
A81: CSH*140805177 | C81: RDC*MYR*HLINVS | D81: RP | E81: 1 | F81: HLGIBF | G81: 0.0325 | H81: 0 | I81: 10000000 | J81: 10000000 | K81: MYR | L81: -10000000 | M81: -10000000 | N81: 41877 | O81: 41877 | P81: 41877 | Q81: 41878 | R81: RDC | S81: B:HLINVSTB | T81: MIAN-MYR-00100720637 | U81: 1 | V81: 0 | W81: 0 | X81: F | Z81: N/A | AA81: 2 | AB81: 1 | AC81: Sophia | AD81: 0 | AE81: 41877.48144 | AF81: ASTCLK | AG81: 41877.48144 | AH81: ASTCLK | AI81: L7- HONG LEONG INSTITUTIONAL BOND | AJ81: 9 | AK81: DF | AL81: HONG LEONG INVESTMENT BANK | AM81: N/A | AN81: Level 20 Menara IMC,No.8 Jalan Sultan Ismail | AO81: 50250 | AP81: Kuala Lumpur. | AQ81: Kuala Lumpur | AR81: DTMB | AS81: DEUTSCHE TRUSTEE MALAYSIA BERHAD | AT81: Ms. Soon Lai Ching | AU81: Level 20 Menara IMC,No.8 Jalan Sultan Ismail | AV81: 50250 | AW81: Kuala Lumpur | AX81: Kuala Lumpur. | AY81: B:HLB | AZ81: Short Term Money Market Deposit | BA81: 3 | BB81: 10000000
A82: CSH*140805006 | C82: RDI*MYR*OCBCAL | D82: RP | E82: 1 | F82: HLGIIMF | G82: 0.0315 | H82: 7022000 | I82: 0 | J82: 0 | K82: MYR | L82: 0 | M82: 0 | N82: 41877 | O82: 41877 | P82: 41877 | Q82: 41878 | R82: RDI | S82: B:OCBCALA | T82: 001-01-501130 | U82: 1 | V82: 0 | W82: 0 | X82: F | Z82: N/A | AA82: 2 | AB82: 1 | AD82: 606.01 | AE82: 41877.45651 | AF82: ASTCLK | AG82: 41877.45651 | AH82: ASTCLK | AI82: G3- HONG LEONG ISLAMIC INCOME MANAGEMENT FUND | AJ82: 7 | AK82: DF | AL82: OCBC AL-AMIN BANK | AM82: N/A | AN82: 17th Floor Menara CIMB,Jalan Stesen Sentral 2,Kuala Lumpur Sentral, | AO82: 50470 | AP82: Kuala Lumpur. | AQ82: Kuala Lumpur | AR82: BHLBT | AS82: CIMB COMMERCE TRUSTEE BHD | AT82: Ms. Jeslin Ng | AU82: 17th Floor Menara CIMB,Jalan Stesen Sentral 2,Kuala Lumpur Sentral, | AV82: 50470 | AW82: Kuala Lumpur | AX82: Kuala Lumpur. | AY82: B:HLB | AZ82: Short Term Money Market Deposit - Islamic | BA82: 3 | BB82: -7022000
A83: CSH*140805007 | C83: RDI*MYR*PBBI | D83: RP | E83: 1 | F83: HLGIIMF | G83: 0.032 | H83: 3500000 | I83: 0 | J83: 0 | K83: MYR | L83: 0 | M83: 0 | N83: 41877 | O83: 41877 | P83: 41877 | Q83: 41878 | R83: RDI | S83: B:PBBI | T83: 001-01-501130 | U83: 1 | V83: 0 | W83: 0 | X83: F | Z83: N/A | AA83: 2 | AB83: 1 | AD83: 306.85 | AE83: 41877.45652 | AF83: ASTCLK | AG83: 41877.45652 | AH83: ASTCLK | AI83: G3- HONG LEONG ISLAMIC INCOME MANAGEMENT FUND | AJ83: 7 | AK83: DF | AL83: PUBLIC ISLAMIC BANK BERHAD | AM83: N/A | AN83: 17th Floor Menara CIMB,Jalan Stesen Sentral 2,Kuala Lumpur Sentral, | AO83: 50470 | AP83: Kuala Lumpur. | AQ83: Kuala Lumpur | AR83: BHLBT | AS83: CIMB COMMERCE TRUSTEE BHD | AT83: Ms. Jeslin Ng | AU83: 17th Floor Menara CIMB,Jalan Stesen Sentral 2,Kuala Lumpur Sentral, | AV83: 50470 | AW83: Kuala Lumpur | AX83: Kuala Lumpur. | AY83: B:HLB | AZ83: Short Term Money Market Deposit - Islamic | BA83: 3 | BB83: -3500000
A84: CSH*140805178 | C84: RDI*MYR*OCBCAL | D84: RP | E84: 1 | F84: HLGIIMF | G84: 0.0315 | H84: 0 | I84: 7033000 | J84: 7033000 | K84: MYR | L84: -7033000 | M84: -7033000 | N84: 41877 | O84: 41877 | P84: 41877 | Q84: 41878 | R84: RDI | S84: B:OCBCALA | T84: 001-01-501130 | U84: 1 | V84: 0 | W84: 0 | X84: F | Z84: N/A | AA84: 2 | AB84: 1 | AC84: Amir | AD84: 0 | AE84: 41877.48144 | AF84: ASTCLK | AG84: 41877.48144 | AH84: ASTCLK | AI84: G3- HONG LEONG ISLAMIC INCOME MANAGEMENT FUND | AJ84: 7 | AK84: DF | AL84: OCBC AL-AMIN BANK | AM84: N/A | AN84: 17th Floor Menara CIMB,Jalan Stesen Sentral 2,Kuala Lumpur Sentral, | AO84: 50470 | AP84: Kuala Lumpur. | AQ84: Kuala Lumpur | AR84: BHLBT | AS84: CIMB COMMERCE TRUSTEE BHD | AT84: Ms. Jeslin Ng | AU84: 17th Floor Menara CIMB,Jalan Stesen Sentral 2,Kuala Lumpur Sentral, | AV84: 50470 | AW84: Kuala Lumpur | AX84: Kuala Lumpur. | AY84: B:HLB | AZ84: Short Term Money Market Deposit - Islamic | BA84: 3 | BB84: 7033000
A85: CSH*140805179 | C85: RDI*MYR*PBBI | D85: RP | E85: 1 | F85: HLGIIMF | G85: 0.032 | H85: 0 | I85: 3500000 | J85: 3500000 | K85: MYR | L85: -3500000 | M85: -3500000 | N85: 41877 | O85: 41877 | P85: 41877 | Q85: 41878 | R85: RDI | S85: B:PBBI | T85: 001-01-501130 | U85: 1 | V85: 0 | W85: 0 | X85: F | Z85: N/A | AA85: 2 | AB85: 1 | AC85: Hisham | AD85: 0 | AE85: 41877.48145 | AF85: ASTCLK | AG85: 41877.48145 | AH85: ASTCLK | AI85: G3- HONG LEONG ISLAMIC INCOME MANAGEMENT FUND | AJ85: 7 | AK85: DF | AL85: PUBLIC ISLAMIC BANK BERHAD | AM85: N/A | AN85: 17th Floor Menara CIMB,Jalan Stesen Sentral 2,Kuala Lumpur Sentral, | AO85: 50470 | AP85: Kuala Lumpur. | AQ85: Kuala Lumpur | AR85: BHLBT | AS85: CIMB COMMERCE TRUSTEE BHD | AT85: Ms. Jeslin Ng | AU85: 17th Floor Menara CIMB,Jalan Stesen Sentral 2,Kuala Lumpur Sentral, | AV85: 50470 | AW85: Kuala Lumpur | AX85: Kuala Lumpur. | AY85: B:HLB | AZ85: Short Term Money Market Deposit - Islamic | BA85: 3 | BB85: 3500000
A86: CSH*140805008 | C86: FDC*MYR*PBB | D86: FP | E86: 1 | F86: HLGIMF | G86: 0.0355 | H86: 50000000 | I86: 0 | J86: 0 | K86: MYR | L86: 0 | M86: 0 | N86: 41877 | O86: 41877 | P86: 41877 | Q86: 41878 | R86: FDC | S86: B:PBB | T86: 001-00-328565 | U86: 1 | V86: 0 | W86: 0 | X86: F | Z86: N/A | AA86: 2 | AB86: 1 | AD86: 189657.53 | AE86: 41877.45652 | AF86: ASTCLK | AG86: 41877.45652 | AH86: ASTCLK | AI86: U2- HONG LEONG INCOME MANAGEMENT FUND | AJ86: 7 | AK86: DF | AL86: PUBLIC BANK BERHAD | AM86: GRACE SEW | AN86: 17th Floor Menara CIMB,Jalan Stesen Sentral 2,Kuala Lumpur Sentral, | AO86: 50470 | AP86: Kuala Lumpur. | AQ86: Kuala Lumpur | AR86: BHLBT | AS86: CIMB COMMERCE TRUSTEE BHD | AT86: Ms. Jeslin Ng | AU86: 17th Floor Menara CIMB,Jalan Stesen Sentral 2,Kuala Lumpur Sentral, | AV86: 50470 | AW86: Kuala Lumpur | AX86: Kuala Lumpur. | AY86: B:HLB | AZ86: Fixed Deposit | BA86: 3 | BB86: -50000000
A87: CSH*140805009 | C87: RDC*MYR*PBB | D87: RP | E87: 1 | F87: HLGIMF | G87: 0.0355 | H87: 50000000 | I87: 0 | J87: 0 | K87: MYR | L87: 0 | M87: 0 | N87: 41877 | O87: 41877 | P87: 41877 | Q87: 41878 | R87: RDC | S87: B:PBB | T87: 001-00-328565 | U87: 1 | V87: 0 | W87: 0 | X87: F | Z87: N/A | AA87: 2 | AB87: 1 | AD87: 175068.49 | AE87: 41877.45652 | AF87: ASTCLK | AG87: 41877.45652 | AH87: ASTCLK | AI87: U2- HONG LEONG INCOME MANAGEMENT FUND | AJ87: 7 | AK87: DF | AL87: PUBLIC BANK BERHAD | AM87: GRACE SEW | AN87: 17th Floor Menara CIMB,Jalan Stesen Sentral 2,Kuala Lumpur Sentral, | AO87: 50470 | AP87: Kuala Lumpur. | AQ87: Kuala Lumpur | AR87: BHLBT | AS87: CIMB COMMERCE TRUSTEE BHD | AT87: Ms. Jeslin Ng | AU87: 17th Floor Menara CIMB,Jalan Stesen Sentral 2,Kuala Lumpur Sentral, | AV87: 50470 | AW87: Kuala Lumpur | AX87: Kuala Lumpur. | AY87: B:HLB | AZ87: Short Term Money Market Deposit | BA87: 3 | BB87: -50000000
A88: CSH*140805010 | C88: RDC*MYR*PBB | D88: RP | E88: 1 | F88: HLGIMF | G88: 0.036 | H88: 45000000 | I88: 0 | J88: 0 | K88: MYR | L88: 0 | M88: 0 | N88: 41877 | O88: 41877 | P88: 41877 | Q88: 41878 | R88: RDC | S88: B:PBB | T88: 001-00-328565 | U88: 1 | V88: 0 | W88: 0 | X88: F | Z88: N/A | AA88: 2 | AB88: 1 | AD88: 119835.62 | AE88: 41877.45652 | AF88: ASTCLK | AG88: 41877.45652 | AH88: ASTCLK | AI88: U2- HONG LEONG INCOME MANAGEMENT FUND | AJ88: 7 | AK88: DF | AL88: PUBLIC BANK BERHAD | AM88: GRACE SEW | AN88: 17th Floor Menara CIMB,Jalan Stesen Sentral 2,Kuala Lumpur Sentral, | AO88: 50470 | AP88: Kuala Lumpur. | AQ88: Kuala Lumpur | AR88: BHLBT | AS88: CIMB COMMERCE TRUSTEE BHD | AT88: Ms. Jeslin Ng | AU88: 17th Floor Menara CIMB,Jalan Stesen Sentral 2,Kuala Lumpur Sentral, | AV88: 50470 | AW88: Kuala Lumpur | AX88: Kuala Lumpur. | AY88: B:HLB | AZ88: Short Term Money Market Deposit | BA88: 3 | BB88: -45000000
A89: CSH*140805011 | C89: RDC*MYR*RHB | D89: RP | E89: 1 | F89: HLGIMF | G89: 0.0355 | H89: 100000000 | I89: 0 | J89: 0 | K89: MYR | L89: 0 | M89: 0 | N89: 41877 | O89: 41877 | P89: 41877 | Q89: 41878 | R89: RDC | S89: B:RHB | T89: 001-00-328565 | U89: 1 | V89: 0 | W89: 0 | X89: F | Z89: N/A | AA89: 2 | AB89: 1 | AD89: 389041.1 | AE89: 41877.45652 | AF89: ASTCLK | AG89: 41877.45652 | AH89: ASTCLK | AI89: U2- HONG LEONG INCOME MANAGEMENT FUND | AJ89: 7 | AK89: DF | AL89: RHB BANK | AM89: N/A | AN89: 17th Floor Menara CIMB,Jalan Stesen Sentral 2,Kuala Lumpur Sentral, | AO89: 50470 | AP89: Kuala Lumpur. | AQ89: Kuala Lumpur | AR89: BHLBT | AS89: CIMB COMMERCE TRUSTEE BHD | AT89: Ms. Jeslin Ng | AU89: 17th Floor Menara CIMB,Jalan Stesen Sentral 2,Kuala Lumpur Sentral, | AV89: 50470 | AW89: Kuala Lumpur | AX89: Kuala Lumpur. | AY89: B:HLB | AZ89: Short Term Money Market Deposit | BA89: 3 | BB89: -100000000
A90: CSH*140805180 | C90: RDC*MYR*PBB | D90: RP | E90: 1 | F90: HLGIMF | G90: 0.036 | H90: 0 | I90: 70110000 | J90: 70110000 | K90: MYR | L90: -70110000 | M90: -70110000 | N90: 41877 | O90: 41877 | P90: 41877 | Q90: 41906 | R90: RDC | S90: B:PBB | T90: 001-00-328565 | U90: 1 | V90: 0 | W90: 0 | X90: F | Z90: N/A | AA90: 2 | AB90: 29 | AC90: Kelvin | AD90: 0 | AE90: 41877.48145 | AF90: ASTCLK | AG90: 41877.48145 | AH90: ASTCLK | AI90: U2- HONG LEONG INCOME MANAGEMENT FUND | AJ90: 7 | AK90: DF | AL90: PUBLIC BANK BERHAD | AM90: GRACE SEW | AN90: 17th Floor Menara CIMB,Jalan Stesen Sentral 2,Kuala Lumpur Sentral, | AO90: 50470 | AP90: Kuala Lumpur. | AQ90: Kuala Lumpur | AR90: BHLBT | AS90: CIMB COMMERCE TRUSTEE BHD | AT90: Ms. Jeslin Ng | AU90: 17th Floor Menara CIMB,Jalan Stesen Sentral 2,Kuala Lumpur Sentral, | AV90: 50470 | AW90: Kuala Lumpur | AX90: Kuala Lumpur. | AY90: B:HLB | AZ90: Short Term Money Market Deposit | BA90: 3 | BB90: 70110000
A91: CSH*140805181 | C91: RDC*MYR*PBB | D91: RP | E91: 1 | F91: HLGIMF | G91: 0.036 | H91: 0 | I91: 65000000 | J91: 65000000 | K91: MYR | L91: -65000000 | M91: -65000000 | N91: 41877 | O91: 41877 | P91: 41877 | Q91: 41908 | R91: RDC | S91: B:PBB | T91: 001-00-328565 | U91: 1 | V91: 0 | W91: 0 | X91: F | Z91: N/A | AA91: 2 | AB91: 31 | AC91: Kelvin | AD91: 0 | AE91: 41877.48145 | AF91: ASTCLK | AG91: 41877.48145 | AH91: ASTCLK | AI91: U2- HONG LEONG INCOME MANAGEMENT FUND | AJ91: 7 | AK91: DF | AL91: PUBLIC BANK BERHAD | AM91: GRACE SEW | AN91: 17th Floor Menara CIMB,Jalan Stesen Sentral 2,Kuala Lumpur Sentral, | AO91: 50470 | AP91: Kuala Lumpur. | AQ91: Kuala Lumpur | AR91: BHLBT | AS91: CIMB COMMERCE TRUSTEE BHD | AT91: Ms. Jeslin Ng | AU91: 17th Floor Menara CIMB,Jalan Stesen Sentral 2,Kuala Lumpur Sentral, | AV91: 50470 | AW91: Kuala Lumpur | AX91: Kuala Lumpur. | AY91: B:HLB | AZ91: Short Term Money Market Deposit | BA91: 3 | BB91: 65000000
A92: CSH*140805182 | C92: RDC*MYR*RHB | D92: RP | E92: 1 | F92: HLGIMF | G92: 0.0355 | H92: 0 | I92: 45000000 | J92: 45000000 | K92: MYR | L92: -45000000 | M92: -45000000 | N92: 41877 | O92: 41877 | P92: 41877 | Q92: 41907 | R92: RDC | S92: B:RHB | T92: 001-00-328565 | U92: 1 | V92: 0 | W92: 0 | X92: F | Z92: N/A | AA92: 2 | AB92: 30 | AC92: Farida | AD92: 0 | AE92: 41877.48145 | AF92: ASTCLK | AG92: 41877.48145 | AH92: ASTCLK | AI92: U2- HONG LEONG INCOME MANAGEMENT FUND | AJ92: 7 | AK92: DF | AL92: RHB BANK | AM92: N/A | AN92: 17th Floor Menara CIMB,Jalan Stesen Sentral 2,Kuala Lumpur Sentral, | AO92: 50470 | AP92: Kuala Lumpur. | AQ92: Kuala Lumpur | AR92: BHLBT | AS92: CIMB COMMERCE TRUSTEE BHD | AT92: Ms. Jeslin Ng | AU92: 17th Floor Menara CIMB,Jalan Stesen Sentral 2,Kuala Lumpur Sentral, | AV92: 50470 | AW92: Kuala Lumpur | AX92: Kuala Lumpur. | AY92: B:HLB | AZ92: Short Term Money Market Deposit | BA92: 3 | BB92: 45000000
A93: CSH*140805183 | C93: RDC*MYR*RHB | D93: RP | E93: 1 | F93: HLGIMF | G93: 0.0355 | H93: 0 | I93: 45000000 | J93: 45000000 | K93: MYR | L93: -45000000 | M93: -45000000 | N93: 41877 | O93: 41877 | P93: 41877 | Q93: 41906 | R93: RDC | S93: B:RHB | T93: 001-00-328565 | U93: 1 | V93: 0 | W93: 0 | X93: F | Z93: N/A | AA93: 2 | AB93: 29 | AC93: Farida | AD93: 0 | AE93: 41877.48146 | AF93: ASTCLK | AG93: 41877.48146 | AH93: ASTCLK | AI93: U2- HONG LEONG INCOME MANAGEMENT FUND | AJ93: 7 | AK93: DF | AL93: RHB BANK | AM93: N/A | AN93: 17th Floor Menara CIMB,Jalan Stesen Sentral 2,Kuala Lumpur Sentral, | AO93: 50470 | AP93: Kuala Lumpur. | AQ93: Kuala Lumpur | AR93: BHLBT | AS93: CIMB COMMERCE TRUSTEE BHD | AT93: Ms. Jeslin Ng | AU93: 17th Floor Menara CIMB,Jalan Stesen Sentral 2,Kuala Lumpur Sentral, | AV93: 50470 | AW93: Kuala Lumpur | AX93: Kuala Lumpur. | AY93: B:HLB | AZ93: Short Term Money Market Deposit | BA93: 3 | BB93: 45000000
A94: CSH*140805012 | C94: RDI*MYR*PBBI | D94: RP | E94: 1 | F94: HLGMAROF | G94: 0.032 | H94: 2200000 | I94: 0 | J94: 0 | K94: MYR | L94: 0 | M94: 0 | N94: 41877 | O94: 41877 | P94: 41877 | Q94: 41878 | R94: RDI | S94: B:PBBI | T94: MAIN-MYR-00101503310 | U94: 1 | V94: 0 | W94: 0 | X94: F | Z94: N/A | AA94: 2 | AB94: 1 | AD94: 192.88 | AE94: 41877.45653 | AF94: ASTCLK | AG94: 41877.45653 | AH94: ASTCLK | AI94: L3- HONG LEONG DANA MAA'ROF | AJ94: 8 | AK94: DF | AL94: PUBLIC ISLAMIC BANK BERHAD | AM94: N/A | AN94: Level 20 Menara IMC,No.8 Jalan Sultan Ismail | AO94: 50250 | AP94: Kuala Lumpur. | AQ94: Kuala Lumpur | AR94: DTMB | AS94: DEUTSCHE TRUSTEE MALAYSIA BERHAD | AT94: Ms. Soon Lai Ching | AU94: Level 20 Menara IMC,No.8 Jalan Sultan Ismail | AV94: 50250 | AW94: Kuala Lumpur | AX94: Kuala Lumpur. | AY94: B:HLB | AZ94: Short Term Money Market Deposit - Islamic | BA94: 3 | BB94: -2200000
A95: CSH*140805013 | C95: RDI*MYR*RHBI | D95: RP | E95: 1 | F95: HLGMAROF | G95: 0.032 | H95: 2292000 | I95: 0 | J95: 0 | K95: MYR | L95: 0 | M95: 0 | N95: 41877 | O95: 41877 | P95: 41877 | Q95: 41878 | R95: RDI | S95: B:RHBI | T95: MAIN-MYR-00101503310 | U95: 1 | V95: 0 | W95: 0 | X95: F | Z95: N/A | AA95: 2 | AB95: 1 | AD95: 200.94 | AE95: 41877.45653 | AF95: ASTCLK | AG95: 41877.45653 | AH95: ASTCLK | AI95: L3- HONG LEONG DANA MAA'ROF | AJ95: 8 | AK95: DF | AL95: RHB ISLAMIC BANK BERHAD | AM95: N/A | AN95: Level 20 Menara IMC,No.8 Jalan Sultan Ismail | AO95: 50250 | AP95: Kuala Lumpur. | AQ95: Kuala Lumpur | AR95: DTMB | AS95: DEUTSCHE TRUSTEE MALAYSIA BERHAD | AT95: Ms. Soon Lai Ching | AU95: Level 20 Menara IMC,No.8 Jalan Sultan Ismail | AV95: 50250 | AW95: Kuala Lumpur | AX95: Kuala Lumpur. | AY95: B:HLB | AZ95: Short Term Money Market Deposit - Islamic | BA95: 3 | BB95: -2292000
A96: CSH*140805184 | C96: RDI*MYR*PBBI | D96: RP | E96: 1 | F96: HLGMAROF | G96: 0.032 | H96: 0 | I96: 2200000 | J96: 2200000 | K96: MYR | L96: -2200000 | M96: -2200000 | N96: 41877 | O96: 41877 | P96: 41877 | Q96: 41878 | R96: RDI | S96: B:PBBI | T96: MAIN-MYR-00101503310 | U96: 1 | V96: 0 | W96: 0 | X96: F | Z96: N/A | AA96: 2 | AB96: 1 | AC96: Hisham | AD96: 0 | AE96: 41877.48146 | AF96: ASTCLK | AG96: 41877.48146 | AH96: ASTCLK | AI96: L3- HONG LEONG DANA MAA'ROF | AJ96: 8 | AK96: DF | AL96: PUBLIC ISLAMIC BANK BERHAD | AM96: N/A | AN96: Level 20 Menara IMC,No.8 Jalan Sultan Ismail | AO96: 50250 | AP96: Kuala Lumpur. | AQ96: Kuala Lumpur | AR96: DTMB | AS96: DEUTSCHE TRUSTEE MALAYSIA BERHAD | AT96: Ms. Soon Lai Ching | AU96: Level 20 Menara IMC,No.8 Jalan Sultan Ismail | AV96: 50250 | AW96: Kuala Lumpur | AX96: Kuala Lumpur. | AY96: B:HLB | AZ96: Short Term Money Market Deposit - Islamic | BA96: 3 | BB96: 2200000
A97: CSH*140805185 | C97: RDI*MYR*RHBI | D97: RP | E97: 1 | F97: HLGMAROF | G97: 0.032 | H97: 0 | I97: 2261000 | J97: 2261000 | K97: MYR | L97: -2261000 | M97: -2261000 | N97: 41877 | O97: 41877 | P97: 41877 | Q97: 41878 | R97: RDI | S97: B:RHBI | T97: MAIN-MYR-00101503310 | U97: 1 | V97: 0 | W97: 0 | X97: F | Z97: N/A | AA97: 2 | AB97: 1 | AC97: Shima | AD97: 0 | AE97: 41877.48146 | AF97: ASTCLK | AG97: 41877.48146 | AH97: ASTCLK | AI97: L3- HONG LEONG DANA MAA'ROF | AJ97: 8 | AK97: DF | AL97: RHB ISLAMIC BANK BERHAD | AM97: N/A | AN97: Level 20 Menara IMC,No.8 Jalan Sultan Ismail | AO97: 50250 | AP97: Kuala Lumpur. | AQ97: Kuala Lumpur | AR97: DTMB | AS97: DEUTSCHE TRUSTEE MALAYSIA BERHAD | AT97: Ms. Soon Lai Ching | AU97: Level 20 Menara IMC,No.8 Jalan Sultan Ismail | AV97: 50250 | AW97: Kuala Lumpur | AX97: Kuala Lumpur. | AY97: B:HLB | AZ97: Short Term Money Market Deposit - Islamic | BA97: 3 | BB97: 2261000
A98: CSH*140805014 | C98: RDC*MYR*CIMB | D98: RP | E98: 1 | F98: HLGMMF | G98: 0.0325 | H98: 8989000 | I98: 0 | J98: 0 | K98: MYR | L98: 0 | M98: 0 | N98: 41877 | O98: 41877 | P98: 41877 | Q98: 41878 | R98: RDC | S98: B:CIMB | T98: MAIN-MYR-00100736690 | U98: 1 | V98: 0 | W98: 0 | X98: F | Z98: N/A | AA98: 2 | AB98: 1 | AD98: 800.39 | AE98: 41877.45653 | AF98: ASTCLK | AG98: 41877.45653 | AH98: ASTCLK | AI98: L1- HONG LEONG BOND FUND | AJ98: 5 | AK98: DF | AL98: CIMB BANK | AM98: N/A | AN98: Level 20 Menara IMC,No.8 Jalan Sultan Ismail | AO98: 50250 | AP98: Kuala Lumpur. | AQ98: Kuala Lumpur | AR98: DTMB | AS98: DEUTSCHE TRUSTEE MALAYSIA BERHAD | AT98: Ms. Soon Lai Ching | AU98: Level 20 Menara IMC,No.8 Jalan Sultan Ismail | AV98: 50250 | AW98: Kuala Lumpur | AX98: Kuala Lumpur. | AY98: B:HLB | AZ98: Short Term Money Market Deposit | BA98: 3 | BB98: -8989000
A99: CSH*140805186 | C99: RDC*MYR*PBB | D99: RP | E99: 1 | F99: HLGMMF | G99: 0.036 | H99: 0 | I99: 1000000 | J99: 1000000 | K99: MYR | L99: -1000000 | M99: -1000000 | N99: 41877 | O99: 41877 | P99: 41877 | Q99: 41908 | R99: RDC | S99: B:PBB | T99: MAIN-MYR-00100736690 | U99: 1 | V99: 0 | W99: 0 | X99: F | Z99: N/A | AA99: 2 | AB99: 31 | AC99: Kelvin | AD99: 0 | AE99: 41877.48146 | AF99: ASTCLK | AG99: 41877.48146 | AH99: ASTCLK | AI99: L1- HONG LEONG BOND FUND | AJ99: 5 | AK99: DF | AL99: PUBLIC BANK BERHAD | AM99: GRACE SEW | AN99: Level 20 Menara IMC,No.8 Jalan Sultan Ismail | AO99: 50250 | AP99: Kuala Lumpur. | AQ99: Kuala Lumpur | AR99: DTMB | AS99: DEUTSCHE TRUSTEE MALAYSIA BERHAD | AT99: Ms. Soon Lai Ching | AU99: Level 20 Menara IMC,No.8 Jalan Sultan Ismail | AV99: 50250 | AW99: Kuala Lumpur | AX99: Kuala Lumpur. | AY99: B:HLB | AZ99: Short Term Money Market Deposit | BA99: 3 | BB99: 1000000
A100: CSH*140805187 | C100: RDC*MYR*CIMB | D100: RP | E100: 1 | F100: HLGMMF | G100: 0.0325 | H100: 0 | I100: 8092000 | J100: 8092000 | K100: MYR | L100: -8092000 | M100: -8092000 | N100: 41877 | O100: 41877 | P100: 41877 | Q100: 41878 | R100: RDC | S100: B:CIMB | T100: MAIN-MYR-00100736690 | U100: 1 | V100: 0 | W100: 0 | X100: F | Z100: N/A | AA100: 2 | AB100: 1 | AC100: Viknes | AD100: 0 | AE100: 41877.48147 | AF100: ASTCLK | AG100: 41877.48147 | AH100: ASTCLK | AI100: L1- HONG LEONG BOND FUND | AJ100: 5 | AK100: DF | AL100: CIMB BANK | AM100: N/A | AN100: Level 20 Menara IMC,No.8 Jalan Sultan Ismail | AO100: 50250 | AP100: Kuala Lumpur. | AQ100: Kuala Lumpur | AR100: DTMB | AS100: DEUTSCHE TRUSTEE MALAYSIA BERHAD | AT100: Ms. Soon Lai Ching | AU100: Level 20 Menara IMC,No.8 Jalan Sultan Ismail | AV100: 50250 | AW100: Kuala Lumpur | AX100: Kuala Lumpur. | AY100: B:HLB | AZ100: Short Term Money Market Deposit | BA100: 3 | BB100: 8092000
A101: CSH*140805015 | C101: RDC*MYR*HLINVS | D101: RP | E101: 1 | F101: HLGPSF | G101: 0.0325 | H101: 14345000 | I101: 0 | J101: 0 | K101: MYR | L101: 0 | M101: 0 | N101: 41877 | O101: 41877 | P101: 41877 | Q101: 41878 | R101: RDC | S101: B:HLINVSTB | T101: MAIN-MYR-00100719064 | U101: 1 | V101: 0 | W101: 0 | X101: F | Z101: N/A | AA101: 2 | AB101: 1 | AD101: 1277.29 | AE101: 41877.45653 | AF101: ASTCLK | AG101: 41877.45653 | AH101: ASTCLK | AI101: H2- HONG LEONG PENNY STOCK | AJ101: 8 | AK101: DF | AL101: HONG LEONG INVESTMENT BANK | AM101: N/A | AN101: Level 20 Menara IMC,No.8 Jalan Sultan Ismail | AO101: 50250 | AP101: Kuala Lumpur. | AQ101: Kuala Lumpur | AR101: DTMB | AS101: DEUTSCHE TRUSTEE MALAYSIA BERHAD | AT101: Ms. Soon Lai Ching | AU101: Level 20 Menara IMC,No.8 Jalan Sultan Ismail | AV101: 50250 | AW101: Kuala Lumpur | AX101: Kuala Lumpur. | AY101: B:HLB | AZ101: Short Term Money Market Deposit | BA101: 3 | BB101: -14345000
A102: CSH*140805188 | C102: RDC*MYR*HLINVS | D102: RP | E102: 1 | F102: HLGPSF | G102: 0.0325 | H102: 0 | I102: 14432000 | J102: 14432000 | K102: MYR | L102: -14432000 | M102: -14432000 | N102: 41877 | O102: 41877 | P102: 41877 | Q102: 41878 | R102: RDC | S102: B:HLINVSTB | T102: MAIN-MYR-00100719064 | U102: 1 | V102: 0 | W102: 0 | X102: F | Z102: N/A | AA102: 2 | AB102: 1 | AC102: Sophia | AD102: 0 | AE102: 41877.48147 | AF102: ASTCLK | AG102: 41877.48147 | AH102: ASTCLK | AI102: H2- HONG LEONG PENNY STOCK | AJ102: 8 | AK102: DF | AL102: HONG LEONG INVESTMENT BANK | AM102: N/A | AN102: Level 20 Menara IMC,No.8 Jalan Sultan Ismail | AO102: 50250 | AP102: Kuala Lumpur. | AQ102: Kuala Lumpur | AR102: DTMB | AS102: DEUTSCHE TRUSTEE MALAYSIA BERHAD | AT102: Ms. Soon Lai Ching | AU102: Level 20 Menara IMC,No.8 Jalan Sultan Ismail | AV102: 50250 | AW102: Kuala Lumpur | AX102: Kuala Lumpur. | AY102: B:HLB | AZ102: Short Term Money Market Deposit | BA102: 3 | BB102: 14432000
A103: CSH*140805016 | C103: RDC*MYR*PBB | D103: RP | E103: 1 | F103: HLGSF | G103: 0.0325 | H103: 4012000 | I103: 0 | J103: 0 | K103: MYR | L103: 0 | M103: 0 | N103: 41877 | O103: 41877 | P103: 41877 | Q103: 41878 | R103: RDC | S103: B:PBB | T103: MAIN-MYR-00100719105 | U103: 1 | V103: 0 | W103: 0 | X103: F | Z103: N/A | AA103: 2 | AB103: 1 | AD103: 357.23 | AE103: 41877.45654 | AF103: ASTCLK | AG103: 41877.45654 | AH103: ASTCLK | AI103: L6- HONG LEONG STRATEGIC | AJ103: 8 | AK103: DF | AL103: PUBLIC BANK BERHAD | AM103: GRACE SEW | AN103: Level 20 Menara IMC,No.8 Jalan Sultan Ismail | AO103: 50250 | AP103: Kuala Lumpur. | AQ103: Kuala Lumpur | AR103: DTMB | AS103: DEUTSCHE TRUSTEE MALAYSIA BERHAD | AT103: Ms. Soon Lai Ching | AU103: Level 20 Menara IMC,No.8 Jalan Sultan Ismail | AV103: 50250 | AW103: Kuala Lumpur | AX103: Kuala Lumpur. | AY103: B:HLB | AZ103: Short Term Money Market Deposit | BA103: 3 | BB103: -4012000
A104: CSH*140805189 | C104: RDC*MYR*PBB | D104: RP | E104: 1 | F104: HLGSF | G104: 0.0325 | H104: 0 | I104: 4308000 | J104: 4308000 | K104: MYR | L104: -4308000 | M104: -4308000 | N104: 41877 | O104: 41877 | P104: 41877 | Q104: 41878 | R104: RDC | S104: B:PBB | T104: MAIN-MYR-00100719105 | U104: 1 | V104: 0 | W104: 0 | X104: F | Z104: N/A | AA104: 2 | AB104: 1 | AC104: Kelvin | AD104: 0 | AE104: 41877.48147 | AF104: ASTCLK | AG104: 41877.48147 | AH104: ASTCLK | AI104: L6- HONG LEONG STRATEGIC | AJ104: 8 | AK104: DF | AL104: PUBLIC BANK BERHAD | AM104: GRACE SEW | AN104: Level 20 Menara IMC,No.8 Jalan Sultan Ismail | AO104: 50250 | AP104: Kuala Lumpur. | AQ104: Kuala Lumpur | AR104: DTMB | AS104: DEUTSCHE TRUSTEE MALAYSIA BERHAD | AT104: Ms. Soon Lai Ching | AU104: Level 20 Menara IMC,No.8 Jalan Sultan Ismail | AV104: 50250 | AW104: Kuala Lumpur | AX104: Kuala Lumpur. | AY104: B:HLB | AZ104: Short Term Money Market Deposit | BA104: 3 | BB104: 4308000
A105: CSH*140805017 | C105: RDC*MYR*PBB | D105: RP | E105: 1 | F105: HLHKEOF | G105: 0.0325 | H105: 4376000 | I105: 0 | J105: 0 | K105: MYR | L105: 0 | M105: 0 | N105: 41877 | O105: 41877 | P105: 41877 | Q105: 41878 | R105: RDC | S105: B:PBB | T105: MAIN-MYR-00100719040 | U105: 1 | V105: 0 | W105: 0 | X105: F | Z105: N/A | AA105: 2 | AB105: 1 | AD105: 389.64 | AE105: 41877.45654 | AF105: ASTCLK | AG105: 41877.45654 | AH105: ASTCLK | AI105: 040- HONG LEONG HONG KONG EQUITY OPTIMIZER FUND | AJ105: 7 | AK105: DF | AL105: PUBLIC BANK BERHAD | AM105: GRACE SEW | AN105: Level 20 Menara IMC,No.8 Jalan Sultan Ismail | AO105: 50250 | AP105: Kuala Lumpur. | AQ105: Kuala Lumpur | AR105: DTMB | AS105: DEUTSCHE TRUSTEE MALAYSIA BERHAD | AT105: Ms. Soon Lai Ching | AU105: Level 20 Menara IMC,No.8 Jalan Sultan Ismail | AV105: 50250 | AW105: Kuala Lumpur | AX105: Kuala Lumpur. | AY105: B:HLB | AZ105: Short Term Money Market Deposit | BA105: 3 | BB105: -4376000
A106: CSH*140805190 | C106: RDC*MYR*PBB | D106: RP | E106: 1 | F106: HLHKEOF | G106: 0.0325 | H106: 0 | I106: 4383000 | J106: 4383000 | K106: MYR | L106: -4383000 | M106: -4383000 | N106: 41877 | O106: 41877 | P106: 41877 | Q106: 41878 | R106: RDC | S106: B:PBB | T106: MAIN-MYR-00100719040 | U106: 1 | V106: 0 | W106: 0 | X106: F | Z106: N/A | AA106: 2 | AB106: 1 | AC106: Kelvin | AD106: 0 | AE106: 41877.48147 | AF106: ASTCLK | AG106: 41877.48147 | AH106: ASTCLK | AI106: 040- HONG LEONG HONG KONG EQUITY OPTIMIZER FUND | AJ106: 7 | AK106: DF | AL106: PUBLIC BANK BERHAD | AM106: GRACE SEW | AN106: Level 20 Menara IMC,No.8 Jalan Sultan Ismail | AO106: 50250 | AP106: Kuala Lumpur. | AQ106: Kuala Lumpur | AR106: DTMB | AS106: DEUTSCHE TRUSTEE MALAYSIA BERHAD | AT106: Ms. Soon Lai Ching | AU106: Level 20 Menara IMC,No.8 Jalan Sultan Ismail | AV106: 50250 | AW106: Kuala Lumpur | AX106: Kuala Lumpur. | AY106: B:HLB | AZ106: Short Term Money Market Deposit | BA106: 3 | BB106: 4383000
A107: CSH*140805018 | C107: RDI*MYR*PBBI | D107: RP | E107: 1 | F107: HLICMF | G107: 0.0323 | H107: 5457000 | I107: 0 | J107: 0 | K107: MYR | L107: 0 | M107: 0 | N107: 41877 | O107: 41877 | P107: 41877 | Q107: 41878 | R107: RDI | S107: B:PBBI | T107: MAIN-MYR-00101503736 | U107: 1 | V107: 0 | W107: 0 | X107: F | Z107: N/A | AA107: 2 | AB107: 1 | AD107: 3380.35 | AE107: 41877.45654 | AF107: ASTCLK | AG107: 41877.45654 | AH107: ASTCLK | AI107: 044-HONG LEONG ISLAMIC CASH MANAGEMENT FUND | AJ107: 7 | AK107: DF | AL107: PUBLIC ISLAMIC BANK BERHAD | AM107: N/A | AN107: Level 20 Menara IMC,No.8 Jalan Sultan Ismail | AO107: 50250 | AP107: Kuala Lumpur. | AQ107: Kuala Lumpur | AR107: DTMB | AS107: DEUTSCHE TRUSTEE MALAYSIA BERHAD | AT107: Ms. Soon Lai Ching | AU107: Level 20 Menara IMC,No.8 Jalan Sultan Ismail | AV107: 50250 | AW107: Kuala Lumpur | AX107: Kuala Lumpur. | AY107: B:HLIB | AZ107: Short Term Money Market Deposit - Islamic | BA107: 3 | BB107: -5457000
A108: CSH*140805191 | C108: RDI*MYR*CIMBI | D108: RP | E108: 1 | F108: HLICMF | G108: 0.033 | H108: 0 | I108: 5457000 | J108: 5457000 | K108: MYR | L108: -5457000 | M108: -5457000 | N108: 41877 | O108: 41877 | P108: 41877 | Q108: 41884 | R108: RDI | S108: B:CIMBI | T108: MAIN-MYR-00101503736 | U108: 1 | V108: 0 | W108: 0 | X108: F | Z108: N/A | AA108: 2 | AB108: 7 | AC108: Fatin | AD108: 0 | AE108: 41877.48147 | AF108: ASTCLK | AG108: 41877.48147 | AH108: ASTCLK | AI108: 044-HONG LEONG ISLAMIC CASH MANAGEMENT FUND | AJ108: 7 | AK108: DF | AL108: CIMB ISLAMIC BANK | AM108: N/A | AN108: Level 20 Menara IMC,No.8 Jalan Sultan Ismail | AO108: 50250 | AP108: Kuala Lumpur. | AQ108: Kuala Lumpur | AR108: DTMB | AS108: DEUTSCHE TRUSTEE MALAYSIA BERHAD | AT108: Ms. Soon Lai Ching | AU108: Level 20 Menara IMC,No.8 Jalan Sultan Ismail | AV108: 50250 | AW108: Kuala Lumpur | AX108: Kuala Lumpur. | AY108: B:HLIB | AZ108: Short Term Money Market Deposit - Islamic | BA108: 3 | BB108: 5457000
A109: CSH*140805019 | C109: RDI*MYR*PBBI | D109: RP | E109: 1 | F109: HLIIIMFII | G109: 0.032 | H109: 6513000 | I109: 0 | J109: 0 | K109: MYR | L109: 0 | M109: 0 | N109: 41877 | O109: 41877 | P109: 41877 | Q109: 41878 | R109: RDI | S109: B:PBBI | T109: MAIN-MYR-00101503664 | U109: 1 | V109: 0 | W109: 0 | X109: F | Z109: N/A | AA109: 2 | AB109: 1 | AD109: 571 | AE109: 41877.45654 | AF109: ASTCLK | AG109: 41877.45654 | AH109: ASTCLK | AI109: 042-HL ISLAMIC INSTITUTIONAL INC MGT FUND II | AJ109: 7 | AK109: DF | AL109: PUBLIC ISLAMIC BANK BERHAD | AM109: N/A | AN109: Level 20 Menara IMC,No.8 Jalan Sultan Ismail | AO109: 50250 | AP109: Kuala Lumpur. | AQ109: Kuala Lumpur | AR109: DTMB | AS109: DEUTSCHE TRUSTEE MALAYSIA BERHAD | AT109: Ms. Soon Lai Ching | AU109: Level 20 Menara IMC,No.8 Jalan Sultan Ismail | AV109: 50250 | AW109: Kuala Lumpur | AX109: Kuala Lumpur. | AY109: B:HLIB | AZ109: Short Term Money Market Deposit - Islamic | BA109: 3 | BB109: -6513000
A110: CSH*140805020 | C110: RDI*MYR*RHBI | D110: RP | E110: 1 | F110: HLIIIMFII | G110: 0.032 | H110: 1500000 | I110: 0 | J110: 0 | K110: MYR | L110: 0 | M110: 0 | N110: 41877 | O110: 41877 | P110: 41877 | Q110: 41878 | R110: RDI | S110: B:RHBI | T110: MAIN-MYR-00101503664 | U110: 1 | V110: 0 | W110: 0 | X110: F | Z110: N/A | AA110: 2 | AB110: 1 | AD110: 131.51 | AE110: 41877.45655 | AF110: ASTCLK | AG110: 41877.45655 | AH110: ASTCLK | AI110: 042-HL ISLAMIC INSTITUTIONAL INC MGT FUND II | AJ110: 7 | AK110: DF | AL110: RHB ISLAMIC BANK BERHAD | AM110: N/A | AN110: Level 20 Menara IMC,No.8 Jalan Sultan Ismail | AO110: 50250 | AP110: Kuala Lumpur. | AQ110: Kuala Lumpur | AR110: DTMB | AS110: DEUTSCHE TRUSTEE MALAYSIA BERHAD | AT110: Ms. Soon Lai Ching | AU110: Level 20 Menara IMC,No.8 Jalan Sultan Ismail | AV110: 50250 | AW110: Kuala Lumpur | AX110: Kuala Lumpur. | AY110: B:HLIB | AZ110: Short Term Money Market Deposit - Islamic | BA110: 3 | BB110: -1500000
A111: CSH*140805192 | C111: RDI*MYR*PBBI | D111: RP | E111: 1 | F111: HLIIIMFII | G111: 0.032 | H111: 0 | I111: 6514000 | J111: 6514000 | K111: MYR | L111: -6514000 | M111: -6514000 | N111: 41877 | O111: 41877 | P111: 41877 | Q111: 41878 | R111: RDI | S111: B:PBBI | T111: MAIN-MYR-00101503664 | U111: 1 | V111: 0 | W111: 0 | X111: F | Z111: N/A | AA111: 2 | AB111: 1 | AC111: Hisham | AD111: 0 | AE111: 41877.48148 | AF111: ASTCLK | AG111: 41877.48148 | AH111: ASTCLK | AI111: 042-HL ISLAMIC INSTITUTIONAL INC MGT FUND II | AJ111: 7 | AK111: DF | AL111: PUBLIC ISLAMIC BANK BERHAD | AM111: N/A | AN111: Level 20 Menara IMC,No.8 Jalan Sultan Ismail | AO111: 50250 | AP111: Kuala Lumpur. | AQ111: Kuala Lumpur | AR111: DTMB | AS111: DEUTSCHE TRUSTEE MALAYSIA BERHAD | AT111: Ms. Soon Lai Ching | AU111: Level 20 Menara IMC,No.8 Jalan Sultan Ismail | AV111: 50250 | AW111: Kuala Lumpur | AX111: Kuala Lumpur. | AY111: B:HLIB | AZ111: Short Term Money Market Deposit - Islamic | BA111: 3 | BB111: 6514000
A112: CSH*140805193 | C112: RDI*MYR*RHBI | D112: RP | E112: 1 | F112: HLIIIMFII | G112: 0.032 | H112: 0 | I112: 1500000 | J112: 1500000 | K112: MYR | L112: -1500000 | M112: -1500000 | N112: 41877 | O112: 41877 | P112: 41877 | Q112: 41878 | R112: RDI | S112: B:RHBI | T112: MAIN-MYR-00101503664 | U112: 1 | V112: 0 | W112: 0 | X112: F | Z112: N/A | AA112: 2 | AB112: 1 | AC112: Shima | AD112: 0 | AE112: 41877.48148 | AF112: ASTCLK | AG112: 41877.48148 | AH112: ASTCLK | AI112: 042-HL ISLAMIC INSTITUTIONAL INC MGT FUND II | AJ112: 7 | AK112: DF | AL112: RHB ISLAMIC BANK BERHAD | AM112: N/A | AN112: Level 20 Menara IMC,No.8 Jalan Sultan Ismail | AO112: 50250 | AP112: Kuala Lumpur. | AQ112: Kuala Lumpur | AR112: DTMB | AS112: DEUTSCHE TRUSTEE MALAYSIA BERHAD | AT112: Ms. Soon Lai Ching | AU112: Level 20 Menara IMC,No.8 Jalan Sultan Ismail | AV112: 50250 | AW112: Kuala Lumpur | AX112: Kuala Lumpur. | AY112: B:HLIB | AZ112: Short Term Money Market Deposit - Islamic | BA112: 3 | BB112: 1500000
A113: CSH*140805021 | C113: RDC*MYR*HLINVS | D113: RP | E113: 1 | F113: HLWBoF | G113: 0.0325 | H113: 18977000 | I113: 0 | J113: 0 | K113: MYR | L113: 0 | M113: 0 | N113: 41877 | O113: 41877 | P113: 41877 | Q113: 41878 | R113: RDC | S113: B:HLINVSTB | T113: MAIN-MYR-00100879337 | U113: 1 | V113: 0 | W113: 0 | X113: F | Z113: N/A | AA113: 2 | AB113: 1 | AD113: 1689.73 | AE113: 41877.45655 | AF113: ASTCLK | AG113: 41877.45655 | AH113: ASTCLK | AI113: 043-HONG LEONG WHOLESALE BOND FUND | AJ113: 7 | AK113: DF | AL113: HONG LEONG INVESTMENT BANK | AM113: N/A | AN113: Level 20 Menara IMC,No.8 Jalan Sultan Ismail | AO113: 50250 | AP113: Kuala Lumpur. | AQ113: Kuala Lumpur | AR113: DTMB | AS113: DEUTSCHE TRUSTEE MALAYSIA BERHAD | AT113: Ms. Soon Lai Ching | AU113: Level 20 Menara IMC,No.8 Jalan Sultan Ismail | AV113: 50250 | AW113: Kuala Lumpur | AX113: Kuala Lumpur. | AY113: B:HLB | AZ113: Short Term Money Market Deposit | BA113: 3 | BB113: -18977000
A114: CSH*140805194 | C114: RDC*MYR*HLINVS | D114: RP | E114: 1 | F114: HLWBoF | G114: 0.0325 | H114: 0 | I114: 18979000 | J114: 18979000 | K114: MYR | L114: -18979000 | M114: -18979000 | N114: 41877 | O114: 41877 | P114: 41877 | Q114: 41878 | R114: RDC | S114: B:HLINVSTB | T114: MAIN-MYR-00100879337 | U114: 1 | V114: 0 | W114: 0 | X114: F | Z114: N/A | AA114: 2 | AB114: 1 | AC114: Sophia | AD114: 0 | AE114: 41877.48148 | AF114: ASTCLK | AG114: 41877.48148 | AH114: ASTCLK | AI114: 043-HONG LEONG WHOLESALE BOND FUND | AJ114: 7 | AK114: DF | AL114: HONG LEONG INVESTMENT BANK | AM114: N/A | AN114: Level 20 Menara IMC,No.8 Jalan Sultan Ismail | AO114: 50250 | AP114: Kuala Lumpur. | AQ114: Kuala Lumpur | AR114: DTMB | AS114: DEUTSCHE TRUSTEE MALAYSIA BERHAD | AT114: Ms. Soon Lai Ching | AU114: Level 20 Menara IMC,No.8 Jalan Sultan Ismail | AV114: 50250 | AW114: Kuala Lumpur | AX114: Kuala Lumpur. | AY114: B:HLB | AZ114: Short Term Money Market Deposit | BA114: 3 | BB114: 18979000

Sheet Report (hidden)
P2: ="Prepared By :" & Userid -> Prepared By :
P3: Time Stamp :
P4: Check By :
P5: Approved By :
C6: ="Placement Detials As At " & TEXT(ValueDate,"dd-MMM-Yyyy") -> Placement Detials As At 02-Oct-2019
C8: Fund Code | D8: Fund Name | E8: Maturity (Principle) | F8: Maturity (Profit Due) | G8: Placement Adjustment | H8: Placement | I8: Rate (%) | J8: Tenure (D) | K8: Placement Type | L8: Counter Party Name | M8: Trade Date | N8: Maturity Date | O8: Interest Due | P8: Account Number | Q8: Trustee / Nominee | R8: Dealer
C10: =ReportIn!F2 -> 1073 | D10: =ReportIn!AI2 -> (1073) - YAYASAN SABAH | E10: =ReportIn!H2 -> 847000 | F10: =ReportIn!AD2 -> 75.42 | G10: =ReportIn!BB2 -> -847000 | H10: =ReportIn!I2 -> 0 | I10: =ReportIn!G2 -> 0.0325 | J10: =ReportIn!AB2:AB2 -> 1 | K10: =ReportIn!AZ2 -> Short Term Money Market Deposit | L10: =ReportIn!AL2 -> PUBLIC BANK BERHAD | M10: =ReportIn!N2 -> 41877 | N10: =ReportIn!Q2 -> 41878 | O10: =ROUND(H10*J10*I10/VLOOKUP(ReportIn!C2,aaCshSecurityPdf!A:E,5,0),2) ->  | P10: =ReportIn!T2 -> DB-MYR-0022376000 | Q10: =ReportIn!AR2 -> DBNOMINEETSB | R10: =ReportIn!AC2 -> 
C11: =ReportIn!F3 -> 1073 | D11: =ReportIn!AI3 -> (1073) - YAYASAN SABAH | E11: =ReportIn!H3 -> 0 | F11: =ReportIn!AD3 -> 0 | G11: =ReportIn!BB3 -> 850000 | H11: =ReportIn!I3 -> 850000 | I11: =ReportIn!G3 -> 0.0325 | J11: =ReportIn!AB3:AB3 -> 1 | K11: =ReportIn!AZ3 -> Short Term Money Market Deposit | L11: =ReportIn!AL3 -> PUBLIC BANK BERHAD | M11: =ReportIn!N3 -> 41877 | N11: =ReportIn!Q3 -> 41878 | O11: =ROUND(H11*J11*I11/VLOOKUP(ReportIn!C3,aaCshSecurityPdf!A:E,5,0),2) ->  | P11: =ReportIn!T3 -> DB-MYR-0022376000 | Q11: =ReportIn!AR3 -> DBNOMINEETSB | R11: =ReportIn!AC3 -> Kelvin
C12: =ReportIn!F4 -> 1081 | D12: =ReportIn!AI4 -> (1081) - JOHN EDWIN DIXON | E12: =ReportIn!H4 -> 672000 | F12: =ReportIn!AD4 -> 59.84 | G12: =ReportIn!BB4 -> -672000 | H12: =ReportIn!I4 -> 0 | I12: =ReportIn!G4 -> 0.0325 | J12: =ReportIn!AB4:AB4 -> 1 | K12: =ReportIn!AZ4 -> Short Term Money Market Deposit | L12: =ReportIn!AL4 -> PUBLIC BANK BERHAD | M12: =ReportIn!N4 -> 41877 | N12: =ReportIn!Q4 -> 41878 | O12: =ROUND(H12*J12*I12/VLOOKUP(ReportIn!C4,aaCshSecurityPdf!A:E,5,0),2) ->  | P12: =ReportIn!T4 -> DB-MYR-0022624000 | Q12: =ReportIn!AR4 -> DBNOMINEEASB | R12: =ReportIn!AC4 -> 
C13: =ReportIn!F5 -> 1081 | D13: =ReportIn!AI5 -> (1081) - JOHN EDWIN DIXON | E13: =ReportIn!H5 -> 0 | F13: =ReportIn!AD5 -> 0 | G13: =ReportIn!BB5 -> 675000 | H13: =ReportIn!I5 -> 675000 | I13: =ReportIn!G5 -> 0.0325 | J13: =ReportIn!AB5:AB5 -> 1 | K13: =ReportIn!AZ5 -> Short Term Money Market Deposit | L13: =ReportIn!AL5 -> PUBLIC BANK BERHAD | M13: =ReportIn!N5 -> 41877 | N13: =ReportIn!Q5 -> 41878 | O13: =ROUND(H13*J13*I13/VLOOKUP(ReportIn!C5,aaCshSecurityPdf!A:E,5,0),2) ->  | P13: =ReportIn!T5 -> DB-MYR-0022624000 | Q13: =ReportIn!AR5 -> DBNOMINEEASB | R13: =ReportIn!AC5 -> Kelvin
C14: =ReportIn!F6 -> 1084 | D14: =ReportIn!AI6 -> (1084) - Y. USAHAWAN BUMIPUTRA | E14: =ReportIn!H6 -> 4861000 | F14: =ReportIn!AD6 -> 432.83 | G14: =ReportIn!BB6 -> -4861000 | H14: =ReportIn!I6 -> 0 | I14: =ReportIn!G6 -> 0.0325 | J14: =ReportIn!AB6:AB6 -> 1 | K14: =ReportIn!AZ6 -> Short Term Money Market Deposit | L14: =ReportIn!AL6 -> PUBLIC BANK BERHAD | M14: =ReportIn!N6 -> 41877 | N14: =ReportIn!Q6 -> 41878 | O14: =ROUND(H14*J14*I14/VLOOKUP(ReportIn!C6,aaCshSecurityPdf!A:E,5,0),2) ->  | P14: =ReportIn!T6 -> DB-MYR-0022392000 | Q14: =ReportIn!AR6 -> DBNOMINEETSB | R14: =ReportIn!AC6 -> 
C15: =ReportIn!F7 -> 1084 | D15: =ReportIn!AI7 -> (1084) - Y. USAHAWAN BUMIPUTRA | E15: =ReportIn!H7 -> 0 | F15: =ReportIn!AD7 -> 0 | G15: =ReportIn!BB7 -> 4878000 | H15: =ReportIn!I7 -> 4878000 | I15: =ReportIn!G7 -> 0.0325 | J15: =ReportIn!AB7:AB7 -> 1 | K15: =ReportIn!AZ7 -> Short Term Money Market Deposit | L15: =ReportIn!AL7 -> PUBLIC BANK BERHAD | M15: =ReportIn!N7 -> 41877 | N15: =ReportIn!Q7 -> 41878 | O15: =ROUND(H15*J15*I15/VLOOKUP(ReportIn!C7,aaCshSecurityPdf!A:E,5,0),2) ->  | P15: =ReportIn!T7 -> DB-MYR-0022392000 | Q15: =ReportIn!AR7 -> DBNOMINEETSB | R15: =ReportIn!AC7 -> Kelvin
C16: =ReportIn!F8 -> 1085 | D16: =ReportIn!AI8 -> (1085) - PRG PERTUKARAN FELLOWSHIP PM M'SIA | E16: =ReportIn!H8 -> 7138000 | F16: =ReportIn!AD8 -> 635.58 | G16: =ReportIn!BB8 -> -7138000 | H16: =ReportIn!I8 -> 0 | I16: =ReportIn!G8 -> 0.0325 | J16: =ReportIn!AB8:AB8 -> 1 | K16: =ReportIn!AZ8 -> Short Term Money Market Deposit | L16: =ReportIn!AL8 -> PUBLIC BANK BERHAD | M16: =ReportIn!N8 -> 41877 | N16: =ReportIn!Q8 -> 41878 | O16: =ROUND(H16*J16*I16/VLOOKUP(ReportIn!C8,aaCshSecurityPdf!A:E,5,0),2) ->  | P16: =ReportIn!T8 -> DB-MYR-0022426000 | Q16: =ReportIn!AR8 -> DBNOMINEETSB | R16: =ReportIn!AC8 -> 
C17: =ReportIn!F9 -> 1085 | D17: =ReportIn!AI9 -> (1085) - PRG PERTUKARAN FELLOWSHIP PM M'SIA | E17: =ReportIn!H9 -> 0 | F17: =ReportIn!AD9 -> 0 | G17: =ReportIn!BB9 -> 7161000 | H17: =ReportIn!I9 -> 7161000 | I17: =ReportIn!G9 -> 0.0325 | J17: =ReportIn!AB9:AB9 -> 1 | K17: =ReportIn!AZ9 -> Short Term Money Market Deposit | L17: =ReportIn!AL9 -> PUBLIC BANK BERHAD | M17: =ReportIn!N9 -> 41877 | N17: =ReportIn!Q9 -> 41878 | O17: =ROUND(H17*J17*I17/VLOOKUP(ReportIn!C9,aaCshSecurityPdf!A:E,5,0),2) ->  | P17: =ReportIn!T9 -> DB-MYR-0022426000 | Q17: =ReportIn!AR9 -> DBNOMINEETSB | R17: =ReportIn!AC9 -> Kelvin
C18: =ReportIn!F10 -> 1089 | D18: =ReportIn!AI10 -> (1089) - GIBRALTAR BSN LIFE BERHAD (LIFE-PAR) | E18: =ReportIn!H10 -> 3551000 | F18: =ReportIn!AD10 -> 316.18 | G18: =ReportIn!BB10 -> -3551000 | H18: =ReportIn!I10 -> 0 | I18: =ReportIn!G10 -> 0.0325 | J18: =ReportIn!AB10:AB10 -> 1 | K18: =ReportIn!AZ10 -> Short Term Money Market Deposit | L18: =ReportIn!AL10 -> PUBLIC BANK BERHAD | M18: =ReportIn!N10 -> 41877 | N18: =ReportIn!Q10 -> 41878 | O18: =ROUND(H18*J18*I18/VLOOKUP(ReportIn!C10,aaCshSecurityPdf!A:E,5,0),2) ->  | P18: =ReportIn!T10 -> DB-MYR-0022459000 | Q18: =ReportIn!AR10 -> DBNOMINEETSB | R18: =ReportIn!AC10 -> 
C19: =ReportIn!F11 -> 1089 | D19: =ReportIn!AI11 -> (1089) - GIBRALTAR BSN LIFE BERHAD (LIFE-PAR) | E19: =ReportIn!H11 -> 0 | F19: =ReportIn!AD11 -> 0 | G19: =ReportIn!BB11 -> 3563000 | H19: =ReportIn!I11 -> 3563000 | I19: =ReportIn!G11 -> 0.0325 | J19: =ReportIn!AB11:AB11 -> 1 | K19: =ReportIn!AZ11 -> Short Term Money Market Deposit | L19: =ReportIn!AL11 -> PUBLIC BANK BERHAD | M19: =ReportIn!N11 -> 41877 | N19: =ReportIn!Q11 -> 41878 | O19: =ROUND(H19*J19*I19/VLOOKUP(ReportIn!C11,aaCshSecurityPdf!A:E,5,0),2) ->  | P19: =ReportIn!T11 -> DB-MYR-0022459000 | Q19: =ReportIn!AR11 -> DBNOMINEETSB | R19: =ReportIn!AC11 -> Kelvin
C20: =ReportIn!F12 -> 1090 | D20: =ReportIn!AI12 -> (1090)-GIBRALTAR BSN LIFE BERHAD (LIFE - NON PAR) | E20: =ReportIn!H12 -> 14441000 | F20: =ReportIn!AD12 -> 1285.84 | G20: =ReportIn!BB12 -> -14441000 | H20: =ReportIn!I12 -> 0 | I20: =ReportIn!G12 -> 0.0325 | J20: =ReportIn!AB12:AB12 -> 1 | K20: =ReportIn!AZ12 -> Short Term Money Market Deposit | L20: =ReportIn!AL12 -> PUBLIC BANK BERHAD | M20: =ReportIn!N12 -> 41877 | N20: =ReportIn!Q12 -> 41878 | O20: =ROUND(H20*J20*I20/VLOOKUP(ReportIn!C12,aaCshSecurityPdf!A:E,5,0),2) ->  | P20: =ReportIn!T12 -> DB-MYR-0022475000 | Q20: =ReportIn!AR12 -> DBNOMINEETSB | R20: =ReportIn!AC12 -> 
C21: =ReportIn!F13 -> 1090 | D21: =ReportIn!AI13 -> (1090)-GIBRALTAR BSN LIFE BERHAD (LIFE - NON PAR) | E21: =ReportIn!H13 -> 0 | F21: =ReportIn!AD13 -> 0 | G21: =ReportIn!BB13 -> 14456000 | H21: =ReportIn!I13 -> 14456000 | I21: =ReportIn!G13 -> 0.0325 | J21: =ReportIn!AB13:AB13 -> 1 | K21: =ReportIn!AZ13 -> Short Term Money Market Deposit | L21: =ReportIn!AL13 -> PUBLIC BANK BERHAD | M21: =ReportIn!N13 -> 41877 | N21: =ReportIn!Q13 -> 41878 | O21: =ROUND(H21*J21*I21/VLOOKUP(ReportIn!C13,aaCshSecurityPdf!A:E,5,0),2) ->  | P21: =ReportIn!T13 -> DB-MYR-0022475000 | Q21: =ReportIn!AR13 -> DBNOMINEETSB | R21: =ReportIn!AC13 -> Kelvin
C22: =ReportIn!F14 -> 1093a | D22: =ReportIn!AI14 -> (1093a)-GIBRALTAR BSN LIFE BERHAD(LIFEFUND-PARPIF) | E22: =ReportIn!H14 -> 4451000 | F22: =ReportIn!AD14 -> 396.32 | G22: =ReportIn!BB14 -> -4451000 | H22: =ReportIn!I14 -> 0 | I22: =ReportIn!G14 -> 0.0325 | J22: =ReportIn!AB14:AB14 -> 1 | K22: =ReportIn!AZ14 -> Short Term Money Market Deposit | L22: =ReportIn!AL14 -> PUBLIC BANK BERHAD | M22: =ReportIn!N14 -> 41877 | N22: =ReportIn!Q14 -> 41878 | O22: =ROUND(H22*J22*I22/VLOOKUP(ReportIn!C14,aaCshSecurityPdf!A:E,5,0),2) ->  | P22: =ReportIn!T14 -> DB-MYR-0022483000 | Q22: =ReportIn!AR14 -> DBNOMINEETSB | R22: =ReportIn!AC14 -> 
C23: =ReportIn!F15 -> 1093a | D23: =ReportIn!AI15 -> (1093a)-GIBRALTAR BSN LIFE BERHAD(LIFEFUND-PARPIF) | E23: =ReportIn!H15 -> 0 | F23: =ReportIn!AD15 -> 0 | G23: =ReportIn!BB15 -> 4467000 | H23: =ReportIn!I15 -> 4467000 | I23: =ReportIn!G15 -> 0.0325 | J23: =ReportIn!AB15:AB15 -> 1 | K23: =ReportIn!AZ15 -> Short Term Money Market Deposit | L23: =ReportIn!AL15 -> PUBLIC BANK BERHAD | M23: =ReportIn!N15 -> 41877 | N23: =ReportIn!Q15 -> 41878 | O23: =ROUND(H23*J23*I23/VLOOKUP(ReportIn!C15,aaCshSecurityPdf!A:E,5,0),2) ->  | P23: =ReportIn!T15 -> DB-MYR-0022483000 | Q23: =ReportIn!AR15 -> DBNOMINEETSB | R23: =ReportIn!AC15 -> Kelvin
C24: =ReportIn!F16 -> 1095 | D24: =ReportIn!AI16 -> TAN SRI (DR) LIM GOH TONG ENDOWMENT FUND-UPM | E24: =ReportIn!H16 -> 835000 | F24: =ReportIn!AD16 -> 74.35 | G24: =ReportIn!BB16 -> -835000 | H24: =ReportIn!I16 -> 0 | I24: =ReportIn!G16 -> 0.0325 | J24: =ReportIn!AB16:AB16 -> 1 | K24: =ReportIn!AZ16 -> Short Term Money Market Deposit | L24: =ReportIn!AL16 -> PUBLIC BANK BERHAD | M24: =ReportIn!N16 -> 41877 | N24: =ReportIn!Q16 -> 41878 | O24: =ROUND(H24*J24*I24/VLOOKUP(ReportIn!C16,aaCshSecurityPdf!A:E,5,0),2) ->  | P24: =ReportIn!T16 -> DB-MYR-0022293000 | Q24: =ReportIn!AR16 -> DBNOMINEETSB | R24: =ReportIn!AC16 -> 
C25: =ReportIn!F17 -> 1095 | D25: =ReportIn!AI17 -> TAN SRI (DR) LIM GOH TONG ENDOWMENT FUND-UPM | E25: =ReportIn!H17 -> 0 | F25: =ReportIn!AD17 -> 0 | G25: =ReportIn!BB17 -> 830000 | H25: =ReportIn!I17 -> 830000 | I25: =ReportIn!G17 -> 0.0325 | J25: =ReportIn!AB17:AB17 -> 1 | K25: =ReportIn!AZ17 -> Short Term Money Market Deposit | L25: =ReportIn!AL17 -> PUBLIC BANK BERHAD | M25: =ReportIn!N17 -> 41877 | N25: =ReportIn!Q17 -> 41878 | O25: =ROUND(H25*J25*I25/VLOOKUP(ReportIn!C17,aaCshSecurityPdf!A:E,5,0),2) ->  | P25: =ReportIn!T17 -> DB-MYR-0022293000 | Q25: =ReportIn!AR17 -> DBNOMINEETSB | R25: =ReportIn!AC17 -> Kelvin
C26: =ReportIn!F18 -> 1096 | D26: =ReportIn!AI18 -> TAN SRI (DR) LIM GOH TONG ENDOWMENT FUND-UM | E26: =ReportIn!H18 -> 651000 | F26: =ReportIn!AD18 -> 57.97 | G26: =ReportIn!BB18 -> -651000 | H26: =ReportIn!I18 -> 0 | I26: =ReportIn!G18 -> 0.0325 | J26: =ReportIn!AB18:AB18 -> 1 | K26: =ReportIn!AZ18 -> Short Term Money Market Deposit | L26: =ReportIn!AL18 -> PUBLIC BANK BERHAD | M26: =ReportIn!N18 -> 41877 | N26: =ReportIn!Q18 -> 41878 | O26: =ROUND(H26*J26*I26/VLOOKUP(ReportIn!C18,aaCshSecurityPdf!A:E,5,0),2) ->  | P26: =ReportIn!T18 -> DB-MYR-0022285000 | Q26: =ReportIn!AR18 -> DBNOMINEETSB | R26: =ReportIn!AC18 -> 
C27: =ReportIn!F19 -> 1096 | D27: =ReportIn!AI19 -> TAN SRI (DR) LIM GOH TONG ENDOWMENT FUND-UM | E27: =ReportIn!H19 -> 0 | F27: =ReportIn!AD19 -> 0 | G27: =ReportIn!BB19 -> 651000 | H27: =ReportIn!I19 -> 651000 | I27: =ReportIn!G19 -> 0.0325 | J27: =ReportIn!AB19:AB19 -> 1 | K27: =ReportIn!AZ19 -> Short Term Money Market Deposit | L27: =ReportIn!AL19 -> PUBLIC BANK BERHAD | M27: =ReportIn!N19 -> 41877 | N27: =ReportIn!Q19 -> 41878 | O27: =ROUND(H27*J27*I27/VLOOKUP(ReportIn!C19,aaCshSecurityPdf!A:E,5,0),2) ->  | P27: =ReportIn!T19 -> DB-MYR-0022285000 | Q27: =ReportIn!AR19 -> DBNOMINEETSB | R27: =ReportIn!AC19 -> Kelvin
C28: =ReportIn!F20 -> 1102 | D28: =ReportIn!AI20 -> (1102) - HLA (LIFE - ANNUITY) | E28: =ReportIn!H20 -> 711000 | F28: =ReportIn!AD20 -> 63.31 | G28: =ReportIn!BB20 -> -711000 | H28: =ReportIn!I20 -> 0 | I28: =ReportIn!G20 -> 0.0325 | J28: =ReportIn!AB20:AB20 -> 1 | K28: =ReportIn!AZ20 -> Short Term Money Market Deposit | L28: =ReportIn!AL20 -> PUBLIC BANK BERHAD | M28: =ReportIn!N20 -> 41877 | N28: =ReportIn!Q20 -> 41878 | O28: =ROUND(H28*J28*I28/VLOOKUP(ReportIn!C20,aaCshSecurityPdf!A:E,5,0),2) ->  | P28: =ReportIn!T20 -> DB-MYR-0022491000 | Q28: =ReportIn!AR20 -> DBNOMINEETSB | R28: =ReportIn!AC20 -> 
C29: =ReportIn!F21 -> 1102 | D29: =ReportIn!AI21 -> (1102) - HLA (LIFE - ANNUITY) | E29: =ReportIn!H21 -> 0 | F29: =ReportIn!AD21 -> 0 | G29: =ReportIn!BB21 -> 711000 | H29: =ReportIn!I21 -> 711000 | I29: =ReportIn!G21 -> 0.0325 | J29: =ReportIn!AB21:AB21 -> 1 | K29: =ReportIn!AZ21 -> Short Term Money Market Deposit | L29: =ReportIn!AL21 -> PUBLIC BANK BERHAD | M29: =ReportIn!N21 -> 41877 | N29: =ReportIn!Q21 -> 41878 | O29: =ROUND(H29*J29*I29/VLOOKUP(ReportIn!C21,aaCshSecurityPdf!A:E,5,0),2) ->  | P29: =ReportIn!T21 -> DB-MYR-0022491000 | Q29: =ReportIn!AR21 -> DBNOMINEETSB | R29: =ReportIn!AC21 -> Kelvin
C30: =ReportIn!F22 -> 1119 | D30: =ReportIn!AI22 -> (1119) - ZAKI BIN AZMI | E30: =ReportIn!H22 -> 500000 | F30: =ReportIn!AD22 -> 37.4 | G30: =ReportIn!BB22 -> -500000 | H30: =ReportIn!I22 -> 0 | I30: =ReportIn!G22 -> 0.0273 | J30: =ReportIn!AB22:AB22 -> 1 | K30: =ReportIn!AZ22 -> Short Term Money Market Deposit | L30: =ReportIn!AL22 -> DEUTSCHE BANK (MALAYSIA) BERHAD | M30: =ReportIn!N22 -> 41877 | N30: =ReportIn!Q22 -> 41878 | O30: =ROUND(H30*J30*I30/VLOOKUP(ReportIn!C22,aaCshSecurityPdf!A:E,5,0),2) ->  | P30: =ReportIn!T22 -> DB-MYR-0022772000 | Q30: =ReportIn!AR22 -> DBNOMINEE | R30: =ReportIn!AC22 -> 
C31: =ReportIn!F23 -> 1119 | D31: =ReportIn!AI23 -> (1119) - ZAKI BIN AZMI | E31: =ReportIn!H23 -> 0 | F31: =ReportIn!AD23 -> 0 | G31: =ReportIn!BB23 -> 500000 | H31: =ReportIn!I23 -> 500000 | I31: =ReportIn!G23 -> 0.0273 | J31: =ReportIn!AB23:AB23 -> 1 | K31: =ReportIn!AZ23 -> Short Term Money Market Deposit | L31: =ReportIn!AL23 -> DEUTSCHE BANK (MALAYSIA) BERHAD | M31: =ReportIn!N23 -> 41877 | N31: =ReportIn!Q23 -> 41878 | O31: =ROUND(H31*J31*I31/VLOOKUP(ReportIn!C23,aaCshSecurityPdf!A:E,5,0),2) ->  | P31: =ReportIn!T23 -> DB-MYR-0022772000 | Q31: =ReportIn!AR23 -> DBNOMINEE | R31: =ReportIn!AC23 -> John
C32: =ReportIn!F24 -> 1127 | D32: =ReportIn!AI24 -> (1127) - TEOH HAN CHONG | E32: =ReportIn!H24 -> 255000 | F32: =ReportIn!AD24 -> 19.07 | G32: =ReportIn!BB24 -> -255000 | H32: =ReportIn!I24 -> 0 | I32: =ReportIn!G24 -> 0.0273 | J32: =ReportIn!AB24:AB24 -> 1 | K32: =ReportIn!AZ24 -> Short Term Money Market Deposit | L32: =ReportIn!AL24 -> DEUTSCHE BANK (MALAYSIA) BERHAD | M32: =ReportIn!N24 -> 41877 | N32: =ReportIn!Q24 -> 41878 | O32: =ROUND(H32*J32*I32/VLOOKUP(ReportIn!C24,aaCshSecurityPdf!A:E,5,0),2) ->  | P32: =ReportIn!T24 -> DB-MYR-0022905000 | Q32: =ReportIn!AR24 -> DBNOMINEE | R32: =ReportIn!AC24 -> 
C33: =ReportIn!F25 -> 1127 | D33: =ReportIn!AI25 -> (1127) - TEOH HAN CHONG | E33: =ReportIn!H25 -> 0 | F33: =ReportIn!AD25 -> 0 | G33: =ReportIn!BB25 -> 255000 | H33: =ReportIn!I25 -> 255000 | I33: =ReportIn!G25 -> 0.0273 | J33: =ReportIn!AB25:AB25 -> 1 | K33: =ReportIn!AZ25 -> Short Term Money Market Deposit | L33: =ReportIn!AL25 -> DEUTSCHE BANK (MALAYSIA) BERHAD | M33: =ReportIn!N25 -> 41877 | N33: =ReportIn!Q25 -> 41878 | O33: =ROUND(H33*J33*I33/VLOOKUP(ReportIn!C25,aaCshSecurityPdf!A:E,5,0),2) ->  | P33: =ReportIn!T25 -> DB-MYR-0022905000 | Q33: =ReportIn!AR25 -> DBNOMINEE | R33: =ReportIn!AC25 -> John
C34: =ReportIn!F26 -> 1368 | D34: =ReportIn!AI26 -> (1368) - UNIVERSITI MALAYA | E34: =ReportIn!H26 -> 1489000 | F34: =ReportIn!AD26 -> 132.58 | G34: =ReportIn!BB26 -> -1489000 | H34: =ReportIn!I26 -> 0 | I34: =ReportIn!G26 -> 0.0325 | J34: =ReportIn!AB26:AB26 -> 1 | K34: =ReportIn!AZ26 -> Short Term Money Market Deposit | L34: =ReportIn!AL26 -> PUBLIC BANK BERHAD | M34: =ReportIn!N26 -> 41877 | N34: =ReportIn!Q26 -> 41878 | O34: =ROUND(H34*J34*I34/VLOOKUP(ReportIn!C26,aaCshSecurityPdf!A:E,5,0),2) ->  | P34: =ReportIn!T26 -> DB-MYR-0022319000 | Q34: =ReportIn!AR26 -> DBNOMINEETSB | R34: =ReportIn!AC26 -> 
C35: =ReportIn!F27 -> 1368 | D35: =ReportIn!AI27 -> (1368) - UNIVERSITI MALAYA | E35: =ReportIn!H27 -> 0 | F35: =ReportIn!AD27 -> 0 | G35: =ReportIn!BB27 -> 1488000 | H35: =ReportIn!I27 -> 1488000 | I35: =ReportIn!G27 -> 0.0325 | J35: =ReportIn!AB27:AB27 -> 1 | K35: =ReportIn!AZ27 -> Short Term Money Market Deposit | L35: =ReportIn!AL27 -> PUBLIC BANK BERHAD | M35: =ReportIn!N27 -> 41877 | N35: =ReportIn!Q27 -> 41878 | O35: =ROUND(H35*J35*I35/VLOOKUP(ReportIn!C27,aaCshSecurityPdf!A:E,5,0),2) ->  | P35: =ReportIn!T27 -> DB-MYR-0022319000 | Q35: =ReportIn!AR27 -> DBNOMINEETSB | R35: =ReportIn!AC27 -> Kelvin
C36: =ReportIn!F28 -> 2035 | D36: =ReportIn!AI28 -> (2035) - HLA (LIFE-PAR) | E36: =ReportIn!H28 -> 3361000 | F36: =ReportIn!AD28 -> 299.27 | G36: =ReportIn!BB28 -> -3361000 | H36: =ReportIn!I28 -> 0 | I36: =ReportIn!G28 -> 0.0325 | J36: =ReportIn!AB28:AB28 -> 1 | K36: =ReportIn!AZ28 -> Short Term Money Market Deposit | L36: =ReportIn!AL28 -> PUBLIC BANK BERHAD | M36: =ReportIn!N28 -> 41877 | N36: =ReportIn!Q28 -> 41878 | O36: =ROUND(H36*J36*I36/VLOOKUP(ReportIn!C28,aaCshSecurityPdf!A:E,5,0),2) ->  | P36: =ReportIn!T28 -> DB-MYR-0022525000 | Q36: =ReportIn!AR28 -> DBNOMINEETSB | R36: =ReportIn!AC28 -> 
C37: =ReportIn!F29 -> 2035 | D37: =ReportIn!AI29 -> (2035) - HLA (LIFE-PAR) | E37: =ReportIn!H29 -> 0 | F37: =ReportIn!AD29 -> 0 | G37: =ReportIn!BB29 -> 3361000 | H37: =ReportIn!I29 -> 3361000 | I37: =ReportIn!G29 -> 0.0325 | J37: =ReportIn!AB29:AB29 -> 1 | K37: =ReportIn!AZ29 -> Short Term Money Market Deposit | L37: =ReportIn!AL29 -> PUBLIC BANK BERHAD | M37: =ReportIn!N29 -> 41877 | N37: =ReportIn!Q29 -> 41878 | O37: =ROUND(H37*J37*I37/VLOOKUP(ReportIn!C29,aaCshSecurityPdf!A:E,5,0),2) ->  | P37: =ReportIn!T29 -> DB-MYR-0022525000 | Q37: =ReportIn!AR29 -> DBNOMINEETSB | R37: =ReportIn!AC29 -> Kelvin
C38: =ReportIn!F30 -> 2036 | D38: =ReportIn!AI30 -> (2036) - HLA (S/HDR FUND) | E38: =ReportIn!H30 -> 1812000 | F38: =ReportIn!AD30 -> 161.34 | G38: =ReportIn!BB30 -> -1812000 | H38: =ReportIn!I30 -> 0 | I38: =ReportIn!G30 -> 0.0325 | J38: =ReportIn!AB30:AB30 -> 1 | K38: =ReportIn!AZ30 -> Short Term Money Market Deposit | L38: =ReportIn!AL30 -> PUBLIC BANK BERHAD | M38: =ReportIn!N30 -> 41877 | N38: =ReportIn!Q30 -> 41878 | O38: =ROUND(H38*J38*I38/VLOOKUP(ReportIn!C30,aaCshSecurityPdf!A:E,5,0),2) ->  | P38: =ReportIn!T30 -> DB-MYR-0022533000 | Q38: =ReportIn!AR30 -> DBNOMINEETSB | R38: =ReportIn!AC30 -> 
C39: =ReportIn!F31 -> 2036 | D39: =ReportIn!AI31 -> (2036) - HLA (S/HDR FUND) | E39: =ReportIn!H31 -> 0 | F39: =ReportIn!AD31 -> 0 | G39: =ReportIn!BB31 -> 1813000 | H39: =ReportIn!I31 -> 1813000 | I39: =ReportIn!G31 -> 0.0325 | J39: =ReportIn!AB31:AB31 -> 1 | K39: =ReportIn!AZ31 -> Short Term Money Market Deposit | L39: =ReportIn!AL31 -> PUBLIC BANK BERHAD | M39: =ReportIn!N31 -> 41877 | N39: =ReportIn!Q31 -> 41878 | O39: =ROUND(H39*J39*I39/VLOOKUP(ReportIn!C31,aaCshSecurityPdf!A:E,5,0),2) ->  | P39: =ReportIn!T31 -> DB-MYR-0022533000 | Q39: =ReportIn!AR31 -> DBNOMINEETSB | R39: =ReportIn!AC31 -> Kelvin
C40: =ReportIn!F32 -> 2052 | D40: =ReportIn!AI32 -> (2052) - P.BEKALAN AIR P. PINANG | E40: =ReportIn!H32 -> 3251000 | F40: =ReportIn!AD32 -> 289.47 | G40: =ReportIn!BB32 -> -3251000 | H40: =ReportIn!I32 -> 0 | I40: =ReportIn!G32 -> 0.0325 | J40: =ReportIn!AB32:AB32 -> 1 | K40: =ReportIn!AZ32 -> Short Term Money Market Deposit | L40: =ReportIn!AL32 -> PUBLIC BANK BERHAD | M40: =ReportIn!N32 -> 41877 | N40: =ReportIn!Q32 -> 41878 | O40: =ROUND(H40*J40*I40/VLOOKUP(ReportIn!C32,aaCshSecurityPdf!A:E,5,0),2) ->  | P40: =ReportIn!T32 -> DB-MYR-0022541000 | Q40: =ReportIn!AR32 -> DBNOMINEETSB | R40: =ReportIn!AC32 -> 
C41: =ReportIn!F33 -> 2052 | D41: =ReportIn!AI33 -> (2052) - P.BEKALAN AIR P. PINANG | E41: =ReportIn!H33 -> 0 | F41: =ReportIn!AD33 -> 0 | G41: =ReportIn!BB33 -> 3251000 | H41: =ReportIn!I33 -> 3251000 | I41: =ReportIn!G33 -> 0.0325 | J41: =ReportIn!AB33:AB33 -> 1 | K41: =ReportIn!AZ33 -> Short Term Money Market Deposit | L41: =ReportIn!AL33 -> PUBLIC BANK BERHAD | M41: =ReportIn!N33 -> 41877 | N41: =ReportIn!Q33 -> 41878 | O41: =ROUND(H41*J41*I41/VLOOKUP(ReportIn!C33,aaCshSecurityPdf!A:E,5,0),2) ->  | P41: =ReportIn!T33 -> DB-MYR-0022541000 | Q41: =ReportIn!AR33 -> DBNOMINEETSB | R41: =ReportIn!AC33 -> Kelvin
C42: =ReportIn!F34 -> 3015 | D42: =ReportIn!AI34 -> (3015) - ELECTROSCON COLETRA | E42: =ReportIn!H34 -> 598000 | F42: =ReportIn!AD34 -> 53.25 | G42: =ReportIn!BB34 -> -598000 | H42: =ReportIn!I34 -> 0 | I42: =ReportIn!G34 -> 0.0325 | J42: =ReportIn!AB34:AB34 -> 1 | K42: =ReportIn!AZ34 -> Short Term Money Market Deposit | L42: =ReportIn!AL34 -> PUBLIC BANK BERHAD | M42: =ReportIn!N34 -> 41877 | N42: =ReportIn!Q34 -> 41878 | O42: =ROUND(H42*J42*I42/VLOOKUP(ReportIn!C34,aaCshSecurityPdf!A:E,5,0),2) ->  | P42: =ReportIn!T34 -> DB-MYR-0022590000 | Q42: =ReportIn!AR34 -> DBNOMINEETSB | R42: =ReportIn!AC34 -> 
C43: =ReportIn!F35 -> 3015 | D43: =ReportIn!AI35 -> (3015) - ELECTROSCON COLETRA | E43: =ReportIn!H35 -> 0 | F43: =ReportIn!AD35 -> 0 | G43: =ReportIn!BB35 -> 600000 | H43: =ReportIn!I35 -> 600000 | I43: =ReportIn!G35 -> 0.0325 | J43: =ReportIn!AB35:AB35 -> 1 | K43: =ReportIn!AZ35 -> Short Term Money Market Deposit | L43: =ReportIn!AL35 -> PUBLIC BANK BERHAD | M43: =ReportIn!N35 -> 41877 | N43: =ReportIn!Q35 -> 41878 | O43: =ROUND(H43*J43*I43/VLOOKUP(ReportIn!C35,aaCshSecurityPdf!A:E,5,0),2) ->  | P43: =ReportIn!T35 -> DB-MYR-0022590000 | Q43: =ReportIn!AR35 -> DBNOMINEETSB | R43: =ReportIn!AC35 -> Kelvin
C44: =ReportIn!F36 -> 3064 | D44: =ReportIn!AI36 -> (3064) - BIB INSURANCE BROKERS | E44: =ReportIn!H36 -> 395000 | F44: =ReportIn!AD36 -> 35.17 | G44: =ReportIn!BB36 -> -395000 | H44: =ReportIn!I36 -> 0 | I44: =ReportIn!G36 -> 0.0325 | J44: =ReportIn!AB36:AB36 -> 1 | K44: =ReportIn!AZ36 -> Short Term Money Market Deposit | L44: =ReportIn!AL36 -> PUBLIC BANK BERHAD | M44: =ReportIn!N36 -> 41877 | N44: =ReportIn!Q36 -> 41878 | O44: =ROUND(H44*J44*I44/VLOOKUP(ReportIn!C36,aaCshSecurityPdf!A:E,5,0),2) ->  | P44: =ReportIn!T36 -> DB-MYR-0022608000 | Q44: =ReportIn!AR36 -> DBNOMINEETSB | R44: =ReportIn!AC36 -> 
C45: =ReportIn!F37 -> 3064 | D45: =ReportIn!AI37 -> (3064) - BIB INSURANCE BROKERS | E45: =ReportIn!H37 -> 0 | F45: =ReportIn!AD37 -> 0 | G45: =ReportIn!BB37 -> 395000 | H45: =ReportIn!I37 -> 395000 | I45: =ReportIn!G37 -> 0.0325 | J45: =ReportIn!AB37:AB37 -> 1 | K45: =ReportIn!AZ37 -> Short Term Money Market Deposit | L45: =ReportIn!AL37 -> PUBLIC BANK BERHAD | M45: =ReportIn!N37 -> 41877 | N45: =ReportIn!Q37 -> 41878 | O45: =ROUND(H45*J45*I45/VLOOKUP(ReportIn!C37,aaCshSecurityPdf!A:E,5,0),2) ->  | P45: =ReportIn!T37 -> DB-MYR-0022608000 | Q45: =ReportIn!AR37 -> DBNOMINEETSB | R45: =ReportIn!AC37 -> Kelvin
C46: =ReportIn!F38 -> 3069 | D46: =ReportIn!AI38 -> (3069) - RITZ CREST SDN BHD | E46: =ReportIn!H38 -> 141000 | F46: =ReportIn!AD38 -> 12.55 | G46: =ReportIn!BB38 -> -141000 | H46: =ReportIn!I38 -> 0 | I46: =ReportIn!G38 -> 0.0325 | J46: =ReportIn!AB38:AB38 -> 1 | K46: =ReportIn!AZ38 -> Short Term Money Market Deposit | L46: =ReportIn!AL38 -> PUBLIC BANK BERHAD | M46: =ReportIn!N38 -> 41877 | N46: =ReportIn!Q38 -> 41878 | O46: =ROUND(H46*J46*I46/VLOOKUP(ReportIn!C38,aaCshSecurityPdf!A:E,5,0),2) ->  | P46: =ReportIn!T38 -> DB-MYR-0022368000 | Q46: =ReportIn!AR38 -> DBNOMINEETSB | R46: =ReportIn!AC38 -> 
C47: =ReportIn!F39 -> 3069 | D47: =ReportIn!AI39 -> (3069) - RITZ CREST SDN BHD | E47: =ReportIn!H39 -> 0 | F47: =ReportIn!AD39 -> 0 | G47: =ReportIn!BB39 -> 141000 | H47: =ReportIn!I39 -> 141000 | I47: =ReportIn!G39 -> 0.0325 | J47: =ReportIn!AB39:AB39 -> 1 | K47: =ReportIn!AZ39 -> Short Term Money Market Deposit | L47: =ReportIn!AL39 -> PUBLIC BANK BERHAD | M47: =ReportIn!N39 -> 41877 | N47: =ReportIn!Q39 -> 41878 | O47: =ROUND(H47*J47*I47/VLOOKUP(ReportIn!C39,aaCshSecurityPdf!A:E,5,0),2) ->  | P47: =ReportIn!T39 -> DB-MYR-0022368000 | Q47: =ReportIn!AR39 -> DBNOMINEETSB | R47: =ReportIn!AC39 -> Kelvin
C48: =ReportIn!F40 -> 5045 | D48: =ReportIn!AI40 -> (5045) - YAYASAN SABAH | E48: =ReportIn!H40 -> 643000 | F48: =ReportIn!AD40 -> 57.25 | G48: =ReportIn!BB40 -> -643000 | H48: =ReportIn!I40 -> 0 | I48: =ReportIn!G40 -> 0.0325 | J48: =ReportIn!AB40:AB40 -> 1 | K48: =ReportIn!AZ40 -> Short Term Money Market Deposit | L48: =ReportIn!AL40 -> PUBLIC BANK BERHAD | M48: =ReportIn!N40 -> 41877 | N48: =ReportIn!Q40 -> 41878 | O48: =ROUND(H48*J48*I48/VLOOKUP(ReportIn!C40,aaCshSecurityPdf!A:E,5,0),2) ->  | P48: =ReportIn!T40 -> DB-MYR-0024497000 | Q48: =ReportIn!AR40 -> DBNOMINEETSB | R48: =ReportIn!AC40 -> 
C49: =ReportIn!F41 -> 5045 | D49: =ReportIn!AI41 -> (5045) - YAYASAN SABAH | E49: =ReportIn!H41 -> 0 | F49: =ReportIn!AD41 -> 0 | G49: =ReportIn!BB41 -> 645000 | H49: =ReportIn!I41 -> 645000 | I49: =ReportIn!G41 -> 0.0325 | J49: =ReportIn!AB41:AB41 -> 1 | K49: =ReportIn!AZ41 -> Short Term Money Market Deposit | L49: =ReportIn!AL41 -> PUBLIC BANK BERHAD | M49: =ReportIn!N41 -> 41877 | N49: =ReportIn!Q41 -> 41878 | O49: =ROUND(H49*J49*I49/VLOOKUP(ReportIn!C41,aaCshSecurityPdf!A:E,5,0),2) ->  | P49: =ReportIn!T41 -> DB-MYR-0024497000 | Q49: =ReportIn!AR41 -> DBNOMINEETSB | R49: =ReportIn!AC41 -> Kelvin
C50: =ReportIn!F42 -> 5049 | D50: =ReportIn!AI42 -> (5049) - JOHN K.M. CHACKO | E50: =ReportIn!H42 -> 237000 | F50: =ReportIn!AD42 -> 21.1 | G50: =ReportIn!BB42 -> -237000 | H50: =ReportIn!I42 -> 0 | I50: =ReportIn!G42 -> 0.0325 | J50: =ReportIn!AB42:AB42 -> 1 | K50: =ReportIn!AZ42 -> Short Term Money Market Deposit | L50: =ReportIn!AL42 -> PUBLIC BANK BERHAD | M50: =ReportIn!N42 -> 41877 | N50: =ReportIn!Q42 -> 41878 | O50: =ROUND(H50*J50*I50/VLOOKUP(ReportIn!C42,aaCshSecurityPdf!A:E,5,0),2) ->  | P50: =ReportIn!T42 -> DB-MYR-0022616000 | Q50: =ReportIn!AR42 -> DBNOMINEETSB | R50: =ReportIn!AC42 -> 
C51: =ReportIn!F43 -> 5049 | D51: =ReportIn!AI43 -> (5049) - JOHN K.M. CHACKO | E51: =ReportIn!H43 -> 0 | F51: =ReportIn!AD43 -> 0 | G51: =ReportIn!BB43 -> 240000 | H51: =ReportIn!I43 -> 240000 | I51: =ReportIn!G43 -> 0.0325 | J51: =ReportIn!AB43:AB43 -> 1 | K51: =ReportIn!AZ43 -> Short Term Money Market Deposit | L51: =ReportIn!AL43 -> PUBLIC BANK BERHAD | M51: =ReportIn!N43 -> 41877 | N51: =ReportIn!Q43 -> 41878 | O51: =ROUND(H51*J51*I51/VLOOKUP(ReportIn!C43,aaCshSecurityPdf!A:E,5,0),2) ->  | P51: =ReportIn!T43 -> DB-MYR-0022616000 | Q51: =ReportIn!AR43 -> DBNOMINEETSB | R51: =ReportIn!AC43 -> Kelvin
C52: =ReportIn!F44 -> HLGAPDF | D52: =ReportIn!AI44 -> L8- HONG LEONG ASIA-PACIFIC DIVIDEND FUND | E52: =ReportIn!H44 -> 793000 | F52: =ReportIn!AD44 -> 70.61 | G52: =ReportIn!BB44 -> -793000 | H52: =ReportIn!I44 -> 0 | I52: =ReportIn!G44 -> 0.0325 | J52: =ReportIn!AB44:AB44 -> 1 | K52: =ReportIn!AZ44 -> Short Term Money Market Deposit | L52: =ReportIn!AL44 -> CIMB BANK | M52: =ReportIn!N44 -> 41877 | N52: =ReportIn!Q44 -> 41878 | O52: =ROUND(H52*J52*I52/VLOOKUP(ReportIn!C44,aaCshSecurityPdf!A:E,5,0),2) ->  | P52: =ReportIn!T44 -> MAIN-MYR-00100720613 | Q52: =ReportIn!AR44 -> DTMB | R52: =ReportIn!AC44 -> 
C53: =ReportIn!F45 -> HLGAPDF | D53: =ReportIn!AI45 -> L8- HONG LEONG ASIA-PACIFIC DIVIDEND FUND | E53: =ReportIn!H45 -> 0 | F53: =ReportIn!AD45 -> 0 | G53: =ReportIn!BB45 -> 841000 | H53: =ReportIn!I45 -> 841000 | I53: =ReportIn!G45 -> 0.0325 | J53: =ReportIn!AB45:AB45 -> 1 | K53: =ReportIn!AZ45 -> Short Term Money Market Deposit | L53: =ReportIn!AL45 -> CIMB BANK | M53: =ReportIn!N45 -> 41877 | N53: =ReportIn!Q45 -> 41878 | O53: =ROUND(H53*J53*I53/VLOOKUP(ReportIn!C45,aaCshSecurityPdf!A:E,5,0),2) ->  | P53: =ReportIn!T45 -> MAIN-MYR-00100720613 | Q53: =ReportIn!AR45 -> DTMB | R53: =ReportIn!AC45 -> Viknes
C54: =ReportIn!F46 -> HLGAPIF | D54: =ReportIn!AI46 -> G4- HONG LEONG ASIA-PACIFIC INFRASTRUCTURE FUND | E54: =ReportIn!H46 -> 1267000 | F54: =ReportIn!AD46 -> 112.82 | G54: =ReportIn!BB46 -> -1267000 | H54: =ReportIn!I46 -> 0 | I54: =ReportIn!G46 -> 0.0325 | J54: =ReportIn!AB46:AB46 -> 1 | K54: =ReportIn!AZ46 -> Short Term Money Market Deposit | L54: =ReportIn!AL46 -> PUBLIC BANK BERHAD | M54: =ReportIn!N46 -> 41877 | N54: =ReportIn!Q46 -> 41878 | O54: =ROUND(H54*J54*I54/VLOOKUP(ReportIn!C46,aaCshSecurityPdf!A:E,5,0),2) ->  | P54: =ReportIn!T46 -> MAIN-MYR-00100719129 | Q54: =ReportIn!AR46 -> DTMB | R54: =ReportIn!AC46 -> 
C55: =ReportIn!F47 -> HLGAPIF | D55: =ReportIn!AI47 -> G4- HONG LEONG ASIA-PACIFIC INFRASTRUCTURE FUND | E55: =ReportIn!H47 -> 0 | F55: =ReportIn!AD47 -> 0 | G55: =ReportIn!BB47 -> 1705000 | H55: =ReportIn!I47 -> 1705000 | I55: =ReportIn!G47 -> 0.0325 | J55: =ReportIn!AB47:AB47 -> 1 | K55: =ReportIn!AZ47 -> Short Term Money Market Deposit | L55: =ReportIn!AL47 -> PUBLIC BANK BERHAD | M55: =ReportIn!N47 -> 41877 | N55: =ReportIn!Q47 -> 41878 | O55: =ROUND(H55*J55*I55/VLOOKUP(ReportIn!C47,aaCshSecurityPdf!A:E,5,0),2) ->  | P55: =ReportIn!T47 -> MAIN-MYR-00100719129 | Q55: =ReportIn!AR47 -> DTMB | R55: =ReportIn!AC47 -> Kelvin
C56: =ReportIn!F48 -> HLGAPPIPF | D56: =ReportIn!AI48 -> G5- HONG LEONG ASIA-PACIFIC INCOME PLUS | E56: =ReportIn!H48 -> 1000000 | F56: =ReportIn!AD48 -> 89.04 | G56: =ReportIn!BB48 -> -1000000 | H56: =ReportIn!I48 -> 0 | I56: =ReportIn!G48 -> 0.0325 | J56: =ReportIn!AB48:AB48 -> 1 | K56: =ReportIn!AZ48 -> Short Term Money Market Deposit | L56: =ReportIn!AL48 -> PUBLIC BANK BERHAD | M56: =ReportIn!N48 -> 41877 | N56: =ReportIn!Q48 -> 41878 | O56: =ROUND(H56*J56*I56/VLOOKUP(ReportIn!C48,aaCshSecurityPdf!A:E,5,0),2) ->  | P56: =ReportIn!T48 -> 001-00-359242 | Q56: =ReportIn!AR48 -> BHLBT | R56: =ReportIn!AC48 -> 
C57: =ReportIn!F49 -> HLGAPPIPF | D57: =ReportIn!AI49 -> G5- HONG LEONG ASIA-PACIFIC INCOME PLUS | E57: =ReportIn!H49 -> 731000 | F57: =ReportIn!AD49 -> 64.09 | G57: =ReportIn!BB49 -> -731000 | H57: =ReportIn!I49 -> 0 | I57: =ReportIn!G49 -> 0.032 | J57: =ReportIn!AB49:AB49 -> 1 | K57: =ReportIn!AZ49 -> Short Term Money Market Deposit | L57: =ReportIn!AL49 -> RHB BANK | M57: =ReportIn!N49 -> 41877 | N57: =ReportIn!Q49 -> 41878 | O57: =ROUND(H57*J57*I57/VLOOKUP(ReportIn!C49,aaCshSecurityPdf!A:E,5,0),2) ->  | P57: =ReportIn!T49 -> 001-00-359242 | Q57: =ReportIn!AR49 -> BHLBT | R57: =ReportIn!AC49 -> 
C58: =ReportIn!F50 -> HLGAPPIPF | D58: =ReportIn!AI50 -> G5- HONG LEONG ASIA-PACIFIC INCOME PLUS | E58: =ReportIn!H50 -> 0 | F58: =ReportIn!AD50 -> 0 | G58: =ReportIn!BB50 -> 1000000 | H58: =ReportIn!I50 -> 1000000 | I58: =ReportIn!G50 -> 0.0325 | J58: =ReportIn!AB50:AB50 -> 1 | K58: =ReportIn!AZ50 -> Short Term Money Market Deposit | L58: =ReportIn!AL50 -> PUBLIC BANK BERHAD | M58: =ReportIn!N50 -> 41877 | N58: =ReportIn!Q50 -> 41878 | O58: =ROUND(H58*J58*I58/VLOOKUP(ReportIn!C50,aaCshSecurityPdf!A:E,5,0),2) ->  | P58: =ReportIn!T50 -> 001-00-359242 | Q58: =ReportIn!AR50 -> BHLBT | R58: =ReportIn!AC50 -> Kelvin
C59: =ReportIn!F51 -> HLGAPPIPF | D59: =ReportIn!AI51 -> G5- HONG LEONG ASIA-PACIFIC INCOME PLUS | E59: =ReportIn!H51 -> 0 | F59: =ReportIn!AD51 -> 0 | G59: =ReportIn!BB51 -> 731000 | H59: =ReportIn!I51 -> 731000 | I59: =ReportIn!G51 -> 0.032 | J59: =ReportIn!AB51:AB51 -> 1 | K59: =ReportIn!AZ51 -> Short Term Money Market Deposit | L59: =ReportIn!AL51 -> RHB BANK | M59: =ReportIn!N51 -> 41877 | N59: =ReportIn!Q51 -> 41878 | O59: =ROUND(H59*J59*I59/VLOOKUP(ReportIn!C51,aaCshSecurityPdf!A:E,5,0),2) ->  | P59: =ReportIn!T51 -> 001-00-359242 | Q59: =ReportIn!AR51 -> BHLBT | R59: =ReportIn!AC51 -> Farida
C60: =ReportIn!F52 -> HLGBF | D60: =ReportIn!AI52 -> L2- HONG LEONG BALANCED | E60: =ReportIn!H52 -> 3000000 | F60: =ReportIn!AD52 -> 267.12 | G60: =ReportIn!BB52 -> -3000000 | H60: =ReportIn!I52 -> 0 | I60: =ReportIn!G52 -> 0.0325 | J60: =ReportIn!AB52:AB52 -> 1 | K60: =ReportIn!AZ52 -> Short Term Money Market Deposit | L60: =ReportIn!AL52 -> CIMB BANK | M60: =ReportIn!N52 -> 41877 | N60: =ReportIn!Q52 -> 41878 | O60: =ROUND(H60*J60*I60/VLOOKUP(ReportIn!C52,aaCshSecurityPdf!A:E,5,0),2) ->  | P60: =ReportIn!T52 -> MAIN-MYR-00100736717 | Q60: =ReportIn!AR52 -> DTMB | R60: =ReportIn!AC52 -> 
C61: =ReportIn!F53 -> HLGBF | D61: =ReportIn!AI53 -> L2- HONG LEONG BALANCED | E61: =ReportIn!H53 -> 2759000 | F61: =ReportIn!AD53 -> 245.66 | G61: =ReportIn!BB53 -> -2759000 | H61: =ReportIn!I53 -> 0 | I61: =ReportIn!G53 -> 0.0325 | J61: =ReportIn!AB53:AB53 -> 1 | K61: =ReportIn!AZ53 -> Short Term Money Market Deposit | L61: =ReportIn!AL53 -> PUBLIC BANK BERHAD | M61: =ReportIn!N53 -> 41877 | N61: =ReportIn!Q53 -> 41878 | O61: =ROUND(H61*J61*I61/VLOOKUP(ReportIn!C53,aaCshSecurityPdf!A:E,5,0),2) ->  | P61: =ReportIn!T53 -> MAIN-MYR-00100736717 | Q61: =ReportIn!AR53 -> DTMB | R61: =ReportIn!AC53 -> 
C62: =ReportIn!F54 -> HLGBF | D62: =ReportIn!AI54 -> L2- HONG LEONG BALANCED | E62: =ReportIn!H54 -> 0 | F62: =ReportIn!AD54 -> 0 | G62: =ReportIn!BB54 -> 2759000 | H62: =ReportIn!I54 -> 2759000 | I62: =ReportIn!G54 -> 0.0325 | J62: =ReportIn!AB54:AB54 -> 1 | K62: =ReportIn!AZ54 -> Short Term Money Market Deposit | L62: =ReportIn!AL54 -> PUBLIC BANK BERHAD | M62: =ReportIn!N54 -> 41877 | N62: =ReportIn!Q54 -> 41878 | O62: =ROUND(H62*J62*I62/VLOOKUP(ReportIn!C54,aaCshSecurityPdf!A:E,5,0),2) ->  | P62: =ReportIn!T54 -> MAIN-MYR-00100736717 | Q62: =ReportIn!AR54 -> DTMB | R62: =ReportIn!AC54 -> Kelvin
C63: =ReportIn!F55 -> HLGBF | D63: =ReportIn!AI55 -> L2- HONG LEONG BALANCED | E63: =ReportIn!H55 -> 0 | F63: =ReportIn!AD55 -> 0 | G63: =ReportIn!BB55 -> 3000000 | H63: =ReportIn!I55 -> 3000000 | I63: =ReportIn!G55 -> 0.0325 | J63: =ReportIn!AB55:AB55 -> 1 | K63: =ReportIn!AZ55 -> Short Term Money Market Deposit | L63: =ReportIn!AL55 -> CIMB BANK | M63: =ReportIn!N55 -> 41877 | N63: =ReportIn!Q55 -> 41878 | O63: =ROUND(H63*J63*I63/VLOOKUP(ReportIn!C55,aaCshSecurityPdf!A:E,5,0),2) ->  | P63: =ReportIn!T55 -> MAIN-MYR-00100736717 | Q63: =ReportIn!AR55 -> DTMB | R63: =ReportIn!AC55 -> Viknes
C64: =ReportIn!F56 -> HLGCPSF | D64: =ReportIn!AI56 -> H4- HONG LEONG CONSUMER PRODUCTS SECTOR FUND | E64: =ReportIn!H56 -> 5346000 | F64: =ReportIn!AD56 -> 476.01 | G64: =ReportIn!BB56 -> -5346000 | H64: =ReportIn!I56 -> 0 | I64: =ReportIn!G56 -> 0.0325 | J64: =ReportIn!AB56:AB56 -> 1 | K64: =ReportIn!AZ56 -> Short Term Money Market Deposit | L64: =ReportIn!AL56 -> CIMB BANK | M64: =ReportIn!N56 -> 41877 | N64: =ReportIn!Q56 -> 41878 | O64: =ROUND(H64*J64*I64/VLOOKUP(ReportIn!C56,aaCshSecurityPdf!A:E,5,0),2) ->  | P64: =ReportIn!T56 -> MAIN-MYR-00100736700 | Q64: =ReportIn!AR56 -> DTMB | R64: =ReportIn!AC56 -> 
C65: =ReportIn!F57 -> HLGCPSF | D65: =ReportIn!AI57 -> H4- HONG LEONG CONSUMER PRODUCTS SECTOR FUND | E65: =ReportIn!H57 -> 5200000 | F65: =ReportIn!AD57 -> 463.01 | G65: =ReportIn!BB57 -> -5200000 | H65: =ReportIn!I57 -> 0 | I65: =ReportIn!G57 -> 0.0325 | J65: =ReportIn!AB57:AB57 -> 1 | K65: =ReportIn!AZ57 -> Short Term Money Market Deposit | L65: =ReportIn!AL57 -> PUBLIC BANK BERHAD | M65: =ReportIn!N57 -> 41877 | N65: =ReportIn!Q57 -> 41878 | O65: =ROUND(H65*J65*I65/VLOOKUP(ReportIn!C57,aaCshSecurityPdf!A:E,5,0),2) ->  | P65: =ReportIn!T57 -> MAIN-MYR-00100736700 | Q65: =ReportIn!AR57 -> DTMB | R65: =ReportIn!AC57 -> 
C66: =ReportIn!F58 -> HLGCPSF | D66: =ReportIn!AI58 -> H4- HONG LEONG CONSUMER PRODUCTS SECTOR FUND | E66: =ReportIn!H58 -> 0 | F66: =ReportIn!AD58 -> 0 | G66: =ReportIn!BB58 -> 5200000 | H66: =ReportIn!I58 -> 5200000 | I66: =ReportIn!G58 -> 0.0325 | J66: =ReportIn!AB58:AB58 -> 1 | K66: =ReportIn!AZ58 -> Short Term Money Market Deposit | L66: =ReportIn!AL58 -> PUBLIC BANK BERHAD | M66: =ReportIn!N58 -> 41877 | N66: =ReportIn!Q58 -> 41878 | O66: =ROUND(H66*J66*I66/VLOOKUP(ReportIn!C58,aaCshSecurityPdf!A:E,5,0),2) ->  | P66: =ReportIn!T58 -> MAIN-MYR-00100736700 | Q66: =ReportIn!AR58 -> DTMB | R66: =ReportIn!AC58 -> Kelvin
C67: =ReportIn!F59 -> HLGCPSF | D67: =ReportIn!AI59 -> H4- HONG LEONG CONSUMER PRODUCTS SECTOR FUND | E67: =ReportIn!H59 -> 0 | F67: =ReportIn!AD59 -> 0 | G67: =ReportIn!BB59 -> 5317000 | H67: =ReportIn!I59 -> 5317000 | I67: =ReportIn!G59 -> 0.0325 | J67: =ReportIn!AB59:AB59 -> 1 | K67: =ReportIn!AZ59 -> Short Term Money Market Deposit | L67: =ReportIn!AL59 -> CIMB BANK | M67: =ReportIn!N59 -> 41877 | N67: =ReportIn!Q59 -> 41878 | O67: =ROUND(H67*J67*I67/VLOOKUP(ReportIn!C59,aaCshSecurityPdf!A:E,5,0),2) ->  | P67: =ReportIn!T59 -> MAIN-MYR-00100736700 | Q67: =ReportIn!AR59 -> DTMB | R67: =ReportIn!AC59 -> Viknes
C68: =ReportIn!F60 -> HLGDF | D68: =ReportIn!AI60 -> L5- HONG LEONG DIVIDEND | E68: =ReportIn!H60 -> 2801000 | F68: =ReportIn!AD60 -> 249.4 | G68: =ReportIn!BB60 -> -2801000 | H68: =ReportIn!I60 -> 0 | I68: =ReportIn!G60 -> 0.0325 | J68: =ReportIn!AB60:AB60 -> 1 | K68: =ReportIn!AZ60 -> Short Term Money Market Deposit | L68: =ReportIn!AL60 -> CIMB BANK | M68: =ReportIn!N60 -> 41877 | N68: =ReportIn!Q60 -> 41878 | O68: =ROUND(H68*J68*I68/VLOOKUP(ReportIn!C60,aaCshSecurityPdf!A:E,5,0),2) ->  | P68: =ReportIn!T60 -> MAIN-MYR-00100719088 | Q68: =ReportIn!AR60 -> DTMB | R68: =ReportIn!AC60 -> 
C69: =ReportIn!F61 -> HLGDF | D69: =ReportIn!AI61 -> L5- HONG LEONG DIVIDEND | E69: =ReportIn!H61 -> 1700000 | F69: =ReportIn!AD61 -> 151.37 | G69: =ReportIn!BB61 -> -1700000 | H69: =ReportIn!I61 -> 0 | I69: =ReportIn!G61 -> 0.0325 | J69: =ReportIn!AB61:AB61 -> 1 | K69: =ReportIn!AZ61 -> Short Term Money Market Deposit | L69: =ReportIn!AL61 -> PUBLIC BANK BERHAD | M69: =ReportIn!N61 -> 41877 | N69: =ReportIn!Q61 -> 41878 | O69: =ROUND(H69*J69*I69/VLOOKUP(ReportIn!C61,aaCshSecurityPdf!A:E,5,0),2) ->  | P69: =ReportIn!T61 -> MAIN-MYR-00100719088 | Q69: =ReportIn!AR61 -> DTMB | R69: =ReportIn!AC61 -> 
C70: =ReportIn!F62 -> HLGDF | D70: =ReportIn!AI62 -> L5- HONG LEONG DIVIDEND | E70: =ReportIn!H62 -> 0 | F70: =ReportIn!AD62 -> 0 | G70: =ReportIn!BB62 -> 1700000 | H70: =ReportIn!I62 -> 1700000 | I70: =ReportIn!G62 -> 0.0325 | J70: =ReportIn!AB62:AB62 -> 1 | K70: =ReportIn!AZ62 -> Short Term Money Market Deposit | L70: =ReportIn!AL62 -> PUBLIC BANK BERHAD | M70: =ReportIn!N62 -> 41877 | N70: =ReportIn!Q62 -> 41878 | O70: =ROUND(H70*J70*I70/VLOOKUP(ReportIn!C62,aaCshSecurityPdf!A:E,5,0),2) ->  | P70: =ReportIn!T62 -> MAIN-MYR-00100719088 | Q70: =ReportIn!AR62 -> DTMB | R70: =ReportIn!AC62 -> Kelvin
C71: =ReportIn!F63 -> HLGDF | D71: =ReportIn!AI63 -> L5- HONG LEONG DIVIDEND | E71: =ReportIn!H63 -> 0 | F71: =ReportIn!AD63 -> 0 | G71: =ReportIn!BB63 -> 2801000 | H71: =ReportIn!I63 -> 2801000 | I71: =ReportIn!G63 -> 0.0325 | J71: =ReportIn!AB63:AB63 -> 1 | K71: =ReportIn!AZ63 -> Short Term Money Market Deposit | L71: =ReportIn!AL63 -> CIMB BANK | M71: =ReportIn!N63 -> 41877 | N71: =ReportIn!Q63 -> 41878 | O71: =ROUND(H71*J71*I71/VLOOKUP(ReportIn!C63,aaCshSecurityPdf!A:E,5,0),2) ->  | P71: =ReportIn!T63 -> MAIN-MYR-00100719088 | Q71: =ReportIn!AR63 -> DTMB | R71: =ReportIn!AC63 -> Viknes
C72: =ReportIn!F64 -> HLGDM | D72: =ReportIn!AI64 -> H9- HONG LEONG DANA MAKMUR | E72: =ReportIn!H64 -> 1300000 | F72: =ReportIn!AD64 -> 113.97 | G72: =ReportIn!BB64 -> -1300000 | H72: =ReportIn!I64 -> 0 | I72: =ReportIn!G64 -> 0.032 | J72: =ReportIn!AB64:AB64 -> 1 | K72: =ReportIn!AZ64 -> Short Term Money Market Deposit - Islamic | L72: =ReportIn!AL64 -> PUBLIC ISLAMIC BANK BERHAD | M72: =ReportIn!N64 -> 41877 | N72: =ReportIn!Q64 -> 41878 | O72: =ROUND(H72*J72*I72/VLOOKUP(ReportIn!C64,aaCshSecurityPdf!A:E,5,0),2) ->  | P72: =ReportIn!T64 -> MAIN-MYR-00101503293 | Q72: =ReportIn!AR64 -> DTMB | R72: =ReportIn!AC64 -> 
C73: =ReportIn!F65 -> HLGDM | D73: =ReportIn!AI65 -> H9- HONG LEONG DANA MAKMUR | E73: =ReportIn!H65 -> 1181000 | F73: =ReportIn!AD65 -> 103.54 | G73: =ReportIn!BB65 -> -1181000 | H73: =ReportIn!I65 -> 0 | I73: =ReportIn!G65 -> 0.032 | J73: =ReportIn!AB65:AB65 -> 1 | K73: =ReportIn!AZ65 -> Short Term Money Market Deposit - Islamic | L73: =ReportIn!AL65 -> RHB ISLAMIC BANK BERHAD | M73: =ReportIn!N65 -> 41877 | N73: =ReportIn!Q65 -> 41878 | O73: =ROUND(H73*J73*I73/VLOOKUP(ReportIn!C65,aaCshSecurityPdf!A:E,5,0),2) ->  | P73: =ReportIn!T65 -> MAIN-MYR-00101503293 | Q73: =ReportIn!AR65 -> DTMB | R73: =ReportIn!AC65 -> 
C74: =ReportIn!F66 -> HLGDM | D74: =ReportIn!AI66 -> H9- HONG LEONG DANA MAKMUR | E74: =ReportIn!H66 -> 0 | F74: =ReportIn!AD66 -> 0 | G74: =ReportIn!BB66 -> 1300000 | H74: =ReportIn!I66 -> 1300000 | I74: =ReportIn!G66 -> 0.032 | J74: =ReportIn!AB66:AB66 -> 1 | K74: =ReportIn!AZ66 -> Short Term Money Market Deposit - Islamic | L74: =ReportIn!AL66 -> PUBLIC ISLAMIC BANK BERHAD | M74: =ReportIn!N66 -> 41877 | N74: =ReportIn!Q66 -> 41878 | O74: =ROUND(H74*J74*I74/VLOOKUP(ReportIn!C66,aaCshSecurityPdf!A:E,5,0),2) ->  | P74: =ReportIn!T66 -> MAIN-MYR-00101503293 | Q74: =ReportIn!AR66 -> DTMB | R74: =ReportIn!AC66 -> Hisham
C75: =ReportIn!F67 -> HLGDM | D75: =ReportIn!AI67 -> H9- HONG LEONG DANA MAKMUR | E75: =ReportIn!H67 -> 0 | F75: =ReportIn!AD67 -> 0 | G75: =ReportIn!BB67 -> 1126000 | H75: =ReportIn!I67 -> 1126000 | I75: =ReportIn!G67 -> 0.032 | J75: =ReportIn!AB67:AB67 -> 1 | K75: =ReportIn!AZ67 -> Short Term Money Market Deposit - Islamic | L75: =ReportIn!AL67 -> RHB ISLAMIC BANK BERHAD | M75: =ReportIn!N67 -> 41877 | N75: =ReportIn!Q67 -> 41878 | O75: =ROUND(H75*J75*I75/VLOOKUP(ReportIn!C67,aaCshSecurityPdf!A:E,5,0),2) ->  | P75: =ReportIn!T67 -> MAIN-MYR-00101503293 | Q75: =ReportIn!AR67 -> DTMB | R75: =ReportIn!AC67 -> Shima
C76: =ReportIn!F68 -> HLGGBF | D76: =ReportIn!AI68 -> U3- HONG LEONG GLOBAL BOND FUND | E76: =ReportIn!H68 -> 800000 | F76: =ReportIn!AD68 -> 71.23 | G76: =ReportIn!BB68 -> -800000 | H76: =ReportIn!I68 -> 0 | I76: =ReportIn!G68 -> 0.0325 | J76: =ReportIn!AB68:AB68 -> 1 | K76: =ReportIn!AZ68 -> Short Term Money Market Deposit | L76: =ReportIn!AL68 -> HONG LEONG INVESTMENT BANK | M76: =ReportIn!N68 -> 41877 | N76: =ReportIn!Q68 -> 41878 | O76: =ROUND(H76*J76*I76/VLOOKUP(ReportIn!C68,aaCshSecurityPdf!A:E,5,0),2) ->  | P76: =ReportIn!T68 -> 001-00-328936 | Q76: =ReportIn!AR68 -> BHLBT | R76: =ReportIn!AC68 -> 
C77: =ReportIn!F69 -> HLGGBF | D77: =ReportIn!AI69 -> U3- HONG LEONG GLOBAL BOND FUND | E77: =ReportIn!H69 -> 900000 | F77: =ReportIn!AD69 -> 80.14 | G77: =ReportIn!BB69 -> -900000 | H77: =ReportIn!I69 -> 0 | I77: =ReportIn!G69 -> 0.0325 | J77: =ReportIn!AB69:AB69 -> 1 | K77: =ReportIn!AZ69 -> Short Term Money Market Deposit | L77: =ReportIn!AL69 -> PUBLIC BANK BERHAD | M77: =ReportIn!N69 -> 41877 | N77: =ReportIn!Q69 -> 41878 | O77: =ROUND(H77*J77*I77/VLOOKUP(ReportIn!C69,aaCshSecurityPdf!A:E,5,0),2) ->  | P77: =ReportIn!T69 -> 001-00-328936 | Q77: =ReportIn!AR69 -> BHLBT | R77: =ReportIn!AC69 -> 
C78: =ReportIn!F70 -> HLGGBF | D78: =ReportIn!AI70 -> U3- HONG LEONG GLOBAL BOND FUND | E78: =ReportIn!H70 -> 0 | F78: =ReportIn!AD70 -> 0 | G78: =ReportIn!BB70 -> 900000 | H78: =ReportIn!I70 -> 900000 | I78: =ReportIn!G70 -> 0.0325 | J78: =ReportIn!AB70:AB70 -> 1 | K78: =ReportIn!AZ70 -> Short Term Money Market Deposit | L78: =ReportIn!AL70 -> PUBLIC BANK BERHAD | M78: =ReportIn!N70 -> 41877 | N78: =ReportIn!Q70 -> 41878 | O78: =ROUND(H78*J78*I78/VLOOKUP(ReportIn!C70,aaCshSecurityPdf!A:E,5,0),2) ->  | P78: =ReportIn!T70 -> 001-00-328936 | Q78: =ReportIn!AR70 -> BHLBT | R78: =ReportIn!AC70 -> Kelvin
C79: =ReportIn!F71 -> HLGGBF | D79: =ReportIn!AI71 -> U3- HONG LEONG GLOBAL BOND FUND | E79: =ReportIn!H71 -> 0 | F79: =ReportIn!AD71 -> 0 | G79: =ReportIn!BB71 -> 751000 | H79: =ReportIn!I71 -> 751000 | I79: =ReportIn!G71 -> 0.0325 | J79: =ReportIn!AB71:AB71 -> 1 | K79: =ReportIn!AZ71 -> Short Term Money Market Deposit | L79: =ReportIn!AL71 -> HONG LEONG INVESTMENT BANK | M79: =ReportIn!N71 -> 41877 | N79: =ReportIn!Q71 -> 41878 | O79: =ROUND(H79*J79*I79/VLOOKUP(ReportIn!C71,aaCshSecurityPdf!A:E,5,0),2) ->  | P79: =ReportIn!T71 -> 001-00-328936 | Q79: =ReportIn!AR71 -> BHLBT | R79: =ReportIn!AC71 -> Sophia
C80: =ReportIn!F72 -> HLGGF | D80: =ReportIn!AI72 -> H1- HONG LEONG GROWTH FUND | E80: =ReportIn!H72 -> 5000000 | F80: =ReportIn!AD72 -> 445.21 | G80: =ReportIn!BB72 -> -5000000 | H80: =ReportIn!I72 -> 0 | I80: =ReportIn!G72 -> 0.0325 | J80: =ReportIn!AB72:AB72 -> 1 | K80: =ReportIn!AZ72 -> Short Term Money Market Deposit | L80: =ReportIn!AL72 -> CIMB BANK | M80: =ReportIn!N72 -> 41877 | N80: =ReportIn!Q72 -> 41878 | O80: =ROUND(H80*J80*I80/VLOOKUP(ReportIn!C72,aaCshSecurityPdf!A:E,5,0),2) ->  | P80: =ReportIn!T72 -> MAIN-MYR-00100719002 | Q80: =ReportIn!AR72 -> DTMB | R80: =ReportIn!AC72 -> 
C81: =ReportIn!F73 -> HLGGF | D81: =ReportIn!AI73 -> H1- HONG LEONG GROWTH FUND | E81: =ReportIn!H73 -> 6520000 | F81: =ReportIn!AD73 -> 571.62 | G81: =ReportIn!BB73 -> -6520000 | H81: =ReportIn!I73 -> 0 | I81: =ReportIn!G73 -> 0.032 | J81: =ReportIn!AB73:AB73 -> 1 | K81: =ReportIn!AZ73 -> Short Term Money Market Deposit | L81: =ReportIn!AL73 -> RHB BANK | M81: =ReportIn!N73 -> 41877 | N81: =ReportIn!Q73 -> 41878 | O81: =ROUND(H81*J81*I81/VLOOKUP(ReportIn!C73,aaCshSecurityPdf!A:E,5,0),2) ->  | P81: =ReportIn!T73 -> MAIN-MYR-00100719002 | Q81: =ReportIn!AR73 -> DTMB | R81: =ReportIn!AC73 -> 
C82: =ReportIn!F74 -> HLGGF | D82: =ReportIn!AI74 -> H1- HONG LEONG GROWTH FUND | E82: =ReportIn!H74 -> 0 | F82: =ReportIn!AD74 -> 0 | G82: =ReportIn!BB74 -> 5000000 | H82: =ReportIn!I74 -> 5000000 | I82: =ReportIn!G74 -> 0.0325 | J82: =ReportIn!AB74:AB74 -> 1 | K82: =ReportIn!AZ74 -> Short Term Money Market Deposit | L82: =ReportIn!AL74 -> CIMB BANK | M82: =ReportIn!N74 -> 41877 | N82: =ReportIn!Q74 -> 41878 | O82: =ROUND(H82*J82*I82/VLOOKUP(ReportIn!C74,aaCshSecurityPdf!A:E,5,0),2) ->  | P82: =ReportIn!T74 -> MAIN-MYR-00100719002 | Q82: =ReportIn!AR74 -> DTMB | R82: =ReportIn!AC74 -> Viknes
C83: =ReportIn!F75 -> HLGGF | D83: =ReportIn!AI75 -> H1- HONG LEONG GROWTH FUND | E83: =ReportIn!H75 -> 0 | F83: =ReportIn!AD75 -> 0 | G83: =ReportIn!BB75 -> 5678000 | H83: =ReportIn!I75 -> 5678000 | I83: =ReportIn!G75 -> 0.032 | J83: =ReportIn!AB75:AB75 -> 1 | K83: =ReportIn!AZ75 -> Short Term Money Market Deposit | L83: =ReportIn!AL75 -> RHB BANK | M83: =ReportIn!N75 -> 41877 | N83: =ReportIn!Q75 -> 41878 | O83: =ROUND(H83*J83*I83/VLOOKUP(ReportIn!C75,aaCshSecurityPdf!A:E,5,0),2) ->  | P83: =ReportIn!T75 -> MAIN-MYR-00100719002 | Q83: =ReportIn!AR75 -> DTMB | R83: =ReportIn!AC75 -> Farida
C84: =ReportIn!F76 -> HLGGVF | D84: =ReportIn!AI76 -> G7-HONG LEONG GLOBAL VALUE FUND | E84: =ReportIn!H76 -> 973000 | F84: =ReportIn!AD76 -> 86.64 | G84: =ReportIn!BB76 -> -973000 | H84: =ReportIn!I76 -> 0 | I84: =ReportIn!G76 -> 0.0325 | J84: =ReportIn!AB76:AB76 -> 1 | K84: =ReportIn!AZ76 -> Short Term Money Market Deposit | L84: =ReportIn!AL76 -> PUBLIC BANK BERHAD | M84: =ReportIn!N76 -> 41877 | N84: =ReportIn!Q76 -> 41878 | O84: =ROUND(H84*J84*I84/VLOOKUP(ReportIn!C76,aaCshSecurityPdf!A:E,5,0),2) ->  | P84: =ReportIn!T76 -> 001-003-20910 | Q84: =ReportIn!AR76 -> BHLBT | R84: =ReportIn!AC76 -> 
C85: =ReportIn!F77 -> HLGGVF | D85: =ReportIn!AI77 -> G7-HONG LEONG GLOBAL VALUE FUND | E85: =ReportIn!H77 -> 0 | F85: =ReportIn!AD77 -> 0 | G85: =ReportIn!BB77 -> 968000 | H85: =ReportIn!I77 -> 968000 | I85: =ReportIn!G77 -> 0.0325 | J85: =ReportIn!AB77:AB77 -> 1 | K85: =ReportIn!AZ77 -> Short Term Money Market Deposit | L85: =ReportIn!AL77 -> PUBLIC BANK BERHAD | M85: =ReportIn!N77 -> 41877 | N85: =ReportIn!Q77 -> 41878 | O85: =ROUND(H85*J85*I85/VLOOKUP(ReportIn!C77,aaCshSecurityPdf!A:E,5,0),2) ->  | P85: =ReportIn!T77 -> 001-003-20910 | Q85: =ReportIn!AR77 -> BHLBT | R85: =ReportIn!AC77 -> Kelvin
C86: =ReportIn!F78 -> HLGIBF | D86: =ReportIn!AI78 -> L7- HONG LEONG INSTITUTIONAL BOND | E86: =ReportIn!H78 -> 4950000 | F86: =ReportIn!AD78 -> 440.75 | G86: =ReportIn!BB78 -> -4950000 | H86: =ReportIn!I78 -> 0 | I86: =ReportIn!G78 -> 0.0325 | J86: =ReportIn!AB78:AB78 -> 1 | K86: =ReportIn!AZ78 -> Short Term Money Market Deposit | L86: =ReportIn!AL78 -> CIMB BANK | M86: =ReportIn!N78 -> 41877 | N86: =ReportIn!Q78 -> 41878 | O86: =ROUND(H86*J86*I86/VLOOKUP(ReportIn!C78,aaCshSecurityPdf!A:E,5,0),2) ->  | P86: =ReportIn!T78 -> MIAN-MYR-00100720637 | Q86: =ReportIn!AR78 -> DTMB | R86: =ReportIn!AC78 -> 
C87: =ReportIn!F79 -> HLGIBF | D87: =ReportIn!AI79 -> L7- HONG LEONG INSTITUTIONAL BOND | E87: =ReportIn!H79 -> 10000000 | F87: =ReportIn!AD79 -> 890.41 | G87: =ReportIn!BB79 -> -10000000 | H87: =ReportIn!I79 -> 0 | I87: =ReportIn!G79 -> 0.0325 | J87: =ReportIn!AB79:AB79 -> 1 | K87: =ReportIn!AZ79 -> Short Term Money Market Deposit | L87: =ReportIn!AL79 -> HONG LEONG INVESTMENT BANK | M87: =ReportIn!N79 -> 41877 | N87: =ReportIn!Q79 -> 41878 | O87: =ROUND(H87*J87*I87/VLOOKUP(ReportIn!C79,aaCshSecurityPdf!A:E,5,0),2) ->  | P87: =ReportIn!T79 -> MIAN-MYR-00100720637 | Q87: =ReportIn!AR79 -> DTMB | R87: =ReportIn!AC79 -> 
C88: =ReportIn!F80 -> HLGIBF | D88: =ReportIn!AI80 -> L7- HONG LEONG INSTITUTIONAL BOND | E88: =ReportIn!H80 -> 0 | F88: =ReportIn!AD80 -> 0 | G88: =ReportIn!BB80 -> 4951000 | H88: =ReportIn!I80 -> 4951000 | I88: =ReportIn!G80 -> 0.0325 | J88: =ReportIn!AB80:AB80 -> 1 | K88: =ReportIn!AZ80 -> Short Term Money Market Deposit | L88: =ReportIn!AL80 -> CIMB BANK | M88: =ReportIn!N80 -> 41877 | N88: =ReportIn!Q80 -> 41878 | O88: =ROUND(H88*J88*I88/VLOOKUP(ReportIn!C80,aaCshSecurityPdf!A:E,5,0),2) ->  | P88: =ReportIn!T80 -> MIAN-MYR-00100720637 | Q88: =ReportIn!AR80 -> DTMB | R88: =ReportIn!AC80 -> Viknes
C89: =ReportIn!F81 -> HLGIBF | D89: =ReportIn!AI81 -> L7- HONG LEONG INSTITUTIONAL BOND | E89: =ReportIn!H81 -> 0 | F89: =ReportIn!AD81 -> 0 | G89: =ReportIn!BB81 -> 10000000 | H89: =ReportIn!I81 -> 10000000 | I89: =ReportIn!G81 -> 0.0325 | J89: =ReportIn!AB81:AB81 -> 1 | K89: =ReportIn!AZ81 -> Short Term Money Market Deposit | L89: =ReportIn!AL81 -> HONG LEONG INVESTMENT BANK | M89: =ReportIn!N81 -> 41877 | N89: =ReportIn!Q81 -> 41878 | O89: =ROUND(H89*J89*I89/VLOOKUP(ReportIn!C81,aaCshSecurityPdf!A:E,5,0),2) ->  | P89: =ReportIn!T81 -> MIAN-MYR-00100720637 | Q89: =ReportIn!AR81 -> DTMB | R89: =ReportIn!AC81 -> Sophia
C90: =ReportIn!F82 -> HLGIIMF | D90: =ReportIn!AI82 -> G3- HONG LEONG ISLAMIC INCOME MANAGEMENT FUND | E90: =ReportIn!H82 -> 7022000 | F90: =ReportIn!AD82 -> 606.01 | G90: =ReportIn!BB82 -> -7022000 | H90: =ReportIn!I82 -> 0 | I90: =ReportIn!G82 -> 0.0315 | J90: =ReportIn!AB82:AB82 -> 1 | K90: =ReportIn!AZ82 -> Short Term Money Market Deposit - Islamic | L90: =ReportIn!AL82 -> OCBC AL-AMIN BANK | M90: =ReportIn!N82 -> 41877 | N90: =ReportIn!Q82 -> 41878 | O90: =ROUND(H90*J90*I90/VLOOKUP(ReportIn!C82,aaCshSecurityPdf!A:E,5,0),2) ->  | P90: =ReportIn!T82 -> 001-01-501130 | Q90: =ReportIn!AR82 -> BHLBT | R90: =ReportIn!AC82 -> 
C91: =ReportIn!F83 -> HLGIIMF | D91: =ReportIn!AI83 -> G3- HONG LEONG ISLAMIC INCOME MANAGEMENT FUND | E91: =ReportIn!H83 -> 3500000 | F91: =ReportIn!AD83 -> 306.85 | G91: =ReportIn!BB83 -> -3500000 | H91: =ReportIn!I83 -> 0 | I91: =ReportIn!G83 -> 0.032 | J91: =ReportIn!AB83:AB83 -> 1 | K91: =ReportIn!AZ83 -> Short Term Money Market Deposit - Islamic | L91: =ReportIn!AL83 -> PUBLIC ISLAMIC BANK BERHAD | M91: =ReportIn!N83 -> 41877 | N91: =ReportIn!Q83 -> 41878 | O91: =ROUND(H91*J91*I91/VLOOKUP(ReportIn!C83,aaCshSecurityPdf!A:E,5,0),2) ->  | P91: =ReportIn!T83 -> 001-01-501130 | Q91: =ReportIn!AR83 -> BHLBT | R91: =ReportIn!AC83 -> 
C92: =ReportIn!F84 -> HLGIIMF | D92: =ReportIn!AI84 -> G3- HONG LEONG ISLAMIC INCOME MANAGEMENT FUND | E92: =ReportIn!H84 -> 0 | F92: =ReportIn!AD84 -> 0 | G92: =ReportIn!BB84 -> 7033000 | H92: =ReportIn!I84 -> 7033000 | I92: =ReportIn!G84 -> 0.0315 | J92: =ReportIn!AB84:AB84 -> 1 | K92: =ReportIn!AZ84 -> Short Term Money Market Deposit - Islamic | L92: =ReportIn!AL84 -> OCBC AL-AMIN BANK | M92: =ReportIn!N84 -> 41877 | N92: =ReportIn!Q84 -> 41878 | O92: =ROUND(H92*J92*I92/VLOOKUP(ReportIn!C84,aaCshSecurityPdf!A:E,5,0),2) ->  | P92: =ReportIn!T84 -> 001-01-501130 | Q92: =ReportIn!AR84 -> BHLBT | R92: =ReportIn!AC84 -> Amir
C93: =ReportIn!F85 -> HLGIIMF | D93: =ReportIn!AI85 -> G3- HONG LEONG ISLAMIC INCOME MANAGEMENT FUND | E93: =ReportIn!H85 -> 0 | F93: =ReportIn!AD85 -> 0 | G93: =ReportIn!BB85 -> 3500000 | H93: =ReportIn!I85 -> 3500000 | I93: =ReportIn!G85 -> 0.032 | J93: =ReportIn!AB85:AB85 -> 1 | K93: =ReportIn!AZ85 -> Short Term Money Market Deposit - Islamic | L93: =ReportIn!AL85 -> PUBLIC ISLAMIC BANK BERHAD | M93: =ReportIn!N85 -> 41877 | N93: =ReportIn!Q85 -> 41878 | O93: =ROUND(H93*J93*I93/VLOOKUP(ReportIn!C85,aaCshSecurityPdf!A:E,5,0),2) ->  | P93: =ReportIn!T85 -> 001-01-501130 | Q93: =ReportIn!AR85 -> BHLBT | R93: =ReportIn!AC85 -> Hisham
C94: =ReportIn!F86 -> HLGIMF | D94: =ReportIn!AI86 -> U2- HONG LEONG INCOME MANAGEMENT FUND | E94: =ReportIn!H86 -> 50000000 | F94: =ReportIn!AD86 -> 189657.53 | G94: =ReportIn!BB86 -> -50000000 | H94: =ReportIn!I86 -> 0 | I94: =ReportIn!G86 -> 0.0355 | J94: =ReportIn!AB86:AB86 -> 1 | K94: =ReportIn!AZ86 -> Fixed Deposit | L94: =ReportIn!AL86 -> PUBLIC BANK BERHAD | M94: =ReportIn!N86 -> 41877 | N94: =ReportIn!Q86 -> 41878 | O94: =ROUND(H94*J94*I94/VLOOKUP(ReportIn!C86,aaCshSecurityPdf!A:E,5,0),2) -> 0 | P94: =ReportIn!T86 -> 001-00-328565 | Q94: =ReportIn!AR86 -> BHLBT | R94: =ReportIn!AC86 -> 
C95: =ReportIn!F87 -> HLGIMF | D95: =ReportIn!AI87 -> U2- HONG LEONG INCOME MANAGEMENT FUND | E95: =ReportIn!H87 -> 50000000 | F95: =ReportIn!AD87 -> 175068.49 | G95: =ReportIn!BB87 -> -50000000 | H95: =ReportIn!I87 -> 0 | I95: =ReportIn!G87 -> 0.0355 | J95: =ReportIn!AB87:AB87 -> 1 | K95: =ReportIn!AZ87 -> Short Term Money Market Deposit | L95: =ReportIn!AL87 -> PUBLIC BANK BERHAD | M95: =ReportIn!N87 -> 41877 | N95: =ReportIn!Q87 -> 41878 | O95: =ROUND(H95*J95*I95/VLOOKUP(ReportIn!C87,aaCshSecurityPdf!A:E,5,0),2) ->  | P95: =ReportIn!T87 -> 001-00-328565 | Q95: =ReportIn!AR87 -> BHLBT | R95: =ReportIn!AC87 -> 
C96: =ReportIn!F88 -> HLGIMF | D96: =ReportIn!AI88 -> U2- HONG LEONG INCOME MANAGEMENT FUND | E96: =ReportIn!H88 -> 45000000 | F96: =ReportIn!AD88 -> 119835.62 | G96: =ReportIn!BB88 -> -45000000 | H96: =ReportIn!I88 -> 0 | I96: =ReportIn!G88 -> 0.036 | J96: =ReportIn!AB88:AB88 -> 1 | K96: =ReportIn!AZ88 -> Short Term Money Market Deposit | L96: =ReportIn!AL88 -> PUBLIC BANK BERHAD | M96: =ReportIn!N88 -> 41877 | N96: =ReportIn!Q88 -> 41878 | O96: =ROUND(H96*J96*I96/VLOOKUP(ReportIn!C88,aaCshSecurityPdf!A:E,5,0),2) ->  | P96: =ReportIn!T88 -> 001-00-328565 | Q96: =ReportIn!AR88 -> BHLBT | R96: =ReportIn!AC88 -> 
C97: =ReportIn!F89 -> HLGIMF | D97: =ReportIn!AI89 -> U2- HONG LEONG INCOME MANAGEMENT FUND | E97: =ReportIn!H89 -> 100000000 | F97: =ReportIn!AD89 -> 389041.1 | G97: =ReportIn!BB89 -> -100000000 | H97: =ReportIn!I89 -> 0 | I97: =ReportIn!G89 -> 0.0355 | J97: =ReportIn!AB89:AB89 -> 1 | K97: =ReportIn!AZ89 -> Short Term Money Market Deposit | L97: =ReportIn!AL89 -> RHB BANK | M97: =ReportIn!N89 -> 41877 | N97: =ReportIn!Q89 -> 41878 | O97: =ROUND(H97*J97*I97/VLOOKUP(ReportIn!C89,aaCshSecurityPdf!A:E,5,0),2) ->  | P97: =ReportIn!T89 -> 001-00-328565 | Q97: =ReportIn!AR89 -> BHLBT | R97: =ReportIn!AC89 -> 
C98: =ReportIn!F90 -> HLGIMF | D98: =ReportIn!AI90 -> U2- HONG LEONG INCOME MANAGEMENT FUND | E98: =ReportIn!H90 -> 0 | F98: =ReportIn!AD90 -> 0 | G98: =ReportIn!BB90 -> 70110000 | H98: =ReportIn!I90 -> 70110000 | I98: =ReportIn!G90 -> 0.036 | J98: =ReportIn!AB90:AB90 -> 29 | K98: =ReportIn!AZ90 -> Short Term Money Market Deposit | L98: =ReportIn!AL90 -> PUBLIC BANK BERHAD | M98: =ReportIn!N90 -> 41877 | N98: =ReportIn!Q90 -> 41906 | O98: =ROUND(H98*J98*I98/VLOOKUP(ReportIn!C90,aaCshSecurityPdf!A:E,5,0),2) ->  | P98: =ReportIn!T90 -> 001-00-328565 | Q98: =ReportIn!AR90 -> BHLBT | R98: =ReportIn!AC90 -> Kelvin
C99: =ReportIn!F91 -> HLGIMF | D99: =ReportIn!AI91 -> U2- HONG LEONG INCOME MANAGEMENT FUND | E99: =ReportIn!H91 -> 0 | F99: =ReportIn!AD91 -> 0 | G99: =ReportIn!BB91 -> 65000000 | H99: =ReportIn!I91 -> 65000000 | I99: =ReportIn!G91 -> 0.036 | J99: =ReportIn!AB91:AB91 -> 31 | K99: =ReportIn!AZ91 -> Short Term Money Market Deposit | L99: =ReportIn!AL91 -> PUBLIC BANK BERHAD | M99: =ReportIn!N91 -> 41877 | N99: =ReportIn!Q91 -> 41908 | O99: =ROUND(H99*J99*I99/VLOOKUP(ReportIn!C91,aaCshSecurityPdf!A:E,5,0),2) ->  | P99: =ReportIn!T91 -> 001-00-328565 | Q99: =ReportIn!AR91 -> BHLBT | R99: =ReportIn!AC91 -> Kelvin
C100: =ReportIn!F92 -> HLGIMF | D100: =ReportIn!AI92 -> U2- HONG LEONG INCOME MANAGEMENT FUND | E100: =ReportIn!H92 -> 0 | F100: =ReportIn!AD92 -> 0 | G100: =ReportIn!BB92 -> 45000000 | H100: =ReportIn!I92 -> 45000000 | I100: =ReportIn!G92 -> 0.0355 | J100: =ReportIn!AB92:AB92 -> 30 | K100: =ReportIn!AZ92 -> Short Term Money Market Deposit | L100: =ReportIn!AL92 -> RHB BANK | M100: =ReportIn!N92 -> 41877 | N100: =ReportIn!Q92 -> 41907 | O100: =ROUND(H100*J100*I100/VLOOKUP(ReportIn!C92,aaCshSecurityPdf!A:E,5,0),2) ->  | P100: =ReportIn!T92 -> 001-00-328565 | Q100: =ReportIn!AR92 -> BHLBT | R100: =ReportIn!AC92 -> Farida
C101: =ReportIn!F93 -> HLGIMF | D101: =ReportIn!AI93 -> U2- HONG LEONG INCOME MANAGEMENT FUND | E101: =ReportIn!H93 -> 0 | F101: =ReportIn!AD93 -> 0 | G101: =ReportIn!BB93 -> 45000000 | H101: =ReportIn!I93 -> 45000000 | I101: =ReportIn!G93 -> 0.0355 | J101: =ReportIn!AB93:AB93 -> 29 | K101: =ReportIn!AZ93 -> Short Term Money Market Deposit | L101: =ReportIn!AL93 -> RHB BANK | M101: =ReportIn!N93 -> 41877 | N101: =ReportIn!Q93 -> 41906 | O101: =ROUND(H101*J101*I101/VLOOKUP(ReportIn!C93,aaCshSecurityPdf!A:E,5,0),2) ->  | P101: =ReportIn!T93 -> 001-00-328565 | Q101: =ReportIn!AR93 -> BHLBT | R101: =ReportIn!AC93 -> Farida
C102: =ReportIn!F94 -> HLGMAROF | D102: =ReportIn!AI94 -> L3- HONG LEONG DANA MAA'ROF | E102: =ReportIn!H94 -> 2200000 | F102: =ReportIn!AD94 -> 192.88 | G102: =ReportIn!BB94 -> -2200000 | H102: =ReportIn!I94 -> 0 | I102: =ReportIn!G94 -> 0.032 | J102: =ReportIn!AB94:AB94 -> 1 | K102: =ReportIn!AZ94 -> Short Term Money Market Deposit - Islamic | L102: =ReportIn!AL94 -> PUBLIC ISLAMIC BANK BERHAD | M102: =ReportIn!N94 -> 41877 | N102: =ReportIn!Q94 -> 41878 | O102: =ROUND(H102*J102*I102/VLOOKUP(ReportIn!C94,aaCshSecurityPdf!A:E,5,0),2) ->  | P102: =ReportIn!T94 -> MAIN-MYR-00101503310 | Q102: =ReportIn!AR94 -> DTMB | R102: =ReportIn!AC94 -> 
C103: =ReportIn!F95 -> HLGMAROF | D103: =ReportIn!AI95 -> L3- HONG LEONG DANA MAA'ROF | E103: =ReportIn!H95 -> 2292000 | F103: =ReportIn!AD95 -> 200.94 | G103: =ReportIn!BB95 -> -2292000 | H103: =ReportIn!I95 -> 0 | I103: =ReportIn!G95 -> 0.032 | J103: =ReportIn!AB95:AB95 -> 1 | K103: =ReportIn!AZ95 -> Short Term Money Market Deposit - Islamic | L103: =ReportIn!AL95 -> RHB ISLAMIC BANK BERHAD | M103: =ReportIn!N95 -> 41877 | N103: =ReportIn!Q95 -> 41878 | O103: =ROUND(H103*J103*I103/VLOOKUP(ReportIn!C95,aaCshSecurityPdf!A:E,5,0),2) ->  | P103: =ReportIn!T95 -> MAIN-MYR-00101503310 | Q103: =ReportIn!AR95 -> DTMB | R103: =ReportIn!AC95 -> 
C104: =ReportIn!F96 -> HLGMAROF | D104: =ReportIn!AI96 -> L3- HONG LEONG DANA MAA'ROF | E104: =ReportIn!H96 -> 0 | F104: =ReportIn!AD96 -> 0 | G104: =ReportIn!BB96 -> 2200000 | H104: =ReportIn!I96 -> 2200000 | I104: =ReportIn!G96 -> 0.032 | J104: =ReportIn!AB96:AB96 -> 1 | K104: =ReportIn!AZ96 -> Short Term Money Market Deposit - Islamic | L104: =ReportIn!AL96 -> PUBLIC ISLAMIC BANK BERHAD | M104: =ReportIn!N96 -> 41877 | N104: =ReportIn!Q96 -> 41878 | O104: =ROUND(H104*J104*I104/VLOOKUP(ReportIn!C96,aaCshSecurityPdf!A:E,5,0),2) ->  | P104: =ReportIn!T96 -> MAIN-MYR-00101503310 | Q104: =ReportIn!AR96 -> DTMB | R104: =ReportIn!AC96 -> Hisham
C105: =ReportIn!F97 -> HLGMAROF | D105: =ReportIn!AI97 -> L3- HONG LEONG DANA MAA'ROF | E105: =ReportIn!H97 -> 0 | F105: =ReportIn!AD97 -> 0 | G105: =ReportIn!BB97 -> 2261000 | H105: =ReportIn!I97 -> 2261000 | I105: =ReportIn!G97 -> 0.032 | J105: =ReportIn!AB97:AB97 -> 1 | K105: =ReportIn!AZ97 -> Short Term Money Market Deposit - Islamic | L105: =ReportIn!AL97 -> RHB ISLAMIC BANK BERHAD | M105: =ReportIn!N97 -> 41877 | N105: =ReportIn!Q97 -> 41878 | O105: =ROUND(H105*J105*I105/VLOOKUP(ReportIn!C97,aaCshSecurityPdf!A:E,5,0),2) ->  | P105: =ReportIn!T97 -> MAIN-MYR-00101503310 | Q105: =ReportIn!AR97 -> DTMB | R105: =ReportIn!AC97 -> Shima
C106: =ReportIn!F98 -> HLGMMF | D106: =ReportIn!AI98 -> L1- HONG LEONG BOND FUND | E106: =ReportIn!H98 -> 8989000 | F106: =ReportIn!AD98 -> 800.39 | G106: =ReportIn!BB98 -> -8989000 | H106: =ReportIn!I98 -> 0 | I106: =ReportIn!G98 -> 0.0325 | J106: =ReportIn!AB98:AB98 -> 1 | K106: =ReportIn!AZ98 -> Short Term Money Market Deposit | L106: =ReportIn!AL98 -> CIMB BANK | M106: =ReportIn!N98 -> 41877 | N106: =ReportIn!Q98 -> 41878 | O106: =ROUND(H106*J106*I106/VLOOKUP(ReportIn!C98,aaCshSecurityPdf!A:E,5,0),2) ->  | P106: =ReportIn!T98 -> MAIN-MYR-00100736690 | Q106: =ReportIn!AR98 -> DTMB | R106: =ReportIn!AC98 -> 
C107: =ReportIn!F99 -> HLGMMF | D107: =ReportIn!AI99 -> L1- HONG LEONG BOND FUND | E107: =ReportIn!H99 -> 0 | F107: =ReportIn!AD99 -> 0 | G107: =ReportIn!BB99 -> 1000000 | H107: =ReportIn!I99 -> 1000000 | I107: =ReportIn!G99 -> 0.036 | J107: =ReportIn!AB99:AB99 -> 31 | K107: =ReportIn!AZ99 -> Short Term Money Market Deposit | L107: =ReportIn!AL99 -> PUBLIC BANK BERHAD | M107: =ReportIn!N99 -> 41877 | N107: =ReportIn!Q99 -> 41908 | O107: =ROUND(H107*J107*I107/VLOOKUP(ReportIn!C99,aaCshSecurityPdf!A:E,5,0),2) ->  | P107: =ReportIn!T99 -> MAIN-MYR-00100736690 | Q107: =ReportIn!AR99 -> DTMB | R107: =ReportIn!AC99 -> Kelvin
C108: =ReportIn!F100 -> HLGMMF | D108: =ReportIn!AI100 -> L1- HONG LEONG BOND FUND | E108: =ReportIn!H100 -> 0 | F108: =ReportIn!AD100 -> 0 | G108: =ReportIn!BB100 -> 8092000 | H108: =ReportIn!I100 -> 8092000 | I108: =ReportIn!G100 -> 0.0325 | J108: =ReportIn!AB100:AB100 -> 1 | K108: =ReportIn!AZ100 -> Short Term Money Market Deposit | L108: =ReportIn!AL100 -> CIMB BANK | M108: =ReportIn!N100 -> 41877 | N108: =ReportIn!Q100 -> 41878 | O108: =ROUND(H108*J108*I108/VLOOKUP(ReportIn!C100,aaCshSecurityPdf!A:E,5,0),2) ->  | P108: =ReportIn!T100 -> MAIN-MYR-00100736690 | Q108: =ReportIn!AR100 -> DTMB | R108: =ReportIn!AC100 -> Viknes
C109: =ReportIn!F101 -> HLGPSF | D109: =ReportIn!AI101 -> H2- HONG LEONG PENNY STOCK | E109: =ReportIn!H101 -> 14345000 | F109: =ReportIn!AD101 -> 1277.29 | G109: =ReportIn!BB101 -> -14345000 | H109: =ReportIn!I101 -> 0 | I109: =ReportIn!G101 -> 0.0325 | J109: =ReportIn!AB101:AB101 -> 1 | K109: =ReportIn!AZ101 -> Short Term Money Market Deposit | L109: =ReportIn!AL101 -> HONG LEONG INVESTMENT BANK | M109: =ReportIn!N101 -> 41877 | N109: =ReportIn!Q101 -> 41878 | O109: =ROUND(H109*J109*I109/VLOOKUP(ReportIn!C101,aaCshSecurityPdf!A:E,5,0),2) ->  | P109: =ReportIn!T101 -> MAIN-MYR-00100719064 | Q109: =ReportIn!AR101 -> DTMB | R109: =ReportIn!AC101 -> 
C110: =ReportIn!F102 -> HLGPSF | D110: =ReportIn!AI102 -> H2- HONG LEONG PENNY STOCK | E110: =ReportIn!H102 -> 0 | F110: =ReportIn!AD102 -> 0 | G110: =ReportIn!BB102 -> 14432000 | H110: =ReportIn!I102 -> 14432000 | I110: =ReportIn!G102 -> 0.0325 | J110: =ReportIn!AB102:AB102 -> 1 | K110: =ReportIn!AZ102 -> Short Term Money Market Deposit | L110: =ReportIn!AL102 -> HONG LEONG INVESTMENT BANK | M110: =ReportIn!N102 -> 41877 | N110: =ReportIn!Q102 -> 41878 | O110: =ROUND(H110*J110*I110/VLOOKUP(ReportIn!C102,aaCshSecurityPdf!A:E,5,0),2) ->  | P110: =ReportIn!T102 -> MAIN-MYR-00100719064 | Q110: =ReportIn!AR102 -> DTMB | R110: =ReportIn!AC102 -> Sophia
C111: =ReportIn!F103 -> HLGSF | D111: =ReportIn!AI103 -> L6- HONG LEONG STRATEGIC | E111: =ReportIn!H103 -> 4012000 | F111: =ReportIn!AD103 -> 357.23 | G111: =ReportIn!BB103 -> -4012000 | H111: =ReportIn!I103 -> 0 | I111: =ReportIn!G103 -> 0.0325 | J111: =ReportIn!AB103:AB103 -> 1 | K111: =ReportIn!AZ103 -> Short Term Money Market Deposit | L111: =ReportIn!AL103 -> PUBLIC BANK BERHAD | M111: =ReportIn!N103 -> 41877 | N111: =ReportIn!Q103 -> 41878 | O111: =ROUND(H111*J111*I111/VLOOKUP(ReportIn!C103,aaCshSecurityPdf!A:E,5,0),2) ->  | P111: =ReportIn!T103 -> MAIN-MYR-00100719105 | Q111: =ReportIn!AR103 -> DTMB | R111: =ReportIn!AC103 -> 
C112: =ReportIn!F104 -> HLGSF | D112: =ReportIn!AI104 -> L6- HONG LEONG STRATEGIC | E112: =ReportIn!H104 -> 0 | F112: =ReportIn!AD104 -> 0 | G112: =ReportIn!BB104 -> 4308000 | H112: =ReportIn!I104 -> 4308000 | I112: =ReportIn!G104 -> 0.0325 | J112: =ReportIn!AB104:AB104 -> 1 | K112: =ReportIn!AZ104 -> Short Term Money Market Deposit | L112: =ReportIn!AL104 -> PUBLIC BANK BERHAD | M112: =ReportIn!N104 -> 41877 | N112: =ReportIn!Q104 -> 41878 | O112: =ROUND(H112*J112*I112/VLOOKUP(ReportIn!C104,aaCshSecurityPdf!A:E,5,0),2) ->  | P112: =ReportIn!T104 -> MAIN-MYR-00100719105 | Q112: =ReportIn!AR104 -> DTMB | R112: =ReportIn!AC104 -> Kelvin
C113: =ReportIn!F105 -> HLHKEOF | D113: =ReportIn!AI105 -> 040- HONG LEONG HONG KONG EQUITY OPTIMIZER FUND | E113: =ReportIn!H105 -> 4376000 | F113: =ReportIn!AD105 -> 389.64 | G113: =ReportIn!BB105 -> -4376000 | H113: =ReportIn!I105 -> 0 | I113: =ReportIn!G105 -> 0.0325 | J113: =ReportIn!AB105:AB105 -> 1 | K113: =ReportIn!AZ105 -> Short Term Money Market Deposit | L113: =ReportIn!AL105 -> PUBLIC BANK BERHAD | M113: =ReportIn!N105 -> 41877 | N113: =ReportIn!Q105 -> 41878 | O113: =ROUND(H113*J113*I113/VLOOKUP(ReportIn!C105,aaCshSecurityPdf!A:E,5,0),2) ->  | P113: =ReportIn!T105 -> MAIN-MYR-00100719040 | Q113: =ReportIn!AR105 -> DTMB | R113: =ReportIn!AC105 -> 
C114: =ReportIn!F106 -> HLHKEOF | D114: =ReportIn!AI106 -> 040- HONG LEONG HONG KONG EQUITY OPTIMIZER FUND | E114: =ReportIn!H106 -> 0 | F114: =ReportIn!AD106 -> 0 | G114: =ReportIn!BB106 -> 4383000 | H114: =ReportIn!I106 -> 4383000 | I114: =ReportIn!G106 -> 0.0325 | J114: =ReportIn!AB106:AB106 -> 1 | K114: =ReportIn!AZ106 -> Short Term Money Market Deposit | L114: =ReportIn!AL106 -> PUBLIC BANK BERHAD | M114: =ReportIn!N106 -> 41877 | N114: =ReportIn!Q106 -> 41878 | O114: =ROUND(H114*J114*I114/VLOOKUP(ReportIn!C106,aaCshSecurityPdf!A:E,5,0),2) ->  | P114: =ReportIn!T106 -> MAIN-MYR-00100719040 | Q114: =ReportIn!AR106 -> DTMB | R114: =ReportIn!AC106 -> Kelvin
C115: =ReportIn!F107 -> HLICMF | D115: =ReportIn!AI107 -> 044-HONG LEONG ISLAMIC CASH MANAGEMENT FUND | E115: =ReportIn!H107 -> 5457000 | F115: =ReportIn!AD107 -> 3380.35 | G115: =ReportIn!BB107 -> -5457000 | H115: =ReportIn!I107 -> 0 | I115: =ReportIn!G107 -> 0.0323 | J115: =ReportIn!AB107:AB107 -> 1 | K115: =ReportIn!AZ107 -> Short Term Money Market Deposit - Islamic | L115: =ReportIn!AL107 -> PUBLIC ISLAMIC BANK BERHAD | M115: =ReportIn!N107 -> 41877 | N115: =ReportIn!Q107 -> 41878 | O115: =ROUND(H115*J115*I115/VLOOKUP(ReportIn!C107,aaCshSecurityPdf!A:E,5,0),2) ->  | P115: =ReportIn!T107 -> MAIN-MYR-00101503736 | Q115: =ReportIn!AR107 -> DTMB | R115: =ReportIn!AC107 -> 
C116: =ReportIn!F108 -> HLICMF | D116: =ReportIn!AI108 -> 044-HONG LEONG ISLAMIC CASH MANAGEMENT FUND | E116: =ReportIn!H108 -> 0 | F116: =ReportIn!AD108 -> 0 | G116: =ReportIn!BB108 -> 5457000 | H116: =ReportIn!I108 -> 5457000 | I116: =ReportIn!G108 -> 0.033 | J116: =ReportIn!AB108:AB108 -> 7 | K116: =ReportIn!AZ108 -> Short Term Money Market Deposit - Islamic | L116: =ReportIn!AL108 -> CIMB ISLAMIC BANK | M116: =ReportIn!N108 -> 41877 | N116: =ReportIn!Q108 -> 41884 | O116: =ROUND(H116*J116*I116/VLOOKUP(ReportIn!C108,aaCshSecurityPdf!A:E,5,0),2) ->  | P116: =ReportIn!T108 -> MAIN-MYR-00101503736 | Q116: =ReportIn!AR108 -> DTMB | R116: =ReportIn!AC108 -> Fatin
C117: =ReportIn!F109 -> HLIIIMFII | D117: =ReportIn!AI109 -> 042-HL ISLAMIC INSTITUTIONAL INC MGT FUND II | E117: =ReportIn!H109 -> 6513000 | F117: =ReportIn!AD109 -> 571 | G117: =ReportIn!BB109 -> -6513000 | H117: =ReportIn!I109 -> 0 | I117: =ReportIn!G109 -> 0.032 | J117: =ReportIn!AB109:AB109 -> 1 | K117: =ReportIn!AZ109 -> Short Term Money Market Deposit - Islamic | L117: =ReportIn!AL109 -> PUBLIC ISLAMIC BANK BERHAD | M117: =ReportIn!N109 -> 41877 | N117: =ReportIn!Q109 -> 41878 | O117: =ROUND(H117*J117*I117/VLOOKUP(ReportIn!C109,aaCshSecurityPdf!A:E,5,0),2) ->  | P117: =ReportIn!T109 -> MAIN-MYR-00101503664 | Q117: =ReportIn!AR109 -> DTMB | R117: =ReportIn!AC109 -> 
C118: =ReportIn!F110 -> HLIIIMFII | D118: =ReportIn!AI110 -> 042-HL ISLAMIC INSTITUTIONAL INC MGT FUND II | E118: =ReportIn!H110 -> 1500000 | F118: =ReportIn!AD110 -> 131.51 | G118: =ReportIn!BB110 -> -1500000 | H118: =ReportIn!I110 -> 0 | I118: =ReportIn!G110 -> 0.032 | J118: =ReportIn!AB110:AB110 -> 1 | K118: =ReportIn!AZ110 -> Short Term Money Market Deposit - Islamic | L118: =ReportIn!AL110 -> RHB ISLAMIC BANK BERHAD | M118: =ReportIn!N110 -> 41877 | N118: =ReportIn!Q110 -> 41878 | O118: =ROUND(H118*J118*I118/VLOOKUP(ReportIn!C110,aaCshSecurityPdf!A:E,5,0),2) ->  | P118: =ReportIn!T110 -> MAIN-MYR-00101503664 | Q118: =ReportIn!AR110 -> DTMB | R118: =ReportIn!AC110 -> 
C119: =ReportIn!F111 -> HLIIIMFII | D119: =ReportIn!AI111 -> 042-HL ISLAMIC INSTITUTIONAL INC MGT FUND II | E119: =ReportIn!H111 -> 0 | F119: =ReportIn!AD111 -> 0 | G119: =ReportIn!BB111 -> 6514000 | H119: =ReportIn!I111 -> 6514000 | I119: =ReportIn!G111 -> 0.032 | J119: =ReportIn!AB111:AB111 -> 1 | K119: =ReportIn!AZ111 -> Short Term Money Market Deposit - Islamic | L119: =ReportIn!AL111 -> PUBLIC ISLAMIC BANK BERHAD | M119: =ReportIn!N111 -> 41877 | N119: =ReportIn!Q111 -> 41878 | O119: =ROUND(H119*J119*I119/VLOOKUP(ReportIn!C111,aaCshSecurityPdf!A:E,5,0),2) ->  | P119: =ReportIn!T111 -> MAIN-MYR-00101503664 | Q119: =ReportIn!AR111 -> DTMB | R119: =ReportIn!AC111 -> Hisham
C120: =ReportIn!F112 -> HLIIIMFII | D120: =ReportIn!AI112 -> 042-HL ISLAMIC INSTITUTIONAL INC MGT FUND II | E120: =ReportIn!H112 -> 0 | F120: =ReportIn!AD112 -> 0 | G120: =ReportIn!BB112 -> 1500000 | H120: =ReportIn!I112 -> 1500000 | I120: =ReportIn!G112 -> 0.032 | J120: =ReportIn!AB112:AB112 -> 1 | K120: =ReportIn!AZ112 -> Short Term Money Market Deposit - Islamic | L120: =ReportIn!AL112 -> RHB ISLAMIC BANK BERHAD | M120: =ReportIn!N112 -> 41877 | N120: =ReportIn!Q112 -> 41878 | O120: =ROUND(H120*J120*I120/VLOOKUP(ReportIn!C112,aaCshSecurityPdf!A:E,5,0),2) ->  | P120: =ReportIn!T112 -> MAIN-MYR-00101503664 | Q120: =ReportIn!AR112 -> DTMB | R120: =ReportIn!AC112 -> Shima
C121: =ReportIn!F113 -> HLWBoF | D121: =ReportIn!AI113 -> 043-HONG LEONG WHOLESALE BOND FUND | E121: =ReportIn!H113 -> 18977000 | F121: =ReportIn!AD113 -> 1689.73 | G121: =ReportIn!BB113 -> -18977000 | H121: =ReportIn!I113 -> 0 | I121: =ReportIn!G113 -> 0.0325 | J121: =ReportIn!AB113:AB113 -> 1 | K121: =ReportIn!AZ113 -> Short Term Money Market Deposit | L121: =ReportIn!AL113 -> HONG LEONG INVESTMENT BANK | M121: =ReportIn!N113 -> 41877 | N121: =ReportIn!Q113 -> 41878 | O121: =ROUND(H121*J121*I121/VLOOKUP(ReportIn!C113,aaCshSecurityPdf!A:E,5,0),2) ->  | P121: =ReportIn!T113 -> MAIN-MYR-00100879337 | Q121: =ReportIn!AR113 -> DTMB | R121: =ReportIn!AC113 -> 
C122: =ReportIn!F114 -> HLWBoF | D122: =ReportIn!AI114 -> 043-HONG LEONG WHOLESALE BOND FUND | E122: =ReportIn!H114 -> 0 | F122: =ReportIn!AD114 -> 0 | G122: =ReportIn!BB114 -> 18979000 | H122: =ReportIn!I114 -> 18979000 | I122: =ReportIn!G114 -> 0.0325 | J122: =ReportIn!AB114:AB114 -> 1 | K122: =ReportIn!AZ114 -> Short Term Money Market Deposit | L122: =ReportIn!AL114 -> HONG LEONG INVESTMENT BANK | M122: =ReportIn!N114 -> 41877 | N122: =ReportIn!Q114 -> 41878 | O122: =ROUND(H122*J122*I122/VLOOKUP(ReportIn!C114,aaCshSecurityPdf!A:E,5,0),2) ->  | P122: =ReportIn!T114 -> MAIN-MYR-00100879337 | Q122: =ReportIn!AR114 -> DTMB | R122: =ReportIn!AC114 -> Sophia

Sheet Main (hidden)
M1: Box 389, Lot 7.16, Wisma Central, Jln Ampang, 50450 Kuala Lumpur | S1: BoBizDate | T1: BoLstBizDate
S2: 2019-06-27 | T2: 2019-06-26 | U2: FDC | V2: 0
U3: FDC | V3: 1
U4: FDI | V4: 2
B5: Upload Detail | U5: RPI
U6: RPC
B7: Radar Cash Upload Program | U7: RST
C10: Value Date | E10: 2019-10-02
C11: Business Date | E11: 2019-06-27
C12: Last Business Date | E12: =T2 -> 2019-06-26
C16: Instruction:-
C17: 1. Key in Placement Date and Click Import Button in Main Sheet.
C18: 2. Key in data in CSH Sheet.
C19: 3. Can Batch Upload to OnePortFolio
C20: (OnePortFolio -> Radar Cash -> NonOmnibus Placement -> "Batch Upload" button) | M20: **Import Static Data, CashFlow & MaturityListing It will clear data before Import

Sheet CSH (hidden)
A1: Group | B1: Fund | C1: Rate (%) | D1: Tenor | E1: Placement Date | F1: Maturity Date | G1: Financial Institution | H1: Placement Type | I1: Amount (RM) | J1: FI Dealer | K1: Source Bank Account No | L1: Currency | M1: Roll Over Flag | N1: Maturity Principle | O1: Maturity Profit | P1: Accrued Valuation | Q1: Remark
A2: A | C2: 0 | D2: 0 | E2: =BizDate -> 2019-06-27 | F2: =E2+D2 -> 2019-06-27 | H2: RCB | I2: 0 | K2: ="DF" -> DF | L2: ="MYR" -> MYR | M2: 0 | N2: 0 | O2: 0 | P2: 1
A3: A | C3: 0 | D3: 0 | E3: =BizDate -> 2019-06-27 | F3: =E3+D3 -> 2019-06-27 | H3: RCB | I3: 0 | K3: ="DF" -> DF | L3: ="MYR" -> MYR | M3: 0 | N3: 0 | O3: 0 | P3: 1
A4: A | C4: 0 | D4: 0 | E4: =BizDate -> 2019-06-27 | F4: =E4+D4 -> 2019-06-27 | H4: RCB | I4: 0 | K4: ="DF" -> DF | L4: ="MYR" -> MYR | M4: 0 | N4: 0 | O4: 0 | P4: 1
A5: A | C5: 0 | D5: 0 | E5: =BizDate -> 2019-06-27 | F5: =E5+D5 -> 2019-06-27 | H5: RCB | I5: 0 | K5: ="DF" -> DF | L5: ="MYR" -> MYR | M5: 0 | N5: 0 | O5: 0 | P5: 1
A6: A | C6: 0 | D6: 0 | E6: =BizDate -> 2019-06-27 | F6: =E6+D6 -> 2019-06-27 | H6: RCB | I6: 0 | K6: ="DF" -> DF | L6: ="MYR" -> MYR | M6: 0 | N6: 0 | O6: 0 | P6: 1
A7: A | C7: 0 | D7: 0 | E7: =BizDate -> 2019-06-27 | F7: =E7+D7 -> 2019-06-27 | H7: RCB | I7: 0 | K7: ="DF" -> DF | L7: ="MYR" -> MYR | M7: 0 | N7: 0 | O7: 0 | P7: 1
A8: A | C8: 0 | D8: 0 | E8: =BizDate -> 2019-06-27 | F8: =E8+D8 -> 2019-06-27 | H8: RCB | I8: 0 | K8: ="DF" -> DF | L8: ="MYR" -> MYR | M8: 0 | N8: 0 | O8: 0 | P8: 1
A9: A | C9: 0 | D9: 0 | E9: =BizDate -> 2019-06-27 | F9: =E9+D9 -> 2019-06-27 | H9: RCB | I9: 0 | K9: ="DF" -> DF | L9: ="MYR" -> MYR | M9: 0 | N9: 0 | O9: 0 | P9: 1
A10: A | C10: 0 | D10: 0 | E10: =BizDate -> 2019-06-27 | F10: =E10+D10 -> 2019-06-27 | H10: RCB | I10: 0 | K10: ="DF" -> DF | L10: ="MYR" -> MYR | M10: 0 | N10: 0 | O10: 0 | P10: 1
A11: A | C11: 0 | D11: 0 | E11: =BizDate -> 2019-06-27 | F11: =E11+D11 -> 2019-06-27 | H11: RCB | I11: 0 | K11: ="DF" -> DF | L11: ="MYR" -> MYR | M11: 0 | N11: 0 | O11: 0 | P11: 1
A12: A | C12: 0 | D12: 0 | E12: =BizDate -> 2019-06-27 | F12: =E12+D12 -> 2019-06-27 | H12: RCB | I12: 0 | K12: ="DF" -> DF | L12: ="MYR" -> MYR | M12: 0 | N12: 0 | O12: 0 | P12: 1
A13: A | C13: 0 | D13: 0 | E13: =BizDate -> 2019-06-27 | F13: =E13+D13 -> 2019-06-27 | H13: RCB | I13: 0 | K13: ="DF" -> DF | L13: ="MYR" -> MYR | M13: 0 | N13: 0 | O13: 0 | P13: 1
A14: A | C14: 0 | D14: 0 | E14: =BizDate -> 2019-06-27 | F14: =E14+D14 -> 2019-06-27 | H14: RCB | I14: 0 | K14: ="DF" -> DF | L14: ="MYR" -> MYR | M14: 0 | N14: 0 | O14: 0 | P14: 1
A15: A | C15: 0 | D15: 0 | E15: =BizDate -> 2019-06-27 | F15: =E15+D15 -> 2019-06-27 | H15: RCB | I15: 0 | K15: ="DF" -> DF | L15: ="MYR" -> MYR | M15: 0 | N15: 0 | O15: 0 | P15: 1
A16: A | C16: 0 | D16: 0 | E16: =BizDate -> 2019-06-27 | F16: =E16+D16 -> 2019-06-27 | H16: RCB | I16: 0 | K16: ="DF" -> DF | L16: ="MYR" -> MYR | M16: 0 | N16: 0 | O16: 0 | P16: 1
A17: A | C17: 0 | D17: 0 | E17: =BizDate -> 2019-06-27 | F17: =E17+D17 -> 2019-06-27 | H17: RCB | I17: 0 | K17: ="DF" -> DF | L17: ="MYR" -> MYR | M17: 0 | N17: 0 | O17: 0 | P17: 1
A18: A | C18: 0 | D18: 0 | E18: =BizDate -> 2019-06-27 | F18: =E18+D18 -> 2019-06-27 | H18: RCB | I18: 0 | K18: ="DF" -> DF | L18: ="MYR" -> MYR | M18: 0 | N18: 0 | O18: 0 | P18: 1
A19: A | C19: 0 | D19: 0 | E19: =BizDate -> 2019-06-27 | F19: =E19+D19 -> 2019-06-27 | H19: RCB | I19: 0 | K19: ="DF" -> DF | L19: ="MYR" -> MYR | M19: 0 | N19: 0 | O19: 0 | P19: 1
A20: A | C20: 0 | D20: 0 | E20: =BizDate -> 2019-06-27 | F20: =E20+D20 -> 2019-06-27 | H20: RCB | I20: 0 | K20: ="DF" -> DF | L20: ="MYR" -> MYR | M20: 0 | N20: 0 | O20: 0 | P20: 1

Sheet CashFlowDetails (hidden)
A7: STATEMENT OF BANK BALANCES AS AT 12 JUNE-19
A8: No | B8: Fund Code | C8: Currency | D8: Additional Cash | E8: Capital In/Out | F8: Actual Bank Balance | G8: GL Bank Balance | H8: Effective Bank Balance | I8: Today In Flow | J8: Today Out Flow | K8: Cash Available | L8: Proposed Placement | M8: Proposed Payment/Rollover | N8: Note | O8: Balance After Placement
A9: 1 | B9: TABRIC | C9: MYR | D9: 0 | E9: 0 | F9: 31424.34 | G9: 31424.84 | H9: 31424.34 | I9: 146135.28 | J9: 0 | K9: 177559.62 | L9: 0 | M9: 0 | O9: =K9-L9-M9 -> 177559.62
A10: 2 | B10: TACF | C10: MYR | D10: 0 | E10: 0 | F10: 24152.55 | G10: 24152.25 | H10: 24152.55 | I10: 1968440.51 | J10: 0 | K10: 1992593.06 | L10: 0 | M10: 0 | O10: =K10-L10-M10 -> 1992593.06
A11: 3 | B11: TADO | C11: MYR | D11: 0 | E11: 0 | F11: 31329.73 | G11: 31334.83 | H11: 31329.73 | I11: 847281.92 | J11: 0 | K11: 878611.65 | L11: 0 | M11: 0 | O11: =K11-L11-M11 -> 878611.65
A12: 4 | B12: TAGF | C12: MYR | D12: 0 | E12: 0 | F12: 47579.3 | G12: 47579.41 | H12: 47579.3 | I12: 3375694.02 | J12: 0 | K12: 3423273.32 | L12: 0 | M12: 0 | O12: =K12-L12-M12 -> 3423273.32
A13: 5 | B13: TAIB | C13: MYR | D13: 0 | E13: 0 | F13: 26867.75 | G13: 29516.55 | H13: 26867.75 | I13: 2032394.92 | J13: 0 | K13: 2059262.67 | L13: 0 | M13: 0 | O13: =K13-L13-M13 -> 2059262.67
A14: 6 | B14: TAICP | C14: MYR | D14: 0 | E14: 0 | F14: 47821.94 | G14: 47822.04 | H14: 47821.94 | I14: 14782206.43 | J14: 0 | K14: 14830028.37 | L14: 0 | M14: 0 | O14: =K14-L14-M14 -> 14830028.37
A15: 7 | B15: TASCAP | C15: MYR | D15: 0 | E15: 0 | F15: 25573.85 | G15: 25582.85 | H15: 25573.85 | I15: 496893.76 | J15: 0 | K15: 522467.61 | L15: 0 | M15: 0 | O15: =K15-L15-M15 -> 522467.61
A16: 8 | B16: TRFIF | C16: MYR | D16: 0 | E16: 0 | F16: 60081.41 | G16: 60081.51 | H16: 60081.41 | I16: 0 | J16: 0 | K16: 60081.41 | L16: 0 | M16: 0 | O16: =K16-L16-M16 -> 60081.41
A17: 9 | B17: TADART | C17: MYR | D17: 0 | E17: 0 | F17: 23025.31 | G17: 23025.31 | H17: 23025.31 | I17: 882697.65 | J17: 0 | K17: 905722.96 | L17: 0 | M17: 0 | O17: =K17-L17-M17 -> 905722.96
A18: 10 | B18: TADG50 | C18: MYR | D18: 0 | E18: 0 | F18: 111363.36 | G18: 111365.36 | H18: 111363.36 | I18: 5255159.26 | J18: -552278.47 | K18: 4814244.15 | L18: 0 | M18: 0 | O18: =K18-L18-M18 -> 4814244.15
A19: 11 | B19: TAACEF | C19: MYR | D19: 0 | E19: 0 | F19: 1407096.24 | G19: 1407096.24 | H19: 1407096.24 | I19: 1551245.82 | J19: -420505.34 | K19: 2537836.72 | L19: 0 | M19: 0 | O19: =K19-L19-M19 -> 2537836.72
A20: 12 | B20: TABIF | C20: MYR | D20: 0 | E20: 0 | F20: 23344.6 | G20: 23483.1 | H20: 23344.6 | I20: 2003706.95 | J20: 0 | K20: 2027051.55 | L20: 0 | M20: 0 | O20: =K20-L20-M20 -> 2027051.55
A21: 13 | B21: TARAIF | C21: MYR | D21: 0 | E21: 0 | F21: 21296.97 | G21: 21296.97 | H21: 21296.97 | I21: 4656779.81 | J21: 0 | K21: 4678076.78 | L21: 0 | M21: 0 | O21: =K21-L21-M21 -> 4678076.78
A22: 14 | B22: TARAIF2 | C22: MYR | D22: 0 | E22: 0 | F22: 20360.26 | G22: 20360.26 | H22: 20360.26 | I22: 2240467.35 | J22: 0 | K22: 2260827.61 | L22: 0 | M22: 0 | O22: =K22-L22-M22 -> 2260827.61
A23: 15 | B23: TARAIF3 | C23: MYR | D23: 0 | E23: 0 | F23: 23706.59 | G23: 23706.59 | H23: 23706.59 | I23: 42290038.43 | J23: 0 | K23: 42313745.02 | L23: 0 | M23: 0 | O23: =K23-L23-M23 -> 42313745.02
A24: 16 | B24: TARAIF6 | C24: MYR | D24: 0 | E24: 0 | F24: 7080237.07 | G24: 7080237.07 | H24: 7080237.07 | I24: 10316163.88 | J24: -359223.31 | K24: 17037177.64 | L24: 0 | M24: 0 | O24: =K24-L24-M24 -> 17037177.64
A25: 17 | B25: TAADIF | C25: MYR | D25: 0 | E25: 0 | F25: 30441.5 | G25: 30446.5 | H25: 30441.5 | I25: 1719355.72 | J25: 0 | K25: 1749797.22 | L25: 0 | M25: 0 | O25: =K25-L25-M25 -> 1749797.22
A26: 18 | B26: TADA | C26: MYR | D26: 0 | E26: 0 | F26: 30673.34 | G26: 30678.34 | H26: 30673.34 | I26: 1372089.55 | J26: -14344.57 | K26: 1388418.32 | L26: 0 | M26: 0 | O26: =K26-L26-M26 -> 1388418.32
A27: 19 | B27: TAEURO | C27: MYR | D27: 0 | E27: 0 | F27: 22615.79 | G27: 22629.79 | H27: 22615.79 | I27: 1758038.62 | J27: -64355.42 | K27: 1716298.99 | L27: 0 | M27: 0 | O27: =K27-L27-M27 -> 1716298.99
A28: 20 | B28: TAGAAF | C28: MYR | D28: 0 | E28: 0 | F28: 22721.31 | G28: 22721.31 | H28: 22721.31 | I28: 0 | J28: 0 | K28: 22721.31 | L28: 0 | M28: 0 | O28: =K28-L28-M28 -> 22721.31
A29: 21 | B29: TAGTF | C29: MYR | D29: 0 | E29: 0 | F29: 2212700.18 | G29: 2212705.18 | H29: 2212700.18 | I29: 7474902.88 | J29: -2005720.4 | K29: 7681882.66 | L29: 0 | M29: 0 | O29: =K29-L29-M29 -> 7681882.66
A30: 22 | B30: TAREIT | C30: MYR | D30: -100000 | E30: -99000 | F30: 65047.43 | G30: 67680.47 | H30: 65047.43 | I30: 1102116.37 | J30: 0 | K30: 968163.8 | L30: 0 | M30: 0 | O30: =K30-L30-M30 -> 968163.8
A31: 23 | B31: TAYS2 | C31: MYR | D31: 0 | E31: 0 | F31: 0 | G31: 884691.87 | H31: 884691.87 | I31: 0 | J31: 0 | K31: 884691.87 | L31: 0 | M31: 0 | O31: =K31-L31-M31 -> 884691.87
A32: 24 | B32: TC-CBG | C32: MYR | D32: 0 | E32: 0 | F32: 0 | G32: 2094.33 | H32: 2094.33 | I32: 0 | J32: 0 | K32: 2094.33 | L32: 0 | M32: 0 | O32: =K32-L32-M32 -> 2094.33
A33: 25 | B33: TC-CKY | C33: MYR | D33: 0 | E33: 0 | F33: 0 | G33: 4289.71 | H33: 4289.71 | I33: 0 | J33: 0 | K33: 4289.71 | L33: 0 | M33: 0 | O33: =K33-L33-M33 -> 4289.71
A34: 26 | B34: TC-HWY | C34: MYR | D34: 0 | E34: 0 | F34: 0 | G34: 8796.89 | H34: 8796.89 | I34: 0 | J34: 0 | K34: 8796.89 | L34: 0 | M34: 0 | O34: =K34-L34-M34 -> 8796.89
A35: 27 | B35: TC-LBK | C35: MYR | D35: 0 | E35: 0 | F35: 0 | G35: 711.69 | H35: 711.69 | I35: 0 | J35: 0 | K35: 711.69 | L35: 0 | M35: 0 | O35: =K35-L35-M35 -> 711.69
A36: 28 | B36: TC-MARI | C36: MYR | D36: 0 | E36: 0 | F36: 0 | G36: 8414.81 | H36: 8414.81 | I36: 0 | J36: 0 | K36: 8414.81 | L36: 0 | M36: 0 | O36: =K36-L36-M36 -> 8414.81
A37: 29 | B37: AG-JOS | C37: MYR | D37: 0 | E37: 0 | F37: 0 | G37: 81075.57 | H37: 81075.57 | I37: 0 | J37: 0 | K37: 81075.57 | L37: 0 | M37: 0 | O37: =K37-L37-M37 -> 81075.57
A38: 30 | B38: AG-KJK | C38: MYR | D38: 0 | E38: 0 | F38: 0 | G38: 7714.45 | H38: 7714.45 | I38: 0 | J38: 0 | K38: 7714.45 | L38: 0 | M38: 0 | O38: =K38-L38-M38 -> 7714.45
A39: 31 | B39: AG-NCH | C39: MYR | D39: 0 | E39: 0 | F39: 0 | G39: 3407.49 | H39: 3407.49 | I39: 0 | J39: 0 | K39: 3407.49 | L39: 0 | M39: 0 | O39: =K39-L39-M39 -> 3407.49
A40: 32 | B40: AG-NWS | C40: MYR | D40: 0 | E40: 0 | F40: 0 | G40: 1138.7 | H40: 1138.7 | I40: 0 | J40: 0 | K40: 1138.7 | L40: 0 | M40: 0 | O40: =K40-L40-M40 -> 1138.7
A41: 33 | B41: AG-SKS | C41: MYR | D41: 0 | E41: 0 | F41: 0 | G41: 76044.71 | H41: 76044.71 | I41: 0 | J41: 0 | K41: 76044.71 | L41: 0 | M41: 0 | O41: =K41-L41-M41 -> 76044.71
A42: 34 | B42: AG-TGN | C42: MYR | D42: 0 | E42: 0 | F42: 0 | G42: 7914.17 | H42: 7914.17 | I42: 0 | J42: 0 | K42: 7914.17 | L42: 0 | M42: 0 | O42: =K42-L42-M42 -> 7914.17
A43: 35 | B43: AG-THT | C43: MYR | D43: 0 | E43: 0 | F43: 0 | G43: 163960.3 | H43: 163960.3 | I43: 0 | J43: 0 | K43: 163960.3 | L43: 0 | M43: 0 | O43: =K43-L43-M43 -> 163960.3
A44: 36 | B44: AG-TJK1 | C44: MYR | D44: 0 | E44: 0 | F44: 0 | G44: 38236.18 | H44: 38236.18 | I44: 0 | J44: 0 | K44: 38236.18 | L44: 0 | M44: 0 | O44: =K44-L44-M44 -> 38236.18
A45: 37 | B45: AG-YTC | C45: MYR | D45: 0 | E45: 0 | F45: 0 | G45: 5316.39 | H45: 5316.39 | I45: 0 | J45: 0 | K45: 5316.39 | L45: 0 | M45: 0 | O45: =K45-L45-M45 -> 5316.39
A46: 38 | B46: AZI | C46: MYR | D46: 0 | E46: 0 | F46: 0 | G46: 1360.49 | H46: 1360.49 | I46: 0 | J46: 0 | K46: 1360.49 | L46: 0 | M46: 0 | O46: =K46-L46-M46 -> 1360.49
A47: 39 | B47: CWK2 | C47: MYR | D47: 0 | E47: 0 | F47: 0 | G47: 52578.37 | H47: 52578.37 | I47: 0 | J47: 0 | K47: 52578.37 | L47: 0 | M47: 0 | O47: =K47-L47-M47 -> 52578.37
A48: 40 | B48: CYT | C48: MYR | D48: 0 | E48: 0 | F48: 0 | G48: 122183.66 | H48: 122183.66 | I48: 0 | J48: 0 | K48: 122183.66 | L48: 0 | M48: 0 | O48: =K48-L48-M48 -> 122183.66
A49: 41 | B49: DTKF | C49: MYR | D49: 0 | E49: 0 | F49: 0 | G49: 374959.94 | H49: 374959.94 | I49: 0 | J49: -15165.41 | K49: 359794.53 | L49: 0 | M49: 0 | O49: =K49-L49-M49 -> 359794.53
A50: 42 | B50: LFS | C50: MYR | D50: 0 | E50: 0 | F50: 0 | G50: 207581.73 | H50: 207581.73 | I50: 0 | J50: 0 | K50: 207581.73 | L50: 0 | M50: 0 | O50: =K50-L50-M50 -> 207581.73
A51: 43 | B51: LWC | C51: MYR | D51: 0 | E51: 0 | F51: 0 | G51: 55436.3 | H51: 55436.3 | I51: 0 | J51: 0 | K51: 55436.3 | L51: 0 | M51: 0 | O51: =K51-L51-M51 -> 55436.3
A52: 44 | B52: LWL | C52: MYR | D52: 0 | E52: 0 | F52: 0 | G52: 2428.67 | H52: 2428.67 | I52: 0 | J52: 0 | K52: 2428.67 | L52: 0 | M52: 0 | O52: =K52-L52-M52 -> 2428.67
A53: 45 | B53: MACEY1 | C53: MYR | D53: 0 | E53: 0 | F53: 0 | G53: 29423.64 | H53: 29423.64 | I53: 0 | J53: 0 | K53: 29423.64 | L53: 0 | M53: 0 | O53: =K53-L53-M53 -> 29423.64
A54: 46 | B54: MF | C54: MYR | D54: 0 | E54: 0 | F54: 0 | G54: 597967.93 | H54: 597967.93 | I54: 0 | J54: 0 | K54: 597967.93 | L54: 0 | M54: 0 | O54: =K54-L54-M54 -> 597967.93
A55: 47 | B55: PRSB | C55: MYR | D55: 0 | E55: 0 | F55: 0 | G55: 386051.76 | H55: 386051.76 | I55: 0 | J55: 0 | K55: 386051.76 | L55: 0 | M55: 0 | O55: =K55-L55-M55 -> 386051.76
A56: 48 | B56: RM-CLY | C56: MYR | D56: 0 | E56: 0 | F56: 0 | G56: 691.74 | H56: 691.74 | I56: 0 | J56: 0 | K56: 691.74 | L56: 0 | M56: 0 | O56: =K56-L56-M56 -> 691.74
A57: 49 | B57: RM-CMY | C57: MYR | D57: 0 | E57: 0 | F57: 0 | G57: 2674.72 | H57: 2674.72 | I57: 0 | J57: 0 | K57: 2674.72 | L57: 0 | M57: 0 | O57: =K57-L57-M57 -> 2674.72
A58: 50 | B58: RM-CNK | C58: MYR | D58: 0 | E58: 0 | F58: 0 | G58: 637.57 | H58: 637.57 | I58: 0 | J58: 0 | K58: 637.57 | L58: 0 | M58: 0 | O58: =K58-L58-M58 -> 637.57
A59: 51 | B59: RM-CYL | C59: MYR | D59: 0 | E59: 0 | F59: 0 | G59: 696.74 | H59: 696.74 | I59: 0 | J59: 0 | K59: 696.74 | L59: 0 | M59: 0 | O59: =K59-L59-M59 -> 696.74
A60: 52 | B60: RM-LKT | C60: MYR | D60: 0 | E60: 0 | F60: 0 | G60: 616.28 | H60: 616.28 | I60: 0 | J60: 0 | K60: 616.28 | L60: 0 | M60: 0 | O60: =K60-L60-M60 -> 616.28
A61: 53 | B61: RM-LYL | C61: MYR | D61: 0 | E61: 0 | F61: 0 | G61: 1669.44 | H61: 1669.44 | I61: 0 | J61: 0 | K61: 1669.44 | L61: 0 | M61: 0 | O61: =K61-L61-M61 -> 1669.44
A62: 54 | B62: RM-TKF | C62: MYR | D62: 0 | E62: 0 | F62: 0 | G62: 1763.39 | H62: 1763.39 | I62: 0 | J62: 0 | K62: 1763.39 | L62: 0 | M62: 0 | O62: =K62-L62-M62 -> 1763.39
A63: 55 | B63: RM-TMY | C63: MYR | D63: 0 | E63: 0 | F63: 0 | G63: 9770.02 | H63: 9770.02 | I63: 0 | J63: 0 | K63: 9770.02 | L63: 0 | M63: 0 | O63: =K63-L63-M63 -> 9770.02
A64: 56 | B64: RM-TSB | C64: MYR | D64: 0 | E64: 0 | F64: 0 | G64: 2887.98 | H64: 2887.98 | I64: 0 | J64: 0 | K64: 2887.98 | L64: 0 | M64: 0 | O64: =K64-L64-M64 -> 2887.98
A65: 57 | B65: RTMOEY | C65: MYR | D65: 0 | E65: 0 | F65: 0 | G65: 9834.33 | H65: 9834.33 | I65: 0 | J65: 0 | K65: 9834.33 | L65: 0 | M65: 0 | O65: =K65-L65-M65 -> 9834.33
A66: 58 | B66: SIA | C66: MYR | D66: 0 | E66: 0 | F66: 0 | G66: 165097.51 | H66: 165097.51 | I66: 0 | J66: 0 | K66: 165097.51 | L66: 0 | M66: 0 | O66: =K66-L66-M66 -> 165097.51
A67: 59 | B67: SIA2 | C67: MYR | D67: 0 | E67: 0 | F67: 0 | G67: 118044.13 | H67: 118044.13 | I67: 0 | J67: 0 | K67: 118044.13 | L67: 0 | M67: 0 | O67: =K67-L67-M67 -> 118044.13
A68: 60 | B68: ULIN | C68: MYR | D68: 0 | E68: 0 | F68: 0 | G68: 4125.48 | H68: 4125.48 | I68: 0 | J68: 0 | K68: 4125.48 | L68: 0 | M68: 0 | O68: =K68-L68-M68 -> 4125.48
A69: 61 | B69: VL-ANU | C69: MYR | D69: 0 | E69: 0 | F69: 0 | G69: 32660.63 | H69: 32660.63 | I69: 0 | J69: -1444.33 | K69: 31216.3 | L69: 0 | M69: 0 | O69: =K69-L69-M69 -> 31216.3
A70: 62 | B70: VL-CCK | C70: MYR | D70: 0 | E70: 0 | F70: 0 | G70: 346591.15 | H70: 346591.15 | I70: 0 | J70: 0 | K70: 346591.15 | L70: 0 | M70: 0 | O70: =K70-L70-M70 -> 346591.15
A71: 63 | B71: VL-CFK | C71: MYR | D71: 0 | E71: 0 | F71: 0 | G71: 84233.86 | H71: 84233.86 | I71: 0 | J71: -3249.74 | K71: 80984.12 | L71: 0 | M71: 0 | O71: =K71-L71-M71 -> 80984.12
A72: 64 | B72: VL-CMC | C72: MYR | D72: 0 | E72: 0 | F72: 0 | G72: 104869.62 | H72: 104869.62 | I72: 0 | J72: -5416.27 | K72: 99453.35 | L72: 0 | M72: 0 | O72: =K72-L72-M72 -> 99453.35
A73: 65 | B73: VL-CSK | C73: MYR | D73: 0 | E73: 0 | F73: 0 | G73: 89102.84 | H73: 89102.84 | I73: 0 | J73: -3249.74 | K73: 85853.1 | L73: 0 | M73: 0 | O73: =K73-L73-M73 -> 85853.1
A74: 66 | B74: VL-CSY | C74: MYR | D74: 0 | E74: 0 | F74: 0 | G74: 34856.11 | H74: 34856.11 | I74: 0 | J74: -2166.48 | K74: 32689.63 | L74: 0 | M74: 0 | O74: =K74-L74-M74 -> 32689.63
A75: 67 | B75: VL-IMJ | C75: MYR | D75: 0 | E75: 0 | F75: 0 | G75: 333162.21 | H75: 333162.21 | I75: 0 | J75: 0 | K75: 333162.21 | L75: 0 | M75: 0 | O75: =K75-L75-M75 -> 333162.21
A76: 68 | B76: VL-LKS | C76: MYR | D76: 0 | E76: 0 | F76: 0 | G76: 2853383.89 | H76: 2853383.89 | I76: 0 | J76: 0 | K76: 2853383.89 | L76: 0 | M76: 0 | O76: =K76-L76-M76 -> 2853383.89
A77: 69 | B77: VL-LNH | C77: MYR | D77: 0 | E77: 0 | F77: 0 | G77: 23951.44 | H77: 23951.44 | I77: 0 | J77: -1083.26 | K77: 22868.18 | L77: 0 | M77: 0 | O77: =K77-L77-M77 -> 22868.18
A78: 70 | B78: VL-LPS | C78: MYR | D78: 0 | E78: 0 | F78: 0 | G78: 3403.7 | H78: 3403.7 | I78: 0 | J78: 0 | K78: 3403.7 | L78: 0 | M78: 0 | O78: =K78-L78-M78 -> 3403.7
A79: 71 | B79: VL-LWD | C79: MYR | D79: 0 | E79: 0 | F79: 0 | G79: 26881.02 | H79: 26881.02 | I79: 0 | J79: 0 | K79: 26881.02 | L79: 0 | M79: 0 | O79: =K79-L79-M79 -> 26881.02
A80: 72 | B80: VL-MAA | C80: MYR | D80: 0 | E80: 0 | F80: 0 | G80: 75945.68 | H80: 75945.68 | I80: 0 | J80: -2527.6 | K80: 73418.08 | L80: 0 | M80: 0 | O80: =K80-L80-M80 -> 73418.08
A81: 73 | B81: VL-MAK | C81: MYR | D81: 0 | E81: 0 | F81: 0 | G81: 54937.08 | H81: 54937.08 | I81: 0 | J81: 0 | K81: 54937.08 | L81: 0 | M81: 0 | O81: =K81-L81-M81 -> 54937.08
A82: 74 | B82: VL-MSG | C82: MYR | D82: 0 | E82: 0 | F82: 0 | G82: 41944.24 | H82: 41944.24 | I82: 0 | J82: -53440.01 | K82: -11495.77 | L82: 0 | M82: 0 | O82: =K82-L82-M82 -> -11495.77
A83: 75 | B83: VL-NAN | C83: MYR | D83: 0 | E83: 0 | F83: 0 | G83: 94672.58 | H83: 94672.58 | I83: 0 | J83: -5055.15 | K83: 89617.43 | L83: 0 | M83: 0 | O83: =K83-L83-M83 -> 89617.43
A84: 76 | B84: VL-NCM | C84: MYR | D84: 0 | E84: 0 | F84: 0 | G84: 58893.14 | H84: 58893.14 | I84: 0 | J84: -2888.67 | K84: 56004.47 | L84: 0 | M84: 0 | O84: =K84-L84-M84 -> 56004.47
A85: 77 | B85: VL-RAD | C85: MYR | D85: 0 | E85: 0 | F85: 0 | G85: 34589.11 | H85: 34589.11 | I85: 0 | J85: 0 | K85: 34589.11 | L85: 0 | M85: 0 | O85: =K85-L85-M85 -> 34589.11
A86: 78 | B86: VL-SIC | C86: MYR | D86: 0 | E86: 0 | F86: 0 | G86: 364641.14 | H86: 364641.14 | I86: 0 | J86: -24914.51 | K86: 339726.63 | L86: 0 | M86: 0 | O86: =K86-L86-M86 -> 339726.63
A87: 79 | B87: VL-TAAM | C87: MYR | D87: 0 | E87: 0 | F87: 0 | G87: 248335.86 | H87: 248335.86 | I87: 0 | J87: -10471.33 | K87: 237864.53 | L87: 0 | M87: 0 | O87: =K87-L87-M87 -> 237864.53
A88: 80 | B88: VL-WFR | C88: MYR | D88: 0 | E88: 0 | F88: 0 | G88: 71742.77 | H88: 71742.77 | I88: 0 | J88: 0 | K88: 71742.77 | L88: 0 | M88: 0 | O88: =K88-L88-M88 -> 71742.77
A89: 81 | B89: VL-WKM | C89: MYR | D89: 0 | E89: 0 | F89: 0 | G89: 27566.22 | H89: 27566.22 | I89: 0 | J89: -3249.74 | K89: 24316.48 | L89: 0 | M89: 0 | O89: =K89-L89-M89 -> 24316.48
A90: 82 | B90: VL-WPI | C90: MYR | D90: 0 | E90: 0 | F90: 0 | G90: 59359.83 | H90: 59359.83 | I90: 0 | J90: -2527.6 | K90: 56832.23 | L90: 0 | M90: 0 | O90: =K90-L90-M90 -> 56832.23
A91: 83 | B91: VL-YCM | C91: MYR | D91: 0 | E91: 0 | F91: 0 | G91: 17396.89 | H91: 17396.89 | I91: 0 | J91: -722.15 | K91: 16674.74 | L91: 0 | M91: 0 | O91: =K91-L91-M91 -> 16674.74
A92: 84 | B92: VL-YHN | C92: MYR | D92: 0 | E92: 0 | F92: 0 | G92: 63204.32 | H92: 63204.32 | I92: 0 | J92: -2527.6 | K92: 60676.72 | L92: 0 | M92: 0 | O92: =K92-L92-M92 -> 60676.72
A93: 85 | B93: VL-ZUL | C93: MYR | D93: 0 | E93: 0 | F93: 0 | G93: 107057.24 | H93: 107057.24 | I93: 0 | J93: -4694.08 | K93: 102363.16 | L93: 0 | M93: 0 | O93: =K93-L93-M93 -> 102363.16
A94: 86 | B94: VM-WAS | C94: MYR | D94: 0 | E94: 0 | F94: 0 | G94: 146000.41 | H94: 146000.41 | I94: 0 | J94: 0 | K94: 146000.41 | L94: 0 | M94: 0 | O94: =K94-L94-M94 -> 146000.41
A95: 87 | B95: WFL2 | C95: MYR | D95: 0 | E95: 0 | F95: 0 | G95: 91783.28 | H95: 91783.28 | I95: 0 | J95: 0 | K95: 91783.28 | L95: 0 | M95: 0 | O95: =K95-L95-M95 -> 91783.28
A96: 88 | B96: WFL3 | C96: MYR | D96: 0 | E96: 0 | F96: 0 | G96: 143046.54 | H96: 143046.54 | I96: 0 | J96: 0 | K96: 143046.54 | L96: 0 | M96: 0 | O96: =K96-L96-M96 -> 143046.54
A97: 89 | B97: WWK | C97: MYR | D97: 0 | E97: 0 | F97: 0 | G97: 64661.98 | H97: 64661.98 | I97: 0 | J97: 0 | K97: 64661.98 | L97: 0 | M97: 0 | O97: =K97-L97-M97 -> 64661.98
A98: 90 | B98: YS | C98: MYR | D98: 0 | E98: 0 | F98: 0 | G98: 713738.81 | H98: 713738.81 | I98: 0 | J98: 0 | K98: 713738.81 | L98: 0 | M98: 0 | O98: =K98-L98-M98 -> 713738.81
A99: 91 | B99: YSIF | C99: MYR | D99: 0 | E99: 0 | F99: 0 | G99: 14435.81 | H99: 14435.81 | I99: 0 | J99: 0 | K99: 14435.81 | L99: 0 | M99: 0 | O99: =K99-L99-M99 -> 14435.81
A100: 92 | B100: TADF | C100: MYR | D100: 0 | E100: 0 | F100: 24379.1 | G100: 23379.1 | H100: 24379.1 | I100: 549520.25 | J100: -58233.16 | K100: 515666.19 | L100: 0 | M100: 0 | O100: =K100-L100-M100 -> 515666.19
A101: 93 | B101: TAIF | C101: MYR | D101: -10000 | E101: 0 | F101: 64061.9 | G101: 95211.17 | H101: 64061.9 | I101: 1318962.73 | J101: 0 | K101: 1373024.63 | L101: 0 | M101: 0 | O101: =K101-L101-M101 -> 1373024.63
A102: 94 | B102: TAINC | C102: MYR | D102: 0 | E102: 0 | F102: 64018.45 | G102: 224561.66 | H102: 64018.45 | I102: 1049964.65 | J102: 0 | K102: 1113983.1 | L102: 0 | M102: 0 | O102: =K102-L102-M102 -> 1113983.1
A103: 95 | B103: TADAM | C103: MYR | D103: 0 | E103: 0 | F103: 488956.82 | G103: 482791.49 | H103: 488956.82 | I103: 41109712.03 | J103: 0 | K103: 41598668.85 | L103: 0 | M103: 0 | O103: =K103-L103-M103 -> 41598668.85

Sheet MaturityList (hidden)
F7: CASH MATURITY LIST AS AT 27-Jun-2019
A8: No | B8: Master ID | C8: Fund Code | D8: Currency | E8: Principle | F8: Profit | G8: Total | H8: Cash Available | I8: Rate (%) | J8: Tenor (Day) | K8: Placement Date | L8: Maturity Date | M8: Placement Type | N8: Financial Institution | O8: Bank Account | P8: Placement Entity
A9: 1 | B9: CSH*190601599 | C9: TADAM | D9: MYR | E9: 4045318.38 | F9: 326.95 | G9: 4045645.33 | H9: 41598668.85 | I9: 2.95 | J9: 1 | K9: 2019-06-26 | L9: 2019-06-27 | M9: RPC | N9: CIMB | O9: 312193264704 | P9: UTMB-TADAM
A10: 2 | B10: CSH*190601599 | C10: TADAM | D10: MYR | E10: 4045318.38 | F10: 326.95 | G10: 4045645.33 | H10: 41598668.85 | I10: 2.95 | J10: 1 | K10: 2019-06-26 | L10: 2019-06-27 | M10: RPC | N10: CIMB | O10: 514356534764 | P10: UTMB-TADAM
A11: 3 | B11: CSH*190601599 | C11: TADAM | D11: MYR | E11: 4045318.38 | F11: 326.95 | G11: 4045645.33 | H11: 41598668.85 | I11: 2.95 | J11: 1 | K11: 2019-06-26 | L11: 2019-06-27 | M11: RPC | N11: CIMB | O11: TADAM-HKD | P11: UTMB-TADAM
A12: 4 | B12: CSH*190601599 | C12: TADAM | D12: MYR | E12: 4045318.38 | F12: 326.95 | G12: 4045645.33 | H12: 41598668.85 | I12: 2.95 | J12: 1 | K12: 2019-06-26 | L12: 2019-06-27 | M12: RPC | N12: CIMB | O12: TADAM-SGD | P12: UTMB-TADAM
A13: 5 | B13: CSH*190601599 | C13: TADAM | D13: MYR | E13: 4045318.38 | F13: 326.95 | G13: 4045645.33 | H13: 41598668.85 | I13: 2.95 | J13: 1 | K13: 2019-06-26 | L13: 2019-06-27 | M13: RPC | N13: CIMB | O13: TADAM-USD | P13: UTMB-TADAM
A14: 6 | B14: CSH*190601437 | C14: TADAM | D14: MYR | E14: 4044991.46 | F14: 326.92 | G14: 4045318.38 | H14: 41598668.85 | I14: 2.95 | L14: 2019-06-27 | M14: RPC | N14: CIMB | O14: 312193264704 | P14: UTMB-TADAM
A15: 7 | B15: CSH*190601437 | C15: TADAM | D15: MYR | E15: 4044991.46 | F15: 326.92 | G15: 4045318.38 | H15: 41598668.85 | I15: 2.95 | L15: 2019-06-27 | M15: RPC | N15: CIMB | O15: 514356534764 | P15: UTMB-TADAM
A16: 8 | B16: CSH*190601437 | C16: TADAM | D16: MYR | E16: 4044991.46 | F16: 326.92 | G16: 4045318.38 | H16: 41598668.85 | I16: 2.95 | L16: 2019-06-27 | M16: RPC | N16: CIMB | O16: TADAM-HKD | P16: UTMB-TADAM
A17: 9 | B17: CSH*190601437 | C17: TADAM | D17: MYR | E17: 4044991.46 | F17: 326.92 | G17: 4045318.38 | H17: 41598668.85 | I17: 2.95 | L17: 2019-06-27 | M17: RPC | N17: CIMB | O17: TADAM-SGD | P17: UTMB-TADAM
A18: 10 | B18: CSH*190601437 | C18: TADAM | D18: MYR | E18: 4044991.46 | F18: 326.92 | G18: 4045318.38 | H18: 41598668.85 | I18: 2.95 | L18: 2019-06-27 | M18: RPC | N18: CIMB | O18: TADAM-USD | P18: UTMB-TADAM
A19: 11 | B19: CSH*190601413 | C19: TAEURO | D19: MYR | E19: 1755676.59 | F19: 139.49 | G19: 1755816.08 | H19: 1716298.99 | I19: 2.9 | L19: 2019-06-27 | M19: RPC | N19: CIMB | O19: 115864157 | P19: MBBT-TAEURO
A20: 12 | B20: CSH*190601413 | C20: TAEURO | D20: MYR | E20: 1755676.59 | F20: 139.49 | G20: 1755816.08 | H20: 1716298.99 | I20: 2.9 | L20: 2019-06-27 | M20: RPC | N20: CIMB | O20: 514012-020579 | P20: MBBT-TAEURO
A21: 13 | B21: CSH*190601413 | C21: TAEURO | D21: MYR | E21: 1755676.59 | F21: 139.49 | G21: 1755816.08 | H21: 1716298.99 | I21: 2.9 | L21: 2019-06-27 | M21: RPC | N21: CIMB | O21: TAEURO-EURO | P21: MBBT-TAEURO
A22: 14 | B22: CSH*190601413 | C22: TAEURO | D22: MYR | E22: 1755676.59 | F22: 139.49 | G22: 1755816.08 | H22: 1716298.99 | I22: 2.9 | L22: 2019-06-27 | M22: RPC | N22: CIMB | O22: TAEURO-SGD | P22: MBBT-TAEURO
A23: 15 | B23: CSH*190601413 | C23: TAEURO | D23: MYR | E23: 1755676.59 | F23: 139.49 | G23: 1755816.08 | H23: 1716298.99 | I23: 2.9 | L23: 2019-06-27 | M23: RPC | N23: CIMB | O23: TAEURO-USD | P23: MBBT-TAEURO
A24: 16 | B24: CSH*190601583 | C24: TAEURO | D24: MYR | E24: 1705816.08 | F24: 135.53 | G24: 1705951.61 | H24: 1716298.99 | I24: 2.9 | J24: 1 | K24: 2019-06-26 | L24: 2019-06-27 | M24: RPC | N24: CIMB | O24: 115864157 | P24: MBBT-TAEURO
A25: 17 | B25: CSH*190601583 | C25: TAEURO | D25: MYR | E25: 1705816.08 | F25: 135.53 | G25: 1705951.61 | H25: 1716298.99 | I25: 2.9 | J25: 1 | K25: 2019-06-26 | L25: 2019-06-27 | M25: RPC | N25: CIMB | O25: 514012-020579 | P25: MBBT-TAEURO
A26: 18 | B26: CSH*190601583 | C26: TAEURO | D26: MYR | E26: 1705816.08 | F26: 135.53 | G26: 1705951.61 | H26: 1716298.99 | I26: 2.9 | J26: 1 | K26: 2019-06-26 | L26: 2019-06-27 | M26: RPC | N26: CIMB | O26: TAEURO-EURO | P26: MBBT-TAEURO
A27: 19 | B27: CSH*190601583 | C27: TAEURO | D27: MYR | E27: 1705816.08 | F27: 135.53 | G27: 1705951.61 | H27: 1716298.99 | I27: 2.9 | J27: 1 | K27: 2019-06-26 | L27: 2019-06-27 | M27: RPC | N27: CIMB | O27: TAEURO-SGD | P27: MBBT-TAEURO
A28: 20 | B28: CSH*190601583 | C28: TAEURO | D28: MYR | E28: 1705816.08 | F28: 135.53 | G28: 1705951.61 | H28: 1716298.99 | I28: 2.9 | J28: 1 | K28: 2019-06-26 | L28: 2019-06-27 | M28: RPC | N28: CIMB | O28: TAEURO-USD | P28: MBBT-TAEURO
A29: 21 | B29: CSH*190601424 | C29: TAGF | D29: MYR | E29: 3360536.48 | F29: 267 | G29: 3360803.48 | H29: 3423273.32 | I29: 2.9 | L29: 2019-06-27 | M29: RPC | N29: CIMB | O29: 114875015 | P29: BHLB-TAGF
A30: 22 | B30: CSH*190601424 | C30: TAGF | D30: MYR | E30: 3360536.48 | F30: 267 | G30: 3360803.48 | H30: 3423273.32 | I30: 2.9 | L30: 2019-06-27 | M30: RPC | N30: CIMB | O30: 514356-101263 | P30: BHLB-TAGF
A31: 23 | B31: CSH*190601424 | C31: TAGF | D31: MYR | E31: 3360536.48 | F31: 267 | G31: 3360803.48 | H31: 3423273.32 | I31: 2.9 | L31: 2019-06-27 | M31: RPC | N31: CIMB | O31: TAGF-AUD | P31: BHLB-TAGF
A32: 24 | B32: CSH*190601424 | C32: TAGF | D32: MYR | E32: 3360536.48 | F32: 267 | G32: 3360803.48 | H32: 3423273.32 | I32: 2.9 | L32: 2019-06-27 | M32: RPC | N32: CIMB | O32: TAGF-GBP | P32: BHLB-TAGF
A33: 25 | B33: CSH*190601424 | C33: TAGF | D33: MYR | E33: 3360536.48 | F33: 267 | G33: 3360803.48 | H33: 3423273.32 | I33: 2.9 | L33: 2019-06-27 | M33: RPC | N33: CIMB | O33: TAGF-HKD | P33: BHLB-TAGF
A34: 26 | B34: CSH*190601424 | C34: TAGF | D34: MYR | E34: 3360536.48 | F34: 267 | G34: 3360803.48 | H34: 3423273.32 | I34: 2.9 | L34: 2019-06-27 | M34: RPC | N34: CIMB | O34: TAGF-IDR | P34: BHLB-TAGF
A35: 27 | B35: CSH*190601424 | C35: TAGF | D35: MYR | E35: 3360536.48 | F35: 267 | G35: 3360803.48 | H35: 3423273.32 | I35: 2.9 | L35: 2019-06-27 | M35: RPC | N35: CIMB | O35: TAGF-JPY | P35: BHLB-TAGF
A36: 28 | B36: CSH*190601424 | C36: TAGF | D36: MYR | E36: 3360536.48 | F36: 267 | G36: 3360803.48 | H36: 3423273.32 | I36: 2.9 | L36: 2019-06-27 | M36: RPC | N36: CIMB | O36: TAGF-SGD | P36: BHLB-TAGF
A37: 29 | B37: CSH*190601424 | C37: TAGF | D37: MYR | E37: 3360536.48 | F37: 267 | G37: 3360803.48 | H37: 3423273.32 | I37: 2.9 | L37: 2019-06-27 | M37: RPC | N37: CIMB | O37: TAGF-THB | P37: BHLB-TAGF
A38: 30 | B38: CSH*190601424 | C38: TAGF | D38: MYR | E38: 3360536.48 | F38: 267 | G38: 3360803.48 | H38: 3423273.32 | I38: 2.9 | L38: 2019-06-27 | M38: RPC | N38: CIMB | O38: TAGF-USD | P38: BHLB-TAGF
A39: 31 | B39: CSH*190601581 | C39: TAGF | D39: MYR | E39: 3360803.48 | F39: 267.02 | G39: 3361070.5 | H39: 3423273.32 | I39: 2.9 | J39: 1 | K39: 2019-06-26 | L39: 2019-06-27 | M39: RPC | N39: CIMB | O39: 114875015 | P39: BHLB-TAGF
A40: 32 | B40: CSH*190601581 | C40: TAGF | D40: MYR | E40: 3360803.48 | F40: 267.02 | G40: 3361070.5 | H40: 3423273.32 | I40: 2.9 | J40: 1 | K40: 2019-06-26 | L40: 2019-06-27 | M40: RPC | N40: CIMB | O40: 514356-101263 | P40: BHLB-TAGF
A41: 33 | B41: CSH*190601581 | C41: TAGF | D41: MYR | E41: 3360803.48 | F41: 267.02 | G41: 3361070.5 | H41: 3423273.32 | I41: 2.9 | J41: 1 | K41: 2019-06-26 | L41: 2019-06-27 | M41: RPC | N41: CIMB | O41: TAGF-AUD | P41: BHLB-TAGF
A42: 34 | B42: CSH*190601581 | C42: TAGF | D42: MYR | E42: 3360803.48 | F42: 267.02 | G42: 3361070.5 | H42: 3423273.32 | I42: 2.9 | J42: 1 | K42: 2019-06-26 | L42: 2019-06-27 | M42: RPC | N42: CIMB | O42: TAGF-GBP | P42: BHLB-TAGF
A43: 35 | B43: CSH*190601581 | C43: TAGF | D43: MYR | E43: 3360803.48 | F43: 267.02 | G43: 3361070.5 | H43: 3423273.32 | I43: 2.9 | J43: 1 | K43: 2019-06-26 | L43: 2019-06-27 | M43: RPC | N43: CIMB | O43: TAGF-HKD | P43: BHLB-TAGF
A44: 36 | B44: CSH*190601581 | C44: TAGF | D44: MYR | E44: 3360803.48 | F44: 267.02 | G44: 3361070.5 | H44: 3423273.32 | I44: 2.9 | J44: 1 | K44: 2019-06-26 | L44: 2019-06-27 | M44: RPC | N44: CIMB | O44: TAGF-IDR | P44: BHLB-TAGF
A45: 37 | B45: CSH*190601581 | C45: TAGF | D45: MYR | E45: 3360803.48 | F45: 267.02 | G45: 3361070.5 | H45: 3423273.32 | I45: 2.9 | J45: 1 | K45: 2019-06-26 | L45: 2019-06-27 | M45: RPC | N45: CIMB | O45: TAGF-JPY | P45: BHLB-TAGF
A46: 38 | B46: CSH*190601581 | C46: TAGF | D46: MYR | E46: 3360803.48 | F46: 267.02 | G46: 3361070.5 | H46: 3423273.32 | I46: 2.9 | J46: 1 | K46: 2019-06-26 | L46: 2019-06-27 | M46: RPC | N46: CIMB | O46: TAGF-SGD | P46: BHLB-TAGF
A47: 39 | B47: CSH*190601581 | C47: TAGF | D47: MYR | E47: 3360803.48 | F47: 267.02 | G47: 3361070.5 | H47: 3423273.32 | I47: 2.9 | J47: 1 | K47: 2019-06-26 | L47: 2019-06-27 | M47: RPC | N47: CIMB | O47: TAGF-THB | P47: BHLB-TAGF
A48: 40 | B48: CSH*190601581 | C48: TAGF | D48: MYR | E48: 3360803.48 | F48: 267.02 | G48: 3361070.5 | H48: 3423273.32 | I48: 2.9 | J48: 1 | K48: 2019-06-26 | L48: 2019-06-27 | M48: RPC | N48: CIMB | O48: TAGF-USD | P48: BHLB-TAGF
A49: 41 | B49: CSH*190601414 | C49: TAGTF | D49: MYR | E49: 6623394.64 | F49: 535.32 | G49: 6623929.96 | H49: 7681882.66 | I49: 2.95 | L49: 2019-06-27 | M49: RPC | N49: CIMB | O49: 115864122 | P49: MBBT-TAGTF
A50: 42 | B50: CSH*190601414 | C50: TAGTF | D50: MYR | E50: 6623394.64 | F50: 535.32 | G50: 6623929.96 | H50: 7681882.66 | I50: 2.95 | L50: 2019-06-27 | M50: RPC | N50: CIMB | O50: 514011-015921 | P50: MBBT-TAGTF
A51: 43 | B51: CSH*190601414 | C51: TAGTF | D51: MYR | E51: 6623394.64 | F51: 535.32 | G51: 6623929.96 | H51: 7681882.66 | I51: 2.95 | L51: 2019-06-27 | M51: RPC | N51: CIMB | O51: TAGTF-SGD | P51: MBBT-TAGTF
A52: 44 | B52: CSH*190601414 | C52: TAGTF | D52: MYR | E52: 6623394.64 | F52: 535.32 | G52: 6623929.96 | H52: 7681882.66 | I52: 2.95 | L52: 2019-06-27 | M52: RPC | N52: CIMB | O52: TAGTF-USD | P52: MBBT-TAGTF
A53: 45 | B53: CSH*190601579 | C53: TAGTF | D53: MYR | E53: 6623929.96 | F53: 535.36 | G53: 6624465.32 | H53: 7681882.66 | I53: 2.95 | J53: 1 | K53: 2019-06-26 | L53: 2019-06-27 | M53: RPC | N53: CIMB | O53: 115864122 | P53: MBBT-TAGTF
A54: 46 | B54: CSH*190601579 | C54: TAGTF | D54: MYR | E54: 6623929.96 | F54: 535.36 | G54: 6624465.32 | H54: 7681882.66 | I54: 2.95 | J54: 1 | K54: 2019-06-26 | L54: 2019-06-27 | M54: RPC | N54: CIMB | O54: 514011-015921 | P54: MBBT-TAGTF
A55: 47 | B55: CSH*190601579 | C55: TAGTF | D55: MYR | E55: 6623929.96 | F55: 535.36 | G55: 6624465.32 | H55: 7681882.66 | I55: 2.95 | J55: 1 | K55: 2019-06-26 | L55: 2019-06-27 | M55: RPC | N55: CIMB | O55: TAGTF-SGD | P55: MBBT-TAGTF
A56: 48 | B56: CSH*190601579 | C56: TAGTF | D56: MYR | E56: 6623929.96 | F56: 535.36 | G56: 6624465.32 | H56: 7681882.66 | I56: 2.95 | J56: 1 | K56: 2019-06-26 | L56: 2019-06-27 | M56: RPC | N56: CIMB | O56: TAGTF-USD | P56: MBBT-TAGTF
A57: 49 | B57: CSH*190601442 | C57: TAINC | D57: MYR | E57: 390193.34 | F57: 31 | G57: 390224.34 | H57: 1113983.1 | I57: 2.9 | L57: 2019-06-27 | M57: RPC | N57: CIMB | O57: 24830302101 | P57: UNI-TAINC
A58: 50 | B58: CSH*190601442 | C58: TAINC | D58: MYR | E58: 390193.34 | F58: 31 | G58: 390224.34 | H58: 1113983.1 | I58: 2.9 | L58: 2019-06-27 | M58: RPC | N58: CIMB | O58: 514011-397129 | P58: UNI-TAINC
A59: 51 | B59: CSH*190601442 | C59: TAINC | D59: MYR | E59: 390193.34 | F59: 31 | G59: 390224.34 | H59: 1113983.1 | I59: 2.9 | L59: 2019-06-27 | M59: RPC | N59: CIMB | O59: 5141011-397112 | P59: UNI-TAINC
A60: 52 | B60: CSH*190601442 | C60: TAINC | D60: MYR | E60: 390193.34 | F60: 31 | G60: 390224.34 | H60: 1113983.1 | I60: 2.9 | L60: 2019-06-27 | M60: RPC | N60: CIMB | O60: TA INC-IDR | P60: UNI-TAINC
A61: 53 | B61: CSH*190601442 | C61: TAINC | D61: MYR | E61: 390193.34 | F61: 31 | G61: 390224.34 | H61: 1113983.1 | I61: 2.9 | L61: 2019-06-27 | M61: RPC | N61: CIMB | O61: TAINC-AUD | P61: UNI-TAINC
A62: 54 | B62: CSH*190601442 | C62: TAINC | D62: MYR | E62: 390193.34 | F62: 31 | G62: 390224.34 | H62: 1113983.1 | I62: 2.9 | L62: 2019-06-27 | M62: RPC | N62: CIMB | O62: TAINC-CNY | P62: UNI-TAINC
A63: 55 | B63: CSH*190601442 | C63: TAINC | D63: MYR | E63: 390193.34 | F63: 31 | G63: 390224.34 | H63: 1113983.1 | I63: 2.9 | L63: 2019-06-27 | M63: RPC | N63: CIMB | O63: TAINC-HKD | P63: UNI-TAINC
A64: 56 | B64: CSH*190601442 | C64: TAINC | D64: MYR | E64: 390193.34 | F64: 31 | G64: 390224.34 | H64: 1113983.1 | I64: 2.9 | L64: 2019-06-27 | M64: RPC | N64: CIMB | O64: TAINC-JPY | P64: UNI-TAINC
A65: 57 | B65: CSH*190601442 | C65: TAINC | D65: MYR | E65: 390193.34 | F65: 31 | G65: 390224.34 | H65: 1113983.1 | I65: 2.9 | L65: 2019-06-27 | M65: RPC | N65: CIMB | O65: TAINC-SGD | P65: UNI-TAINC
A66: 58 | B66: CSH*190601442 | C66: TAINC | D66: MYR | E66: 390193.34 | F66: 31 | G66: 390224.34 | H66: 1113983.1 | I66: 2.9 | L66: 2019-06-27 | M66: RPC | N66: CIMB | O66: TAINC-THB | P66: UNI-TAINC
A67: 59 | B67: CSH*190601442 | C67: TAINC | D67: MYR | E67: 390193.34 | F67: 31 | G67: 390224.34 | H67: 1113983.1 | I67: 2.9 | L67: 2019-06-27 | M67: RPC | N67: CIMB | O67: TAINC-USD | P67: UNI-TAINC
A68: 60 | B68: CSH*190601561 | C68: TAINC | D68: MYR | E68: 390224.34 | F68: 31 | G68: 390255.34 | H68: 1113983.1 | I68: 2.9 | J68: 1 | K68: 2019-06-26 | L68: 2019-06-27 | M68: RPC | N68: CIMB | O68: 24830302101 | P68: UNI-TAINC
A69: 61 | B69: CSH*190601561 | C69: TAINC | D69: MYR | E69: 390224.34 | F69: 31 | G69: 390255.34 | H69: 1113983.1 | I69: 2.9 | J69: 1 | K69: 2019-06-26 | L69: 2019-06-27 | M69: RPC | N69: CIMB | O69: 514011-397129 | P69: UNI-TAINC
A70: 62 | B70: CSH*190601561 | C70: TAINC | D70: MYR | E70: 390224.34 | F70: 31 | G70: 390255.34 | H70: 1113983.1 | I70: 2.9 | J70: 1 | K70: 2019-06-26 | L70: 2019-06-27 | M70: RPC | N70: CIMB | O70: 5141011-397112 | P70: UNI-TAINC
A71: 63 | B71: CSH*190601561 | C71: TAINC | D71: MYR | E71: 390224.34 | F71: 31 | G71: 390255.34 | H71: 1113983.1 | I71: 2.9 | J71: 1 | K71: 2019-06-26 | L71: 2019-06-27 | M71: RPC | N71: CIMB | O71: TA INC-IDR | P71: UNI-TAINC
A72: 64 | B72: CSH*190601561 | C72: TAINC | D72: MYR | E72: 390224.34 | F72: 31 | G72: 390255.34 | H72: 1113983.1 | I72: 2.9 | J72: 1 | K72: 2019-06-26 | L72: 2019-06-27 | M72: RPC | N72: CIMB | O72: TAINC-AUD | P72: UNI-TAINC
A73: 65 | B73: CSH*190601561 | C73: TAINC | D73: MYR | E73: 390224.34 | F73: 31 | G73: 390255.34 | H73: 1113983.1 | I73: 2.9 | J73: 1 | K73: 2019-06-26 | L73: 2019-06-27 | M73: RPC | N73: CIMB | O73: TAINC-CNY | P73: UNI-TAINC
A74: 66 | B74: CSH*190601561 | C74: TAINC | D74: MYR | E74: 390224.34 | F74: 31 | G74: 390255.34 | H74: 1113983.1 | I74: 2.9 | J74: 1 | K74: 2019-06-26 | L74: 2019-06-27 | M74: RPC | N74: CIMB | O74: TAINC-HKD | P74: UNI-TAINC
A75: 67 | B75: CSH*190601561 | C75: TAINC | D75: MYR | E75: 390224.34 | F75: 31 | G75: 390255.34 | H75: 1113983.1 | I75: 2.9 | J75: 1 | K75: 2019-06-26 | L75: 2019-06-27 | M75: RPC | N75: CIMB | O75: TAINC-JPY | P75: UNI-TAINC
A76: 68 | B76: CSH*190601561 | C76: TAINC | D76: MYR | E76: 390224.34 | F76: 31 | G76: 390255.34 | H76: 1113983.1 | I76: 2.9 | J76: 1 | K76: 2019-06-26 | L76: 2019-06-27 | M76: RPC | N76: CIMB | O76: TAINC-SGD | P76: UNI-TAINC
A77: 69 | B77: CSH*190601561 | C77: TAINC | D77: MYR | E77: 390224.34 | F77: 31 | G77: 390255.34 | H77: 1113983.1 | I77: 2.9 | J77: 1 | K77: 2019-06-26 | L77: 2019-06-27 | M77: RPC | N77: CIMB | O77: TAINC-THB | P77: UNI-TAINC
A78: 70 | B78: CSH*190601561 | C78: TAINC | D78: MYR | E78: 390224.34 | F78: 31 | G78: 390255.34 | H78: 1113983.1 | I78: 2.9 | J78: 1 | K78: 2019-06-26 | L78: 2019-06-27 | M78: RPC | N78: CIMB | O78: TAINC-USD | P78: UNI-TAINC
A79: 71 | B79: CSH*190601434 | C79: TARAIF3 | D79: MYR | E79: 42286620.74 | F79: 3417.69 | G79: 42290038.43 | H79: 42313745.02 | I79: 2.95 | L79: 2019-06-27 | M79: RPC | N79: CIMB | O79: 8009938762 | P79: CIMB-TARAIF3
A80: 72 | B80: CSH*190601434 | C80: TARAIF3 | D80: MYR | E80: 42286620.74 | F80: 3417.69 | G80: 42290038.43 | H80: 42313745.02 | I80: 2.95 | L80: 2019-06-27 | M80: RPC | N80: CIMB | O80: TARAIF3-USD | P80: CIMB-TARAIF3
A81: 73 | B81: CSH*190601415 | C81: TAREIT | D81: MYR | E81: 1070963.58 | F81: 85.09 | G81: 1071048.67 | H81: 968163.8 | I81: 2.9 | L81: 2019-06-27 | M81: RPC | N81: CIMB | O81: 115864173 | P81: MBBT-TAREITs
A82: 74 | B82: CSH*190601415 | C82: TAREIT | D82: MYR | E82: 1070963.58 | F82: 85.09 | G82: 1071048.67 | H82: 968163.8 | I82: 2.9 | L82: 2019-06-27 | M82: RPC | N82: CIMB | O82: 514012-026605 | P82: MBBT-TAREITs
A83: 75 | B83: CSH*190601415 | C83: TAREIT | D83: MYR | E83: 1070963.58 | F83: 85.09 | G83: 1071048.67 | H83: 968163.8 | I83: 2.9 | L83: 2019-06-27 | M83: RPC | N83: CIMB | O83: TAREIT-AUD | P83: MBBT-TAREITs
A84: 76 | B84: CSH*190601415 | C84: TAREIT | D84: MYR | E84: 1070963.58 | F84: 85.09 | G84: 1071048.67 | H84: 968163.8 | I84: 2.9 | L84: 2019-06-27 | M84: RPC | N84: CIMB | O84: TAREIT-CNY | P84: MBBT-TAREITs
A85: 77 | B85: CSH*190601415 | C85: TAREIT | D85: MYR | E85: 1070963.58 | F85: 85.09 | G85: 1071048.67 | H85: 968163.8 | I85: 2.9 | L85: 2019-06-27 | M85: RPC | N85: CIMB | O85: TAREIT-JPY | P85: MBBT-TAREITs
A86: 78 | B86: CSH*190601415 | C86: TAREIT | D86: MYR | E86: 1070963.58 | F86: 85.09 | G86: 1071048.67 | H86: 968163.8 | I86: 2.9 | L86: 2019-06-27 | M86: RPC | N86: CIMB | O86: TAREIT-SGD | P86: MBBT-TAREITs
A87: 79 | B87: CSH*190601415 | C87: TAREIT | D87: MYR | E87: 1070963.58 | F87: 85.09 | G87: 1071048.67 | H87: 968163.8 | I87: 2.9 | L87: 2019-06-27 | M87: RPC | N87: CIMB | O87: TAREITs-HKD | P87: MBBT-TAREITs
A88: 80 | B88: CSH*190601415 | C88: TAREIT | D88: MYR | E88: 1070963.58 | F88: 85.09 | G88: 1071048.67 | H88: 968163.8 | I88: 2.9 | L88: 2019-06-27 | M88: RPC | N88: CIMB | O88: TAREITs-USD | P88: MBBT-TAREITs
A89: 81 | B89: CSH*190601415 | C89: TAREIT | D89: MYR | E89: 1070963.58 | F89: 85.09 | G89: 1071048.67 | H89: 968163.8 | I89: 2.9 | L89: 2019-06-27 | M89: RPC | N89: CIMB | O89: TAREIT-THB | P89: MBBT-TAREITs
A90: 82 | B90: CSH*190601435 | C90: TASCAP | D90: MYR | E90: 496854.28 | F90: 39.48 | G90: 496893.76 | H90: 522467.61 | I90: 2.9 | L90: 2019-06-27 | M90: RPC | N90: CIMB | O90: 114875082 | P90: BHLB-TASCAP
A91: 83 | B91: CSH*190601435 | C91: TASCAP | D91: MYR | E91: 496854.28 | F91: 39.48 | G91: 496893.76 | H91: 522467.61 | I91: 2.9 | L91: 2019-06-27 | M91: RPC | N91: CIMB | O91: 514356-707902 | P91: BHLB-TASCAP
A92: 84 | B92: CSH*190601435 | C92: TASCAP | D92: MYR | E92: 496854.28 | F92: 39.48 | G92: 496893.76 | H92: 522467.61 | I92: 2.9 | L92: 2019-06-27 | M92: RPC | N92: CIMB | O92: TASCAP-AUD | P92: BHLB-TASCAP
A93: 85 | B93: CSH*190601435 | C93: TASCAP | D93: MYR | E93: 496854.28 | F93: 39.48 | G93: 496893.76 | H93: 522467.61 | I93: 2.9 | L93: 2019-06-27 | M93: RPC | N93: CIMB | O93: TASCAP-GBP | P93: BHLB-TASCAP
A94: 86 | B94: CSH*190601435 | C94: TASCAP | D94: MYR | E94: 496854.28 | F94: 39.48 | G94: 496893.76 | H94: 522467.61 | I94: 2.9 | L94: 2019-06-27 | M94: RPC | N94: CIMB | O94: TASCAP-HKD | P94: BHLB-TASCAP
A95: 87 | B95: CSH*190601435 | C95: TASCAP | D95: MYR | E95: 496854.28 | F95: 39.48 | G95: 496893.76 | H95: 522467.61 | I95: 2.9 | L95: 2019-06-27 | M95: RPC | N95: CIMB | O95: TASCAP-IDR | P95: BHLB-TASCAP
A96: 88 | B96: CSH*190601435 | C96: TASCAP | D96: MYR | E96: 496854.28 | F96: 39.48 | G96: 496893.76 | H96: 522467.61 | I96: 2.9 | L96: 2019-06-27 | M96: RPC | N96: CIMB | O96: TASCAP-SGD | P96: BHLB-TASCAP
A97: 89 | B97: CSH*190601435 | C97: TASCAP | D97: MYR | E97: 496854.28 | F97: 39.48 | G97: 496893.76 | H97: 522467.61 | I97: 2.9 | L97: 2019-06-27 | M97: RPC | N97: CIMB | O97: TASCAP-THB | P97: BHLB-TASCAP
A98: 90 | B98: CSH*190601435 | C98: TASCAP | D98: MYR | E98: 496854.28 | F98: 39.48 | G98: 496893.76 | H98: 522467.61 | I98: 2.9 | L98: 2019-06-27 | M98: RPC | N98: CIMB | O98: TASCAP-USD | P98: BHLB-TASCAP
A99: 91 | B99: CSH*190601421 | C99: TABRIC | D99: MYR | E99: 145136.3 | F99: 11.33 | G99: 145147.63 | H99: 177559.62 | I99: 2.85 | L99: 2019-06-27 | M99: RPI | N99: CIMBIS | O99: 1114875062 | P99: BHLB-TABRIC
A100: 92 | B100: CSH*190601421 | C100: TABRIC | D100: MYR | E100: 145136.3 | F100: 11.33 | G100: 145147.63 | H100: 177559.62 | I100: 2.85 | L100: 2019-06-27 | M100: RPI | N100: CIMBIS | O100: TABRIC-BRL | P100: BHLB-TABRIC
A101: 93 | B101: CSH*190601421 | C101: TABRIC | D101: MYR | E101: 145136.3 | F101: 11.33 | G101: 145147.63 | H101: 177559.62 | I101: 2.85 | L101: 2019-06-27 | M101: RPI | N101: CIMBIS | O101: TABRIC-HKD | P101: BHLB-TABRIC
A102: 94 | B102: CSH*190601421 | C102: TABRIC | D102: MYR | E102: 145136.3 | F102: 11.33 | G102: 145147.63 | H102: 177559.62 | I102: 2.85 | L102: 2019-06-27 | M102: RPI | N102: CIMBIS | O102: TABRIC-IDR | P102: BHLB-TABRIC
A103: 95 | B103: CSH*190601421 | C103: TABRIC | D103: MYR | E103: 145136.3 | F103: 11.33 | G103: 145147.63 | H103: 177559.62 | I103: 2.85 | L103: 2019-06-27 | M103: RPI | N103: CIMBIS | O103: TABRIC-SGD | P103: BHLB-TABRIC
A104: 96 | B104: CSH*190601421 | C104: TABRIC | D104: MYR | E104: 145136.3 | F104: 11.33 | G104: 145147.63 | H104: 177559.62 | I104: 2.85 | L104: 2019-06-27 | M104: RPI | N104: CIMBIS | O104: TABRIC-THB | P104: BHLB-TABRIC
A105: 97 | B105: CSH*190601421 | C105: TABRIC | D105: MYR | E105: 145136.3 | F105: 11.33 | G105: 145147.63 | H105: 177559.62 | I105: 2.85 | L105: 2019-06-27 | M105: RPI | N105: CIMBIS | O105: TABRIC-USD | P105: BHLB-TABRIC
A106: 98 | B106: CSH*190601605 | C106: TABRIC | D106: MYR | E106: 145147.63 | F106: 11.33 | G106: 145158.96 | H106: 177559.62 | I106: 2.85 | J106: 1 | K106: 2019-06-26 | L106: 2019-06-27 | M106: RPI | N106: CIMBIS | O106: 1114875062 | P106: BHLB-TABRIC
A107: 99 | B107: CSH*190601605 | C107: TABRIC | D107: MYR | E107: 145147.63 | F107: 11.33 | G107: 145158.96 | H107: 177559.62 | I107: 2.85 | J107: 1 | K107: 2019-06-26 | L107: 2019-06-27 | M107: RPI | N107: CIMBIS | O107: TABRIC-BRL | P107: BHLB-TABRIC
A108: 100 | B108: CSH*190601605 | C108: TABRIC | D108: MYR | E108: 145147.63 | F108: 11.33 | G108: 145158.96 | H108: 177559.62 | I108: 2.85 | J108: 1 | K108: 2019-06-26 | L108: 2019-06-27 | M108: RPI | N108: CIMBIS | O108: TABRIC-HKD | P108: BHLB-TABRIC
A109: 101 | B109: CSH*190601605 | C109: TABRIC | D109: MYR | E109: 145147.63 | F109: 11.33 | G109: 145158.96 | H109: 177559.62 | I109: 2.85 | J109: 1 | K109: 2019-06-26 | L109: 2019-06-27 | M109: RPI | N109: CIMBIS | O109: TABRIC-IDR | P109: BHLB-TABRIC
A110: 102 | B110: CSH*190601605 | C110: TABRIC | D110: MYR | E110: 145147.63 | F110: 11.33 | G110: 145158.96 | H110: 177559.62 | I110: 2.85 | J110: 1 | K110: 2019-06-26 | L110: 2019-06-27 | M110: RPI | N110: CIMBIS | O110: TABRIC-SGD | P110: BHLB-TABRIC
A111: 103 | B111: CSH*190601605 | C111: TABRIC | D111: MYR | E111: 145147.63 | F111: 11.33 | G111: 145158.96 | H111: 177559.62 | I111: 2.85 | J111: 1 | K111: 2019-06-26 | L111: 2019-06-27 | M111: RPI | N111: CIMBIS | O111: TABRIC-THB | P111: BHLB-TABRIC
A112: 104 | B112: CSH*190601605 | C112: TABRIC | D112: MYR | E112: 145147.63 | F112: 11.33 | G112: 145158.96 | H112: 177559.62 | I112: 2.85 | J112: 1 | K112: 2019-06-26 | L112: 2019-06-27 | M112: RPI | N112: CIMBIS | O112: TABRIC-USD | P112: BHLB-TABRIC
A113: 105 | B113: CSH*190601423 | C113: TADO | D113: MYR | E113: 847215.77 | F113: 66.15 | G113: 847281.92 | H113: 878611.65 | I113: 2.85 | L113: 2019-06-27 | M113: RPI | N113: CIMBIS | O113: 1114875011 | P113: BHLB-TADO
A114: 106 | B114: CSH*190601423 | C114: TADO | D114: MYR | E114: 847215.77 | F114: 66.15 | G114: 847281.92 | H114: 878611.65 | I114: 2.85 | L114: 2019-06-27 | M114: RPI | N114: CIMBIS | O114: 564351-501596 | P114: BHLB-TADO
A115: 107 | B115: CSH*190601423 | C115: TADO | D115: MYR | E115: 847215.77 | F115: 66.15 | G115: 847281.92 | H115: 878611.65 | I115: 2.85 | L115: 2019-06-27 | M115: RPI | N115: CIMBIS | O115: TADO-AUD | P115: BHLB-TADO
A116: 108 | B116: CSH*190601423 | C116: TADO | D116: MYR | E116: 847215.77 | F116: 66.15 | G116: 847281.92 | H116: 878611.65 | I116: 2.85 | L116: 2019-06-27 | M116: RPI | N116: CIMBIS | O116: TADO-HKD | P116: BHLB-TADO
A117: 109 | B117: CSH*190601423 | C117: TADO | D117: MYR | E117: 847215.77 | F117: 66.15 | G117: 847281.92 | H117: 878611.65 | I117: 2.85 | L117: 2019-06-27 | M117: RPI | N117: CIMBIS | O117: TADO-IDR | P117: BHLB-TADO
A118: 110 | B118: CSH*190601423 | C118: TADO | D118: MYR | E118: 847215.77 | F118: 66.15 | G118: 847281.92 | H118: 878611.65 | I118: 2.85 | L118: 2019-06-27 | M118: RPI | N118: CIMBIS | O118: TADO-JPY | P118: BHLB-TADO
A119: 111 | B119: CSH*190601423 | C119: TADO | D119: MYR | E119: 847215.77 | F119: 66.15 | G119: 847281.92 | H119: 878611.65 | I119: 2.85 | L119: 2019-06-27 | M119: RPI | N119: CIMBIS | O119: TADO-KRW | P119: BHLB-TADO
A120: 112 | B120: CSH*190601423 | C120: TADO | D120: MYR | E120: 847215.77 | F120: 66.15 | G120: 847281.92 | H120: 878611.65 | I120: 2.85 | L120: 2019-06-27 | M120: RPI | N120: CIMBIS | O120: TADO-SGD | P120: BHLB-TADO
A121: 113 | B121: CSH*190601423 | C121: TADO | D121: MYR | E121: 847215.77 | F121: 66.15 | G121: 847281.92 | H121: 878611.65 | I121: 2.85 | L121: 2019-06-27 | M121: RPI | N121: CIMBIS | O121: TADO-THB | P121: BHLB-TADO
A122: 114 | B122: CSH*190601423 | C122: TADO | D122: MYR | E122: 847215.77 | F122: 66.15 | G122: 847281.92 | H122: 878611.65 | I122: 2.85 | L122: 2019-06-27 | M122: RPI | N122: CIMBIS | O122: TADO-USD | P122: BHLB-TADO
A123: 115 | B123: CSH*190601585 | C123: TADO | D123: MYR | E123: 847281.92 | F123: 66.16 | G123: 847348.08 | H123: 878611.65 | I123: 2.85 | J123: 1 | K123: 2019-06-26 | L123: 2019-06-27 | M123: RPI | N123: CIMBIS | O123: 1114875011 | P123: BHLB-TADO
A124: 116 | B124: CSH*190601585 | C124: TADO | D124: MYR | E124: 847281.92 | F124: 66.16 | G124: 847348.08 | H124: 878611.65 | I124: 2.85 | J124: 1 | K124: 2019-06-26 | L124: 2019-06-27 | M124: RPI | N124: CIMBIS | O124: 564351-501596 | P124: BHLB-TADO
A125: 117 | B125: CSH*190601585 | C125: TADO | D125: MYR | E125: 847281.92 | F125: 66.16 | G125: 847348.08 | H125: 878611.65 | I125: 2.85 | J125: 1 | K125: 2019-06-26 | L125: 2019-06-27 | M125: RPI | N125: CIMBIS | O125: TADO-AUD | P125: BHLB-TADO
A126: 118 | B126: CSH*190601585 | C126: TADO | D126: MYR | E126: 847281.92 | F126: 66.16 | G126: 847348.08 | H126: 878611.65 | I126: 2.85 | J126: 1 | K126: 2019-06-26 | L126: 2019-06-27 | M126: RPI | N126: CIMBIS | O126: TADO-HKD | P126: BHLB-TADO
A127: 119 | B127: CSH*190601585 | C127: TADO | D127: MYR | E127: 847281.92 | F127: 66.16 | G127: 847348.08 | H127: 878611.65 | I127: 2.85 | J127: 1 | K127: 2019-06-26 | L127: 2019-06-27 | M127: RPI | N127: CIMBIS | O127: TADO-IDR | P127: BHLB-TADO
A128: 120 | B128: CSH*190601585 | C128: TADO | D128: MYR | E128: 847281.92 | F128: 66.16 | G128: 847348.08 | H128: 878611.65 | I128: 2.85 | J128: 1 | K128: 2019-06-26 | L128: 2019-06-27 | M128: RPI | N128: CIMBIS | O128: TADO-JPY | P128: BHLB-TADO
A129: 121 | B129: CSH*190601585 | C129: TADO | D129: MYR | E129: 847281.92 | F129: 66.16 | G129: 847348.08 | H129: 878611.65 | I129: 2.85 | J129: 1 | K129: 2019-06-26 | L129: 2019-06-27 | M129: RPI | N129: CIMBIS | O129: TADO-KRW | P129: BHLB-TADO
A130: 122 | B130: CSH*190601585 | C130: TADO | D130: MYR | E130: 847281.92 | F130: 66.16 | G130: 847348.08 | H130: 878611.65 | I130: 2.85 | J130: 1 | K130: 2019-06-26 | L130: 2019-06-27 | M130: RPI | N130: CIMBIS | O130: TADO-SGD | P130: BHLB-TADO
A131: 123 | B131: CSH*190601585 | C131: TADO | D131: MYR | E131: 847281.92 | F131: 66.16 | G131: 847348.08 | H131: 878611.65 | I131: 2.85 | J131: 1 | K131: 2019-06-26 | L131: 2019-06-27 | M131: RPI | N131: CIMBIS | O131: TADO-THB | P131: BHLB-TADO
A132: 124 | B132: CSH*190601585 | C132: TADO | D132: MYR | E132: 847281.92 | F132: 66.16 | G132: 847348.08 | H132: 878611.65 | I132: 2.85 | J132: 1 | K132: 2019-06-26 | L132: 2019-06-27 | M132: RPI | N132: CIMBIS | O132: TADO-USD | P132: BHLB-TADO
A133: 125 | B133: CSH*190601573 | C133: TAICP | D133: MYR | E133: 3275758.46 | F133: 255.78 | G133: 3276014.24 | H133: 14830028.37 | I133: 2.85 | J133: 1 | K133: 2019-06-26 | L133: 2019-06-27 | M133: RPI | N133: CIMBIS | O133: 564351-501738 | P133: BHLB-TAICP
A134: 126 | B134: CSH*190601573 | C134: TAICP | D134: MYR | E134: 3275758.46 | F134: 255.78 | G134: 3276014.24 | H134: 14830028.37 | I134: 2.85 | J134: 1 | K134: 2019-06-26 | L134: 2019-06-27 | M134: RPI | N134: CIMBIS | O134: 564351-503855 | P134: BHLB-TAICP
A135: 127 | B135: CSH*190601427 | C135: TAICP | D135: MYR | E135: 3275502.7 | F135: 255.76 | G135: 3275758.46 | H135: 14830028.37 | I135: 2.85 | L135: 2019-06-27 | M135: RPI | N135: CIMBIS | O135: 564351-501738 | P135: BHLB-TAICP
A136: 128 | B136: CSH*190601427 | C136: TAICP | D136: MYR | E136: 3275502.7 | F136: 255.76 | G136: 3275758.46 | H136: 14830028.37 | I136: 2.85 | L136: 2019-06-27 | M136: RPI | N136: CIMBIS | O136: 564351-503855 | P136: BHLB-TAICP
A137: 129 | B137: CSH*190601441 | C137: TAIF | D137: MYR | E137: 1317170.56 | F137: 102.85 | G137: 1317273.41 | H137: 1373024.63 | I137: 2.85 | L137: 2019-06-27 | M137: RPI | N137: CIMBIS | O137: 24830302128 | P137: UNI-TAIF
A138: 130 | B138: CSH*190601441 | C138: TAIF | D138: MYR | E138: 1317170.56 | F138: 102.85 | G138: 1317273.41 | H138: 1373024.63 | I138: 2.85 | L138: 2019-06-27 | M138: RPI | N138: CIMBIS | O138: 312409979212 | P138: UNI-TAIF
A139: 131 | B139: CSH*190601441 | C139: TAIF | D139: MYR | E139: 1317170.56 | F139: 102.85 | G139: 1317273.41 | H139: 1373024.63 | I139: 2.85 | L139: 2019-06-27 | M139: RPI | N139: CIMBIS | O139: 564016-103673 | P139: UNI-TAIF
A140: 132 | B140: CSH*190601441 | C140: TAIF | D140: MYR | E140: 1317170.56 | F140: 102.85 | G140: 1317273.41 | H140: 1373024.63 | I140: 2.85 | L140: 2019-06-27 | M140: RPI | N140: CIMBIS | O140: TAIF-AUD-SCB | P140: UNI-TAIF
A141: 133 | B141: CSH*190601441 | C141: TAIF | D141: MYR | E141: 1317170.56 | F141: 102.85 | G141: 1317273.41 | H141: 1373024.63 | I141: 2.85 | L141: 2019-06-27 | M141: RPI | N141: CIMBIS | O141: TAIF-HKD-SCB | P141: UNI-TAIF
A142: 134 | B142: CSH*190601441 | C142: TAIF | D142: MYR | E142: 1317170.56 | F142: 102.85 | G142: 1317273.41 | H142: 1373024.63 | I142: 2.85 | L142: 2019-06-27 | M142: RPI | N142: CIMBIS | O142: TAIF-JPY-SCB | P142: UNI-TAIF
A143: 135 | B143: CSH*190601441 | C143: TAIF | D143: MYR | E143: 1317170.56 | F143: 102.85 | G143: 1317273.41 | H143: 1373024.63 | I143: 2.85 | L143: 2019-06-27 | M143: RPI | N143: CIMBIS | O143: TAIF-KRW-SCB | P143: UNI-TAIF
A144: 136 | B144: CSH*190601441 | C144: TAIF | D144: MYR | E144: 1317170.56 | F144: 102.85 | G144: 1317273.41 | H144: 1373024.63 | I144: 2.85 | L144: 2019-06-27 | M144: RPI | N144: CIMBIS | O144: TAIF-SGD-SCB | P144: UNI-TAIF
A145: 137 | B145: CSH*190601441 | C145: TAIF | D145: MYR | E145: 1317170.56 | F145: 102.85 | G145: 1317273.41 | H145: 1373024.63 | I145: 2.85 | L145: 2019-06-27 | M145: RPI | N145: CIMBIS | O145: TAIF-THB-SCB | P145: UNI-TAIF
A146: 138 | B146: CSH*190601441 | C146: TAIF | D146: MYR | E146: 1317170.56 | F146: 102.85 | G146: 1317273.41 | H146: 1373024.63 | I146: 2.85 | L146: 2019-06-27 | M146: RPI | N146: CIMBIS | O146: TAIF-USD-SCB | P146: UNI-TAIF
A147: 139 | B147: CSH*190601563 | C147: TAIF | D147: MYR | E147: 1317273.41 | F147: 102.86 | G147: 1317376.27 | H147: 1373024.63 | I147: 2.85 | J147: 1 | K147: 2019-06-26 | L147: 2019-06-27 | M147: RPI | N147: CIMBIS | O147: 24830302128 | P147: UNI-TAIF
A148: 140 | B148: CSH*190601563 | C148: TAIF | D148: MYR | E148: 1317273.41 | F148: 102.86 | G148: 1317376.27 | H148: 1373024.63 | I148: 2.85 | J148: 1 | K148: 2019-06-26 | L148: 2019-06-27 | M148: RPI | N148: CIMBIS | O148: 312409979212 | P148: UNI-TAIF
A149: 141 | B149: CSH*190601563 | C149: TAIF | D149: MYR | E149: 1317273.41 | F149: 102.86 | G149: 1317376.27 | H149: 1373024.63 | I149: 2.85 | J149: 1 | K149: 2019-06-26 | L149: 2019-06-27 | M149: RPI | N149: CIMBIS | O149: 564016-103673 | P149: UNI-TAIF
A150: 142 | B150: CSH*190601563 | C150: TAIF | D150: MYR | E150: 1317273.41 | F150: 102.86 | G150: 1317376.27 | H150: 1373024.63 | I150: 2.85 | J150: 1 | K150: 2019-06-26 | L150: 2019-06-27 | M150: RPI | N150: CIMBIS | O150: TAIF-AUD-SCB | P150: UNI-TAIF
A151: 143 | B151: CSH*190601563 | C151: TAIF | D151: MYR | E151: 1317273.41 | F151: 102.86 | G151: 1317376.27 | H151: 1373024.63 | I151: 2.85 | J151: 1 | K151: 2019-06-26 | L151: 2019-06-27 | M151: RPI | N151: CIMBIS | O151: TAIF-HKD-SCB | P151: UNI-TAIF
A152: 144 | B152: CSH*190601563 | C152: TAIF | D152: MYR | E152: 1317273.41 | F152: 102.86 | G152: 1317376.27 | H152: 1373024.63 | I152: 2.85 | J152: 1 | K152: 2019-06-26 | L152: 2019-06-27 | M152: RPI | N152: CIMBIS | O152: TAIF-JPY-SCB | P152: UNI-TAIF
A153: 145 | B153: CSH*190601563 | C153: TAIF | D153: MYR | E153: 1317273.41 | F153: 102.86 | G153: 1317376.27 | H153: 1373024.63 | I153: 2.85 | J153: 1 | K153: 2019-06-26 | L153: 2019-06-27 | M153: RPI | N153: CIMBIS | O153: TAIF-KRW-SCB | P153: UNI-TAIF
A154: 146 | B154: CSH*190601563 | C154: TAIF | D154: MYR | E154: 1317273.41 | F154: 102.86 | G154: 1317376.27 | H154: 1373024.63 | I154: 2.85 | J154: 1 | K154: 2019-06-26 | L154: 2019-06-27 | M154: RPI | N154: CIMBIS | O154: TAIF-SGD-SCB | P154: UNI-TAIF
A155: 147 | B155: CSH*190601563 | C155: TAIF | D155: MYR | E155: 1317273.41 | F155: 102.86 | G155: 1317376.27 | H155: 1373024.63 | I155: 2.85 | J155: 1 | K155: 2019-06-26 | L155: 2019-06-27 | M155: RPI | N155: CIMBIS | O155: TAIF-THB-SCB | P155: UNI-TAIF
A156: 148 | B156: CSH*190601563 | C156: TAIF | D156: MYR | E156: 1317273.41 | F156: 102.86 | G156: 1317376.27 | H156: 1373024.63 | I156: 2.85 | J156: 1 | K156: 2019-06-26 | L156: 2019-06-27 | M156: RPI | N156: CIMBIS | O156: TAIF-USD-SCB | P156: UNI-TAIF
A157: 149 | B157: CSH*190601440 | C157: TADF | D157: MYR | E157: 549478.1 | F157: 42.15 | G157: 549520.25 | H157: 515666.19 | I157: 2.8 | L157: 2019-06-27 | M157: RPI | N157: HLIB | O157: 564016119988 | P157: UNI-TADF
A158: 150 | B158: CSH*190601591 | C158: TADF | D158: MYR | E158: 499520.25 | F158: 38.32 | G158: 499558.57 | H158: 515666.19 | I158: 2.8 | J158: 1 | K158: 2019-06-26 | L158: 2019-06-27 | M158: RPI | N158: HLIB | O158: 564016119988 | P158: UNI-TADF
A159: 151 | B159: CSH*190601420 | C159: TABIF | D159: MYR | E159: 2003542.28 | F159: 164.67 | G159: 2003706.95 | H159: 2027051.55 | I159: 3 | L159: 2019-06-27 | M159: RPC | N159: KIBB | O159: 8008693899 | P159: CIMB-TABIF
A160: 152 | B160: CSH*190601420 | C160: TABIF | D160: MYR | E160: 2003542.28 | F160: 164.67 | G160: 2003706.95 | H160: 2027051.55 | I160: 3 | L160: 2019-06-27 | M160: RPC | N160: KIBB | O160: TABIF-EURO | P160: CIMB-TABIF
A161: 153 | B161: CSH*190601420 | C161: TABIF | D161: MYR | E161: 2003542.28 | F161: 164.67 | G161: 2003706.95 | H161: 2027051.55 | I161: 3 | L161: 2019-06-27 | M161: RPC | N161: KIBB | O161: TABIF-USD | P161: CIMB-TABIF
A162: 154 | B162: CSH*190601607 | C162: TABIF | D162: MYR | E162: 2003706.95 | F162: 164.69 | G162: 2003871.64 | H162: 2027051.55 | I162: 3 | J162: 1 | K162: 2019-06-26 | L162: 2019-06-27 | M162: RPC | N162: KIBB | O162: 8008693899 | P162: CIMB-TABIF
A163: 155 | B163: CSH*190601607 | C163: TABIF | D163: MYR | E163: 2003706.95 | F163: 164.69 | G163: 2003871.64 | H163: 2027051.55 | I163: 3 | J163: 1 | K163: 2019-06-26 | L163: 2019-06-27 | M163: RPC | N163: KIBB | O163: TABIF-EURO | P163: CIMB-TABIF
A164: 156 | B164: CSH*190601607 | C164: TABIF | D164: MYR | E164: 2003706.95 | F164: 164.69 | G164: 2003871.64 | H164: 2027051.55 | I164: 3 | J164: 1 | K164: 2019-06-26 | L164: 2019-06-27 | M164: RPC | N164: KIBB | O164: TABIF-USD | P164: CIMB-TABIF
A165: 157 | B165: CSH*190601422 | C165: TACF | D165: MYR | E165: 1968278.73 | F165: 161.78 | G165: 1968440.51 | H165: 1992593.06 | I165: 3 | L165: 2019-06-27 | M165: RPC | N165: KIBB | O165: 114875023 | P165: BHLB-TACF
A166: 158 | B166: CSH*190601422 | C166: TACF | D166: MYR | E166: 1968278.73 | F166: 161.78 | G166: 1968440.51 | H166: 1992593.06 | I166: 3 | L166: 2019-06-27 | M166: RPC | N166: KIBB | O166: 514356-402919 | P166: BHLB-TACF
A167: 159 | B167: CSH*190601422 | C167: TACF | D167: MYR | E167: 1968278.73 | F167: 161.78 | G167: 1968440.51 | H167: 1992593.06 | I167: 3 | L167: 2019-06-27 | M167: RPC | N167: KIBB | O167: TACF-AUD | P167: BHLB-TACF
A168: 160 | B168: CSH*190601422 | C168: TACF | D168: MYR | E168: 1968278.73 | F168: 161.78 | G168: 1968440.51 | H168: 1992593.06 | I168: 3 | L168: 2019-06-27 | M168: RPC | N168: KIBB | O168: TACF-DSTBTN | P168: BHLB-TACF
A169: 161 | B169: CSH*190601422 | C169: TACF | D169: MYR | E169: 1968278.73 | F169: 161.78 | G169: 1968440.51 | H169: 1992593.06 | I169: 3 | L169: 2019-06-27 | M169: RPC | N169: KIBB | O169: TACF-GBP | P169: BHLB-TACF
A170: 162 | B170: CSH*190601422 | C170: TACF | D170: MYR | E170: 1968278.73 | F170: 161.78 | G170: 1968440.51 | H170: 1992593.06 | I170: 3 | L170: 2019-06-27 | M170: RPC | N170: KIBB | O170: TACF-HKD | P170: BHLB-TACF
A171: 163 | B171: CSH*190601422 | C171: TACF | D171: MYR | E171: 1968278.73 | F171: 161.78 | G171: 1968440.51 | H171: 1992593.06 | I171: 3 | L171: 2019-06-27 | M171: RPC | N171: KIBB | O171: TACF-IDR | P171: BHLB-TACF
A172: 164 | B172: CSH*190601422 | C172: TACF | D172: MYR | E172: 1968278.73 | F172: 161.78 | G172: 1968440.51 | H172: 1992593.06 | I172: 3 | L172: 2019-06-27 | M172: RPC | N172: KIBB | O172: TACF-JPY | P172: BHLB-TACF
A173: 165 | B173: CSH*190601422 | C173: TACF | D173: MYR | E173: 1968278.73 | F173: 161.78 | G173: 1968440.51 | H173: 1992593.06 | I173: 3 | L173: 2019-06-27 | M173: RPC | N173: KIBB | O173: TACF-SGD | P173: BHLB-TACF
A174: 166 | B174: CSH*190601422 | C174: TACF | D174: MYR | E174: 1968278.73 | F174: 161.78 | G174: 1968440.51 | H174: 1992593.06 | I174: 3 | L174: 2019-06-27 | M174: RPC | N174: KIBB | O174: TACF-THB | P174: BHLB-TACF
A175: 167 | B175: CSH*190601422 | C175: TACF | D175: MYR | E175: 1968278.73 | F175: 161.78 | G175: 1968440.51 | H175: 1992593.06 | I175: 3 | L175: 2019-06-27 | M175: RPC | N175: KIBB | O175: TACF-USD | P175: BHLB-TACF
A176: 168 | B176: CSH*190601603 | C176: TACF | D176: MYR | E176: 1968440.51 | F176: 161.79 | G176: 1968602.3 | H176: 1992593.06 | I176: 3 | J176: 1 | K176: 2019-06-26 | L176: 2019-06-27 | M176: RPC | N176: KIBB | O176: 114875023 | P176: BHLB-TACF
A177: 169 | B177: CSH*190601603 | C177: TACF | D177: MYR | E177: 1968440.51 | F177: 161.79 | G177: 1968602.3 | H177: 1992593.06 | I177: 3 | J177: 1 | K177: 2019-06-26 | L177: 2019-06-27 | M177: RPC | N177: KIBB | O177: 514356-402919 | P177: BHLB-TACF
A178: 170 | B178: CSH*190601603 | C178: TACF | D178: MYR | E178: 1968440.51 | F178: 161.79 | G178: 1968602.3 | H178: 1992593.06 | I178: 3 | J178: 1 | K178: 2019-06-26 | L178: 2019-06-27 | M178: RPC | N178: KIBB | O178: TACF-AUD | P178: BHLB-TACF
A179: 171 | B179: CSH*190601603 | C179: TACF | D179: MYR | E179: 1968440.51 | F179: 161.79 | G179: 1968602.3 | H179: 1992593.06 | I179: 3 | J179: 1 | K179: 2019-06-26 | L179: 2019-06-27 | M179: RPC | N179: KIBB | O179: TACF-DSTBTN | P179: BHLB-TACF
A180: 172 | B180: CSH*190601603 | C180: TACF | D180: MYR | E180: 1968440.51 | F180: 161.79 | G180: 1968602.3 | H180: 1992593.06 | I180: 3 | J180: 1 | K180: 2019-06-26 | L180: 2019-06-27 | M180: RPC | N180: KIBB | O180: TACF-GBP | P180: BHLB-TACF
A181: 173 | B181: CSH*190601603 | C181: TACF | D181: MYR | E181: 1968440.51 | F181: 161.79 | G181: 1968602.3 | H181: 1992593.06 | I181: 3 | J181: 1 | K181: 2019-06-26 | L181: 2019-06-27 | M181: RPC | N181: KIBB | O181: TACF-HKD | P181: BHLB-TACF
A182: 174 | B182: CSH*190601603 | C182: TACF | D182: MYR | E182: 1968440.51 | F182: 161.79 | G182: 1968602.3 | H182: 1992593.06 | I182: 3 | J182: 1 | K182: 2019-06-26 | L182: 2019-06-27 | M182: RPC | N182: KIBB | O182: TACF-IDR | P182: BHLB-TACF
A183: 175 | B183: CSH*190601603 | C183: TACF | D183: MYR | E183: 1968440.51 | F183: 161.79 | G183: 1968602.3 | H183: 1992593.06 | I183: 3 | J183: 1 | K183: 2019-06-26 | L183: 2019-06-27 | M183: RPC | N183: KIBB | O183: TACF-JPY | P183: BHLB-TACF
A184: 176 | B184: CSH*190601603 | C184: TACF | D184: MYR | E184: 1968440.51 | F184: 161.79 | G184: 1968602.3 | H184: 1992593.06 | I184: 3 | J184: 1 | K184: 2019-06-26 | L184: 2019-06-27 | M184: RPC | N184: KIBB | O184: TACF-SGD | P184: BHLB-TACF
A185: 177 | B185: CSH*190601603 | C185: TACF | D185: MYR | E185: 1968440.51 | F185: 161.79 | G185: 1968602.3 | H185: 1992593.06 | I185: 3 | J185: 1 | K185: 2019-06-26 | L185: 2019-06-27 | M185: RPC | N185: KIBB | O185: TACF-THB | P185: BHLB-TACF
A186: 178 | B186: CSH*190601603 | C186: TACF | D186: MYR | E186: 1968440.51 | F186: 161.79 | G186: 1968602.3 | H186: 1992593.06 | I186: 3 | J186: 1 | K186: 2019-06-26 | L186: 2019-06-27 | M186: RPC | N186: KIBB | O186: TACF-USD | P186: BHLB-TACF
A187: 179 | B187: CSH*190601597 | C187: TADAM | D187: MYR | E187: 18587370.4 | F187: 1527.73 | G187: 18588898.13 | H187: 41598668.85 | I187: 3 | J187: 1 | K187: 2019-06-26 | L187: 2019-06-27 | M187: RPC | N187: KIBB | O187: 312193264704 | P187: UTMB-TADAM
A188: 180 | B188: CSH*190601597 | C188: TADAM | D188: MYR | E188: 18587370.4 | F188: 1527.73 | G188: 18588898.13 | H188: 41598668.85 | I188: 3 | J188: 1 | K188: 2019-06-26 | L188: 2019-06-27 | M188: RPC | N188: KIBB | O188: 514356534764 | P188: UTMB-TADAM
A189: 181 | B189: CSH*190601597 | C189: TADAM | D189: MYR | E189: 18587370.4 | F189: 1527.73 | G189: 18588898.13 | H189: 41598668.85 | I189: 3 | J189: 1 | K189: 2019-06-26 | L189: 2019-06-27 | M189: RPC | N189: KIBB | O189: TADAM-HKD | P189: UTMB-TADAM
A190: 182 | B190: CSH*190601597 | C190: TADAM | D190: MYR | E190: 18587370.4 | F190: 1527.73 | G190: 18588898.13 | H190: 41598668.85 | I190: 3 | J190: 1 | K190: 2019-06-26 | L190: 2019-06-27 | M190: RPC | N190: KIBB | O190: TADAM-SGD | P190: UTMB-TADAM
A191: 183 | B191: CSH*190601597 | C191: TADAM | D191: MYR | E191: 18587370.4 | F191: 1527.73 | G191: 18588898.13 | H191: 41598668.85 | I191: 3 | J191: 1 | K191: 2019-06-26 | L191: 2019-06-27 | M191: RPC | N191: KIBB | O191: TADAM-USD | P191: UTMB-TADAM
A192: 184 | B192: CSH*190601438 | C192: TADAM | D192: MYR | E192: 18585842.8 | F192: 1527.6 | G192: 18587370.4 | H192: 41598668.85 | I192: 3 | L192: 2019-06-27 | M192: RPC | N192: KIBB | O192: 312193264704 | P192: UTMB-TADAM
A193: 185 | B193: CSH*190601438 | C193: TADAM | D193: MYR | E193: 18585842.8 | F193: 1527.6 | G193: 18587370.4 | H193: 41598668.85 | I193: 3 | L193: 2019-06-27 | M193: RPC | N193: KIBB | O193: 514356534764 | P193: UTMB-TADAM
A194: 186 | B194: CSH*190601438 | C194: TADAM | D194: MYR | E194: 18585842.8 | F194: 1527.6 | G194: 18587370.4 | H194: 41598668.85 | I194: 3 | L194: 2019-06-27 | M194: RPC | N194: KIBB | O194: TADAM-HKD | P194: UTMB-TADAM
A195: 187 | B195: CSH*190601438 | C195: TADAM | D195: MYR | E195: 18585842.8 | F195: 1527.6 | G195: 18587370.4 | H195: 41598668.85 | I195: 3 | L195: 2019-06-27 | M195: RPC | N195: KIBB | O195: TADAM-SGD | P195: UTMB-TADAM
A196: 188 | B196: CSH*190601438 | C196: TADAM | D196: MYR | E196: 18585842.8 | F196: 1527.6 | G196: 18587370.4 | H196: 41598668.85 | I196: 3 | L196: 2019-06-27 | M196: RPC | N196: KIBB | O196: TADAM-USD | P196: UTMB-TADAM
A197: 189 | B197: CSH*190601432 | C197: TARAIF | D197: MYR | E197: 4656397.09 | F197: 382.72 | G197: 4656779.81 | H197: 4678076.78 | I197: 3 | L197: 2019-06-27 | M197: RPC | N197: KIBB | O197: 8009815538 | P197: CIMB-TARAIF
A198: 190 | B198: CSH*190601432 | C198: TARAIF | D198: MYR | E198: 4656397.09 | F198: 382.72 | G198: 4656779.81 | H198: 4678076.78 | I198: 3 | L198: 2019-06-27 | M198: RPC | N198: KIBB | O198: 800986270640 USD | P198: CIMB-TARAIF
A199: 191 | B199: CSH*190601557 | C199: TARAIF | D199: MYR | E199: 4656779.81 | F199: 382.75 | G199: 4657162.56 | H199: 4678076.78 | I199: 3 | J199: 1 | K199: 2019-06-26 | L199: 2019-06-27 | M199: RPC | N199: KIBB | O199: 8009815538 | P199: CIMB-TARAIF
A200: 192 | B200: CSH*190601557 | C200: TARAIF | D200: MYR | E200: 4656779.81 | F200: 382.75 | G200: 4657162.56 | H200: 4678076.78 | I200: 3 | J200: 1 | K200: 2019-06-26 | L200: 2019-06-27 | M200: RPC | N200: KIBB | O200: 800986270640 USD | P200: CIMB-TARAIF
A201: 193 | B201: CSH*190601425 | C201: TAIB | D201: MYR | E201: 1256074.63 | F201: 101.52 | G201: 1256176.15 | H201: 2059262.67 | I201: 2.95 | L201: 2019-06-27 | M201: RPI | N201: KSPI | O201: 1114875003 | P201: BHLB-TAIB
A202: 194 | B202: CSH*190601425 | C202: TAIB | D202: MYR | E202: 1256074.63 | F202: 101.52 | G202: 1256176.15 | H202: 2059262.67 | I202: 2.95 | L202: 2019-06-27 | M202: RPI | N202: KSPI | O202: TAIB-AUS | P202: BHLB-TAIB
A203: 195 | B203: CSH*190601425 | C203: TAIB | D203: MYR | E203: 1256074.63 | F203: 101.52 | G203: 1256176.15 | H203: 2059262.67 | I203: 2.95 | L203: 2019-06-27 | M203: RPI | N203: KSPI | O203: TAIB-GBP | P203: BHLB-TAIB
A204: 196 | B204: CSH*190601425 | C204: TAIB | D204: MYR | E204: 1256074.63 | F204: 101.52 | G204: 1256176.15 | H204: 2059262.67 | I204: 2.95 | L204: 2019-06-27 | M204: RPI | N204: KSPI | O204: TAIB-HKD | P204: BHLB-TAIB
A205: 197 | B205: CSH*190601425 | C205: TAIB | D205: MYR | E205: 1256074.63 | F205: 101.52 | G205: 1256176.15 | H205: 2059262.67 | I205: 2.95 | L205: 2019-06-27 | M205: RPI | N205: KSPI | O205: TAIB-IDR | P205: BHLB-TAIB
A206: 198 | B206: CSH*190601425 | C206: TAIB | D206: MYR | E206: 1256074.63 | F206: 101.52 | G206: 1256176.15 | H206: 2059262.67 | I206: 2.95 | L206: 2019-06-27 | M206: RPI | N206: KSPI | O206: TAIB-JPY | P206: BHLB-TAIB
... 110 more rows

Sheet aaAAABankAccountSdf (hidden)
A1: qBankAccNo | B1: qCPCode | C1: PaymentEntity | D1: BankGL
A2: 114875015 | B2: CITIBANK | C2: BHLB-TAGF | D2: 500001
A3: 114875023 | B3: CITIBANK | C3: BHLB-TACF | D3: 500001
A4: 114875066 | B4: CITIBANK | C4: BHLB-TAAUSI | D4: 500000
A5: 114875074 | B5: CITIBANK | C5: BHLB-TAAUII | D5: 500000
A6: 114875082 | B6: CITIBANK | C6: BHLB-TASCAP | D6: 500001
A7: 115864122 | B7: CITIBANK | C7: MBBT-TAGTF | D7: 500001
A8: 115864157 | B8: CITIBANK | C8: MBBT-TAEURO | D8: 500001
A9: 115864165 | B9: CITIBANK | C9: MBBT-TAGAAF | D9: 500001
A10: 115864173 | B10: CITIBANK | C10: MBBT-TAREITs | D10: 500001
A11: 101-358208-025 | B11: HSBCBANK | C11: HSBCT-TAEURO | D11: 500001
A12: 105-116974-025 | B12: HSBCBANK | C12: HSBCT-TAACCI | D12: 500001
A13: 105-116974-710 | B13: HSBCBANK | C13: HSBCT-TAACCI | D13: 500001
A14: 10991151 | B14: CITIBANK | C14: MBBT-TAADIF | D14: 500001
A15: 1114875003 | B15: CITIBANK | C15: BHLB-TAIB | D15: 500000
A16: 1114875011 | B16: CITIBANK | C16: BHLB-TADO | D16: 500001
A17: 1114875062 | B17: CITIBANK | C17: BHLB-TABRIC | D17: 500000
A18: 1114875062-OP | B18: CITIBANK | C18: BHLB-TABRIC_OP | D18: 500000
A19: 1115864013 | B19: CITIBANK | C19: MBBT-TADA | D19: 500001
A20: 114875155 | B20: CITIBANK | C20: CIMB-TARIF | D20: 500001
A21: 14055-0-01-004752-6 | B21: ALLIANCEBANK | C21: TASEC-BHLB | D21: 500000
A22: 14055-0-01-004872-6 | B22: ALLIANCEBANK | C22: TASEC-AM | D22: 500000
A23: 14055-0-01-004895-8 | B23: ALLIANCEBANK | C23: TASEC-ASING | D23: 500000
A24: 14055-001-0078832 | B24: ALLIANCEBANK | C24: TASEC-INVBHLB | D24: 500000
A25: 14055-001-0078845 | B25: ALLIANCEBANK | C25: TASEC-INVCLIENT | D25: 500000
A26: 14055-001-0078858 | B26: ALLIANCEBANK | C26: TASEC-INVASING | D26: 500000
A27: 14055-001-0080780 | B27: ALLIANCEBANK | C27: TASEC-SEC | D27: 500000
A28: 14055-001-0180586 | B28: ALLIANCEBANK | C28: TASEC-PSMB | D28: 500000
A29: 14081209892058 | B29: CIMB | C29: BHLB-TRFIF | D29: 500001
A30: 201-803020-101 | B30: HSBCBANK | C30: HSBCT-TAGAAF | D30: 500001
A31: 205-735855-025 | B31: HSBCBANK | C31: HSBCT-TANAO | D31: 500001
A32: 24830302098 | B32: UOB | C32: UNI-TAHGF | D32: 500001
A33: 24830302101 | B33: UOB | C33: UNI-TAINC | D33: 500001
A34: 24830302128 | B34: UOB | C34: UNI-TAIF | D34: 500001
A35: 248-3-032016-9 | B35: UOB | C35: TASEC-INVCLIENT | D35: 500601
A36: 312193264704 | B36: SCB | C36: UTMB-TADAM | D36: 500001
A37: 312409979212 | B37: Standrad charted | C37: UNI-TAIF | D37: 500002
A38: 514011-007339 | B38: MAYBANK | C38: MBB-TASTIA | D38: 500000
A39: 514011-015921 | B39: MAYBANK | C39: MBBT-TAGTF | D39: 500000
A40: 514011022705 | B40: MAYBANK | C40: BHLB-TAAUSI | D40: 500001
A41: 514011022712 | B41: MAYBANK | C41: BHLB-TAAUII | D41: 500001
A42: 514011-386725 | B42: MAYBANK | C42: UNI-TAHGF | D42: 500000
A43: 514011-397129 | B43: MAYBANK | C43: UNI-TAINC | D43: 500000
A44: 514011-397306 | B44: MAYBANK | C44: MBBT-TAADIF | D44: 500000
A45: 514011-397306A | B45: MAYBANK | C45: MBBT-TAUF | D45: 500000
A46: 514012-020556 | B46: MAYBANK | C46: MBBT-TAACCI | D46: 500000
A47: 514012-020563 | B47: MAYBANT | C47: MBBT-TAGAAF | D47: 500000
A48: 514012-020579 | B48: MAYBANK | C48: MBBT-TAEURO | D48: 500000
A49: 514012-026605 | B49: MAYBANT | C49: MBBT-TAREITs | D49: 500000
A50: 5141011-397112 | B50: MAYBANK | C50: UNI-TAINC | D50: 500002
A51: 514356-101263 | B51: MAYBANK | C51: BHLB-TAGF | D51: 500000
A52: 514356-402919 | B52: MAYBANK | C52: BHLB-TACF | D52: 500000
A53: 514356504763 | B53: MAYBANK | C53: BHLB-TRFIF | D53: 500000
A54: 514356534764 | B54: MAYBANK | C54: UTMB-TADAM | D54: 500000
A55: 514356-707902 | B55: MAYBANK | C55: BHLB-TASCAP | D55: 500000
A56: 514356-711633 | B56: MAYBANK | C56: BHLB-TACP | D56: 500000
A57: 514600201775 | B57: MAYBANK | C57: TASEC-INVCLIENT | D57: 500000
A58: 564016-103673 | B58: MAYBANK | C58: UNI-TAIF | D58: 500000
A59: 564016119988 | B59: MAYBANK | C59: UNI-TADF | D59: 500000
A60: 564016-619704 | B60: MAYBANK | C60: MBBT-TADA | D60: 500000
A61: 564351-501596 | B61: MAYBANK | C61: BHLB-TADO | D61: 500000
A62: 564351-501738 | B62: MAYBANK | C62: BHLB-TAICP | D62: 500000
A63: 564351-503855 | B63: MAYBANK | C63: BHLB-TAICP | D63: 500001
A64: 64050-0-01-001139-1 | B64: ALLIANCEBANK | C64: TASEC-ISLAMIC | D64: 500000
A65: 64050-001-0012192 | B65: ALLIANCEBANK | C65: TASEC-INVISLAMIC | D65: 500000
A66: 8007076713 | B66: CIMB | C66: CIMB-TARIF | D66: 500000
A67: 8007886419 | B67: CIMB | C67: BHLB-TASIF | D67: 500000
A68: 8008693899 | B68: CIMB | C68: CIMB-TABIF | D68: 500000
A69: 8009545360 | B69: CIMB | C69: CIMB-TAACEF | D69: 500000
A70: 800954543940 USD | B70: CIMB | C70: CIMB-TAACEF | D70: 500000
A71: 800954548902 SGD | B71: CIMB | C71: CIMB-TAACEF | D71: 500000
A72: 800954552250 AUD | B72: CIMB | C72: CIMB-TAACEF | D72: 500000
A73: 8009815538 | B73: CIMB | C73: CIMB-TARAIF | D73: 500000
A74: 800986270640 USD | B74: CIMB | C74: CIMB-TARAIF | D74: 500000
A75: 8009885189 | B75: CIMB | C75: CIMB-TARAIF2 | D75: 500000
A76: 800988534140 | B76: CIMB | C76: CIMB-TARAIF2 | D76: 500000
A77: 8009938762 | B77: CIMB | C77: CIMB-TARAIF3 | D77: 500000
A78: 8010031514 | B78: CIMB | C78: CIMB-TARAIF6 | D78: 500000
A79: 8602660846 | B79: CIMBIS | C79: CIMB-TAIWCP | D79: 500000
A80: 8603182257 | B80: CIMBITB | C80: CIMBI-TADG50 | D80: 500000
A81: 8603440280 | B81: CIMBITB | C81: CIMBI-TADART | D81: 500000
A82: 8661124515 | B82: CIMBITB | C82: N/A | D82: 500000
A83: DF | B83: N/A | C83: N/A | D83: 500000
A84: MBB-TARIF | B84: MAYBANK | C84: CIMB-TARIF | D84: 500002
A85: TA INC-IDR | B85: UOB | C85: UNI-TAINC | D85: 500000
A86: TAACCI-SGD | B86: MAYBANT | C86: MBBT-TAACCI | D86: 500000
A87: TAADIF-EURO | B87: MAYBANT | C87: MBBT-TAADIF | D87: 500000
A88: TAADIF-USD | B88: MAYBANK | C88: MBBT-TAADIF | D88: 500000
A89: TAAUII-AUD | B89: CITIBANK | C89: BHLB-TAAUII | D89: 500000
A90: TAAUII-USD | B90: CITIBANK | C90: BHLB-TAAUII | D90: 500000
A91: TAAUSI-AUD | B91: CITIBANK | C91: BHLB-TAAUSI | D91: 500000
A92: TAAUSI-USD | B92: CITIBANK | C92: BHLB-TAAUSI | D92: 500000
A93: TABIF-EURO | B93: CITIBANK | C93: CIMB-TABIF | D93: 500000
A94: TABIF-USD | B94: CITIBANK | C94: CIMB-TABIF | D94: 500000
A95: TABRIC-BRL | B95: CITIBANK | C95: BHLB-TABRIC | D95: 500000
A96: TABRIC-HKD | B96: CITIBANK | C96: BHLB-TABRIC | D96: 500000
A97: TABRIC-IDR | B97: CITIBANK | C97: BHLB-TABRIC | D97: 500000
A98: TABRIC-SGD | B98: CITIBANK | C98: BHLB-TABRIC | D98: 500000
A99: TABRIC-THB | B99: CITIBANK | C99: BHLB-TABRIC | D99: 500000
A100: TABRIC-USD | B100: CITIBANK | C100: BHLB-TABRIC | D100: 500000
A101: TACF-AUD | B101: CITIBANK | C101: BHLB-TACF | D101: 500000
A102: TACF-DSTBTN | B102: MAYBANK | C102: BHLB-TACF | D102: 500002
A103: TACF-GBP | B103: CITIBANK | C103: BHLB-TACF | D103: 500000
A104: TACF-HKD | B104: CITIBANK | C104: BHLB-TACF | D104: 500000
A105: TACF-IDR | B105: CITIBANK | C105: BHLB-TACF | D105: 500000
A106: TACF-JPY | B106: CITIBANK | C106: BHLB-TACF | D106: 500000
A107: TACF-SGD | B107: CITIBANK | C107: BHLB-TACF | D107: 500000
A108: TACF-THB | B108: CITIBANK | C108: BHLB-TACF | D108: 500000
A109: TACF-USD | B109: CITIBANK | C109: BHLB-TACF | D109: 500000
A110: TADAM-HKD | B110: Standrad charted | C110: UTMB-TADAM | D110: 500000
A111: TADAM-SGD | B111: Standrad charted | C111: UTMB-TADAM | D111: 500000
A112: TADAM-USD | B112: SCB | C112: UTMB-TADAM | D112: 500000
A113: TADART-EUR | B113: CITIBANK | C113: CIMBI-TADART | D113: 500000
A114: TADART-USD | B114: CITIBANK | C114: CIMBI-TADART | D114: 500000
A115: TADA-SGD | B115: MAYBANK | C115: MBBT-TADA | D115: 500000
A116: TADA-USD | B116: MAYBANK | C116: MBBT-TADA | D116: 500000
A117: TADG50-SGD | B117: CIMBITB | C117: CIMBI-TADG50 | D117: 500000
A118: TADG50-USD | B118: CIMBITB | C118: CIMBI-TADG50 | D118: 500000
A119: TADO-AUD | B119: CITIBANK | C119: BHLB-TADO | D119: 500000
A120: TADO-HKD | B120: CITIBANK | C120: BHLB-TADO | D120: 500000
A121: TADO-IDR | B121: CITIBANK | C121: BHLB-TADO | D121: 500000
A122: TADO-JPY | B122: CITIBANK | C122: BHLB-TADO | D122: 500000
A123: TADO-KRW | B123: CITIBANK | C123: BHLB-TADO | D123: 500000
A124: TADO-SGD | B124: CITIBANK | C124: BHLB-TADO | D124: 500000
A125: TADO-THB | B125: CITIBANK | C125: BHLB-TADO | D125: 500000
A126: TADO-USD | B126: CITIBANK | C126: BHLB-TADO | D126: 500000
A127: TAEURO-EUR | B127: HSBCBANK | C127: HSBCT-TAEURO | D127: 500001
A128: TAEURO-EURO | B128: MAYBANT | C128: MBBT-TAEURO | D128: 500000
A129: TAEURO-SGD | B129: MAYBANK | C129: MBBT-TAEURO | D129: 500000
A130: TAEURO-USD | B130: MAYBANT | C130: MBBT-TAEURO | D130: 500000
A131: TAGAAF- SGD | B131: MAYBANT | C131: MBBT-TAGAAF | D131: 500000
A132: TAGAAF-EUR | B132: HBMB | C132: HSBCT-TAGAAF | D132: 500001
A133: TAGAAF-EUR.. | B133: MAYBANT | C133: MBBT-TAGAAF | D133: 500000
A134: TAGAAF-GBP | B134: HBMB | C134: HSBCT-TAGAAF | D134: 500001
A135: TAGAAF-GBP. | B135: MAYBANT | C135: MBBT-TAGAAF | D135: 500000
A136: TAGAAF-HKD | B136: HBMB | C136: HSBCT-TAGAAF | D136: 500001
A137: TAGAAF-HKD. | B137: MAYBANT | C137: MBBT-TAGAAF | D137: 500000
A138: TAGAAF-JPY | B138: HBMB | C138: HSBCT-TAGAAF | D138: 500001
A139: TAGAAF-JPY. | B139: MAYBANT | C139: MBBT-TAGAAF | D139: 500000
A140: TAGAAF-SGD | B140: HBMB | C140: HSBCT-TAGAAF | D140: 500001
A141: TAGAAF-USD | B141: HBMB | C141: HSBCT-TAGAAF | D141: 500001
A142: TAGAAF-USD. | B142: MAYBANT | C142: MBBT-TAGAAF | D142: 500000
A143: TAGAAF-USD-BROWNBROS | B143: HBMB | C143: HSBCT-TAGAAF | D143: 500001
A144: TAGF-AUD | B144: CITIBANK | C144: BHLB-TAGF | D144: 500000
A145: TAGF-GBP | B145: CITIBANK | C145: BHLB-TAGF | D145: 500000
A146: TAGF-HKD | B146: CITIBANK | C146: BHLB-TAGF | D146: 500000
A147: TAGF-IDR | B147: CITIBANK | C147: BHLB-TAGF | D147: 500000
A148: TAGF-JPY | B148: CITIBANK | C148: BHLB-TAGF | D148: 500000
A149: TAGF-SGD | B149: CITIBANK | C149: BHLB-TAGF | D149: 500000
A150: TAGF-THB | B150: CITIBANK | C150: BHLB-TAGF | D150: 500000
A151: TAGF-USD | B151: CITIBANK | C151: BHLB-TAGF | D151: 500000
A152: TAGTF-SGD | B152: MAYBANK | C152: MBBT-TAGTF | D152: 500000
A153: TAGTF-USD | B153: MAYBANK | C153: MBBT-TAGTF | D153: 500000
A154: TAHGF-AUD | B154: UOB | C154: UNI-TAHGF | D154: 500000
A155: TAHGF-HKD | B155: UOB | C155: UNI-TAHGF | D155: 500000
A156: TAHGF-IDR | B156: UOB | C156: UNI-TAHGF | D156: 500000
A157: TAHGF-JPY | B157: UOB | C157: UNI-TAHGF | D157: 500000
A158: TAHGF-KRW | B158: UOB | C158: UNI-TAHGF | D158: 500000
A159: TAHGF-SGD | B159: UOB | C159: UNI-TAHGF | D159: 500000
A160: TAHGF-THB | B160: UOB | C160: UNI-TAHGF | D160: 500000
A161: TAHGF-USD | B161: UOB | C161: UNI-TAHGF | D161: 500000
A162: TAIB-AUS | B162: CITIBANK | C162: BHLB-TAIB | D162: 500000
A163: TAIB-GBP | B163: CITIBANK | C163: BHLB-TAIB | D163: 500000
A164: TAIB-HKD | B164: CITIBANK | C164: BHLB-TAIB | D164: 500000
A165: TAIB-IDR | B165: CITIBANK | C165: BHLB-TAIB | D165: 500000
A166: TAIB-JPY | B166: CITIBANK | C166: BHLB-TAIB | D166: 500000
A167: TAIB-KRW | B167: CITIBANK | C167: BHLB-TAIB | D167: 500000
A168: TAIB-SGD | B168: CITIBANK | C168: BHLB-TAIB | D168: 500000
A169: TAIB-THB | B169: CITIBANK | C169: BHLB-TAIB | D169: 500000
A170: TAIB-USD | B170: CITIBANK | C170: BHLB-TAIB | D170: 500000
A171: TAIF-AUD | B171: UOB | C171: N/A | D171: 500000
A172: TAIF-AUD-SCB | B172: Standrad charted | C172: UNI-TAIF | D172: 500000
A173: TAIF-HKD | B173: UOB | C173: N/A | D173: 500000
A174: TAIF-HKD-SCB | B174: Standrad charted | C174: UNI-TAIF | D174: 500000
A175: TAIF-IDR | B175: UOB | C175: N/A | D175: 500000
A176: TAIF-JPY | B176: UOB | C176: N/A | D176: 500000
A177: TAIF-JPY-SCB | B177: Standrad charted | C177: UNI-TAIF | D177: 500000
A178: TAIF-KRW | B178: UOB | C178: N/A | D178: 500000
A179: TAIF-KRW-SCB | B179: Standrad charted | C179: UNI-TAIF | D179: 500000
A180: TAIF-SGD | B180: SCB | C180: N/A | D180: 500000
A181: TAIF-SGD-SCB | B181: Standrad charted | C181: UNI-TAIF | D181: 500000
A182: TAIF-THB | B182: UOB | C182: N/A | D182: 500000
A183: TAIF-THB-SCB | B183: Standrad charted | C183: UNI-TAIF | D183: 500000
A184: TAIF-USD | B184: UOB | C184: N/A | D184: 500000
A185: TAIF-USD-SCB | B185: Standrad charted | C185: UNI-TAIF | D185: 500000
A186: TAINC-AUD | B186: UOB | C186: UNI-TAINC | D186: 500000
A187: TAINC-CNY | B187: UOB | C187: UNI-TAINC | D187: 500000
A188: TAINC-HKD | B188: UOB | C188: UNI-TAINC | D188: 500000
A189: TAINC-JPY | B189: UOB | C189: UNI-TAINC | D189: 500000
A190: TAINC-SGD | B190: UOB | C190: UNI-TAINC | D190: 500000
A191: TAINC-THB | B191: UOB | C191: UNI-TAINC | D191: 500000
A192: TAINC-USD | B192: UOB | C192: UNI-TAINC | D192: 500000
A193: TARAIF3-USD | B193: CIMB | C193: CIMB-TARAIF3 | D193: 500000
A194: TARAIF6-USD | B194: CIMB | C194: CIMB-TARAIF6 | D194: 500000
A195: TAREIT-AUD | B195: MAYBANT | C195: MBBT-TAREITs | D195: 500000
A196: TAREIT-CNY | B196: MAYBANT | C196: MBBT-TAREITs | D196: 500000
A197: TAREIT-JPY | B197: MAYBANT | C197: MBBT-TAREITs | D197: 500000
A198: TAREIT-SGD | B198: MAYBANT | C198: MBBT-TAREITs | D198: 500000
A199: TAREITs-HKD | B199: MAYBANT | C199: MBBT-TAREITs | D199: 500000
A200: TAREITs-USD | B200: MAYBANT | C200: MBBT-TAREITs | D200: 500000
... 24 more rows

Sheet aaAAACurrencySdf (hidden)
A1: qCurrencyCode
A2: AUD
A3: BRL
A4: CNY
A5: EUR
A6: GBP
A7: HKD
A8: IDR
A9: JPY
A10: KRW
A11: MYR
A12: PHP
A13: SGD
A14: THB
A15: TWD
A16: USD

Sheet CashFlowData (hidden)
A1: qFundCode | B1: qCurrencyCode | C1: AdditionalCash | D1: ActualBankBalance | E1: GLBankBalance | F1: EffectiveBankBalance | G1: Inflow | H1: Outflow | I1: CashAvailable | J1: CapitalInOut | K1: PlaceFlag | L1: UploadedFlag | M1: KeyInBy | N1: KeyInDate | O1: FundName | P1: BalanceAfterPlacement
A2: TABRIC | B2: MYR | C2: 0 | D2: 31424.34 | E2: 31424.84 | F2: 31424.34 | G2: 146135.28 | H2: 0 | I2: 177559.62 | J2: 0 | K2: 3 | L2: F | M2: idarosna | N2: 2019-06-27T10:00:48 | O2: TA Bric & Emerging Markets Fund | P2: 177559.62
A3: TACF | B3: MYR | C3: 0 | D3: 24152.55 | E3: 24152.25 | F3: 24152.55 | G3: 1968440.51 | H3: 0 | I3: 1992593.06 | J3: 0 | K3: 3 | L3: F | M3: idarosna | N3: 2019-06-27T10:00:48 | O3: TA Comet Fund | P3: 1992593.06
A4: TADO | B4: MYR | C4: 0 | D4: 31329.73 | E4: 31334.83 | F4: 31329.73 | G4: 847281.92 | H4: 0 | I4: 878611.65 | J4: 0 | K4: 3 | L4: F | M4: idarosna | N4: 2019-06-27T10:00:48 | O4: TA Dana Optimix | P4: 878611.65
A5: TAGF | B5: MYR | C5: 0 | D5: 47579.3 | E5: 47579.41 | F5: 47579.3 | G5: 3375694.02 | H5: 0 | I5: 3423273.32 | J5: 0 | K5: 3 | L5: F | M5: idarosna | N5: 2019-06-27T10:00:48 | O5: TA Growth Fund | P5: 3423273.32
A6: TAIB | B6: MYR | C6: 0 | D6: 26867.75 | E6: 29516.55 | F6: 26867.75 | G6: 2032394.92 | H6: 0 | I6: 2059262.67 | J6: 0 | K6: 3 | L6: F | M6: idarosna | N6: 2019-06-27T10:00:48 | O6: TA Asia Pacific Islamic Balanced Fund | P6: 2059262.67
A7: TAICP | B7: MYR | C7: 0 | D7: 47821.94 | E7: 47822.04 | F7: 47821.94 | G7: 14782206.43 | H7: 0 | I7: 14830028.37 | J7: 0 | K7: 3 | L7: F | M7: idarosna | N7: 2019-06-27T10:00:48 | O7: TA Islamic CashPLUS Fund | P7: 14830028.37
A8: TASCAP | B8: MYR | C8: 0 | D8: 25573.85 | E8: 25582.85 | F8: 25573.85 | G8: 496893.76 | H8: 0 | I8: 522467.61 | J8: 0 | K8: 3 | L8: F | M8: idarosna | N8: 2019-06-27T10:00:48 | O8: TA Small Cap Fund | P8: 522467.61
A9: TRFIF | B9: MYR | C9: 0 | D9: 60081.41 | E9: 60081.51 | F9: 60081.41 | G9: 0 | H9: 0 | I9: 60081.41 | J9: 0 | K9: 3 | L9: F | M9: idarosna | N9: 2019-06-27T10:00:48 | O9: TA Total Return Fixed Income Fund | P9: 60081.41
A10: TADART | B10: MYR | C10: 0 | D10: 23025.31 | E10: 23025.31 | F10: 23025.31 | G10: 882697.65 | H10: 0 | I10: 905722.96 | J10: 0 | K10: 3 | L10: F | M10: idarosna | N10: 2019-06-27T10:00:48 | O10: TA DANA PRINCIPAL PRESERVATION ROBOTIC THEME | P10: 905722.96
A11: TADG50 | B11: MYR | C11: 0 | D11: 111363.36 | E11: 111365.36 | F11: 111363.36 | G11: 5255159.26 | H11: -552278.47 | I11: 4814244.15 | J11: 0 | K11: 3 | L11: F | M11: idarosna | N11: 2019-06-27T10:00:48 | O11: TA DANA GLOBAL 50 | P11: 4814244.15
A12: TAACEF | B12: MYR | C12: 0 | D12: 1407096.24 | E12: 1407096.24 | F12: 1407096.24 | G12: 1551245.82 | H12: -420505.34 | I12: 2537836.72 | J12: 0 | K12: 3 | L12: F | M12: idarosna | N12: 2019-06-27T10:00:48 | O12: TA ALL CHINA EQUITY FUND | P12: 2537836.72
A13: TABIF | B13: MYR | C13: 0 | D13: 23344.6 | E13: 23483.1 | F13: 23344.6 | G13: 2003706.95 | H13: 0 | I13: 2027051.55 | J13: 0 | K13: 3 | L13: F | M13: idarosna | N13: 2019-06-27T10:00:48 | O13: TA Balance Income Fund | P13: 2027051.55
A14: TARAIF | B14: MYR | C14: 0 | D14: 21296.97 | E14: 21296.97 | F14: 21296.97 | G14: 4656779.81 | H14: 0 | I14: 4678076.78 | J14: 0 | K14: 3 | L14: F | M14: idarosna | N14: 2019-06-27T10:00:48 | O14: TA RAINBOW INCOME FUND | P14: 4678076.78
A15: TARAIF2 | B15: MYR | C15: 0 | D15: 20360.26 | E15: 20360.26 | F15: 20360.26 | G15: 2240467.35 | H15: 0 | I15: 2260827.61 | J15: 0 | K15: 3 | L15: F | M15: idarosna | N15: 2019-06-27T10:00:48 | O15: TA RAINBOW INCOME FUND 2 | P15: 2260827.61
A16: TARAIF3 | B16: MYR | C16: 0 | D16: 23706.59 | E16: 23706.59 | F16: 23706.59 | G16: 42290038.43 | H16: 0 | I16: 42313745.02 | J16: 0 | K16: 3 | L16: F | M16: idarosna | N16: 2019-06-27T10:00:48 | O16: TA RAINBOW INCOME FUND 3 | P16: 42313745.02
A17: TARAIF6 | B17: MYR | C17: 0 | D17: 7080237.07 | E17: 7080237.07 | F17: 7080237.07 | G17: 10316163.88 | H17: -359223.31 | I17: 17037177.64 | J17: 0 | K17: 3 | L17: F | M17: idarosna | N17: 2019-06-27T10:00:48 | O17: TA RAINBOW INCOME FUND 6 | P17: 17037177.64
A18: TAADIF | B18: MYR | C18: 0 | D18: 30441.5 | E18: 30446.5 | F18: 30441.5 | G18: 1719355.72 | H18: 0 | I18: 1749797.22 | J18: 0 | K18: 3 | L18: F | M18: idarosna | N18: 2019-06-27T10:00:48 | O18: TA Asian Dividend Income Fund | P18: 1749797.22
A19: TADA | B19: MYR | C19: 0 | D19: 30673.34 | E19: 30678.34 | F19: 30673.34 | G19: 1372089.55 | H19: -14344.57 | I19: 1388418.32 | J19: 0 | K19: 3 | L19: F | M19: idarosna | N19: 2019-06-27T10:00:48 | O19: TA Dana Afif | P19: 1388418.32
A20: TAEURO | B20: MYR | C20: 0 | D20: 22615.79 | E20: 22629.79 | F20: 22615.79 | G20: 1758038.62 | H20: -64355.42 | I20: 1716298.99 | J20: 0 | K20: 3 | L20: F | M20: idarosna | N20: 2019-06-27T10:00:48 | O20: TA European Equity Fund | P20: 1716298.99
A21: TAGAAF | B21: MYR | C21: 0 | D21: 22721.31 | E21: 22721.31 | F21: 22721.31 | G21: 0 | H21: 0 | I21: 22721.31 | J21: 0 | K21: 3 | L21: F | M21: idarosna | N21: 2019-06-27T10:00:48 | O21: TA Global Asset Allocator Fund | P21: 22721.31
A22: TAGTF | B22: MYR | C22: 0 | D22: 2212700.18 | E22: 2212705.18 | F22: 2212700.18 | G22: 7474902.88 | H22: -2005720.4 | I22: 7681882.66 | J22: 0 | K22: 3 | L22: F | M22: idarosna | N22: 2019-06-27T10:00:48 | O22: TA Global Technology Fund | P22: 7681882.66
A23: TAREIT | B23: MYR | C23: -100000 | D23: 65047.43 | E23: 67680.47 | F23: 65047.43 | G23: 1102116.37 | H23: 0 | I23: 968163.8 | J23: -99000 | K23: 3 | L23: F | M23: idarosna | N23: 2019-06-27T10:00:48 | O23: TA Asia Pacific REITs Income Fund | P23: 968163.8
A24: TAYS2 | B24: MYR | C24: 0 | D24: 0 | E24: 884691.87 | F24: 884691.87 | G24: 0 | H24: 0 | I24: 884691.87 | J24: 0 | K24: 1 | L24: F | M24: idarosna | N24: 2019-06-27T10:00:48 | O24: TAYS2 | P24: 884691.87
A25: TC-CBG | B25: MYR | C25: 0 | D25: 0 | E25: 2094.33 | F25: 2094.33 | G25: 0 | H25: 0 | I25: 2094.33 | J25: 0 | K25: 1 | L25: F | M25: idarosna | N25: 2019-06-27T10:00:48 | O25: TC-CBG | P25: 2094.33
A26: TC-CKY | B26: MYR | C26: 0 | D26: 0 | E26: 4289.71 | F26: 4289.71 | G26: 0 | H26: 0 | I26: 4289.71 | J26: 0 | K26: 1 | L26: F | M26: idarosna | N26: 2019-06-27T10:00:48 | O26: TC-CKY | P26: 4289.71
A27: TC-HWY | B27: MYR | C27: 0 | D27: 0 | E27: 8796.89 | F27: 8796.89 | G27: 0 | H27: 0 | I27: 8796.89 | J27: 0 | K27: 1 | L27: F | M27: idarosna | N27: 2019-06-27T10:00:48 | O27: TC-HWY | P27: 8796.89
A28: TC-LBK | B28: MYR | C28: 0 | D28: 0 | E28: 711.69 | F28: 711.69 | G28: 0 | H28: 0 | I28: 711.69 | J28: 0 | K28: 1 | L28: F | M28: idarosna | N28: 2019-06-27T10:00:48 | O28: TC-LBK | P28: 711.69
A29: TC-MARI | B29: MYR | C29: 0 | D29: 0 | E29: 8414.81 | F29: 8414.81 | G29: 0 | H29: 0 | I29: 8414.81 | J29: 0 | K29: 1 | L29: F | M29: idarosna | N29: 2019-06-27T10:00:48 | O29: TC-MARI | P29: 8414.81
A30: AG-JOS | B30: MYR | C30: 0 | D30: 0 | E30: 81075.57 | F30: 81075.57 | G30: 0 | H30: 0 | I30: 81075.57 | J30: 0 | K30: 1 | L30: F | M30: idarosna | N30: 2019-06-27T10:00:48 | O30: AG-JOS | P30: 81075.57
A31: AG-KJK | B31: MYR | C31: 0 | D31: 0 | E31: 7714.45 | F31: 7714.45 | G31: 0 | H31: 0 | I31: 7714.45 | J31: 0 | K31: 1 | L31: F | M31: idarosna | N31: 2019-06-27T10:00:48 | O31: AG-KJK | P31: 7714.45
A32: AG-NCH | B32: MYR | C32: 0 | D32: 0 | E32: 3407.49 | F32: 3407.49 | G32: 0 | H32: 0 | I32: 3407.49 | J32: 0 | K32: 1 | L32: F | M32: idarosna | N32: 2019-06-27T10:00:48 | O32: AG-NCH | P32: 3407.49
A33: AG-NWS | B33: MYR | C33: 0 | D33: 0 | E33: 1138.7 | F33: 1138.7 | G33: 0 | H33: 0 | I33: 1138.7 | J33: 0 | K33: 1 | L33: F | M33: idarosna | N33: 2019-06-27T10:00:48 | O33: AG-NWS | P33: 1138.7
A34: AG-SKS | B34: MYR | C34: 0 | D34: 0 | E34: 76044.71 | F34: 76044.71 | G34: 0 | H34: 0 | I34: 76044.71 | J34: 0 | K34: 1 | L34: F | M34: idarosna | N34: 2019-06-27T10:00:48 | O34: AG-SKS | P34: 76044.71
A35: AG-TGN | B35: MYR | C35: 0 | D35: 0 | E35: 7914.17 | F35: 7914.17 | G35: 0 | H35: 0 | I35: 7914.17 | J35: 0 | K35: 1 | L35: F | M35: idarosna | N35: 2019-06-27T10:00:48 | O35: AG-TGN | P35: 7914.17
A36: AG-THT | B36: MYR | C36: 0 | D36: 0 | E36: 163960.3 | F36: 163960.3 | G36: 0 | H36: 0 | I36: 163960.3 | J36: 0 | K36: 1 | L36: F | M36: idarosna | N36: 2019-06-27T10:00:48 | O36: AG-THT | P36: 163960.3
A37: AG-TJK1 | B37: MYR | C37: 0 | D37: 0 | E37: 38236.18 | F37: 38236.18 | G37: 0 | H37: 0 | I37: 38236.18 | J37: 0 | K37: 1 | L37: F | M37: idarosna | N37: 2019-06-27T10:00:48 | O37: AG-TJK1 | P37: 38236.18
A38: AG-YTC | B38: MYR | C38: 0 | D38: 0 | E38: 5316.39 | F38: 5316.39 | G38: 0 | H38: 0 | I38: 5316.39 | J38: 0 | K38: 1 | L38: F | M38: idarosna | N38: 2019-06-27T10:00:48 | O38: AG-YTC | P38: 5316.39
A39: AZI | B39: MYR | C39: 0 | D39: 0 | E39: 1360.49 | F39: 1360.49 | G39: 0 | H39: 0 | I39: 1360.49 | J39: 0 | K39: 1 | L39: F | M39: idarosna | N39: 2019-06-27T10:00:48 | O39: AZI | P39: 1360.49
A40: CWK2 | B40: MYR | C40: 0 | D40: 0 | E40: 52578.37 | F40: 52578.37 | G40: 0 | H40: 0 | I40: 52578.37 | J40: 0 | K40: 1 | L40: F | M40: idarosna | N40: 2019-06-27T10:00:48 | O40: CWK2 | P40: 52578.37
A41: CYT | B41: MYR | C41: 0 | D41: 0 | E41: 122183.66 | F41: 122183.66 | G41: 0 | H41: 0 | I41: 122183.66 | J41: 0 | K41: 1 | L41: F | M41: idarosna | N41: 2019-06-27T10:00:48 | O41: CYT | P41: 122183.66
A42: DTKF | B42: MYR | C42: 0 | D42: 0 | E42: 374959.94 | F42: 374959.94 | G42: 0 | H42: -15165.41 | I42: 359794.53 | J42: 0 | K42: 1 | L42: F | M42: idarosna | N42: 2019-06-27T10:00:48 | O42: DTKF | P42: 359794.53
A43: LFS | B43: MYR | C43: 0 | D43: 0 | E43: 207581.73 | F43: 207581.73 | G43: 0 | H43: 0 | I43: 207581.73 | J43: 0 | K43: 1 | L43: F | M43: idarosna | N43: 2019-06-27T10:00:48 | O43: LFS | P43: 207581.73
A44: LWC | B44: MYR | C44: 0 | D44: 0 | E44: 55436.3 | F44: 55436.3 | G44: 0 | H44: 0 | I44: 55436.3 | J44: 0 | K44: 1 | L44: F | M44: idarosna | N44: 2019-06-27T10:00:48 | O44: LWC | P44: 55436.3
A45: LWL | B45: MYR | C45: 0 | D45: 0 | E45: 2428.67 | F45: 2428.67 | G45: 0 | H45: 0 | I45: 2428.67 | J45: 0 | K45: 1 | L45: F | M45: idarosna | N45: 2019-06-27T10:00:48 | O45: LWL | P45: 2428.67
A46: MACEY1 | B46: MYR | C46: 0 | D46: 0 | E46: 29423.64 | F46: 29423.64 | G46: 0 | H46: 0 | I46: 29423.64 | J46: 0 | K46: 1 | L46: F | M46: idarosna | N46: 2019-06-27T10:00:48 | O46: MACEY1 | P46: 29423.64
A47: MF | B47: MYR | C47: 0 | D47: 0 | E47: 597967.93 | F47: 597967.93 | G47: 0 | H47: 0 | I47: 597967.93 | J47: 0 | K47: 1 | L47: F | M47: idarosna | N47: 2019-06-27T10:00:48 | O47: MF | P47: 597967.93
A48: PRSB | B48: MYR | C48: 0 | D48: 0 | E48: 386051.76 | F48: 386051.76 | G48: 0 | H48: 0 | I48: 386051.76 | J48: 0 | K48: 1 | L48: F | M48: idarosna | N48: 2019-06-27T10:00:48 | O48: PRSB | P48: 386051.76
A49: RM-CLY | B49: MYR | C49: 0 | D49: 0 | E49: 691.74 | F49: 691.74 | G49: 0 | H49: 0 | I49: 691.74 | J49: 0 | K49: 1 | L49: F | M49: idarosna | N49: 2019-06-27T10:00:48 | O49: RM-CLY | P49: 691.74
A50: RM-CMY | B50: MYR | C50: 0 | D50: 0 | E50: 2674.72 | F50: 2674.72 | G50: 0 | H50: 0 | I50: 2674.72 | J50: 0 | K50: 1 | L50: F | M50: idarosna | N50: 2019-06-27T10:00:48 | O50: RM-CMY | P50: 2674.72
A51: RM-CNK | B51: MYR | C51: 0 | D51: 0 | E51: 637.57 | F51: 637.57 | G51: 0 | H51: 0 | I51: 637.57 | J51: 0 | K51: 1 | L51: F | M51: idarosna | N51: 2019-06-27T10:00:48 | O51: RM-CNK | P51: 637.57
A52: RM-CYL | B52: MYR | C52: 0 | D52: 0 | E52: 696.74 | F52: 696.74 | G52: 0 | H52: 0 | I52: 696.74 | J52: 0 | K52: 1 | L52: F | M52: idarosna | N52: 2019-06-27T10:00:48 | O52: RM-CYL | P52: 696.74
A53: RM-LKT | B53: MYR | C53: 0 | D53: 0 | E53: 616.28 | F53: 616.28 | G53: 0 | H53: 0 | I53: 616.28 | J53: 0 | K53: 1 | L53: F | M53: idarosna | N53: 2019-06-27T10:00:48 | O53: RM-LKT | P53: 616.28
A54: RM-LYL | B54: MYR | C54: 0 | D54: 0 | E54: 1669.44 | F54: 1669.44 | G54: 0 | H54: 0 | I54: 1669.44 | J54: 0 | K54: 1 | L54: F | M54: idarosna | N54: 2019-06-27T10:00:48 | O54: RM-LYL | P54: 1669.44
